Workbook

Sheet Infos
B7: Presentation of the eco-fee code generator
B9: Creating codes for applying the eco-fee to games and toys
B10: Version 1.6m - February 20th 2023
B12: Who is this tool intended for?
B13: This tool is intended for traders of outdoor games and toys.
B15: What is it for?
B16: This file allows you to generate the product codes used to declare information linked to placing products on the market. These product codes allow you to apply the eco-fee rate to toys and games according to their characteristics: type of games, materials, weight.
B17: To understand how this 11-digit product code is composed, click on the “Understanding the coding system” tab
B19: How do you generate a product code?
B20: To generate a product code, click on the “Product code generator” tab
B21: Please note: To be sure of entering the correct codes when submitting your declaration, use the “Product code generator” tab and the copy-paste function, selecting “Paste special absolute value”.
B22: What is the GTIN / EAN code for the Toy EPR Scheme ?
B23: A GTIN/ EAN code has been assigned to the Toy EPR Scheme. This is code is : 3001000002831
B25: Declaring eco-fees
B27: When should you make your declaration?
B28: The first declaration based on product codes must be made in April 2023 for products placed on the market for the first quarter of 2023.
B29: Important note: a simplified declaration must be made in October 2022 on the basis of estimated turnover excl. tax for December 2022. Full information can be found in the member’s guide.
B30: Quarterly declarations must be made in the month after each calendar quarter (April for Q1, July for Q2, October for Q3, and January for Q4).
B32: Creating codes for applying the eco-fee to games and toys
B33: The declaration of products placed with product codes is made by data input or by uploading a file* in .csv format to Eco-mobilier’s Extranet: https://espace-services.eco-mobilier.fr/ *You can download the standard file from the Declarations area.
B35: The file must contain the following column headings:
B42: > To find out how to make your declaration, consult the complete operating procedures: https://espace-services.eco-mobilier.fr/mode-operatoire-declarer

Sheet Understanding codification
A1: Nomenclature of the 11-digit product codes
A2: =Infos!$B$10 -> Version 1.6m - February 20th 2023
A3: Structure of Ecomaison Codes
A11: Code category | D11: Product type code | G11: Material code | J11: Characteristic code | M11: Eco-modulation
A13: 31 | B13: Toys | D13: 201 | E13: Action figures and accessories | G13: 00 | H13: Not found | J13: 083 | K13: Strictly under 0.1 kg | M13: 0 | N13: Without Eco-modulation
A14: 32 | B14: Outdoor toys | D14: 202 | E14: Construction sets & accessories | G14: 01 | H14: Wood, panels and wood derivatives >50% | J14: 084 | K14: ≥ 0.1kg and < 0.2kg | M14: 1 | N14: Eco-modulation
A15: 33 | B15: Board games | D15: 203 | E15: Dolls, dolls & accessories | G15: 02 | H15: Metal >50% | J15: 085 | K15: ≥ 0.2kg and < 0.3kg
A16: 34 | B16: Gift toys | D16: 204 | E16: Plush toys & accessories | G16: 03 | H16: Bamboo/rattan >50% | J16: 086 | K16: ≥ 0.3kg and < 0.4kg
D17: 205 | E17: Infant and preschool toys & accessories (under 3 years) | G17: 04 | H17: Wicker and other plant stalks >50% | J17: 087 | K17: ≥ 0.4kg and < 0.5kg
D18: 206 | E18: Miniature vehicles & accessories | G18: 05 | H18: Plastics >50% | J18: 021 | K18: ≥ 0.5kg and < 1kg
D19: 207 | E19: Creative play toys & accessories | G19: 06 | H19: Textiles, leather and fur >50% | J19: 022 | K19: ≥ 1kg and < 2kg
D20: 208 | E20: Exploration toys and other toys & accessories | G20: 07 | H20: Glass and mirror >50% | J20: 052 | K20: ≥ 2kg and < 3kg
D21: 209 | E21: Pedal ride-on toys & accessories | G21: 08 | H21: Inert, minerals >50% | J21: 053 | K21: ≥ 3kg and < 5kg
D22: 210 | E22: Ride-on toys without pedals & accessories | G22: 12 | H22: Other | J22: 054 | K22: ≥ 5kg and < 7kg
D23: 211 | E23: Sports toys & accessories | G23: 13 | H23: Natural padding (feather, wool) | J23: 055 | K23: ≥ 7kg and < 10kg
D24: 212 | E24: Summer toys & accessories | G24: 14 | H24: Synthetic padding (foam, polyester) | J24: 056 | K24: ≥ 10kg and < 15kg
D25: 213 | E25: Activity toys for family use | G25: 15 | H25: Composites and compact >50% | J25: 057 | K25: ≥ 15kg and < 20kg
D26: 214 | E26: Board games & accessories (Toy Directive) | G26: 16 | H26: Artificial stone >50% | J26: 058 | K26: ≥ 20kg and < 25kg
D27: 215 | E27: Board games & accessories (outside Toy Directive) | G27: 17 | H27: Cement concrete >50% | J27: 059 | K27: ≥ 25kg and < 30kg
D28: 216 | E28: Jigsaws & accessories (Toy Directive) | G28: 18 | H28: Ceramic >50% | J28: 027 | K28: ≥ 30kg and < 40kg
D29: 217 | E29: Jigsaws & accessories (outside Toy Directive) | G29: 19 | H29: Paper, cardboard >50% | J29: 060 | K29: ≥ 40kg and < 50kg
D30: 218 | E30: Models & accessories (Toy Directive) | G30: 20 | H30: Certified solid wood, more than 75% | J30: 088 | K30: ≥ 50kg and < 100kg
D31: 219 | E31: Models & accessories (outside Toy Directive) | G31: 21 | H31: Uncertified solid wood, more than 75% | J31: 030 | K31: ≥ 100kg and < 150kg
D32: 220 | E32: Gift toys & accessories | G32: 22 | H32: Metal, more than 75% | J32: 031 | K32: ≥ 150kg and < 200kg
G33: 23 | H33: Certified solid wood mix and metal, more than 75% | J33: 032 | K33: ≥ 200kg and < 250kg
G34: 24 | H34: Particleboard and/or wood and/or metal, more than 75% | J34: 082 | K34: Greater than 250 kg
G35: 25 | H35: Particleboard, more than 75% | J35: 089 | K35: Batch of 1000
G36: 26 | H36: Plywood, more than 75%
G37: 27 | H37: OSB, more than 75%
G38: 28 | H38: Metal, more than 95%
G39: 29 | H39: Ferrous metal >50%
G40: 30 | H40: Ferrous metal, more than 95%
G41: 31 | H41: Non-ferrous metal >50%
G42: 32 | H42: Non-ferrous metal, more than 95%
G43: 33 | H43: Polyethylene terephthalate (PET) >50%
G44: 34 | H44: Polyethylene (PE) >50%
G45: 35 | H45: Polypropylene (PP) >50%
G46: 36 | H46: PE and PP mixture >50%
G47: 37 | H47: ABS >50%
G48: 38 | H48: Polystyrene >50%
G49: 39 | H49: PVC >50%
G50: 40 | H50: Rubber >50%
G51: 41 | H51: Plastics​ (without specificity) >95%
G52: 42 | H52: Polyethylene terephthalate (PET) >95%
G53: 43 | H53: Polyethylene (PE) >95%
G54: 44 | H54: Polypropylene (PP) >95%
G55: 45 | H55: PE and PP mix >95%
G56: 46 | H56: ABS >95%
G57: 47 | H57: Polystyrene >95%
G58: 48 | H58: PVC >95%
G59: 49 | H59: Rubber >95%
G60: 50 | H60: Paper >95%
G61: 51 | H61: Cardboard >95%
G62: 52 | H62: Certified solid wood, over 95%
G63: 53 | H63: Non-certified solid wood, over 95%
G64: 54 | H64: Bamboo/Rattan >95%
G65: 55 | H65: Wicker and other plant stems >95%
G66: 56 | H66: Textiles, leather, fur, etc. >95%
G67: 57 | H67: Glass and mirror >95%
G68: 58 | H68: Inert materials, minerals >95%
G69: 99 | H69: Mix of 3 materials max | I69: (Careful, this code can only be use for products over 160cm (L+l))

Sheet Product code generator
A1: Product code generator - Games and toys | J1: MASQUER | K1: MASQUER | L1: MASQUER | M1: MASQUER | N1: MASQUER | P1: =Infos!$B$10 -> Version 1.6m - February 20th 2023
A2: Select the items in the brown boxes
B5: Your references | C5: Product name | D5: Select a category: | E5: Select a product type | F5: Choose a material type and then the majority material by weight: | H5: Choose the characteristic (net weight of the product) according to the type of product: | I5: Does the product benefit from eco-modulation ? | P5: Ecomaison Code | S5: Remarks
D6: Toys | E6: Construction sets & accessories | F6: Metal | G6: Metal, more than 95% | H6: ≥ 0.3kg and < 0.4kg | I6: yes | J6: =IF(D6="","",VLOOKUP(D6,Listes_masqué!$H$3:$K$14,2,FALSE)) -> 31 | K6: =IF(E6="","",VLOOKUP(E6,Listes_masqué!$N$3:$O$22,2,FALSE)) -> 202 | L6: =IF(G6="","",VLOOKUP(G6,Listes_masqué!$F$3:$G$62,2,FALSE)) -> 28 | M6: =IF(H6="","",VLOOKUP(H6,Listes_masqué!$B$3:$C$25,2,FALSE)) -> 086 | N6: =IF(I6="","",IF(I6="yes",1,0)) -> 1 | P6: =IF(OR(H6="",G6="",E6="",D6="",I6=""),"",CONCATENATE(J6,K6,L6,M6,N6)) -> 31202280861 | Q6: =_xlfn.XLOOKUP(P6,Tableau13[Product code],Tableau13[Designation],"") -> Toys - Construction sets & accessories en Metal, more than 95%≥ 0.3kg and < 0.4kg, eco-modulated | R6: =IFERROR(VLOOKUP('Product code generator'!$P6,Tableau13[[#All],[Product code]:[Price excl. tax]],3,FALSE),"") -> 0.04 | S6: =IF(M6="089","Please note: you must declare a batch number of 1000 and not units.",IF(I6="yes","Please check that this product is eligible for eco-modulations.","")) -> Please check that this product is eligible for eco-modulations. | T6: =VLOOKUP(D6,Listes_masqué!$H$3:$J$6,3,FALSE) -> Jouets | U6: =IF(K6="213",VLOOKUP(F6,Listes_masqué!$Q$9:$R$13,2,FALSE),VLOOKUP(F6,Listes_masqué!$Q$3:$R$7,2,FALSE)) -> Métal
D7: Board games | E7: Board games & accessories (outside Toy Directive) | F7: Others | G7: Paper, cardboard >50% | H7: Strictly under 0.1 kg | I7: no | J7: =IF(D7="","",VLOOKUP(D7,Listes_masqué!$H$3:$K$14,2,FALSE)) -> 33 | K7: =IF(E7="","",VLOOKUP(E7,Listes_masqué!$N$3:$O$22,2,FALSE)) -> 215 | L7: =IF(G7="","",VLOOKUP(G7,Listes_masqué!$F$3:$G$62,2,FALSE)) -> 19 | M7: =IF(H7="","",VLOOKUP(H7,Listes_masqué!$B$3:$C$25,2,FALSE)) -> 083 | N7: 0 | P7: =IF(OR(H7="",G7="",E7="",D7="",I7=""),"",CONCATENATE(J7,K7,L7,M7,N7)) -> 33215190830 | Q7: =_xlfn.XLOOKUP(P7,Tableau13[Product code],Tableau13[Designation],"") -> Board games - Board games & accessories (outside Toy Directive) en Paper, cardboard >50%Strictly under 0.1 kg | R7: =IFERROR(VLOOKUP('Product code generator'!$P7,Tableau13[[#All],[Product code]:[Price excl. tax]],3,FALSE),"") -> 0.01 | S7: =IF(M7="089","Attention! Il faut déclarer un nombre de lot de 1000 et non des unités.",IF(I7="yes","Attention, pensez à bien verifier l'éligibilité de ce produit aux éco-modulations.","")) ->  | T7: =VLOOKUP(D7,Listes_masqué!$H$3:$J$6,3,FALSE) -> Jeux_de_société | U7: =IF(K7="213",VLOOKUP(F7,Listes_masqué!$Q$9:$R$13,2,FALSE),VLOOKUP(F7,Listes_masqué!$Q$3:$R$7,2,FALSE)) -> Autres
D8: Outdoor toys | E8: Ride-on toys without pedals & accessories | F8: Plastic | G8: Polyethylene terephthalate (PET) >95% | H8: ≥ 50kg and < 100kg | I8: yes | J8: =IF(D8="","",VLOOKUP(D8,Listes_masqué!$H$3:$K$14,2,FALSE)) -> 32 | K8: =IF(E8="","",VLOOKUP(E8,Listes_masqué!$N$3:$O$22,2,FALSE)) -> 210 | L8: =IF(G8="","",VLOOKUP(G8,Listes_masqué!$F$3:$G$62,2,FALSE)) -> 42 | M8: =IF(H8="","",VLOOKUP(H8,Listes_masqué!$B$3:$C$25,2,FALSE)) -> 088 | N8: 1 | P8: =IF(OR(H8="",G8="",E8="",D8="",I8=""),"",CONCATENATE(J8,K8,L8,M8,N8)) -> 32210420881 | Q8: =_xlfn.XLOOKUP(P8,Tableau13[Product code],Tableau13[Designation],"") -> Outdoor toys - Ride-on toys without pedals & accessories en Polyethylene terephthalate (PET) >95%≥ 50kg and < 100kg, eco-modulated | R8: =IFERROR(VLOOKUP('Product code generator'!$P8,Tableau13[[#All],[Product code]:[Price excl. tax]],3,FALSE),"") -> 14.61 | S8: =IF(M8="089","Please note: you must declare a batch number of 1000 and not units.",IF(I8="yes","Please check that this product is eligible for eco-modulations.","")) -> Please check that this product is eligible for eco-modulations. | T8: =VLOOKUP(D8,Listes_masqué!$H$3:$J$6,3,FALSE) -> Jouets_de_plein_air | U8: =IF(K8="213",VLOOKUP(F8,Listes_masqué!$Q$9:$R$13,2,FALSE),VLOOKUP(F8,Listes_masqué!$Q$3:$R$7,2,FALSE)) -> Plastiques
D9: Gift toys | E9: Gift toys & accessories | F9: Plastic | G9: Polyethylene terephthalate (PET) >50% | H9: batch of 1000 | I9: no | J9: =IF(D9="","",VLOOKUP(D9,Listes_masqué!$H$3:$K$14,2,FALSE)) -> 34 | K9: =IF(E9="","",VLOOKUP(E9,Listes_masqué!$N$3:$O$22,2,FALSE)) -> 220 | L9: =IF(G9="","",VLOOKUP(G9,Listes_masqué!$F$3:$G$62,2,FALSE)) -> 33 | M9: =IF(H9="","",VLOOKUP(H9,Listes_masqué!$B$3:$C$25,2,FALSE)) -> 089 | N9: 0 | P9: 34220330890 | Q9: =_xlfn.XLOOKUP(P9,Tableau13[Product code],Tableau13[Designation],"") -> Gift toys - Gift toys & accessories en Polyethylene terephthalate (PET) >50%Batch of 1000 | R9: =IFERROR(VLOOKUP('Product code generator'!$P9,Tableau13[[#All],[Product code]:[Price excl. tax]],3,FALSE),"") -> 7 | S9: =IF(M9="089","Please note : you must declare a batch number of 1000 and not units.",IF(I9="yes","Please check that this product is eligible for eco-modulations.","")) -> Please note : you must declare a batch number of 1000 and not units. | T9: =VLOOKUP(D9,Listes_masqué!$H$3:$J$6,3,FALSE) -> Jeux_cadeau | U9: =IF(K9="213",VLOOKUP(F9,Listes_masqué!$Q$9:$R$13,2,FALSE),VLOOKUP(F9,Listes_masqué!$Q$3:$R$7,2,FALSE)) -> Plastiques
J10: =IF(D10="","",VLOOKUP(D10,Listes_masqué!$H$3:$K$14,2,FALSE)) ->  | K10: =IF(E10="","",VLOOKUP(E10,Listes_masqué!$N$3:$O$22,2,FALSE)) ->  | L10: =IF(G10="","",VLOOKUP(G10,Listes_masqué!$F$3:$G$62,2,FALSE)) ->  | M10: =IF(H10="","",VLOOKUP(H10,Listes_masqué!$B$3:$C$25,2,FALSE)) ->  | Q10: =_xlfn.XLOOKUP(P10,Tableau13[Product code],Tableau13[Designation],"") ->  | R10: =IFERROR(VLOOKUP('Product code generator'!$P10,Tableau13[[#All],[Product code]:[Price excl. tax]],3,FALSE),"") ->  | T10: =VLOOKUP(D10,Listes_masqué!$H$3:$J$6,3,FALSE) ->  | U10: =IF(K10="213",VLOOKUP(F10,Listes_masqué!$Q$9:$R$13,2,FALSE),VLOOKUP(F10,Listes_masqué!$Q$3:$R$7,2,FALSE)) -> 
J11: =IF(D11="","",VLOOKUP(D11,Listes_masqué!$H$3:$K$14,2,FALSE)) ->  | K11: =IF(E11="","",VLOOKUP(E11,Listes_masqué!$N$3:$O$22,2,FALSE)) ->  | L11: =IF(G11="","",VLOOKUP(G11,Listes_masqué!$F$3:$G$62,2,FALSE)) ->  | M11: =IF(H11="","",VLOOKUP(H11,Listes_masqué!$B$3:$C$25,2,FALSE)) ->  | Q11: =_xlfn.XLOOKUP(P11,Tableau13[Product code],Tableau13[Designation],"") ->  | R11: =IFERROR(VLOOKUP('Product code generator'!$P11,Tableau13[[#All],[Product code]:[Price excl. tax]],3,FALSE),"") ->  | T11: =VLOOKUP(D11,Listes_masqué!$H$3:$J$6,3,FALSE) ->  | U11: =IF(K11="213",VLOOKUP(F11,Listes_masqué!$Q$9:$R$13,2,FALSE),VLOOKUP(F11,Listes_masqué!$Q$3:$R$7,2,FALSE)) -> 
J12: =IF(D12="","",VLOOKUP(D12,Listes_masqué!$H$3:$K$14,2,FALSE)) ->  | K12: =IF(E12="","",VLOOKUP(E12,Listes_masqué!$N$3:$O$22,2,FALSE)) ->  | L12: =IF(G12="","",VLOOKUP(G12,Listes_masqué!$F$3:$G$62,2,FALSE)) ->  | M12: =IF(H12="","",VLOOKUP(H12,Listes_masqué!$B$3:$C$25,2,FALSE)) ->  | Q12: =_xlfn.XLOOKUP(P12,Tableau13[Product code],Tableau13[Designation],"") ->  | R12: =IFERROR(VLOOKUP('Product code generator'!$P12,Tableau13[[#All],[Product code]:[Price excl. tax]],3,FALSE),"") ->  | T12: =VLOOKUP(D12,Listes_masqué!$H$3:$J$6,3,FALSE) ->  | U12: =IF(K12="213",VLOOKUP(F12,Listes_masqué!$Q$9:$R$13,2,FALSE),VLOOKUP(F12,Listes_masqué!$Q$3:$R$7,2,FALSE)) -> 
J13: =IF(D13="","",VLOOKUP(D13,Listes_masqué!$H$3:$K$14,2,FALSE)) ->  | K13: =IF(E13="","",VLOOKUP(E13,Listes_masqué!$N$3:$O$22,2,FALSE)) ->  | L13: =IF(G13="","",VLOOKUP(G13,Listes_masqué!$F$3:$G$62,2,FALSE)) ->  | M13: =IF(H13="","",VLOOKUP(H13,Listes_masqué!$B$3:$C$25,2,FALSE)) ->  | Q13: =_xlfn.XLOOKUP(P13,Tableau13[Product code],Tableau13[Designation],"") ->  | R13: =IFERROR(VLOOKUP('Product code generator'!$P13,Tableau13[[#All],[Product code]:[Price excl. tax]],3,FALSE),"") ->  | T13: =VLOOKUP(D13,Listes_masqué!$H$3:$J$6,3,FALSE) ->  | U13: =IF(K13="213",VLOOKUP(F13,Listes_masqué!$Q$9:$R$13,2,FALSE),VLOOKUP(F13,Listes_masqué!$Q$3:$R$7,2,FALSE)) -> 
J14: =IF(D14="","",VLOOKUP(D14,Listes_masqué!$H$3:$K$14,2,FALSE)) ->  | K14: =IF(E14="","",VLOOKUP(E14,Listes_masqué!$N$3:$O$22,2,FALSE)) ->  | L14: =IF(G14="","",VLOOKUP(G14,Listes_masqué!$F$3:$G$62,2,FALSE)) ->  | M14: =IF(H14="","",VLOOKUP(H14,Listes_masqué!$B$3:$C$25,2,FALSE)) ->  | Q14: =_xlfn.XLOOKUP(P14,Tableau13[Product code],Tableau13[Designation],"") ->  | R14: =IFERROR(VLOOKUP('Product code generator'!$P14,Tableau13[[#All],[Product code]:[Price excl. tax]],3,FALSE),"") ->  | T14: =VLOOKUP(D14,Listes_masqué!$H$3:$J$6,3,FALSE) ->  | U14: =IF(K14="213",VLOOKUP(F14,Listes_masqué!$Q$9:$R$13,2,FALSE),VLOOKUP(F14,Listes_masqué!$Q$3:$R$7,2,FALSE)) -> 
J15: =IF(D15="","",VLOOKUP(D15,Listes_masqué!$H$3:$K$14,2,FALSE)) ->  | K15: =IF(E15="","",VLOOKUP(E15,Listes_masqué!$N$3:$O$22,2,FALSE)) ->  | L15: =IF(G15="","",VLOOKUP(G15,Listes_masqué!$F$3:$G$62,2,FALSE)) ->  | M15: =IF(H15="","",VLOOKUP(H15,Listes_masqué!$B$3:$C$25,2,FALSE)) ->  | Q15: =_xlfn.XLOOKUP(P15,Tableau13[Product code],Tableau13[Designation],"") ->  | R15: =IFERROR(VLOOKUP('Product code generator'!$P15,Tableau13[[#All],[Product code]:[Price excl. tax]],3,FALSE),"") ->  | T15: =VLOOKUP(D15,Listes_masqué!$H$3:$J$6,3,FALSE) ->  | U15: =IF(K15="213",VLOOKUP(F15,Listes_masqué!$Q$9:$R$13,2,FALSE),VLOOKUP(F15,Listes_masqué!$Q$3:$R$7,2,FALSE)) -> 
J16: =IF(D16="","",VLOOKUP(D16,Listes_masqué!$H$3:$K$14,2,FALSE)) ->  | K16: =IF(E16="","",VLOOKUP(E16,Listes_masqué!$N$3:$O$22,2,FALSE)) ->  | L16: =IF(G16="","",VLOOKUP(G16,Listes_masqué!$F$3:$G$62,2,FALSE)) ->  | M16: =IF(H16="","",VLOOKUP(H16,Listes_masqué!$B$3:$C$25,2,FALSE)) ->  | Q16: =_xlfn.XLOOKUP(P16,Tableau13[Product code],Tableau13[Designation],"") ->  | R16: =IFERROR(VLOOKUP('Product code generator'!$P16,Tableau13[[#All],[Product code]:[Price excl. tax]],3,FALSE),"") ->  | T16: =VLOOKUP(D16,Listes_masqué!$H$3:$J$6,3,FALSE) ->  | U16: =IF(K16="213",VLOOKUP(F16,Listes_masqué!$Q$9:$R$13,2,FALSE),VLOOKUP(F16,Listes_masqué!$Q$3:$R$7,2,FALSE)) -> 
J17: =IF(D17="","",VLOOKUP(D17,Listes_masqué!$H$3:$K$14,2,FALSE)) ->  | K17: =IF(E17="","",VLOOKUP(E17,Listes_masqué!$N$3:$O$22,2,FALSE)) ->  | L17: =IF(G17="","",VLOOKUP(G17,Listes_masqué!$F$3:$G$62,2,FALSE)) ->  | M17: =IF(H17="","",VLOOKUP(H17,Listes_masqué!$B$3:$C$25,2,FALSE)) ->  | Q17: =_xlfn.XLOOKUP(P17,Tableau13[Product code],Tableau13[Designation],"") ->  | R17: =IFERROR(VLOOKUP('Product code generator'!$P17,Tableau13[[#All],[Product code]:[Price excl. tax]],3,FALSE),"") ->  | T17: =VLOOKUP(D17,Listes_masqué!$H$3:$J$6,3,FALSE) ->  | U17: =IF(K17="213",VLOOKUP(F17,Listes_masqué!$Q$9:$R$13,2,FALSE),VLOOKUP(F17,Listes_masqué!$Q$3:$R$7,2,FALSE)) -> 
J18: =IF(D18="","",VLOOKUP(D18,Listes_masqué!$H$3:$K$14,2,FALSE)) ->  | K18: =IF(E18="","",VLOOKUP(E18,Listes_masqué!$N$3:$O$22,2,FALSE)) ->  | L18: =IF(G18="","",VLOOKUP(G18,Listes_masqué!$F$3:$G$62,2,FALSE)) ->  | M18: =IF(H18="","",VLOOKUP(H18,Listes_masqué!$B$3:$C$25,2,FALSE)) ->  | Q18: =_xlfn.XLOOKUP(P18,Tableau13[Product code],Tableau13[Designation],"") ->  | R18: =IFERROR(VLOOKUP('Product code generator'!$P18,Tableau13[[#All],[Product code]:[Price excl. tax]],3,FALSE),"") ->  | T18: =VLOOKUP(D18,Listes_masqué!$H$3:$J$6,3,FALSE) ->  | U18: =IF(K18="213",VLOOKUP(F18,Listes_masqué!$Q$9:$R$13,2,FALSE),VLOOKUP(F18,Listes_masqué!$Q$3:$R$7,2,FALSE)) -> 
J19: =IF(D19="","",VLOOKUP(D19,Listes_masqué!$H$3:$K$14,2,FALSE)) ->  | K19: =IF(E19="","",VLOOKUP(E19,Listes_masqué!$N$3:$O$22,2,FALSE)) ->  | L19: =IF(G19="","",VLOOKUP(G19,Listes_masqué!$F$3:$G$62,2,FALSE)) ->  | M19: =IF(H19="","",VLOOKUP(H19,Listes_masqué!$B$3:$C$25,2,FALSE)) ->  | Q19: =_xlfn.XLOOKUP(P19,Tableau13[Product code],Tableau13[Designation],"") ->  | R19: =IFERROR(VLOOKUP('Product code generator'!$P19,Tableau13[[#All],[Product code]:[Price excl. tax]],3,FALSE),"") ->  | T19: =VLOOKUP(D19,Listes_masqué!$H$3:$J$6,3,FALSE) ->  | U19: =IF(K19="213",VLOOKUP(F19,Listes_masqué!$Q$9:$R$13,2,FALSE),VLOOKUP(F19,Listes_masqué!$Q$3:$R$7,2,FALSE)) -> 
J20: =IF(D20="","",VLOOKUP(D20,Listes_masqué!$H$3:$K$14,2,FALSE)) ->  | K20: =IF(E20="","",VLOOKUP(E20,Listes_masqué!$N$3:$O$22,2,FALSE)) ->  | L20: =IF(G20="","",VLOOKUP(G20,Listes_masqué!$F$3:$G$62,2,FALSE)) ->  | M20: =IF(H20="","",VLOOKUP(H20,Listes_masqué!$B$3:$C$25,2,FALSE)) ->  | Q20: =_xlfn.XLOOKUP(P20,Tableau13[Product code],Tableau13[Designation],"") ->  | R20: =IFERROR(VLOOKUP('Product code generator'!$P20,Tableau13[[#All],[Product code]:[Price excl. tax]],3,FALSE),"") ->  | T20: =VLOOKUP(D20,Listes_masqué!$H$3:$J$6,3,FALSE) ->  | U20: =IF(K20="213",VLOOKUP(F20,Listes_masqué!$Q$9:$R$13,2,FALSE),VLOOKUP(F20,Listes_masqué!$Q$3:$R$7,2,FALSE)) -> 
J21: =IF(D21="","",VLOOKUP(D21,Listes_masqué!$H$3:$K$14,2,FALSE)) ->  | K21: =IF(E21="","",VLOOKUP(E21,Listes_masqué!$N$3:$O$22,2,FALSE)) ->  | L21: =IF(G21="","",VLOOKUP(G21,Listes_masqué!$F$3:$G$62,2,FALSE)) ->  | M21: =IF(H21="","",VLOOKUP(H21,Listes_masqué!$B$3:$C$25,2,FALSE)) ->  | Q21: =_xlfn.XLOOKUP(P21,Tableau13[Product code],Tableau13[Designation],"") ->  | R21: =IFERROR(VLOOKUP('Product code generator'!$P21,Tableau13[[#All],[Product code]:[Price excl. tax]],3,FALSE),"") ->  | T21: =VLOOKUP(D21,Listes_masqué!$H$3:$J$6,3,FALSE) ->  | U21: =IF(K21="213",VLOOKUP(F21,Listes_masqué!$Q$9:$R$13,2,FALSE),VLOOKUP(F21,Listes_masqué!$Q$3:$R$7,2,FALSE)) -> 
J22: =IF(D22="","",VLOOKUP(D22,Listes_masqué!$H$3:$K$14,2,FALSE)) ->  | K22: =IF(E22="","",VLOOKUP(E22,Listes_masqué!$N$3:$O$22,2,FALSE)) ->  | L22: =IF(G22="","",VLOOKUP(G22,Listes_masqué!$F$3:$G$62,2,FALSE)) ->  | M22: =IF(H22="","",VLOOKUP(H22,Listes_masqué!$B$3:$C$25,2,FALSE)) ->  | Q22: =_xlfn.XLOOKUP(P22,Tableau13[Product code],Tableau13[Designation],"") ->  | R22: =IFERROR(VLOOKUP('Product code generator'!$P22,Tableau13[[#All],[Product code]:[Price excl. tax]],3,FALSE),"") ->  | T22: =VLOOKUP(D22,Listes_masqué!$H$3:$J$6,3,FALSE) ->  | U22: =IF(K22="213",VLOOKUP(F22,Listes_masqué!$Q$9:$R$13,2,FALSE),VLOOKUP(F22,Listes_masqué!$Q$3:$R$7,2,FALSE)) -> 
J23: =IF(D23="","",VLOOKUP(D23,Listes_masqué!$H$3:$K$14,2,FALSE)) ->  | K23: =IF(E23="","",VLOOKUP(E23,Listes_masqué!$N$3:$O$22,2,FALSE)) ->  | L23: =IF(G23="","",VLOOKUP(G23,Listes_masqué!$F$3:$G$62,2,FALSE)) ->  | M23: =IF(H23="","",VLOOKUP(H23,Listes_masqué!$B$3:$C$25,2,FALSE)) ->  | Q23: =_xlfn.XLOOKUP(P23,Tableau13[Product code],Tableau13[Designation],"") ->  | R23: =IFERROR(VLOOKUP('Product code generator'!$P23,Tableau13[[#All],[Product code]:[Price excl. tax]],3,FALSE),"") ->  | T23: =VLOOKUP(D23,Listes_masqué!$H$3:$J$6,3,FALSE) ->  | U23: =IF(K23="213",VLOOKUP(F23,Listes_masqué!$Q$9:$R$13,2,FALSE),VLOOKUP(F23,Listes_masqué!$Q$3:$R$7,2,FALSE)) -> 
J24: =IF(D24="","",VLOOKUP(D24,Listes_masqué!$H$3:$K$14,2,FALSE)) ->  | K24: =IF(E24="","",VLOOKUP(E24,Listes_masqué!$N$3:$O$22,2,FALSE)) ->  | L24: =IF(G24="","",VLOOKUP(G24,Listes_masqué!$F$3:$G$62,2,FALSE)) ->  | M24: =IF(H24="","",VLOOKUP(H24,Listes_masqué!$B$3:$C$25,2,FALSE)) ->  | Q24: =_xlfn.XLOOKUP(P24,Tableau13[Product code],Tableau13[Designation],"") ->  | R24: =IFERROR(VLOOKUP('Product code generator'!$P24,Tableau13[[#All],[Product code]:[Price excl. tax]],3,FALSE),"") ->  | T24: =VLOOKUP(D24,Listes_masqué!$H$3:$J$6,3,FALSE) ->  | U24: =IF(K24="213",VLOOKUP(F24,Listes_masqué!$Q$9:$R$13,2,FALSE),VLOOKUP(F24,Listes_masqué!$Q$3:$R$7,2,FALSE)) -> 
J25: =IF(D25="","",VLOOKUP(D25,Listes_masqué!$H$3:$K$14,2,FALSE)) ->  | K25: =IF(E25="","",VLOOKUP(E25,Listes_masqué!$N$3:$O$22,2,FALSE)) ->  | L25: =IF(G25="","",VLOOKUP(G25,Listes_masqué!$F$3:$G$62,2,FALSE)) ->  | M25: =IF(H25="","",VLOOKUP(H25,Listes_masqué!$B$3:$C$25,2,FALSE)) ->  | Q25: =_xlfn.XLOOKUP(P25,Tableau13[Product code],Tableau13[Designation],"") ->  | R25: =IFERROR(VLOOKUP('Product code generator'!$P25,Tableau13[[#All],[Product code]:[Price excl. tax]],3,FALSE),"") ->  | T25: =VLOOKUP(D25,Listes_masqué!$H$3:$J$6,3,FALSE) ->  | U25: =IF(K25="213",VLOOKUP(F25,Listes_masqué!$Q$9:$R$13,2,FALSE),VLOOKUP(F25,Listes_masqué!$Q$3:$R$7,2,FALSE)) -> 
J26: =IF(D26="","",VLOOKUP(D26,Listes_masqué!$H$3:$K$14,2,FALSE)) ->  | K26: =IF(E26="","",VLOOKUP(E26,Listes_masqué!$N$3:$O$22,2,FALSE)) ->  | L26: =IF(G26="","",VLOOKUP(G26,Listes_masqué!$F$3:$G$62,2,FALSE)) ->  | M26: =IF(H26="","",VLOOKUP(H26,Listes_masqué!$B$3:$C$25,2,FALSE)) ->  | Q26: =_xlfn.XLOOKUP(P26,Tableau13[Product code],Tableau13[Designation],"") ->  | R26: =IFERROR(VLOOKUP('Product code generator'!$P26,Tableau13[[#All],[Product code]:[Price excl. tax]],3,FALSE),"") ->  | T26: =VLOOKUP(D26,Listes_masqué!$H$3:$J$6,3,FALSE) ->  | U26: =IF(K26="213",VLOOKUP(F26,Listes_masqué!$Q$9:$R$13,2,FALSE),VLOOKUP(F26,Listes_masqué!$Q$3:$R$7,2,FALSE)) -> 
J27: =IF(D27="","",VLOOKUP(D27,Listes_masqué!$H$3:$K$14,2,FALSE)) ->  | K27: =IF(E27="","",VLOOKUP(E27,Listes_masqué!$N$3:$O$22,2,FALSE)) ->  | L27: =IF(G27="","",VLOOKUP(G27,Listes_masqué!$F$3:$G$62,2,FALSE)) ->  | M27: =IF(H27="","",VLOOKUP(H27,Listes_masqué!$B$3:$C$25,2,FALSE)) ->  | Q27: =_xlfn.XLOOKUP(P27,Tableau13[Product code],Tableau13[Designation],"") ->  | R27: =IFERROR(VLOOKUP('Product code generator'!$P27,Tableau13[[#All],[Product code]:[Price excl. tax]],3,FALSE),"") ->  | T27: =VLOOKUP(D27,Listes_masqué!$H$3:$J$6,3,FALSE) ->  | U27: =IF(K27="213",VLOOKUP(F27,Listes_masqué!$Q$9:$R$13,2,FALSE),VLOOKUP(F27,Listes_masqué!$Q$3:$R$7,2,FALSE)) -> 
J28: =IF(D28="","",VLOOKUP(D28,Listes_masqué!$H$3:$K$14,2,FALSE)) ->  | K28: =IF(E28="","",VLOOKUP(E28,Listes_masqué!$N$3:$O$22,2,FALSE)) ->  | L28: =IF(G28="","",VLOOKUP(G28,Listes_masqué!$F$3:$G$62,2,FALSE)) ->  | M28: =IF(H28="","",VLOOKUP(H28,Listes_masqué!$B$3:$C$25,2,FALSE)) ->  | Q28: =_xlfn.XLOOKUP(P28,Tableau13[Product code],Tableau13[Designation],"") ->  | R28: =IFERROR(VLOOKUP('Product code generator'!$P28,Tableau13[[#All],[Product code]:[Price excl. tax]],3,FALSE),"") ->  | T28: =VLOOKUP(D28,Listes_masqué!$H$3:$J$6,3,FALSE) ->  | U28: =IF(K28="213",VLOOKUP(F28,Listes_masqué!$Q$9:$R$13,2,FALSE),VLOOKUP(F28,Listes_masqué!$Q$3:$R$7,2,FALSE)) -> 
J29: =IF(D29="","",VLOOKUP(D29,Listes_masqué!$H$3:$K$14,2,FALSE)) ->  | K29: =IF(E29="","",VLOOKUP(E29,Listes_masqué!$N$3:$O$22,2,FALSE)) ->  | L29: =IF(G29="","",VLOOKUP(G29,Listes_masqué!$F$3:$G$62,2,FALSE)) ->  | M29: =IF(H29="","",VLOOKUP(H29,Listes_masqué!$B$3:$C$25,2,FALSE)) ->  | Q29: =_xlfn.XLOOKUP(P29,Tableau13[Product code],Tableau13[Designation],"") ->  | R29: =IFERROR(VLOOKUP('Product code generator'!$P29,Tableau13[[#All],[Product code]:[Price excl. tax]],3,FALSE),"") ->  | T29: =VLOOKUP(D29,Listes_masqué!$H$3:$J$6,3,FALSE) ->  | U29: =IF(K29="213",VLOOKUP(F29,Listes_masqué!$Q$9:$R$13,2,FALSE),VLOOKUP(F29,Listes_masqué!$Q$3:$R$7,2,FALSE)) -> 
J30: =IF(D30="","",VLOOKUP(D30,Listes_masqué!$H$3:$K$14,2,FALSE)) ->  | K30: =IF(E30="","",VLOOKUP(E30,Listes_masqué!$N$3:$O$22,2,FALSE)) ->  | L30: =IF(G30="","",VLOOKUP(G30,Listes_masqué!$F$3:$G$62,2,FALSE)) ->  | M30: =IF(H30="","",VLOOKUP(H30,Listes_masqué!$B$3:$C$25,2,FALSE)) ->  | Q30: =_xlfn.XLOOKUP(P30,Tableau13[Product code],Tableau13[Designation],"") ->  | R30: =IFERROR(VLOOKUP('Product code generator'!$P30,Tableau13[[#All],[Product code]:[Price excl. tax]],3,FALSE),"") ->  | T30: =VLOOKUP(D30,Listes_masqué!$H$3:$J$6,3,FALSE) ->  | U30: =IF(K30="213",VLOOKUP(F30,Listes_masqué!$Q$9:$R$13,2,FALSE),VLOOKUP(F30,Listes_masqué!$Q$3:$R$7,2,FALSE)) -> 
J31: =IF(D31="","",VLOOKUP(D31,Listes_masqué!$H$3:$K$14,2,FALSE)) ->  | K31: =IF(E31="","",VLOOKUP(E31,Listes_masqué!$N$3:$O$22,2,FALSE)) ->  | L31: =IF(G31="","",VLOOKUP(G31,Listes_masqué!$F$3:$G$62,2,FALSE)) ->  | M31: =IF(H31="","",VLOOKUP(H31,Listes_masqué!$B$3:$C$25,2,FALSE)) ->  | Q31: =_xlfn.XLOOKUP(P31,Tableau13[Product code],Tableau13[Designation],"") ->  | R31: =IFERROR(VLOOKUP('Product code generator'!$P31,Tableau13[[#All],[Product code]:[Price excl. tax]],3,FALSE),"") ->  | T31: =VLOOKUP(D31,Listes_masqué!$H$3:$J$6,3,FALSE) ->  | U31: =IF(K31="213",VLOOKUP(F31,Listes_masqué!$Q$9:$R$13,2,FALSE),VLOOKUP(F31,Listes_masqué!$Q$3:$R$7,2,FALSE)) -> 
J32: =IF(D32="","",VLOOKUP(D32,Listes_masqué!$H$3:$K$14,2,FALSE)) ->  | K32: =IF(E32="","",VLOOKUP(E32,Listes_masqué!$N$3:$O$22,2,FALSE)) ->  | L32: =IF(G32="","",VLOOKUP(G32,Listes_masqué!$F$3:$G$62,2,FALSE)) ->  | M32: =IF(H32="","",VLOOKUP(H32,Listes_masqué!$B$3:$C$25,2,FALSE)) ->  | Q32: =_xlfn.XLOOKUP(P32,Tableau13[Product code],Tableau13[Designation],"") ->  | R32: =IFERROR(VLOOKUP('Product code generator'!$P32,Tableau13[[#All],[Product code]:[Price excl. tax]],3,FALSE),"") ->  | T32: =VLOOKUP(D32,Listes_masqué!$H$3:$J$6,3,FALSE) ->  | U32: =IF(K32="213",VLOOKUP(F32,Listes_masqué!$Q$9:$R$13,2,FALSE),VLOOKUP(F32,Listes_masqué!$Q$3:$R$7,2,FALSE)) -> 
J33: =IF(D33="","",VLOOKUP(D33,Listes_masqué!$H$3:$K$14,2,FALSE)) ->  | K33: =IF(E33="","",VLOOKUP(E33,Listes_masqué!$N$3:$O$22,2,FALSE)) ->  | L33: =IF(G33="","",VLOOKUP(G33,Listes_masqué!$F$3:$G$62,2,FALSE)) ->  | M33: =IF(H33="","",VLOOKUP(H33,Listes_masqué!$B$3:$C$25,2,FALSE)) ->  | Q33: =_xlfn.XLOOKUP(P33,Tableau13[Product code],Tableau13[Designation],"") ->  | R33: =IFERROR(VLOOKUP('Product code generator'!$P33,Tableau13[[#All],[Product code]:[Price excl. tax]],3,FALSE),"") ->  | T33: =VLOOKUP(D33,Listes_masqué!$H$3:$J$6,3,FALSE) ->  | U33: =IF(K33="213",VLOOKUP(F33,Listes_masqué!$Q$9:$R$13,2,FALSE),VLOOKUP(F33,Listes_masqué!$Q$3:$R$7,2,FALSE)) -> 
J34: =IF(D34="","",VLOOKUP(D34,Listes_masqué!$H$3:$K$14,2,FALSE)) ->  | K34: =IF(E34="","",VLOOKUP(E34,Listes_masqué!$N$3:$O$22,2,FALSE)) ->  | L34: =IF(G34="","",VLOOKUP(G34,Listes_masqué!$F$3:$G$62,2,FALSE)) ->  | M34: =IF(H34="","",VLOOKUP(H34,Listes_masqué!$B$3:$C$25,2,FALSE)) ->  | Q34: =_xlfn.XLOOKUP(P34,Tableau13[Product code],Tableau13[Designation],"") ->  | R34: =IFERROR(VLOOKUP('Product code generator'!$P34,Tableau13[[#All],[Product code]:[Price excl. tax]],3,FALSE),"") ->  | T34: =VLOOKUP(D34,Listes_masqué!$H$3:$J$6,3,FALSE) ->  | U34: =IF(K34="213",VLOOKUP(F34,Listes_masqué!$Q$9:$R$13,2,FALSE),VLOOKUP(F34,Listes_masqué!$Q$3:$R$7,2,FALSE)) -> 
J35: =IF(D35="","",VLOOKUP(D35,Listes_masqué!$H$3:$K$14,2,FALSE)) ->  | K35: =IF(E35="","",VLOOKUP(E35,Listes_masqué!$N$3:$O$22,2,FALSE)) ->  | L35: =IF(G35="","",VLOOKUP(G35,Listes_masqué!$F$3:$G$62,2,FALSE)) ->  | M35: =IF(H35="","",VLOOKUP(H35,Listes_masqué!$B$3:$C$25,2,FALSE)) ->  | Q35: =_xlfn.XLOOKUP(P35,Tableau13[Product code],Tableau13[Designation],"") ->  | R35: =IFERROR(VLOOKUP('Product code generator'!$P35,Tableau13[[#All],[Product code]:[Price excl. tax]],3,FALSE),"") ->  | T35: =VLOOKUP(D35,Listes_masqué!$H$3:$J$6,3,FALSE) ->  | U35: =IF(K35="213",VLOOKUP(F35,Listes_masqué!$Q$9:$R$13,2,FALSE),VLOOKUP(F35,Listes_masqué!$Q$3:$R$7,2,FALSE)) -> 
J36: =IF(D36="","",VLOOKUP(D36,Listes_masqué!$H$3:$K$14,2,FALSE)) ->  | K36: =IF(E36="","",VLOOKUP(E36,Listes_masqué!$N$3:$O$22,2,FALSE)) ->  | L36: =IF(G36="","",VLOOKUP(G36,Listes_masqué!$F$3:$G$62,2,FALSE)) ->  | M36: =IF(H36="","",VLOOKUP(H36,Listes_masqué!$B$3:$C$25,2,FALSE)) ->  | Q36: =_xlfn.XLOOKUP(P36,Tableau13[Product code],Tableau13[Designation],"") ->  | R36: =IFERROR(VLOOKUP('Product code generator'!$P36,Tableau13[[#All],[Product code]:[Price excl. tax]],3,FALSE),"") ->  | T36: =VLOOKUP(D36,Listes_masqué!$H$3:$J$6,3,FALSE) ->  | U36: =IF(K36="213",VLOOKUP(F36,Listes_masqué!$Q$9:$R$13,2,FALSE),VLOOKUP(F36,Listes_masqué!$Q$3:$R$7,2,FALSE)) -> 
J37: =IF(D37="","",VLOOKUP(D37,Listes_masqué!$H$3:$K$14,2,FALSE)) ->  | K37: =IF(E37="","",VLOOKUP(E37,Listes_masqué!$N$3:$O$22,2,FALSE)) ->  | L37: =IF(G37="","",VLOOKUP(G37,Listes_masqué!$F$3:$G$62,2,FALSE)) ->  | M37: =IF(H37="","",VLOOKUP(H37,Listes_masqué!$B$3:$C$25,2,FALSE)) ->  | Q37: =_xlfn.XLOOKUP(P37,Tableau13[Product code],Tableau13[Designation],"") ->  | R37: =IFERROR(VLOOKUP('Product code generator'!$P37,Tableau13[[#All],[Product code]:[Price excl. tax]],3,FALSE),"") ->  | T37: =VLOOKUP(D37,Listes_masqué!$H$3:$J$6,3,FALSE) ->  | U37: =IF(K37="213",VLOOKUP(F37,Listes_masqué!$Q$9:$R$13,2,FALSE),VLOOKUP(F37,Listes_masqué!$Q$3:$R$7,2,FALSE)) -> 
J38: =IF(D38="","",VLOOKUP(D38,Listes_masqué!$H$3:$K$14,2,FALSE)) ->  | K38: =IF(E38="","",VLOOKUP(E38,Listes_masqué!$N$3:$O$22,2,FALSE)) ->  | L38: =IF(G38="","",VLOOKUP(G38,Listes_masqué!$F$3:$G$62,2,FALSE)) ->  | M38: =IF(H38="","",VLOOKUP(H38,Listes_masqué!$B$3:$C$25,2,FALSE)) ->  | Q38: =_xlfn.XLOOKUP(P38,Tableau13[Product code],Tableau13[Designation],"") ->  | R38: =IFERROR(VLOOKUP('Product code generator'!$P38,Tableau13[[#All],[Product code]:[Price excl. tax]],3,FALSE),"") ->  | T38: =VLOOKUP(D38,Listes_masqué!$H$3:$J$6,3,FALSE) ->  | U38: =IF(K38="213",VLOOKUP(F38,Listes_masqué!$Q$9:$R$13,2,FALSE),VLOOKUP(F38,Listes_masqué!$Q$3:$R$7,2,FALSE)) -> 
J39: =IF(D39="","",VLOOKUP(D39,Listes_masqué!$H$3:$K$14,2,FALSE)) ->  | K39: =IF(E39="","",VLOOKUP(E39,Listes_masqué!$N$3:$O$22,2,FALSE)) ->  | L39: =IF(G39="","",VLOOKUP(G39,Listes_masqué!$F$3:$G$62,2,FALSE)) ->  | M39: =IF(H39="","",VLOOKUP(H39,Listes_masqué!$B$3:$C$25,2,FALSE)) ->  | Q39: =_xlfn.XLOOKUP(P39,Tableau13[Product code],Tableau13[Designation],"") ->  | R39: =IFERROR(VLOOKUP('Product code generator'!$P39,Tableau13[[#All],[Product code]:[Price excl. tax]],3,FALSE),"") ->  | T39: =VLOOKUP(D39,Listes_masqué!$H$3:$J$6,3,FALSE) ->  | U39: =IF(K39="213",VLOOKUP(F39,Listes_masqué!$Q$9:$R$13,2,FALSE),VLOOKUP(F39,Listes_masqué!$Q$3:$R$7,2,FALSE)) -> 
J40: =IF(D40="","",VLOOKUP(D40,Listes_masqué!$H$3:$K$14,2,FALSE)) ->  | K40: =IF(E40="","",VLOOKUP(E40,Listes_masqué!$N$3:$O$22,2,FALSE)) ->  | L40: =IF(G40="","",VLOOKUP(G40,Listes_masqué!$F$3:$G$62,2,FALSE)) ->  | M40: =IF(H40="","",VLOOKUP(H40,Listes_masqué!$B$3:$C$25,2,FALSE)) ->  | Q40: =_xlfn.XLOOKUP(P40,Tableau13[Product code],Tableau13[Designation],"") ->  | R40: =IFERROR(VLOOKUP('Product code generator'!$P40,Tableau13[[#All],[Product code]:[Price excl. tax]],3,FALSE),"") ->  | T40: =VLOOKUP(D40,Listes_masqué!$H$3:$J$6,3,FALSE) ->  | U40: =IF(K40="213",VLOOKUP(F40,Listes_masqué!$Q$9:$R$13,2,FALSE),VLOOKUP(F40,Listes_masqué!$Q$3:$R$7,2,FALSE)) -> 
J41: =IF(D41="","",VLOOKUP(D41,Listes_masqué!$H$3:$K$14,2,FALSE)) ->  | K41: =IF(E41="","",VLOOKUP(E41,Listes_masqué!$N$3:$O$22,2,FALSE)) ->  | L41: =IF(G41="","",VLOOKUP(G41,Listes_masqué!$F$3:$G$62,2,FALSE)) ->  | M41: =IF(H41="","",VLOOKUP(H41,Listes_masqué!$B$3:$C$25,2,FALSE)) ->  | Q41: =_xlfn.XLOOKUP(P41,Tableau13[Product code],Tableau13[Designation],"") ->  | R41: =IFERROR(VLOOKUP('Product code generator'!$P41,Tableau13[[#All],[Product code]:[Price excl. tax]],3,FALSE),"") ->  | T41: =VLOOKUP(D41,Listes_masqué!$H$3:$J$6,3,FALSE) ->  | U41: =IF(K41="213",VLOOKUP(F41,Listes_masqué!$Q$9:$R$13,2,FALSE),VLOOKUP(F41,Listes_masqué!$Q$3:$R$7,2,FALSE)) -> 
J42: =IF(D42="","",VLOOKUP(D42,Listes_masqué!$H$3:$K$14,2,FALSE)) ->  | K42: =IF(E42="","",VLOOKUP(E42,Listes_masqué!$N$3:$O$22,2,FALSE)) ->  | L42: =IF(G42="","",VLOOKUP(G42,Listes_masqué!$F$3:$G$62,2,FALSE)) ->  | M42: =IF(H42="","",VLOOKUP(H42,Listes_masqué!$B$3:$C$25,2,FALSE)) ->  | Q42: =_xlfn.XLOOKUP(P42,Tableau13[Product code],Tableau13[Designation],"") ->  | R42: =IFERROR(VLOOKUP('Product code generator'!$P42,Tableau13[[#All],[Product code]:[Price excl. tax]],3,FALSE),"") ->  | T42: =VLOOKUP(D42,Listes_masqué!$H$3:$J$6,3,FALSE) ->  | U42: =IF(K42="213",VLOOKUP(F42,Listes_masqué!$Q$9:$R$13,2,FALSE),VLOOKUP(F42,Listes_masqué!$Q$3:$R$7,2,FALSE)) -> 
J43: =IF(D43="","",VLOOKUP(D43,Listes_masqué!$H$3:$K$14,2,FALSE)) ->  | K43: =IF(E43="","",VLOOKUP(E43,Listes_masqué!$N$3:$O$22,2,FALSE)) ->  | L43: =IF(G43="","",VLOOKUP(G43,Listes_masqué!$F$3:$G$62,2,FALSE)) ->  | M43: =IF(H43="","",VLOOKUP(H43,Listes_masqué!$B$3:$C$25,2,FALSE)) ->  | Q43: =_xlfn.XLOOKUP(P43,Tableau13[Product code],Tableau13[Designation],"") ->  | R43: =IFERROR(VLOOKUP('Product code generator'!$P43,Tableau13[[#All],[Product code]:[Price excl. tax]],3,FALSE),"") ->  | T43: =VLOOKUP(D43,Listes_masqué!$H$3:$J$6,3,FALSE) ->  | U43: =IF(K43="213",VLOOKUP(F43,Listes_masqué!$Q$9:$R$13,2,FALSE),VLOOKUP(F43,Listes_masqué!$Q$3:$R$7,2,FALSE)) -> 
J44: =IF(D44="","",VLOOKUP(D44,Listes_masqué!$H$3:$K$14,2,FALSE)) ->  | K44: =IF(E44="","",VLOOKUP(E44,Listes_masqué!$N$3:$O$22,2,FALSE)) ->  | L44: =IF(G44="","",VLOOKUP(G44,Listes_masqué!$F$3:$G$62,2,FALSE)) ->  | M44: =IF(H44="","",VLOOKUP(H44,Listes_masqué!$B$3:$C$25,2,FALSE)) ->  | Q44: =_xlfn.XLOOKUP(P44,Tableau13[Product code],Tableau13[Designation],"") ->  | R44: =IFERROR(VLOOKUP('Product code generator'!$P44,Tableau13[[#All],[Product code]:[Price excl. tax]],3,FALSE),"") ->  | T44: =VLOOKUP(D44,Listes_masqué!$H$3:$J$6,3,FALSE) ->  | U44: =IF(K44="213",VLOOKUP(F44,Listes_masqué!$Q$9:$R$13,2,FALSE),VLOOKUP(F44,Listes_masqué!$Q$3:$R$7,2,FALSE)) -> 
J45: =IF(D45="","",VLOOKUP(D45,Listes_masqué!$H$3:$K$14,2,FALSE)) ->  | K45: =IF(E45="","",VLOOKUP(E45,Listes_masqué!$N$3:$O$22,2,FALSE)) ->  | L45: =IF(G45="","",VLOOKUP(G45,Listes_masqué!$F$3:$G$62,2,FALSE)) ->  | M45: =IF(H45="","",VLOOKUP(H45,Listes_masqué!$B$3:$C$25,2,FALSE)) ->  | Q45: =_xlfn.XLOOKUP(P45,Tableau13[Product code],Tableau13[Designation],"") ->  | R45: =IFERROR(VLOOKUP('Product code generator'!$P45,Tableau13[[#All],[Product code]:[Price excl. tax]],3,FALSE),"") ->  | T45: =VLOOKUP(D45,Listes_masqué!$H$3:$J$6,3,FALSE) ->  | U45: =IF(K45="213",VLOOKUP(F45,Listes_masqué!$Q$9:$R$13,2,FALSE),VLOOKUP(F45,Listes_masqué!$Q$3:$R$7,2,FALSE)) -> 
J46: =IF(D46="","",VLOOKUP(D46,Listes_masqué!$H$3:$K$14,2,FALSE)) ->  | K46: =IF(E46="","",VLOOKUP(E46,Listes_masqué!$N$3:$O$22,2,FALSE)) ->  | L46: =IF(G46="","",VLOOKUP(G46,Listes_masqué!$F$3:$G$62,2,FALSE)) ->  | M46: =IF(H46="","",VLOOKUP(H46,Listes_masqué!$B$3:$C$25,2,FALSE)) ->  | Q46: =_xlfn.XLOOKUP(P46,Tableau13[Product code],Tableau13[Designation],"") ->  | R46: =IFERROR(VLOOKUP('Product code generator'!$P46,Tableau13[[#All],[Product code]:[Price excl. tax]],3,FALSE),"") ->  | T46: =VLOOKUP(D46,Listes_masqué!$H$3:$J$6,3,FALSE) ->  | U46: =IF(K46="213",VLOOKUP(F46,Listes_masqué!$Q$9:$R$13,2,FALSE),VLOOKUP(F46,Listes_masqué!$Q$3:$R$7,2,FALSE)) -> 
J47: =IF(D47="","",VLOOKUP(D47,Listes_masqué!$H$3:$K$14,2,FALSE)) ->  | K47: =IF(E47="","",VLOOKUP(E47,Listes_masqué!$N$3:$O$22,2,FALSE)) ->  | L47: =IF(G47="","",VLOOKUP(G47,Listes_masqué!$F$3:$G$62,2,FALSE)) ->  | M47: =IF(H47="","",VLOOKUP(H47,Listes_masqué!$B$3:$C$25,2,FALSE)) ->  | Q47: =_xlfn.XLOOKUP(P47,Tableau13[Product code],Tableau13[Designation],"") ->  | R47: =IFERROR(VLOOKUP('Product code generator'!$P47,Tableau13[[#All],[Product code]:[Price excl. tax]],3,FALSE),"") ->  | T47: =VLOOKUP(D47,Listes_masqué!$H$3:$J$6,3,FALSE) ->  | U47: =IF(K47="213",VLOOKUP(F47,Listes_masqué!$Q$9:$R$13,2,FALSE),VLOOKUP(F47,Listes_masqué!$Q$3:$R$7,2,FALSE)) -> 
J48: =IF(D48="","",VLOOKUP(D48,Listes_masqué!$H$3:$K$14,2,FALSE)) ->  | K48: =IF(E48="","",VLOOKUP(E48,Listes_masqué!$N$3:$O$22,2,FALSE)) ->  | L48: =IF(G48="","",VLOOKUP(G48,Listes_masqué!$F$3:$G$62,2,FALSE)) ->  | M48: =IF(H48="","",VLOOKUP(H48,Listes_masqué!$B$3:$C$25,2,FALSE)) ->  | Q48: =_xlfn.XLOOKUP(P48,Tableau13[Product code],Tableau13[Designation],"") ->  | R48: =IFERROR(VLOOKUP('Product code generator'!$P48,Tableau13[[#All],[Product code]:[Price excl. tax]],3,FALSE),"") ->  | T48: =VLOOKUP(D48,Listes_masqué!$H$3:$J$6,3,FALSE) ->  | U48: =IF(K48="213",VLOOKUP(F48,Listes_masqué!$Q$9:$R$13,2,FALSE),VLOOKUP(F48,Listes_masqué!$Q$3:$R$7,2,FALSE)) -> 
J49: =IF(D49="","",VLOOKUP(D49,Listes_masqué!$H$3:$K$14,2,FALSE)) ->  | K49: =IF(E49="","",VLOOKUP(E49,Listes_masqué!$N$3:$O$22,2,FALSE)) ->  | L49: =IF(G49="","",VLOOKUP(G49,Listes_masqué!$F$3:$G$62,2,FALSE)) ->  | M49: =IF(H49="","",VLOOKUP(H49,Listes_masqué!$B$3:$C$25,2,FALSE)) ->  | Q49: =_xlfn.XLOOKUP(P49,Tableau13[Product code],Tableau13[Designation],"") ->  | R49: =IFERROR(VLOOKUP('Product code generator'!$P49,Tableau13[[#All],[Product code]:[Price excl. tax]],3,FALSE),"") ->  | T49: =VLOOKUP(D49,Listes_masqué!$H$3:$J$6,3,FALSE) ->  | U49: =IF(K49="213",VLOOKUP(F49,Listes_masqué!$Q$9:$R$13,2,FALSE),VLOOKUP(F49,Listes_masqué!$Q$3:$R$7,2,FALSE)) -> 
J50: =IF(D50="","",VLOOKUP(D50,Listes_masqué!$H$3:$K$14,2,FALSE)) ->  | K50: =IF(E50="","",VLOOKUP(E50,Listes_masqué!$N$3:$O$22,2,FALSE)) ->  | L50: =IF(G50="","",VLOOKUP(G50,Listes_masqué!$F$3:$G$62,2,FALSE)) ->  | M50: =IF(H50="","",VLOOKUP(H50,Listes_masqué!$B$3:$C$25,2,FALSE)) ->  | Q50: =_xlfn.XLOOKUP(P50,Tableau13[Product code],Tableau13[Designation],"") ->  | R50: =IFERROR(VLOOKUP('Product code generator'!$P50,Tableau13[[#All],[Product code]:[Price excl. tax]],3,FALSE),"") ->  | T50: =VLOOKUP(D50,Listes_masqué!$H$3:$J$6,3,FALSE) ->  | U50: =IF(K50="213",VLOOKUP(F50,Listes_masqué!$Q$9:$R$13,2,FALSE),VLOOKUP(F50,Listes_masqué!$Q$3:$R$7,2,FALSE)) -> 
J51: =IF(D51="","",VLOOKUP(D51,Listes_masqué!$H$3:$K$14,2,FALSE)) ->  | K51: =IF(E51="","",VLOOKUP(E51,Listes_masqué!$N$3:$O$22,2,FALSE)) ->  | L51: =IF(G51="","",VLOOKUP(G51,Listes_masqué!$F$3:$G$62,2,FALSE)) ->  | M51: =IF(H51="","",VLOOKUP(H51,Listes_masqué!$B$3:$C$25,2,FALSE)) ->  | Q51: =_xlfn.XLOOKUP(P51,Tableau13[Product code],Tableau13[Designation],"") ->  | R51: =IFERROR(VLOOKUP('Product code generator'!$P51,Tableau13[[#All],[Product code]:[Price excl. tax]],3,FALSE),"") ->  | T51: =VLOOKUP(D51,Listes_masqué!$H$3:$J$6,3,FALSE) ->  | U51: =IF(K51="213",VLOOKUP(F51,Listes_masqué!$Q$9:$R$13,2,FALSE),VLOOKUP(F51,Listes_masqué!$Q$3:$R$7,2,FALSE)) -> 
J52: =IF(D52="","",VLOOKUP(D52,Listes_masqué!$H$3:$K$14,2,FALSE)) ->  | K52: =IF(E52="","",VLOOKUP(E52,Listes_masqué!$N$3:$O$22,2,FALSE)) ->  | L52: =IF(G52="","",VLOOKUP(G52,Listes_masqué!$F$3:$G$62,2,FALSE)) ->  | M52: =IF(H52="","",VLOOKUP(H52,Listes_masqué!$B$3:$C$25,2,FALSE)) ->  | Q52: =_xlfn.XLOOKUP(P52,Tableau13[Product code],Tableau13[Designation],"") ->  | R52: =IFERROR(VLOOKUP('Product code generator'!$P52,Tableau13[[#All],[Product code]:[Price excl. tax]],3,FALSE),"") ->  | T52: =VLOOKUP(D52,Listes_masqué!$H$3:$J$6,3,FALSE) ->  | U52: =IF(K52="213",VLOOKUP(F52,Listes_masqué!$Q$9:$R$13,2,FALSE),VLOOKUP(F52,Listes_masqué!$Q$3:$R$7,2,FALSE)) -> 
J53: =IF(D53="","",VLOOKUP(D53,Listes_masqué!$H$3:$K$14,2,FALSE)) ->  | K53: =IF(E53="","",VLOOKUP(E53,Listes_masqué!$N$3:$O$22,2,FALSE)) ->  | L53: =IF(G53="","",VLOOKUP(G53,Listes_masqué!$F$3:$G$62,2,FALSE)) ->  | M53: =IF(H53="","",VLOOKUP(H53,Listes_masqué!$B$3:$C$25,2,FALSE)) ->  | Q53: =_xlfn.XLOOKUP(P53,Tableau13[Product code],Tableau13[Designation],"") ->  | R53: =IFERROR(VLOOKUP('Product code generator'!$P53,Tableau13[[#All],[Product code]:[Price excl. tax]],3,FALSE),"") ->  | T53: =VLOOKUP(D53,Listes_masqué!$H$3:$J$6,3,FALSE) ->  | U53: =IF(K53="213",VLOOKUP(F53,Listes_masqué!$Q$9:$R$13,2,FALSE),VLOOKUP(F53,Listes_masqué!$Q$3:$R$7,2,FALSE)) -> 
J54: =IF(D54="","",VLOOKUP(D54,Listes_masqué!$H$3:$K$14,2,FALSE)) ->  | K54: =IF(E54="","",VLOOKUP(E54,Listes_masqué!$N$3:$O$22,2,FALSE)) ->  | L54: =IF(G54="","",VLOOKUP(G54,Listes_masqué!$F$3:$G$62,2,FALSE)) ->  | M54: =IF(H54="","",VLOOKUP(H54,Listes_masqué!$B$3:$C$25,2,FALSE)) ->  | Q54: =_xlfn.XLOOKUP(P54,Tableau13[Product code],Tableau13[Designation],"") ->  | R54: =IFERROR(VLOOKUP('Product code generator'!$P54,Tableau13[[#All],[Product code]:[Price excl. tax]],3,FALSE),"") ->  | T54: =VLOOKUP(D54,Listes_masqué!$H$3:$J$6,3,FALSE) ->  | U54: =IF(K54="213",VLOOKUP(F54,Listes_masqué!$Q$9:$R$13,2,FALSE),VLOOKUP(F54,Listes_masqué!$Q$3:$R$7,2,FALSE)) -> 
J55: =IF(D55="","",VLOOKUP(D55,Listes_masqué!$H$3:$K$14,2,FALSE)) ->  | K55: =IF(E55="","",VLOOKUP(E55,Listes_masqué!$N$3:$O$22,2,FALSE)) ->  | L55: =IF(G55="","",VLOOKUP(G55,Listes_masqué!$F$3:$G$62,2,FALSE)) ->  | M55: =IF(H55="","",VLOOKUP(H55,Listes_masqué!$B$3:$C$25,2,FALSE)) ->  | Q55: =_xlfn.XLOOKUP(P55,Tableau13[Product code],Tableau13[Designation],"") ->  | R55: =IFERROR(VLOOKUP('Product code generator'!$P55,Tableau13[[#All],[Product code]:[Price excl. tax]],3,FALSE),"") ->  | T55: =VLOOKUP(D55,Listes_masqué!$H$3:$J$6,3,FALSE) ->  | U55: =IF(K55="213",VLOOKUP(F55,Listes_masqué!$Q$9:$R$13,2,FALSE),VLOOKUP(F55,Listes_masqué!$Q$3:$R$7,2,FALSE)) -> 
J56: =IF(D56="","",VLOOKUP(D56,Listes_masqué!$H$3:$K$14,2,FALSE)) ->  | K56: =IF(E56="","",VLOOKUP(E56,Listes_masqué!$N$3:$O$22,2,FALSE)) ->  | L56: =IF(G56="","",VLOOKUP(G56,Listes_masqué!$F$3:$G$62,2,FALSE)) ->  | M56: =IF(H56="","",VLOOKUP(H56,Listes_masqué!$B$3:$C$25,2,FALSE)) ->  | Q56: =_xlfn.XLOOKUP(P56,Tableau13[Product code],Tableau13[Designation],"") ->  | R56: =IFERROR(VLOOKUP('Product code generator'!$P56,Tableau13[[#All],[Product code]:[Price excl. tax]],3,FALSE),"") ->  | T56: =VLOOKUP(D56,Listes_masqué!$H$3:$J$6,3,FALSE) ->  | U56: =IF(K56="213",VLOOKUP(F56,Listes_masqué!$Q$9:$R$13,2,FALSE),VLOOKUP(F56,Listes_masqué!$Q$3:$R$7,2,FALSE)) -> 
J57: =IF(D57="","",VLOOKUP(D57,Listes_masqué!$H$3:$K$14,2,FALSE)) ->  | K57: =IF(E57="","",VLOOKUP(E57,Listes_masqué!$N$3:$O$22,2,FALSE)) ->  | L57: =IF(G57="","",VLOOKUP(G57,Listes_masqué!$F$3:$G$62,2,FALSE)) ->  | M57: =IF(H57="","",VLOOKUP(H57,Listes_masqué!$B$3:$C$25,2,FALSE)) ->  | Q57: =_xlfn.XLOOKUP(P57,Tableau13[Product code],Tableau13[Designation],"") ->  | R57: =IFERROR(VLOOKUP('Product code generator'!$P57,Tableau13[[#All],[Product code]:[Price excl. tax]],3,FALSE),"") ->  | T57: =VLOOKUP(D57,Listes_masqué!$H$3:$J$6,3,FALSE) ->  | U57: =IF(K57="213",VLOOKUP(F57,Listes_masqué!$Q$9:$R$13,2,FALSE),VLOOKUP(F57,Listes_masqué!$Q$3:$R$7,2,FALSE)) -> 
J58: =IF(D58="","",VLOOKUP(D58,Listes_masqué!$H$3:$K$14,2,FALSE)) ->  | K58: =IF(E58="","",VLOOKUP(E58,Listes_masqué!$N$3:$O$22,2,FALSE)) ->  | L58: =IF(G58="","",VLOOKUP(G58,Listes_masqué!$F$3:$G$62,2,FALSE)) ->  | M58: =IF(H58="","",VLOOKUP(H58,Listes_masqué!$B$3:$C$25,2,FALSE)) ->  | Q58: =_xlfn.XLOOKUP(P58,Tableau13[Product code],Tableau13[Designation],"") ->  | R58: =IFERROR(VLOOKUP('Product code generator'!$P58,Tableau13[[#All],[Product code]:[Price excl. tax]],3,FALSE),"") ->  | T58: =VLOOKUP(D58,Listes_masqué!$H$3:$J$6,3,FALSE) ->  | U58: =IF(K58="213",VLOOKUP(F58,Listes_masqué!$Q$9:$R$13,2,FALSE),VLOOKUP(F58,Listes_masqué!$Q$3:$R$7,2,FALSE)) -> 
J59: =IF(D59="","",VLOOKUP(D59,Listes_masqué!$H$3:$K$14,2,FALSE)) ->  | K59: =IF(E59="","",VLOOKUP(E59,Listes_masqué!$N$3:$O$22,2,FALSE)) ->  | L59: =IF(G59="","",VLOOKUP(G59,Listes_masqué!$F$3:$G$62,2,FALSE)) ->  | M59: =IF(H59="","",VLOOKUP(H59,Listes_masqué!$B$3:$C$25,2,FALSE)) ->  | Q59: =_xlfn.XLOOKUP(P59,Tableau13[Product code],Tableau13[Designation],"") ->  | R59: =IFERROR(VLOOKUP('Product code generator'!$P59,Tableau13[[#All],[Product code]:[Price excl. tax]],3,FALSE),"") ->  | T59: =VLOOKUP(D59,Listes_masqué!$H$3:$J$6,3,FALSE) ->  | U59: =IF(K59="213",VLOOKUP(F59,Listes_masqué!$Q$9:$R$13,2,FALSE),VLOOKUP(F59,Listes_masqué!$Q$3:$R$7,2,FALSE)) -> 
J60: =IF(D60="","",VLOOKUP(D60,Listes_masqué!$H$3:$K$14,2,FALSE)) ->  | K60: =IF(E60="","",VLOOKUP(E60,Listes_masqué!$N$3:$O$22,2,FALSE)) ->  | L60: =IF(G60="","",VLOOKUP(G60,Listes_masqué!$F$3:$G$62,2,FALSE)) ->  | M60: =IF(H60="","",VLOOKUP(H60,Listes_masqué!$B$3:$C$25,2,FALSE)) ->  | Q60: =_xlfn.XLOOKUP(P60,Tableau13[Product code],Tableau13[Designation],"") ->  | R60: =IFERROR(VLOOKUP('Product code generator'!$P60,Tableau13[[#All],[Product code]:[Price excl. tax]],3,FALSE),"") ->  | T60: =VLOOKUP(D60,Listes_masqué!$H$3:$J$6,3,FALSE) ->  | U60: =IF(K60="213",VLOOKUP(F60,Listes_masqué!$Q$9:$R$13,2,FALSE),VLOOKUP(F60,Listes_masqué!$Q$3:$R$7,2,FALSE)) -> 
J61: =IF(D61="","",VLOOKUP(D61,Listes_masqué!$H$3:$K$14,2,FALSE)) ->  | K61: =IF(E61="","",VLOOKUP(E61,Listes_masqué!$N$3:$O$22,2,FALSE)) ->  | L61: =IF(G61="","",VLOOKUP(G61,Listes_masqué!$F$3:$G$62,2,FALSE)) ->  | M61: =IF(H61="","",VLOOKUP(H61,Listes_masqué!$B$3:$C$25,2,FALSE)) ->  | Q61: =_xlfn.XLOOKUP(P61,Tableau13[Product code],Tableau13[Designation],"") ->  | R61: =IFERROR(VLOOKUP('Product code generator'!$P61,Tableau13[[#All],[Product code]:[Price excl. tax]],3,FALSE),"") ->  | T61: =VLOOKUP(D61,Listes_masqué!$H$3:$J$6,3,FALSE) ->  | U61: =IF(K61="213",VLOOKUP(F61,Listes_masqué!$Q$9:$R$13,2,FALSE),VLOOKUP(F61,Listes_masqué!$Q$3:$R$7,2,FALSE)) -> 
J62: =IF(D62="","",VLOOKUP(D62,Listes_masqué!$H$3:$K$14,2,FALSE)) ->  | K62: =IF(E62="","",VLOOKUP(E62,Listes_masqué!$N$3:$O$22,2,FALSE)) ->  | L62: =IF(G62="","",VLOOKUP(G62,Listes_masqué!$F$3:$G$62,2,FALSE)) ->  | M62: =IF(H62="","",VLOOKUP(H62,Listes_masqué!$B$3:$C$25,2,FALSE)) ->  | Q62: =_xlfn.XLOOKUP(P62,Tableau13[Product code],Tableau13[Designation],"") ->  | R62: =IFERROR(VLOOKUP('Product code generator'!$P62,Tableau13[[#All],[Product code]:[Price excl. tax]],3,FALSE),"") ->  | T62: =VLOOKUP(D62,Listes_masqué!$H$3:$J$6,3,FALSE) ->  | U62: =IF(K62="213",VLOOKUP(F62,Listes_masqué!$Q$9:$R$13,2,FALSE),VLOOKUP(F62,Listes_masqué!$Q$3:$R$7,2,FALSE)) -> 
J63: =IF(D63="","",VLOOKUP(D63,Listes_masqué!$H$3:$K$14,2,FALSE)) ->  | K63: =IF(E63="","",VLOOKUP(E63,Listes_masqué!$N$3:$O$22,2,FALSE)) ->  | L63: =IF(G63="","",VLOOKUP(G63,Listes_masqué!$F$3:$G$62,2,FALSE)) ->  | M63: =IF(H63="","",VLOOKUP(H63,Listes_masqué!$B$3:$C$25,2,FALSE)) ->  | Q63: =_xlfn.XLOOKUP(P63,Tableau13[Product code],Tableau13[Designation],"") ->  | R63: =IFERROR(VLOOKUP('Product code generator'!$P63,Tableau13[[#All],[Product code]:[Price excl. tax]],3,FALSE),"") ->  | T63: =VLOOKUP(D63,Listes_masqué!$H$3:$J$6,3,FALSE) ->  | U63: =IF(K63="213",VLOOKUP(F63,Listes_masqué!$Q$9:$R$13,2,FALSE),VLOOKUP(F63,Listes_masqué!$Q$3:$R$7,2,FALSE)) -> 
J64: =IF(D64="","",VLOOKUP(D64,Listes_masqué!$H$3:$K$14,2,FALSE)) ->  | K64: =IF(E64="","",VLOOKUP(E64,Listes_masqué!$N$3:$O$22,2,FALSE)) ->  | L64: =IF(G64="","",VLOOKUP(G64,Listes_masqué!$F$3:$G$62,2,FALSE)) ->  | M64: =IF(H64="","",VLOOKUP(H64,Listes_masqué!$B$3:$C$25,2,FALSE)) ->  | Q64: =_xlfn.XLOOKUP(P64,Tableau13[Product code],Tableau13[Designation],"") ->  | R64: =IFERROR(VLOOKUP('Product code generator'!$P64,Tableau13[[#All],[Product code]:[Price excl. tax]],3,FALSE),"") ->  | T64: =VLOOKUP(D64,Listes_masqué!$H$3:$J$6,3,FALSE) ->  | U64: =IF(K64="213",VLOOKUP(F64,Listes_masqué!$Q$9:$R$13,2,FALSE),VLOOKUP(F64,Listes_masqué!$Q$3:$R$7,2,FALSE)) -> 
J65: =IF(D65="","",VLOOKUP(D65,Listes_masqué!$H$3:$K$14,2,FALSE)) ->  | K65: =IF(E65="","",VLOOKUP(E65,Listes_masqué!$N$3:$O$22,2,FALSE)) ->  | L65: =IF(G65="","",VLOOKUP(G65,Listes_masqué!$F$3:$G$62,2,FALSE)) ->  | M65: =IF(H65="","",VLOOKUP(H65,Listes_masqué!$B$3:$C$25,2,FALSE)) ->  | Q65: =_xlfn.XLOOKUP(P65,Tableau13[Product code],Tableau13[Designation],"") ->  | R65: =IFERROR(VLOOKUP('Product code generator'!$P65,Tableau13[[#All],[Product code]:[Price excl. tax]],3,FALSE),"") ->  | T65: =VLOOKUP(D65,Listes_masqué!$H$3:$J$6,3,FALSE) ->  | U65: =IF(K65="213",VLOOKUP(F65,Listes_masqué!$Q$9:$R$13,2,FALSE),VLOOKUP(F65,Listes_masqué!$Q$3:$R$7,2,FALSE)) -> 
J66: =IF(D66="","",VLOOKUP(D66,Listes_masqué!$H$3:$K$14,2,FALSE)) ->  | K66: =IF(E66="","",VLOOKUP(E66,Listes_masqué!$N$3:$O$22,2,FALSE)) ->  | L66: =IF(G66="","",VLOOKUP(G66,Listes_masqué!$F$3:$G$62,2,FALSE)) ->  | M66: =IF(H66="","",VLOOKUP(H66,Listes_masqué!$B$3:$C$25,2,FALSE)) ->  | Q66: =_xlfn.XLOOKUP(P66,Tableau13[Product code],Tableau13[Designation],"") ->  | R66: =IFERROR(VLOOKUP('Product code generator'!$P66,Tableau13[[#All],[Product code]:[Price excl. tax]],3,FALSE),"") ->  | T66: =VLOOKUP(D66,Listes_masqué!$H$3:$J$6,3,FALSE) ->  | U66: =IF(K66="213",VLOOKUP(F66,Listes_masqué!$Q$9:$R$13,2,FALSE),VLOOKUP(F66,Listes_masqué!$Q$3:$R$7,2,FALSE)) -> 
J67: =IF(D67="","",VLOOKUP(D67,Listes_masqué!$H$3:$K$14,2,FALSE)) ->  | K67: =IF(E67="","",VLOOKUP(E67,Listes_masqué!$N$3:$O$22,2,FALSE)) ->  | L67: =IF(G67="","",VLOOKUP(G67,Listes_masqué!$F$3:$G$62,2,FALSE)) ->  | M67: =IF(H67="","",VLOOKUP(H67,Listes_masqué!$B$3:$C$25,2,FALSE)) ->  | Q67: =_xlfn.XLOOKUP(P67,Tableau13[Product code],Tableau13[Designation],"") ->  | R67: =IFERROR(VLOOKUP('Product code generator'!$P67,Tableau13[[#All],[Product code]:[Price excl. tax]],3,FALSE),"") ->  | T67: =VLOOKUP(D67,Listes_masqué!$H$3:$J$6,3,FALSE) ->  | U67: =IF(K67="213",VLOOKUP(F67,Listes_masqué!$Q$9:$R$13,2,FALSE),VLOOKUP(F67,Listes_masqué!$Q$3:$R$7,2,FALSE)) -> 
J68: =IF(D68="","",VLOOKUP(D68,Listes_masqué!$H$3:$K$14,2,FALSE)) ->  | K68: =IF(E68="","",VLOOKUP(E68,Listes_masqué!$N$3:$O$22,2,FALSE)) ->  | L68: =IF(G68="","",VLOOKUP(G68,Listes_masqué!$F$3:$G$62,2,FALSE)) ->  | M68: =IF(H68="","",VLOOKUP(H68,Listes_masqué!$B$3:$C$25,2,FALSE)) ->  | Q68: =_xlfn.XLOOKUP(P68,Tableau13[Product code],Tableau13[Designation],"") ->  | R68: =IFERROR(VLOOKUP('Product code generator'!$P68,Tableau13[[#All],[Product code]:[Price excl. tax]],3,FALSE),"") ->  | T68: =VLOOKUP(D68,Listes_masqué!$H$3:$J$6,3,FALSE) ->  | U68: =IF(K68="213",VLOOKUP(F68,Listes_masqué!$Q$9:$R$13,2,FALSE),VLOOKUP(F68,Listes_masqué!$Q$3:$R$7,2,FALSE)) -> 
J69: =IF(D69="","",VLOOKUP(D69,Listes_masqué!$H$3:$K$14,2,FALSE)) ->  | K69: =IF(E69="","",VLOOKUP(E69,Listes_masqué!$N$3:$O$22,2,FALSE)) ->  | L69: =IF(G69="","",VLOOKUP(G69,Listes_masqué!$F$3:$G$62,2,FALSE)) ->  | M69: =IF(H69="","",VLOOKUP(H69,Listes_masqué!$B$3:$C$25,2,FALSE)) ->  | Q69: =_xlfn.XLOOKUP(P69,Tableau13[Product code],Tableau13[Designation],"") ->  | R69: =IFERROR(VLOOKUP('Product code generator'!$P69,Tableau13[[#All],[Product code]:[Price excl. tax]],3,FALSE),"") ->  | T69: =VLOOKUP(D69,Listes_masqué!$H$3:$J$6,3,FALSE) ->  | U69: =IF(K69="213",VLOOKUP(F69,Listes_masqué!$Q$9:$R$13,2,FALSE),VLOOKUP(F69,Listes_masqué!$Q$3:$R$7,2,FALSE)) -> 
J70: =IF(D70="","",VLOOKUP(D70,Listes_masqué!$H$3:$K$14,2,FALSE)) ->  | K70: =IF(E70="","",VLOOKUP(E70,Listes_masqué!$N$3:$O$22,2,FALSE)) ->  | L70: =IF(G70="","",VLOOKUP(G70,Listes_masqué!$F$3:$G$62,2,FALSE)) ->  | M70: =IF(H70="","",VLOOKUP(H70,Listes_masqué!$B$3:$C$25,2,FALSE)) ->  | N70: =IF(I70="","",IF(I70="yes",1,0)) ->  | Q70: =_xlfn.XLOOKUP(P70,Tableau13[Product code],Tableau13[Designation],"") ->  | R70: =IFERROR(VLOOKUP('Product code generator'!$P70,Tableau13[[#All],[Product code]:[Price excl. tax]],3,FALSE),"") ->  | T70: =VLOOKUP(D70,Listes_masqué!$H$3:$J$6,3,FALSE) ->  | U70: =IF(K70="213",VLOOKUP(F70,Listes_masqué!$Q$9:$R$13,2,FALSE),VLOOKUP(F70,Listes_masqué!$Q$3:$R$7,2,FALSE)) -> 
J71: =IF(D71="","",VLOOKUP(D71,Listes_masqué!$H$3:$K$14,2,FALSE)) ->  | K71: =IF(E71="","",VLOOKUP(E71,Listes_masqué!$N$3:$O$22,2,FALSE)) ->  | L71: =IF(G71="","",VLOOKUP(G71,Listes_masqué!$F$3:$G$62,2,FALSE)) ->  | M71: =IF(H71="","",VLOOKUP(H71,Listes_masqué!$B$3:$C$25,2,FALSE)) ->  | Q71: =_xlfn.XLOOKUP(P71,Tableau13[Product code],Tableau13[Designation],"") ->  | R71: =IFERROR(VLOOKUP('Product code generator'!$P71,Tableau13[[#All],[Product code]:[Price excl. tax]],3,FALSE),"") ->  | S71: =IF(M71="089","Attention! Il faut déclarer un nombre de lot de 1000 et non des unités.",IF(I71="yes","Attention, pensez à bien verifier l'éligibilité de ce produit aux éco-modulations.","")) ->  | T71: =VLOOKUP(D71,Listes_masqué!$H$3:$J$6,3,FALSE) ->  | U71: =IF(K71="213",VLOOKUP(F71,Listes_masqué!$Q$9:$R$13,2,FALSE),VLOOKUP(F71,Listes_masqué!$Q$3:$R$7,2,FALSE)) -> 
J72: =IF(D72="","",VLOOKUP(D72,Listes_masqué!$H$3:$K$14,2,FALSE)) ->  | K72: =IF(E72="","",VLOOKUP(E72,Listes_masqué!$N$3:$O$22,2,FALSE)) ->  | L72: =IF(G72="","",VLOOKUP(G72,Listes_masqué!$F$3:$G$62,2,FALSE)) ->  | M72: =IF(H72="","",VLOOKUP(H72,Listes_masqué!$B$3:$C$25,2,FALSE)) ->  | P72: =IF(OR(H72="",G72="",E72="",D72="",I72=""),"",CONCATENATE(J72,K72,L72,M72,N72)) ->  | Q72: =_xlfn.XLOOKUP(P72,Tableau13[Product code],Tableau13[Designation],"") ->  | R72: =IFERROR(VLOOKUP('Product code generator'!$P72,Tableau13[[#All],[Product code]:[Price excl. tax]],3,FALSE),"") ->  | T72: =VLOOKUP(D72,Listes_masqué!$H$3:$J$6,3,FALSE) ->  | U72: =IF(K72="213",VLOOKUP(F72,Listes_masqué!$Q$9:$R$13,2,FALSE),VLOOKUP(F72,Listes_masqué!$Q$3:$R$7,2,FALSE)) -> 
J73: =IF(D73="","",VLOOKUP(D73,Listes_masqué!$H$3:$K$14,2,FALSE)) ->  | K73: =IF(E73="","",VLOOKUP(E73,Listes_masqué!$N$3:$O$22,2,FALSE)) ->  | L73: =IF(G73="","",VLOOKUP(G73,Listes_masqué!$F$3:$G$62,2,FALSE)) ->  | M73: =IF(H73="","",VLOOKUP(H73,Listes_masqué!$B$3:$C$25,2,FALSE)) ->  | Q73: =_xlfn.XLOOKUP(P73,Tableau13[Product code],Tableau13[Designation],"") ->  | R73: =IFERROR(VLOOKUP('Product code generator'!$P73,Tableau13[[#All],[Product code]:[Price excl. tax]],3,FALSE),"") ->  | T73: =VLOOKUP(D73,Listes_masqué!$H$3:$J$6,3,FALSE) ->  | U73: =IF(K73="213",VLOOKUP(F73,Listes_masqué!$Q$9:$R$13,2,FALSE),VLOOKUP(F73,Listes_masqué!$Q$3:$R$7,2,FALSE)) -> 
J74: =IF(D74="","",VLOOKUP(D74,Listes_masqué!$H$3:$K$14,2,FALSE)) ->  | K74: =IF(E74="","",VLOOKUP(E74,Listes_masqué!$N$3:$O$22,2,FALSE)) ->  | L74: =IF(G74="","",VLOOKUP(G74,Listes_masqué!$F$3:$G$62,2,FALSE)) ->  | M74: =IF(H74="","",VLOOKUP(H74,Listes_masqué!$B$3:$C$25,2,FALSE)) ->  | Q74: =_xlfn.XLOOKUP(P74,Tableau13[Product code],Tableau13[Designation],"") ->  | R74: =IFERROR(VLOOKUP('Product code generator'!$P74,Tableau13[[#All],[Product code]:[Price excl. tax]],3,FALSE),"") ->  | T74: =VLOOKUP(D74,Listes_masqué!$H$3:$J$6,3,FALSE) ->  | U74: =IF(K74="213",VLOOKUP(F74,Listes_masqué!$Q$9:$R$13,2,FALSE),VLOOKUP(F74,Listes_masqué!$Q$3:$R$7,2,FALSE)) -> 
J75: =IF(D75="","",VLOOKUP(D75,Listes_masqué!$H$3:$K$14,2,FALSE)) ->  | K75: =IF(E75="","",VLOOKUP(E75,Listes_masqué!$N$3:$O$22,2,FALSE)) ->  | L75: =IF(G75="","",VLOOKUP(G75,Listes_masqué!$F$3:$G$62,2,FALSE)) ->  | M75: =IF(H75="","",VLOOKUP(H75,Listes_masqué!$B$3:$C$25,2,FALSE)) ->  | Q75: =_xlfn.XLOOKUP(P75,Tableau13[Product code],Tableau13[Designation],"") ->  | R75: =IFERROR(VLOOKUP('Product code generator'!$P75,Tableau13[[#All],[Product code]:[Price excl. tax]],3,FALSE),"") ->  | T75: =VLOOKUP(D75,Listes_masqué!$H$3:$J$6,3,FALSE) ->  | U75: =IF(K75="213",VLOOKUP(F75,Listes_masqué!$Q$9:$R$13,2,FALSE),VLOOKUP(F75,Listes_masqué!$Q$3:$R$7,2,FALSE)) -> 
J76: =IF(D76="","",VLOOKUP(D76,Listes_masqué!$H$3:$K$14,2,FALSE)) ->  | K76: =IF(E76="","",VLOOKUP(E76,Listes_masqué!$N$3:$O$22,2,FALSE)) ->  | L76: =IF(G76="","",VLOOKUP(G76,Listes_masqué!$F$3:$G$62,2,FALSE)) ->  | M76: =IF(H76="","",VLOOKUP(H76,Listes_masqué!$B$3:$C$25,2,FALSE)) ->  | Q76: =_xlfn.XLOOKUP(P76,Tableau13[Product code],Tableau13[Designation],"") ->  | R76: =IFERROR(VLOOKUP('Product code generator'!$P76,Tableau13[[#All],[Product code]:[Price excl. tax]],3,FALSE),"") ->  | T76: =VLOOKUP(D76,Listes_masqué!$H$3:$J$6,3,FALSE) ->  | U76: =IF(K76="213",VLOOKUP(F76,Listes_masqué!$Q$9:$R$13,2,FALSE),VLOOKUP(F76,Listes_masqué!$Q$3:$R$7,2,FALSE)) -> 
J77: =IF(D77="","",VLOOKUP(D77,Listes_masqué!$H$3:$K$14,2,FALSE)) ->  | K77: =IF(E77="","",VLOOKUP(E77,Listes_masqué!$N$3:$O$22,2,FALSE)) ->  | L77: =IF(G77="","",VLOOKUP(G77,Listes_masqué!$F$3:$G$62,2,FALSE)) ->  | M77: =IF(H77="","",VLOOKUP(H77,Listes_masqué!$B$3:$C$25,2,FALSE)) ->  | Q77: =_xlfn.XLOOKUP(P77,Tableau13[Product code],Tableau13[Designation],"") ->  | R77: =IFERROR(VLOOKUP('Product code generator'!$P77,Tableau13[[#All],[Product code]:[Price excl. tax]],3,FALSE),"") ->  | T77: =VLOOKUP(D77,Listes_masqué!$H$3:$J$6,3,FALSE) ->  | U77: =IF(K77="213",VLOOKUP(F77,Listes_masqué!$Q$9:$R$13,2,FALSE),VLOOKUP(F77,Listes_masqué!$Q$3:$R$7,2,FALSE)) -> 
J78: =IF(D78="","",VLOOKUP(D78,Listes_masqué!$H$3:$K$14,2,FALSE)) ->  | K78: =IF(E78="","",VLOOKUP(E78,Listes_masqué!$N$3:$O$22,2,FALSE)) ->  | L78: =IF(G78="","",VLOOKUP(G78,Listes_masqué!$F$3:$G$62,2,FALSE)) ->  | M78: =IF(H78="","",VLOOKUP(H78,Listes_masqué!$B$3:$C$25,2,FALSE)) ->  | Q78: =_xlfn.XLOOKUP(P78,Tableau13[Product code],Tableau13[Designation],"") ->  | R78: =IFERROR(VLOOKUP('Product code generator'!$P78,Tableau13[[#All],[Product code]:[Price excl. tax]],3,FALSE),"") ->  | T78: =VLOOKUP(D78,Listes_masqué!$H$3:$J$6,3,FALSE) ->  | U78: =IF(K78="213",VLOOKUP(F78,Listes_masqué!$Q$9:$R$13,2,FALSE),VLOOKUP(F78,Listes_masqué!$Q$3:$R$7,2,FALSE)) -> 
J79: =IF(D79="","",VLOOKUP(D79,Listes_masqué!$H$3:$K$14,2,FALSE)) ->  | K79: =IF(E79="","",VLOOKUP(E79,Listes_masqué!$N$3:$O$22,2,FALSE)) ->  | L79: =IF(G79="","",VLOOKUP(G79,Listes_masqué!$F$3:$G$62,2,FALSE)) ->  | M79: =IF(H79="","",VLOOKUP(H79,Listes_masqué!$B$3:$C$25,2,FALSE)) ->  | Q79: =_xlfn.XLOOKUP(P79,Tableau13[Product code],Tableau13[Designation],"") ->  | R79: =IFERROR(VLOOKUP('Product code generator'!$P79,Tableau13[[#All],[Product code]:[Price excl. tax]],3,FALSE),"") ->  | T79: =VLOOKUP(D79,Listes_masqué!$H$3:$J$6,3,FALSE) ->  | U79: =IF(K79="213",VLOOKUP(F79,Listes_masqué!$Q$9:$R$13,2,FALSE),VLOOKUP(F79,Listes_masqué!$Q$3:$R$7,2,FALSE)) -> 
J80: =IF(D80="","",VLOOKUP(D80,Listes_masqué!$H$3:$K$14,2,FALSE)) ->  | K80: =IF(E80="","",VLOOKUP(E80,Listes_masqué!$N$3:$O$22,2,FALSE)) ->  | L80: =IF(G80="","",VLOOKUP(G80,Listes_masqué!$F$3:$G$62,2,FALSE)) ->  | M80: =IF(H80="","",VLOOKUP(H80,Listes_masqué!$B$3:$C$25,2,FALSE)) ->  | Q80: =_xlfn.XLOOKUP(P80,Tableau13[Product code],Tableau13[Designation],"") ->  | R80: =IFERROR(VLOOKUP('Product code generator'!$P80,Tableau13[[#All],[Product code]:[Price excl. tax]],3,FALSE),"") ->  | T80: =VLOOKUP(D80,Listes_masqué!$H$3:$J$6,3,FALSE) ->  | U80: =IF(K80="213",VLOOKUP(F80,Listes_masqué!$Q$9:$R$13,2,FALSE),VLOOKUP(F80,Listes_masqué!$Q$3:$R$7,2,FALSE)) -> 
J81: =IF(D81="","",VLOOKUP(D81,Listes_masqué!$H$3:$K$14,2,FALSE)) ->  | K81: =IF(E81="","",VLOOKUP(E81,Listes_masqué!$N$3:$O$22,2,FALSE)) ->  | L81: =IF(G81="","",VLOOKUP(G81,Listes_masqué!$F$3:$G$62,2,FALSE)) ->  | M81: =IF(H81="","",VLOOKUP(H81,Listes_masqué!$B$3:$C$25,2,FALSE)) ->  | Q81: =_xlfn.XLOOKUP(P81,Tableau13[Product code],Tableau13[Designation],"") ->  | R81: =IFERROR(VLOOKUP('Product code generator'!$P81,Tableau13[[#All],[Product code]:[Price excl. tax]],3,FALSE),"") ->  | T81: =VLOOKUP(D81,Listes_masqué!$H$3:$J$6,3,FALSE) ->  | U81: =IF(K81="213",VLOOKUP(F81,Listes_masqué!$Q$9:$R$13,2,FALSE),VLOOKUP(F81,Listes_masqué!$Q$3:$R$7,2,FALSE)) -> 
J82: =IF(D82="","",VLOOKUP(D82,Listes_masqué!$H$3:$K$14,2,FALSE)) ->  | K82: =IF(E82="","",VLOOKUP(E82,Listes_masqué!$N$3:$O$22,2,FALSE)) ->  | L82: =IF(G82="","",VLOOKUP(G82,Listes_masqué!$F$3:$G$62,2,FALSE)) ->  | M82: =IF(H82="","",VLOOKUP(H82,Listes_masqué!$B$3:$C$25,2,FALSE)) ->  | Q82: =_xlfn.XLOOKUP(P82,Tableau13[Product code],Tableau13[Designation],"") ->  | R82: =IFERROR(VLOOKUP('Product code generator'!$P82,Tableau13[[#All],[Product code]:[Price excl. tax]],3,FALSE),"") ->  | T82: =VLOOKUP(D82,Listes_masqué!$H$3:$J$6,3,FALSE) ->  | U82: =IF(K82="213",VLOOKUP(F82,Listes_masqué!$Q$9:$R$13,2,FALSE),VLOOKUP(F82,Listes_masqué!$Q$3:$R$7,2,FALSE)) -> 
J83: =IF(D83="","",VLOOKUP(D83,Listes_masqué!$H$3:$K$14,2,FALSE)) ->  | K83: =IF(E83="","",VLOOKUP(E83,Listes_masqué!$N$3:$O$22,2,FALSE)) ->  | L83: =IF(G83="","",VLOOKUP(G83,Listes_masqué!$F$3:$G$62,2,FALSE)) ->  | M83: =IF(H83="","",VLOOKUP(H83,Listes_masqué!$B$3:$C$25,2,FALSE)) ->  | Q83: =_xlfn.XLOOKUP(P83,Tableau13[Product code],Tableau13[Designation],"") ->  | R83: =IFERROR(VLOOKUP('Product code generator'!$P83,Tableau13[[#All],[Product code]:[Price excl. tax]],3,FALSE),"") ->  | T83: =VLOOKUP(D83,Listes_masqué!$H$3:$J$6,3,FALSE) ->  | U83: =IF(K83="213",VLOOKUP(F83,Listes_masqué!$Q$9:$R$13,2,FALSE),VLOOKUP(F83,Listes_masqué!$Q$3:$R$7,2,FALSE)) -> 
J84: =IF(D84="","",VLOOKUP(D84,Listes_masqué!$H$3:$K$14,2,FALSE)) ->  | K84: =IF(E84="","",VLOOKUP(E84,Listes_masqué!$N$3:$O$22,2,FALSE)) ->  | L84: =IF(G84="","",VLOOKUP(G84,Listes_masqué!$F$3:$G$62,2,FALSE)) ->  | M84: =IF(H84="","",VLOOKUP(H84,Listes_masqué!$B$3:$C$25,2,FALSE)) ->  | Q84: =_xlfn.XLOOKUP(P84,Tableau13[Product code],Tableau13[Designation],"") ->  | R84: =IFERROR(VLOOKUP('Product code generator'!$P84,Tableau13[[#All],[Product code]:[Price excl. tax]],3,FALSE),"") ->  | T84: =VLOOKUP(D84,Listes_masqué!$H$3:$J$6,3,FALSE) ->  | U84: =IF(K84="213",VLOOKUP(F84,Listes_masqué!$Q$9:$R$13,2,FALSE),VLOOKUP(F84,Listes_masqué!$Q$3:$R$7,2,FALSE)) -> 
J85: =IF(D85="","",VLOOKUP(D85,Listes_masqué!$H$3:$K$14,2,FALSE)) ->  | K85: =IF(E85="","",VLOOKUP(E85,Listes_masqué!$N$3:$O$22,2,FALSE)) ->  | L85: =IF(G85="","",VLOOKUP(G85,Listes_masqué!$F$3:$G$62,2,FALSE)) ->  | M85: =IF(H85="","",VLOOKUP(H85,Listes_masqué!$B$3:$C$25,2,FALSE)) ->  | Q85: =_xlfn.XLOOKUP(P85,Tableau13[Product code],Tableau13[Designation],"") ->  | R85: =IFERROR(VLOOKUP('Product code generator'!$P85,Tableau13[[#All],[Product code]:[Price excl. tax]],3,FALSE),"") ->  | T85: =VLOOKUP(D85,Listes_masqué!$H$3:$J$6,3,FALSE) ->  | U85: =IF(K85="213",VLOOKUP(F85,Listes_masqué!$Q$9:$R$13,2,FALSE),VLOOKUP(F85,Listes_masqué!$Q$3:$R$7,2,FALSE)) -> 
J86: =IF(D86="","",VLOOKUP(D86,Listes_masqué!$H$3:$K$14,2,FALSE)) ->  | K86: =IF(E86="","",VLOOKUP(E86,Listes_masqué!$N$3:$O$22,2,FALSE)) ->  | L86: =IF(G86="","",VLOOKUP(G86,Listes_masqué!$F$3:$G$62,2,FALSE)) ->  | M86: =IF(H86="","",VLOOKUP(H86,Listes_masqué!$B$3:$C$25,2,FALSE)) ->  | Q86: =_xlfn.XLOOKUP(P86,Tableau13[Product code],Tableau13[Designation],"") ->  | R86: =IFERROR(VLOOKUP('Product code generator'!$P86,Tableau13[[#All],[Product code]:[Price excl. tax]],3,FALSE),"") ->  | T86: =VLOOKUP(D86,Listes_masqué!$H$3:$J$6,3,FALSE) ->  | U86: =IF(K86="213",VLOOKUP(F86,Listes_masqué!$Q$9:$R$13,2,FALSE),VLOOKUP(F86,Listes_masqué!$Q$3:$R$7,2,FALSE)) -> 
J87: =IF(D87="","",VLOOKUP(D87,Listes_masqué!$H$3:$K$14,2,FALSE)) ->  | K87: =IF(E87="","",VLOOKUP(E87,Listes_masqué!$N$3:$O$22,2,FALSE)) ->  | L87: =IF(G87="","",VLOOKUP(G87,Listes_masqué!$F$3:$G$62,2,FALSE)) ->  | M87: =IF(H87="","",VLOOKUP(H87,Listes_masqué!$B$3:$C$25,2,FALSE)) ->  | Q87: =_xlfn.XLOOKUP(P87,Tableau13[Product code],Tableau13[Designation],"") ->  | R87: =IFERROR(VLOOKUP('Product code generator'!$P87,Tableau13[[#All],[Product code]:[Price excl. tax]],3,FALSE),"") ->  | T87: =VLOOKUP(D87,Listes_masqué!$H$3:$J$6,3,FALSE) ->  | U87: =IF(K87="213",VLOOKUP(F87,Listes_masqué!$Q$9:$R$13,2,FALSE),VLOOKUP(F87,Listes_masqué!$Q$3:$R$7,2,FALSE)) -> 
J88: =IF(D88="","",VLOOKUP(D88,Listes_masqué!$H$3:$K$14,2,FALSE)) ->  | K88: =IF(E88="","",VLOOKUP(E88,Listes_masqué!$N$3:$O$22,2,FALSE)) ->  | L88: =IF(G88="","",VLOOKUP(G88,Listes_masqué!$F$3:$G$62,2,FALSE)) ->  | M88: =IF(H88="","",VLOOKUP(H88,Listes_masqué!$B$3:$C$25,2,FALSE)) ->  | Q88: =_xlfn.XLOOKUP(P88,Tableau13[Product code],Tableau13[Designation],"") ->  | R88: =IFERROR(VLOOKUP('Product code generator'!$P88,Tableau13[[#All],[Product code]:[Price excl. tax]],3,FALSE),"") ->  | T88: =VLOOKUP(D88,Listes_masqué!$H$3:$J$6,3,FALSE) ->  | U88: =IF(K88="213",VLOOKUP(F88,Listes_masqué!$Q$9:$R$13,2,FALSE),VLOOKUP(F88,Listes_masqué!$Q$3:$R$7,2,FALSE)) -> 
J89: =IF(D89="","",VLOOKUP(D89,Listes_masqué!$H$3:$K$14,2,FALSE)) ->  | K89: =IF(E89="","",VLOOKUP(E89,Listes_masqué!$N$3:$O$22,2,FALSE)) ->  | L89: =IF(G89="","",VLOOKUP(G89,Listes_masqué!$F$3:$G$62,2,FALSE)) ->  | M89: =IF(H89="","",VLOOKUP(H89,Listes_masqué!$B$3:$C$25,2,FALSE)) ->  | Q89: =_xlfn.XLOOKUP(P89,Tableau13[Product code],Tableau13[Designation],"") ->  | R89: =IFERROR(VLOOKUP('Product code generator'!$P89,Tableau13[[#All],[Product code]:[Price excl. tax]],3,FALSE),"") ->  | T89: =VLOOKUP(D89,Listes_masqué!$H$3:$J$6,3,FALSE) ->  | U89: =IF(K89="213",VLOOKUP(F89,Listes_masqué!$Q$9:$R$13,2,FALSE),VLOOKUP(F89,Listes_masqué!$Q$3:$R$7,2,FALSE)) -> 
J90: =IF(D90="","",VLOOKUP(D90,Listes_masqué!$H$3:$K$14,2,FALSE)) ->  | K90: =IF(E90="","",VLOOKUP(E90,Listes_masqué!$N$3:$O$22,2,FALSE)) ->  | L90: =IF(G90="","",VLOOKUP(G90,Listes_masqué!$F$3:$G$62,2,FALSE)) ->  | M90: =IF(H90="","",VLOOKUP(H90,Listes_masqué!$B$3:$C$25,2,FALSE)) ->  | Q90: =_xlfn.XLOOKUP(P90,Tableau13[Product code],Tableau13[Designation],"") ->  | R90: =IFERROR(VLOOKUP('Product code generator'!$P90,Tableau13[[#All],[Product code]:[Price excl. tax]],3,FALSE),"") ->  | T90: =VLOOKUP(D90,Listes_masqué!$H$3:$J$6,3,FALSE) ->  | U90: =IF(K90="213",VLOOKUP(F90,Listes_masqué!$Q$9:$R$13,2,FALSE),VLOOKUP(F90,Listes_masqué!$Q$3:$R$7,2,FALSE)) -> 
J91: =IF(D91="","",VLOOKUP(D91,Listes_masqué!$H$3:$K$14,2,FALSE)) ->  | K91: =IF(E91="","",VLOOKUP(E91,Listes_masqué!$N$3:$O$22,2,FALSE)) ->  | L91: =IF(G91="","",VLOOKUP(G91,Listes_masqué!$F$3:$G$62,2,FALSE)) ->  | M91: =IF(H91="","",VLOOKUP(H91,Listes_masqué!$B$3:$C$25,2,FALSE)) ->  | Q91: =_xlfn.XLOOKUP(P91,Tableau13[Product code],Tableau13[Designation],"") ->  | R91: =IFERROR(VLOOKUP('Product code generator'!$P91,Tableau13[[#All],[Product code]:[Price excl. tax]],3,FALSE),"") ->  | T91: =VLOOKUP(D91,Listes_masqué!$H$3:$J$6,3,FALSE) ->  | U91: =IF(K91="213",VLOOKUP(F91,Listes_masqué!$Q$9:$R$13,2,FALSE),VLOOKUP(F91,Listes_masqué!$Q$3:$R$7,2,FALSE)) -> 
J92: =IF(D92="","",VLOOKUP(D92,Listes_masqué!$H$3:$K$14,2,FALSE)) ->  | K92: =IF(E92="","",VLOOKUP(E92,Listes_masqué!$N$3:$O$22,2,FALSE)) ->  | L92: =IF(G92="","",VLOOKUP(G92,Listes_masqué!$F$3:$G$62,2,FALSE)) ->  | M92: =IF(H92="","",VLOOKUP(H92,Listes_masqué!$B$3:$C$25,2,FALSE)) ->  | Q92: =_xlfn.XLOOKUP(P92,Tableau13[Product code],Tableau13[Designation],"") ->  | R92: =IFERROR(VLOOKUP('Product code generator'!$P92,Tableau13[[#All],[Product code]:[Price excl. tax]],3,FALSE),"") ->  | T92: =VLOOKUP(D92,Listes_masqué!$H$3:$J$6,3,FALSE) ->  | U92: =IF(K92="213",VLOOKUP(F92,Listes_masqué!$Q$9:$R$13,2,FALSE),VLOOKUP(F92,Listes_masqué!$Q$3:$R$7,2,FALSE)) -> 
J93: =IF(D93="","",VLOOKUP(D93,Listes_masqué!$H$3:$K$14,2,FALSE)) ->  | K93: =IF(E93="","",VLOOKUP(E93,Listes_masqué!$N$3:$O$22,2,FALSE)) ->  | L93: =IF(G93="","",VLOOKUP(G93,Listes_masqué!$F$3:$G$62,2,FALSE)) ->  | M93: =IF(H93="","",VLOOKUP(H93,Listes_masqué!$B$3:$C$25,2,FALSE)) ->  | Q93: =_xlfn.XLOOKUP(P93,Tableau13[Product code],Tableau13[Designation],"") ->  | R93: =IFERROR(VLOOKUP('Product code generator'!$P93,Tableau13[[#All],[Product code]:[Price excl. tax]],3,FALSE),"") ->  | T93: =VLOOKUP(D93,Listes_masqué!$H$3:$J$6,3,FALSE) ->  | U93: =IF(K93="213",VLOOKUP(F93,Listes_masqué!$Q$9:$R$13,2,FALSE),VLOOKUP(F93,Listes_masqué!$Q$3:$R$7,2,FALSE)) -> 
J94: =IF(D94="","",VLOOKUP(D94,Listes_masqué!$H$3:$K$14,2,FALSE)) ->  | K94: =IF(E94="","",VLOOKUP(E94,Listes_masqué!$N$3:$O$22,2,FALSE)) ->  | L94: =IF(G94="","",VLOOKUP(G94,Listes_masqué!$F$3:$G$62,2,FALSE)) ->  | M94: =IF(H94="","",VLOOKUP(H94,Listes_masqué!$B$3:$C$25,2,FALSE)) ->  | Q94: =_xlfn.XLOOKUP(P94,Tableau13[Product code],Tableau13[Designation],"") ->  | R94: =IFERROR(VLOOKUP('Product code generator'!$P94,Tableau13[[#All],[Product code]:[Price excl. tax]],3,FALSE),"") ->  | T94: =VLOOKUP(D94,Listes_masqué!$H$3:$J$6,3,FALSE) ->  | U94: =IF(K94="213",VLOOKUP(F94,Listes_masqué!$Q$9:$R$13,2,FALSE),VLOOKUP(F94,Listes_masqué!$Q$3:$R$7,2,FALSE)) -> 
J95: =IF(D95="","",VLOOKUP(D95,Listes_masqué!$H$3:$K$14,2,FALSE)) ->  | K95: =IF(E95="","",VLOOKUP(E95,Listes_masqué!$N$3:$O$22,2,FALSE)) ->  | L95: =IF(G95="","",VLOOKUP(G95,Listes_masqué!$F$3:$G$62,2,FALSE)) ->  | M95: =IF(H95="","",VLOOKUP(H95,Listes_masqué!$B$3:$C$25,2,FALSE)) ->  | Q95: =_xlfn.XLOOKUP(P95,Tableau13[Product code],Tableau13[Designation],"") ->  | R95: =IFERROR(VLOOKUP('Product code generator'!$P95,Tableau13[[#All],[Product code]:[Price excl. tax]],3,FALSE),"") ->  | T95: =VLOOKUP(D95,Listes_masqué!$H$3:$J$6,3,FALSE) ->  | U95: =IF(K95="213",VLOOKUP(F95,Listes_masqué!$Q$9:$R$13,2,FALSE),VLOOKUP(F95,Listes_masqué!$Q$3:$R$7,2,FALSE)) -> 
J96: =IF(D96="","",VLOOKUP(D96,Listes_masqué!$H$3:$K$14,2,FALSE)) ->  | K96: =IF(E96="","",VLOOKUP(E96,Listes_masqué!$N$3:$O$22,2,FALSE)) ->  | L96: =IF(G96="","",VLOOKUP(G96,Listes_masqué!$F$3:$G$62,2,FALSE)) ->  | M96: =IF(H96="","",VLOOKUP(H96,Listes_masqué!$B$3:$C$25,2,FALSE)) ->  | Q96: =_xlfn.XLOOKUP(P96,Tableau13[Product code],Tableau13[Designation],"") ->  | R96: =IFERROR(VLOOKUP('Product code generator'!$P96,Tableau13[[#All],[Product code]:[Price excl. tax]],3,FALSE),"") ->  | T96: =VLOOKUP(D96,Listes_masqué!$H$3:$J$6,3,FALSE) ->  | U96: =IF(K96="213",VLOOKUP(F96,Listes_masqué!$Q$9:$R$13,2,FALSE),VLOOKUP(F96,Listes_masqué!$Q$3:$R$7,2,FALSE)) -> 
J97: =IF(D97="","",VLOOKUP(D97,Listes_masqué!$H$3:$K$14,2,FALSE)) ->  | K97: =IF(E97="","",VLOOKUP(E97,Listes_masqué!$N$3:$O$22,2,FALSE)) ->  | L97: =IF(G97="","",VLOOKUP(G97,Listes_masqué!$F$3:$G$62,2,FALSE)) ->  | M97: =IF(H97="","",VLOOKUP(H97,Listes_masqué!$B$3:$C$25,2,FALSE)) ->  | Q97: =_xlfn.XLOOKUP(P97,Tableau13[Product code],Tableau13[Designation],"") ->  | R97: =IFERROR(VLOOKUP('Product code generator'!$P97,Tableau13[[#All],[Product code]:[Price excl. tax]],3,FALSE),"") ->  | T97: =VLOOKUP(D97,Listes_masqué!$H$3:$J$6,3,FALSE) ->  | U97: =IF(K97="213",VLOOKUP(F97,Listes_masqué!$Q$9:$R$13,2,FALSE),VLOOKUP(F97,Listes_masqué!$Q$3:$R$7,2,FALSE)) -> 
J98: =IF(D98="","",VLOOKUP(D98,Listes_masqué!$H$3:$K$14,2,FALSE)) ->  | K98: =IF(E98="","",VLOOKUP(E98,Listes_masqué!$N$3:$O$22,2,FALSE)) ->  | L98: =IF(G98="","",VLOOKUP(G98,Listes_masqué!$F$3:$G$62,2,FALSE)) ->  | M98: =IF(H98="","",VLOOKUP(H98,Listes_masqué!$B$3:$C$25,2,FALSE)) ->  | Q98: =_xlfn.XLOOKUP(P98,Tableau13[Product code],Tableau13[Designation],"") ->  | R98: =IFERROR(VLOOKUP('Product code generator'!$P98,Tableau13[[#All],[Product code]:[Price excl. tax]],3,FALSE),"") ->  | T98: =VLOOKUP(D98,Listes_masqué!$H$3:$J$6,3,FALSE) ->  | U98: =IF(K98="213",VLOOKUP(F98,Listes_masqué!$Q$9:$R$13,2,FALSE),VLOOKUP(F98,Listes_masqué!$Q$3:$R$7,2,FALSE)) -> 
J99: =IF(D99="","",VLOOKUP(D99,Listes_masqué!$H$3:$K$14,2,FALSE)) ->  | K99: =IF(E99="","",VLOOKUP(E99,Listes_masqué!$N$3:$O$22,2,FALSE)) ->  | L99: =IF(G99="","",VLOOKUP(G99,Listes_masqué!$F$3:$G$62,2,FALSE)) ->  | M99: =IF(H99="","",VLOOKUP(H99,Listes_masqué!$B$3:$C$25,2,FALSE)) ->  | Q99: =_xlfn.XLOOKUP(P99,Tableau13[Product code],Tableau13[Designation],"") ->  | R99: =IFERROR(VLOOKUP('Product code generator'!$P99,Tableau13[[#All],[Product code]:[Price excl. tax]],3,FALSE),"") ->  | T99: =VLOOKUP(D99,Listes_masqué!$H$3:$J$6,3,FALSE) ->  | U99: =IF(K99="213",VLOOKUP(F99,Listes_masqué!$Q$9:$R$13,2,FALSE),VLOOKUP(F99,Listes_masqué!$Q$3:$R$7,2,FALSE)) -> 
J100: =IF(D100="","",VLOOKUP(D100,Listes_masqué!$H$3:$K$14,2,FALSE)) ->  | K100: =IF(E100="","",VLOOKUP(E100,Listes_masqué!$N$3:$O$22,2,FALSE)) ->  | L100: =IF(G100="","",VLOOKUP(G100,Listes_masqué!$F$3:$G$62,2,FALSE)) ->  | M100: =IF(H100="","",VLOOKUP(H100,Listes_masqué!$B$3:$C$25,2,FALSE)) ->  | Q100: =_xlfn.XLOOKUP(P100,Tableau13[Product code],Tableau13[Designation],"") ->  | R100: =IFERROR(VLOOKUP('Product code generator'!$P100,Tableau13[[#All],[Product code]:[Price excl. tax]],3,FALSE),"") ->  | T100: =VLOOKUP(D100,Listes_masqué!$H$3:$J$6,3,FALSE) ->  | U100: =IF(K100="213",VLOOKUP(F100,Listes_masqué!$Q$9:$R$13,2,FALSE),VLOOKUP(F100,Listes_masqué!$Q$3:$R$7,2,FALSE)) -> 
J101: =IF(D101="","",VLOOKUP(D101,Listes_masqué!$H$3:$K$14,2,FALSE)) ->  | K101: =IF(E101="","",VLOOKUP(E101,Listes_masqué!$N$3:$O$22,2,FALSE)) ->  | L101: =IF(G101="","",VLOOKUP(G101,Listes_masqué!$F$3:$G$62,2,FALSE)) ->  | M101: =IF(H101="","",VLOOKUP(H101,Listes_masqué!$B$3:$C$25,2,FALSE)) ->  | Q101: =_xlfn.XLOOKUP(P101,Tableau13[Product code],Tableau13[Designation],"") ->  | R101: =IFERROR(VLOOKUP('Product code generator'!$P101,Tableau13[[#All],[Product code]:[Price excl. tax]],3,FALSE),"") ->  | T101: =VLOOKUP(D101,Listes_masqué!$H$3:$J$6,3,FALSE) ->  | U101: =IF(K101="213",VLOOKUP(F101,Listes_masqué!$Q$9:$R$13,2,FALSE),VLOOKUP(F101,Listes_masqué!$Q$3:$R$7,2,FALSE)) -> 
J102: =IF(D102="","",VLOOKUP(D102,Listes_masqué!$H$3:$K$14,2,FALSE)) ->  | K102: =IF(E102="","",VLOOKUP(E102,Listes_masqué!$N$3:$O$22,2,FALSE)) ->  | L102: =IF(G102="","",VLOOKUP(G102,Listes_masqué!$F$3:$G$62,2,FALSE)) ->  | M102: =IF(H102="","",VLOOKUP(H102,Listes_masqué!$B$3:$C$25,2,FALSE)) ->  | Q102: =_xlfn.XLOOKUP(P102,Tableau13[Product code],Tableau13[Designation],"") ->  | R102: =IFERROR(VLOOKUP('Product code generator'!$P102,Tableau13[[#All],[Product code]:[Price excl. tax]],3,FALSE),"") ->  | T102: =VLOOKUP(D102,Listes_masqué!$H$3:$J$6,3,FALSE) ->  | U102: =IF(K102="213",VLOOKUP(F102,Listes_masqué!$Q$9:$R$13,2,FALSE),VLOOKUP(F102,Listes_masqué!$Q$3:$R$7,2,FALSE)) -> 
J103: =IF(D103="","",VLOOKUP(D103,Listes_masqué!$H$3:$K$14,2,FALSE)) ->  | K103: =IF(E103="","",VLOOKUP(E103,Listes_masqué!$N$3:$O$22,2,FALSE)) ->  | L103: =IF(G103="","",VLOOKUP(G103,Listes_masqué!$F$3:$G$62,2,FALSE)) ->  | M103: =IF(H103="","",VLOOKUP(H103,Listes_masqué!$B$3:$C$25,2,FALSE)) ->  | Q103: =_xlfn.XLOOKUP(P103,Tableau13[Product code],Tableau13[Designation],"") ->  | R103: =IFERROR(VLOOKUP('Product code generator'!$P103,Tableau13[[#All],[Product code]:[Price excl. tax]],3,FALSE),"") ->  | T103: =VLOOKUP(D103,Listes_masqué!$H$3:$J$6,3,FALSE) ->  | U103: =IF(K103="213",VLOOKUP(F103,Listes_masqué!$Q$9:$R$13,2,FALSE),VLOOKUP(F103,Listes_masqué!$Q$3:$R$7,2,FALSE)) -> 
J104: =IF(D104="","",VLOOKUP(D104,Listes_masqué!$H$3:$K$14,2,FALSE)) ->  | K104: =IF(E104="","",VLOOKUP(E104,Listes_masqué!$N$3:$O$22,2,FALSE)) ->  | L104: =IF(G104="","",VLOOKUP(G104,Listes_masqué!$F$3:$G$62,2,FALSE)) ->  | M104: =IF(H104="","",VLOOKUP(H104,Listes_masqué!$B$3:$C$25,2,FALSE)) ->  | Q104: =_xlfn.XLOOKUP(P104,Tableau13[Product code],Tableau13[Designation],"") ->  | R104: =IFERROR(VLOOKUP('Product code generator'!$P104,Tableau13[[#All],[Product code]:[Price excl. tax]],3,FALSE),"") ->  | T104: =VLOOKUP(D104,Listes_masqué!$H$3:$J$6,3,FALSE) ->  | U104: =IF(K104="213",VLOOKUP(F104,Listes_masqué!$Q$9:$R$13,2,FALSE),VLOOKUP(F104,Listes_masqué!$Q$3:$R$7,2,FALSE)) -> 
J105: =IF(D105="","",VLOOKUP(D105,Listes_masqué!$H$3:$K$14,2,FALSE)) ->  | K105: =IF(E105="","",VLOOKUP(E105,Listes_masqué!$N$3:$O$22,2,FALSE)) ->  | L105: =IF(G105="","",VLOOKUP(G105,Listes_masqué!$F$3:$G$62,2,FALSE)) ->  | M105: =IF(H105="","",VLOOKUP(H105,Listes_masqué!$B$3:$C$25,2,FALSE)) ->  | Q105: =_xlfn.XLOOKUP(P105,Tableau13[Product code],Tableau13[Designation],"") ->  | R105: =IFERROR(VLOOKUP('Product code generator'!$P105,Tableau13[[#All],[Product code]:[Price excl. tax]],3,FALSE),"") ->  | T105: =VLOOKUP(D105,Listes_masqué!$H$3:$J$6,3,FALSE) ->  | U105: =IF(K105="213",VLOOKUP(F105,Listes_masqué!$Q$9:$R$13,2,FALSE),VLOOKUP(F105,Listes_masqué!$Q$3:$R$7,2,FALSE)) -> 
J106: =IF(D106="","",VLOOKUP(D106,Listes_masqué!$H$3:$K$14,2,FALSE)) ->  | K106: =IF(E106="","",VLOOKUP(E106,Listes_masqué!$N$3:$O$22,2,FALSE)) ->  | L106: =IF(G106="","",VLOOKUP(G106,Listes_masqué!$F$3:$G$62,2,FALSE)) ->  | M106: =IF(H106="","",VLOOKUP(H106,Listes_masqué!$B$3:$C$25,2,FALSE)) ->  | Q106: =_xlfn.XLOOKUP(P106,Tableau13[Product code],Tableau13[Designation],"") ->  | R106: =IFERROR(VLOOKUP('Product code generator'!$P106,Tableau13[[#All],[Product code]:[Price excl. tax]],3,FALSE),"") ->  | T106: =VLOOKUP(D106,Listes_masqué!$H$3:$J$6,3,FALSE) ->  | U106: =IF(K106="213",VLOOKUP(F106,Listes_masqué!$Q$9:$R$13,2,FALSE),VLOOKUP(F106,Listes_masqué!$Q$3:$R$7,2,FALSE)) -> 
J107: =IF(D107="","",VLOOKUP(D107,Listes_masqué!$H$3:$K$14,2,FALSE)) ->  | K107: =IF(E107="","",VLOOKUP(E107,Listes_masqué!$N$3:$O$22,2,FALSE)) ->  | L107: =IF(G107="","",VLOOKUP(G107,Listes_masqué!$F$3:$G$62,2,FALSE)) ->  | M107: =IF(H107="","",VLOOKUP(H107,Listes_masqué!$B$3:$C$25,2,FALSE)) ->  | Q107: =_xlfn.XLOOKUP(P107,Tableau13[Product code],Tableau13[Designation],"") ->  | R107: =IFERROR(VLOOKUP('Product code generator'!$P107,Tableau13[[#All],[Product code]:[Price excl. tax]],3,FALSE),"") ->  | T107: =VLOOKUP(D107,Listes_masqué!$H$3:$J$6,3,FALSE) ->  | U107: =IF(K107="213",VLOOKUP(F107,Listes_masqué!$Q$9:$R$13,2,FALSE),VLOOKUP(F107,Listes_masqué!$Q$3:$R$7,2,FALSE)) -> 
J108: =IF(D108="","",VLOOKUP(D108,Listes_masqué!$H$3:$K$14,2,FALSE)) ->  | K108: =IF(E108="","",VLOOKUP(E108,Listes_masqué!$N$3:$O$22,2,FALSE)) ->  | L108: =IF(G108="","",VLOOKUP(G108,Listes_masqué!$F$3:$G$62,2,FALSE)) ->  | M108: =IF(H108="","",VLOOKUP(H108,Listes_masqué!$B$3:$C$25,2,FALSE)) ->  | Q108: =_xlfn.XLOOKUP(P108,Tableau13[Product code],Tableau13[Designation],"") ->  | R108: =IFERROR(VLOOKUP('Product code generator'!$P108,Tableau13[[#All],[Product code]:[Price excl. tax]],3,FALSE),"") ->  | T108: =VLOOKUP(D108,Listes_masqué!$H$3:$J$6,3,FALSE) ->  | U108: =IF(K108="213",VLOOKUP(F108,Listes_masqué!$Q$9:$R$13,2,FALSE),VLOOKUP(F108,Listes_masqué!$Q$3:$R$7,2,FALSE)) -> 
J109: =IF(D109="","",VLOOKUP(D109,Listes_masqué!$H$3:$K$14,2,FALSE)) ->  | K109: =IF(E109="","",VLOOKUP(E109,Listes_masqué!$N$3:$O$22,2,FALSE)) ->  | L109: =IF(G109="","",VLOOKUP(G109,Listes_masqué!$F$3:$G$62,2,FALSE)) ->  | M109: =IF(H109="","",VLOOKUP(H109,Listes_masqué!$B$3:$C$25,2,FALSE)) ->  | Q109: =_xlfn.XLOOKUP(P109,Tableau13[Product code],Tableau13[Designation],"") ->  | R109: =IFERROR(VLOOKUP('Product code generator'!$P109,Tableau13[[#All],[Product code]:[Price excl. tax]],3,FALSE),"") ->  | T109: =VLOOKUP(D109,Listes_masqué!$H$3:$J$6,3,FALSE) ->  | U109: =IF(K109="213",VLOOKUP(F109,Listes_masqué!$Q$9:$R$13,2,FALSE),VLOOKUP(F109,Listes_masqué!$Q$3:$R$7,2,FALSE)) -> 
J110: =IF(D110="","",VLOOKUP(D110,Listes_masqué!$H$3:$K$14,2,FALSE)) ->  | K110: =IF(E110="","",VLOOKUP(E110,Listes_masqué!$N$3:$O$22,2,FALSE)) ->  | L110: =IF(G110="","",VLOOKUP(G110,Listes_masqué!$F$3:$G$62,2,FALSE)) ->  | M110: =IF(H110="","",VLOOKUP(H110,Listes_masqué!$B$3:$C$25,2,FALSE)) ->  | Q110: =_xlfn.XLOOKUP(P110,Tableau13[Product code],Tableau13[Designation],"") ->  | R110: =IFERROR(VLOOKUP('Product code generator'!$P110,Tableau13[[#All],[Product code]:[Price excl. tax]],3,FALSE),"") ->  | T110: =VLOOKUP(D110,Listes_masqué!$H$3:$J$6,3,FALSE) ->  | U110: =IF(K110="213",VLOOKUP(F110,Listes_masqué!$Q$9:$R$13,2,FALSE),VLOOKUP(F110,Listes_masqué!$Q$3:$R$7,2,FALSE)) -> 
J111: =IF(D111="","",VLOOKUP(D111,Listes_masqué!$H$3:$K$14,2,FALSE)) ->  | K111: =IF(E111="","",VLOOKUP(E111,Listes_masqué!$N$3:$O$22,2,FALSE)) ->  | L111: =IF(G111="","",VLOOKUP(G111,Listes_masqué!$F$3:$G$62,2,FALSE)) ->  | M111: =IF(H111="","",VLOOKUP(H111,Listes_masqué!$B$3:$C$25,2,FALSE)) ->  | Q111: =_xlfn.XLOOKUP(P111,Tableau13[Product code],Tableau13[Designation],"") ->  | R111: =IFERROR(VLOOKUP('Product code generator'!$P111,Tableau13[[#All],[Product code]:[Price excl. tax]],3,FALSE),"") ->  | T111: =VLOOKUP(D111,Listes_masqué!$H$3:$J$6,3,FALSE) ->  | U111: =IF(K111="213",VLOOKUP(F111,Listes_masqué!$Q$9:$R$13,2,FALSE),VLOOKUP(F111,Listes_masqué!$Q$3:$R$7,2,FALSE)) -> 
J112: =IF(D112="","",VLOOKUP(D112,Listes_masqué!$H$3:$K$14,2,FALSE)) ->  | K112: =IF(E112="","",VLOOKUP(E112,Listes_masqué!$N$3:$O$22,2,FALSE)) ->  | L112: =IF(G112="","",VLOOKUP(G112,Listes_masqué!$F$3:$G$62,2,FALSE)) ->  | M112: =IF(H112="","",VLOOKUP(H112,Listes_masqué!$B$3:$C$25,2,FALSE)) ->  | Q112: =_xlfn.XLOOKUP(P112,Tableau13[Product code],Tableau13[Designation],"") ->  | R112: =IFERROR(VLOOKUP('Product code generator'!$P112,Tableau13[[#All],[Product code]:[Price excl. tax]],3,FALSE),"") ->  | T112: =VLOOKUP(D112,Listes_masqué!$H$3:$J$6,3,FALSE) ->  | U112: =IF(K112="213",VLOOKUP(F112,Listes_masqué!$Q$9:$R$13,2,FALSE),VLOOKUP(F112,Listes_masqué!$Q$3:$R$7,2,FALSE)) -> 
J113: =IF(D113="","",VLOOKUP(D113,Listes_masqué!$H$3:$K$14,2,FALSE)) ->  | K113: =IF(E113="","",VLOOKUP(E113,Listes_masqué!$N$3:$O$22,2,FALSE)) ->  | L113: =IF(G113="","",VLOOKUP(G113,Listes_masqué!$F$3:$G$62,2,FALSE)) ->  | M113: =IF(H113="","",VLOOKUP(H113,Listes_masqué!$B$3:$C$25,2,FALSE)) ->  | Q113: =_xlfn.XLOOKUP(P113,Tableau13[Product code],Tableau13[Designation],"") ->  | R113: =IFERROR(VLOOKUP('Product code generator'!$P113,Tableau13[[#All],[Product code]:[Price excl. tax]],3,FALSE),"") ->  | T113: =VLOOKUP(D113,Listes_masqué!$H$3:$J$6,3,FALSE) ->  | U113: =IF(K113="213",VLOOKUP(F113,Listes_masqué!$Q$9:$R$13,2,FALSE),VLOOKUP(F113,Listes_masqué!$Q$3:$R$7,2,FALSE)) -> 
J114: =IF(D114="","",VLOOKUP(D114,Listes_masqué!$H$3:$K$14,2,FALSE)) ->  | K114: =IF(E114="","",VLOOKUP(E114,Listes_masqué!$N$3:$O$22,2,FALSE)) ->  | L114: =IF(G114="","",VLOOKUP(G114,Listes_masqué!$F$3:$G$62,2,FALSE)) ->  | M114: =IF(H114="","",VLOOKUP(H114,Listes_masqué!$B$3:$C$25,2,FALSE)) ->  | Q114: =_xlfn.XLOOKUP(P114,Tableau13[Product code],Tableau13[Designation],"") ->  | R114: =IFERROR(VLOOKUP('Product code generator'!$P114,Tableau13[[#All],[Product code]:[Price excl. tax]],3,FALSE),"") ->  | T114: =VLOOKUP(D114,Listes_masqué!$H$3:$J$6,3,FALSE) ->  | U114: =IF(K114="213",VLOOKUP(F114,Listes_masqué!$Q$9:$R$13,2,FALSE),VLOOKUP(F114,Listes_masqué!$Q$3:$R$7,2,FALSE)) -> 
J115: =IF(D115="","",VLOOKUP(D115,Listes_masqué!$H$3:$K$14,2,FALSE)) ->  | K115: =IF(E115="","",VLOOKUP(E115,Listes_masqué!$N$3:$O$22,2,FALSE)) ->  | L115: =IF(G115="","",VLOOKUP(G115,Listes_masqué!$F$3:$G$62,2,FALSE)) ->  | M115: =IF(H115="","",VLOOKUP(H115,Listes_masqué!$B$3:$C$25,2,FALSE)) ->  | Q115: =_xlfn.XLOOKUP(P115,Tableau13[Product code],Tableau13[Designation],"") ->  | R115: =IFERROR(VLOOKUP('Product code generator'!$P115,Tableau13[[#All],[Product code]:[Price excl. tax]],3,FALSE),"") ->  | T115: =VLOOKUP(D115,Listes_masqué!$H$3:$J$6,3,FALSE) ->  | U115: =IF(K115="213",VLOOKUP(F115,Listes_masqué!$Q$9:$R$13,2,FALSE),VLOOKUP(F115,Listes_masqué!$Q$3:$R$7,2,FALSE)) -> 
J116: =IF(D116="","",VLOOKUP(D116,Listes_masqué!$H$3:$K$14,2,FALSE)) ->  | K116: =IF(E116="","",VLOOKUP(E116,Listes_masqué!$N$3:$O$22,2,FALSE)) ->  | L116: =IF(G116="","",VLOOKUP(G116,Listes_masqué!$F$3:$G$62,2,FALSE)) ->  | M116: =IF(H116="","",VLOOKUP(H116,Listes_masqué!$B$3:$C$25,2,FALSE)) ->  | Q116: =_xlfn.XLOOKUP(P116,Tableau13[Product code],Tableau13[Designation],"") ->  | R116: =IFERROR(VLOOKUP('Product code generator'!$P116,Tableau13[[#All],[Product code]:[Price excl. tax]],3,FALSE),"") ->  | T116: =VLOOKUP(D116,Listes_masqué!$H$3:$J$6,3,FALSE) ->  | U116: =IF(K116="213",VLOOKUP(F116,Listes_masqué!$Q$9:$R$13,2,FALSE),VLOOKUP(F116,Listes_masqué!$Q$3:$R$7,2,FALSE)) -> 
J117: =IF(D117="","",VLOOKUP(D117,Listes_masqué!$H$3:$K$14,2,FALSE)) ->  | K117: =IF(E117="","",VLOOKUP(E117,Listes_masqué!$N$3:$O$22,2,FALSE)) ->  | L117: =IF(G117="","",VLOOKUP(G117,Listes_masqué!$F$3:$G$62,2,FALSE)) ->  | M117: =IF(H117="","",VLOOKUP(H117,Listes_masqué!$B$3:$C$25,2,FALSE)) ->  | Q117: =_xlfn.XLOOKUP(P117,Tableau13[Product code],Tableau13[Designation],"") ->  | R117: =IFERROR(VLOOKUP('Product code generator'!$P117,Tableau13[[#All],[Product code]:[Price excl. tax]],3,FALSE),"") ->  | T117: =VLOOKUP(D117,Listes_masqué!$H$3:$J$6,3,FALSE) ->  | U117: =IF(K117="213",VLOOKUP(F117,Listes_masqué!$Q$9:$R$13,2,FALSE),VLOOKUP(F117,Listes_masqué!$Q$3:$R$7,2,FALSE)) -> 
J118: =IF(D118="","",VLOOKUP(D118,Listes_masqué!$H$3:$K$14,2,FALSE)) ->  | K118: =IF(E118="","",VLOOKUP(E118,Listes_masqué!$N$3:$O$22,2,FALSE)) ->  | L118: =IF(G118="","",VLOOKUP(G118,Listes_masqué!$F$3:$G$62,2,FALSE)) ->  | M118: =IF(H118="","",VLOOKUP(H118,Listes_masqué!$B$3:$C$25,2,FALSE)) ->  | Q118: =_xlfn.XLOOKUP(P118,Tableau13[Product code],Tableau13[Designation],"") ->  | R118: =IFERROR(VLOOKUP('Product code generator'!$P118,Tableau13[[#All],[Product code]:[Price excl. tax]],3,FALSE),"") ->  | T118: =VLOOKUP(D118,Listes_masqué!$H$3:$J$6,3,FALSE) ->  | U118: =IF(K118="213",VLOOKUP(F118,Listes_masqué!$Q$9:$R$13,2,FALSE),VLOOKUP(F118,Listes_masqué!$Q$3:$R$7,2,FALSE)) -> 
J119: =IF(D119="","",VLOOKUP(D119,Listes_masqué!$H$3:$K$14,2,FALSE)) ->  | K119: =IF(E119="","",VLOOKUP(E119,Listes_masqué!$N$3:$O$22,2,FALSE)) ->  | L119: =IF(G119="","",VLOOKUP(G119,Listes_masqué!$F$3:$G$62,2,FALSE)) ->  | M119: =IF(H119="","",VLOOKUP(H119,Listes_masqué!$B$3:$C$25,2,FALSE)) ->  | Q119: =_xlfn.XLOOKUP(P119,Tableau13[Product code],Tableau13[Designation],"") ->  | R119: =IFERROR(VLOOKUP('Product code generator'!$P119,Tableau13[[#All],[Product code]:[Price excl. tax]],3,FALSE),"") ->  | T119: =VLOOKUP(D119,Listes_masqué!$H$3:$J$6,3,FALSE) ->  | U119: =IF(K119="213",VLOOKUP(F119,Listes_masqué!$Q$9:$R$13,2,FALSE),VLOOKUP(F119,Listes_masqué!$Q$3:$R$7,2,FALSE)) -> 
J120: =IF(D120="","",VLOOKUP(D120,Listes_masqué!$H$3:$K$14,2,FALSE)) ->  | K120: =IF(E120="","",VLOOKUP(E120,Listes_masqué!$N$3:$O$22,2,FALSE)) ->  | L120: =IF(G120="","",VLOOKUP(G120,Listes_masqué!$F$3:$G$62,2,FALSE)) ->  | M120: =IF(H120="","",VLOOKUP(H120,Listes_masqué!$B$3:$C$25,2,FALSE)) ->  | Q120: =_xlfn.XLOOKUP(P120,Tableau13[Product code],Tableau13[Designation],"") ->  | R120: =IFERROR(VLOOKUP('Product code generator'!$P120,Tableau13[[#All],[Product code]:[Price excl. tax]],3,FALSE),"") ->  | T120: =VLOOKUP(D120,Listes_masqué!$H$3:$J$6,3,FALSE) ->  | U120: =IF(K120="213",VLOOKUP(F120,Listes_masqué!$Q$9:$R$13,2,FALSE),VLOOKUP(F120,Listes_masqué!$Q$3:$R$7,2,FALSE)) -> 
J121: =IF(D121="","",VLOOKUP(D121,Listes_masqué!$H$3:$K$14,2,FALSE)) ->  | K121: =IF(E121="","",VLOOKUP(E121,Listes_masqué!$N$3:$O$22,2,FALSE)) ->  | L121: =IF(G121="","",VLOOKUP(G121,Listes_masqué!$F$3:$G$62,2,FALSE)) ->  | M121: =IF(H121="","",VLOOKUP(H121,Listes_masqué!$B$3:$C$25,2,FALSE)) ->  | Q121: =_xlfn.XLOOKUP(P121,Tableau13[Product code],Tableau13[Designation],"") ->  | R121: =IFERROR(VLOOKUP('Product code generator'!$P121,Tableau13[[#All],[Product code]:[Price excl. tax]],3,FALSE),"") ->  | T121: =VLOOKUP(D121,Listes_masqué!$H$3:$J$6,3,FALSE) ->  | U121: =IF(K121="213",VLOOKUP(F121,Listes_masqué!$Q$9:$R$13,2,FALSE),VLOOKUP(F121,Listes_masqué!$Q$3:$R$7,2,FALSE)) -> 
J122: =IF(D122="","",VLOOKUP(D122,Listes_masqué!$H$3:$K$14,2,FALSE)) ->  | K122: =IF(E122="","",VLOOKUP(E122,Listes_masqué!$N$3:$O$22,2,FALSE)) ->  | L122: =IF(G122="","",VLOOKUP(G122,Listes_masqué!$F$3:$G$62,2,FALSE)) ->  | M122: =IF(H122="","",VLOOKUP(H122,Listes_masqué!$B$3:$C$25,2,FALSE)) ->  | Q122: =_xlfn.XLOOKUP(P122,Tableau13[Product code],Tableau13[Designation],"") ->  | R122: =IFERROR(VLOOKUP('Product code generator'!$P122,Tableau13[[#All],[Product code]:[Price excl. tax]],3,FALSE),"") ->  | T122: =VLOOKUP(D122,Listes_masqué!$H$3:$J$6,3,FALSE) ->  | U122: =IF(K122="213",VLOOKUP(F122,Listes_masqué!$Q$9:$R$13,2,FALSE),VLOOKUP(F122,Listes_masqué!$Q$3:$R$7,2,FALSE)) -> 
J123: =IF(D123="","",VLOOKUP(D123,Listes_masqué!$H$3:$K$14,2,FALSE)) ->  | K123: =IF(E123="","",VLOOKUP(E123,Listes_masqué!$N$3:$O$22,2,FALSE)) ->  | L123: =IF(G123="","",VLOOKUP(G123,Listes_masqué!$F$3:$G$62,2,FALSE)) ->  | M123: =IF(H123="","",VLOOKUP(H123,Listes_masqué!$B$3:$C$25,2,FALSE)) ->  | Q123: =_xlfn.XLOOKUP(P123,Tableau13[Product code],Tableau13[Designation],"") ->  | R123: =IFERROR(VLOOKUP('Product code generator'!$P123,Tableau13[[#All],[Product code]:[Price excl. tax]],3,FALSE),"") ->  | T123: =VLOOKUP(D123,Listes_masqué!$H$3:$J$6,3,FALSE) ->  | U123: =IF(K123="213",VLOOKUP(F123,Listes_masqué!$Q$9:$R$13,2,FALSE),VLOOKUP(F123,Listes_masqué!$Q$3:$R$7,2,FALSE)) -> 
J124: =IF(D124="","",VLOOKUP(D124,Listes_masqué!$H$3:$K$14,2,FALSE)) ->  | K124: =IF(E124="","",VLOOKUP(E124,Listes_masqué!$N$3:$O$22,2,FALSE)) ->  | L124: =IF(G124="","",VLOOKUP(G124,Listes_masqué!$F$3:$G$62,2,FALSE)) ->  | M124: =IF(H124="","",VLOOKUP(H124,Listes_masqué!$B$3:$C$25,2,FALSE)) ->  | Q124: =_xlfn.XLOOKUP(P124,Tableau13[Product code],Tableau13[Designation],"") ->  | R124: =IFERROR(VLOOKUP('Product code generator'!$P124,Tableau13[[#All],[Product code]:[Price excl. tax]],3,FALSE),"") ->  | T124: =VLOOKUP(D124,Listes_masqué!$H$3:$J$6,3,FALSE) ->  | U124: =IF(K124="213",VLOOKUP(F124,Listes_masqué!$Q$9:$R$13,2,FALSE),VLOOKUP(F124,Listes_masqué!$Q$3:$R$7,2,FALSE)) -> 
J125: =IF(D125="","",VLOOKUP(D125,Listes_masqué!$H$3:$K$14,2,FALSE)) ->  | K125: =IF(E125="","",VLOOKUP(E125,Listes_masqué!$N$3:$O$22,2,FALSE)) ->  | L125: =IF(G125="","",VLOOKUP(G125,Listes_masqué!$F$3:$G$62,2,FALSE)) ->  | M125: =IF(H125="","",VLOOKUP(H125,Listes_masqué!$B$3:$C$25,2,FALSE)) ->  | Q125: =_xlfn.XLOOKUP(P125,Tableau13[Product code],Tableau13[Designation],"") ->  | R125: =IFERROR(VLOOKUP('Product code generator'!$P125,Tableau13[[#All],[Product code]:[Price excl. tax]],3,FALSE),"") ->  | T125: =VLOOKUP(D125,Listes_masqué!$H$3:$J$6,3,FALSE) ->  | U125: =IF(K125="213",VLOOKUP(F125,Listes_masqué!$Q$9:$R$13,2,FALSE),VLOOKUP(F125,Listes_masqué!$Q$3:$R$7,2,FALSE)) -> 
J126: =IF(D126="","",VLOOKUP(D126,Listes_masqué!$H$3:$K$14,2,FALSE)) ->  | K126: =IF(E126="","",VLOOKUP(E126,Listes_masqué!$N$3:$O$22,2,FALSE)) ->  | L126: =IF(G126="","",VLOOKUP(G126,Listes_masqué!$F$3:$G$62,2,FALSE)) ->  | M126: =IF(H126="","",VLOOKUP(H126,Listes_masqué!$B$3:$C$25,2,FALSE)) ->  | Q126: =_xlfn.XLOOKUP(P126,Tableau13[Product code],Tableau13[Designation],"") ->  | R126: =IFERROR(VLOOKUP('Product code generator'!$P126,Tableau13[[#All],[Product code]:[Price excl. tax]],3,FALSE),"") ->  | T126: =VLOOKUP(D126,Listes_masqué!$H$3:$J$6,3,FALSE) ->  | U126: =IF(K126="213",VLOOKUP(F126,Listes_masqué!$Q$9:$R$13,2,FALSE),VLOOKUP(F126,Listes_masqué!$Q$3:$R$7,2,FALSE)) -> 
J127: =IF(D127="","",VLOOKUP(D127,Listes_masqué!$H$3:$K$14,2,FALSE)) ->  | K127: =IF(E127="","",VLOOKUP(E127,Listes_masqué!$N$3:$O$22,2,FALSE)) ->  | L127: =IF(G127="","",VLOOKUP(G127,Listes_masqué!$F$3:$G$62,2,FALSE)) ->  | M127: =IF(H127="","",VLOOKUP(H127,Listes_masqué!$B$3:$C$25,2,FALSE)) ->  | Q127: =_xlfn.XLOOKUP(P127,Tableau13[Product code],Tableau13[Designation],"") ->  | R127: =IFERROR(VLOOKUP('Product code generator'!$P127,Tableau13[[#All],[Product code]:[Price excl. tax]],3,FALSE),"") ->  | T127: =VLOOKUP(D127,Listes_masqué!$H$3:$J$6,3,FALSE) ->  | U127: =IF(K127="213",VLOOKUP(F127,Listes_masqué!$Q$9:$R$13,2,FALSE),VLOOKUP(F127,Listes_masqué!$Q$3:$R$7,2,FALSE)) -> 
J128: =IF(D128="","",VLOOKUP(D128,Listes_masqué!$H$3:$K$14,2,FALSE)) ->  | K128: =IF(E128="","",VLOOKUP(E128,Listes_masqué!$N$3:$O$22,2,FALSE)) ->  | L128: =IF(G128="","",VLOOKUP(G128,Listes_masqué!$F$3:$G$62,2,FALSE)) ->  | M128: =IF(H128="","",VLOOKUP(H128,Listes_masqué!$B$3:$C$25,2,FALSE)) ->  | Q128: =_xlfn.XLOOKUP(P128,Tableau13[Product code],Tableau13[Designation],"") ->  | R128: =IFERROR(VLOOKUP('Product code generator'!$P128,Tableau13[[#All],[Product code]:[Price excl. tax]],3,FALSE),"") ->  | T128: =VLOOKUP(D128,Listes_masqué!$H$3:$J$6,3,FALSE) ->  | U128: =IF(K128="213",VLOOKUP(F128,Listes_masqué!$Q$9:$R$13,2,FALSE),VLOOKUP(F128,Listes_masqué!$Q$3:$R$7,2,FALSE)) -> 
J129: =IF(D129="","",VLOOKUP(D129,Listes_masqué!$H$3:$K$14,2,FALSE)) ->  | K129: =IF(E129="","",VLOOKUP(E129,Listes_masqué!$N$3:$O$22,2,FALSE)) ->  | L129: =IF(G129="","",VLOOKUP(G129,Listes_masqué!$F$3:$G$62,2,FALSE)) ->  | M129: =IF(H129="","",VLOOKUP(H129,Listes_masqué!$B$3:$C$25,2,FALSE)) ->  | Q129: =_xlfn.XLOOKUP(P129,Tableau13[Product code],Tableau13[Designation],"") ->  | R129: =IFERROR(VLOOKUP('Product code generator'!$P129,Tableau13[[#All],[Product code]:[Price excl. tax]],3,FALSE),"") ->  | T129: =VLOOKUP(D129,Listes_masqué!$H$3:$J$6,3,FALSE) ->  | U129: =IF(K129="213",VLOOKUP(F129,Listes_masqué!$Q$9:$R$13,2,FALSE),VLOOKUP(F129,Listes_masqué!$Q$3:$R$7,2,FALSE)) -> 
J130: =IF(D130="","",VLOOKUP(D130,Listes_masqué!$H$3:$K$14,2,FALSE)) ->  | K130: =IF(E130="","",VLOOKUP(E130,Listes_masqué!$N$3:$O$22,2,FALSE)) ->  | L130: =IF(G130="","",VLOOKUP(G130,Listes_masqué!$F$3:$G$62,2,FALSE)) ->  | M130: =IF(H130="","",VLOOKUP(H130,Listes_masqué!$B$3:$C$25,2,FALSE)) ->  | Q130: =_xlfn.XLOOKUP(P130,Tableau13[Product code],Tableau13[Designation],"") ->  | R130: =IFERROR(VLOOKUP('Product code generator'!$P130,Tableau13[[#All],[Product code]:[Price excl. tax]],3,FALSE),"") ->  | T130: =VLOOKUP(D130,Listes_masqué!$H$3:$J$6,3,FALSE) ->  | U130: =IF(K130="213",VLOOKUP(F130,Listes_masqué!$Q$9:$R$13,2,FALSE),VLOOKUP(F130,Listes_masqué!$Q$3:$R$7,2,FALSE)) -> 
J131: =IF(D131="","",VLOOKUP(D131,Listes_masqué!$H$3:$K$14,2,FALSE)) ->  | K131: =IF(E131="","",VLOOKUP(E131,Listes_masqué!$N$3:$O$22,2,FALSE)) ->  | L131: =IF(G131="","",VLOOKUP(G131,Listes_masqué!$F$3:$G$62,2,FALSE)) ->  | M131: =IF(H131="","",VLOOKUP(H131,Listes_masqué!$B$3:$C$25,2,FALSE)) ->  | Q131: =_xlfn.XLOOKUP(P131,Tableau13[Product code],Tableau13[Designation],"") ->  | R131: =IFERROR(VLOOKUP('Product code generator'!$P131,Tableau13[[#All],[Product code]:[Price excl. tax]],3,FALSE),"") ->  | T131: =VLOOKUP(D131,Listes_masqué!$H$3:$J$6,3,FALSE) ->  | U131: =IF(K131="213",VLOOKUP(F131,Listes_masqué!$Q$9:$R$13,2,FALSE),VLOOKUP(F131,Listes_masqué!$Q$3:$R$7,2,FALSE)) -> 
J132: =IF(D132="","",VLOOKUP(D132,Listes_masqué!$H$3:$K$14,2,FALSE)) ->  | K132: =IF(E132="","",VLOOKUP(E132,Listes_masqué!$N$3:$O$22,2,FALSE)) ->  | L132: =IF(G132="","",VLOOKUP(G132,Listes_masqué!$F$3:$G$62,2,FALSE)) ->  | M132: =IF(H132="","",VLOOKUP(H132,Listes_masqué!$B$3:$C$25,2,FALSE)) ->  | Q132: =_xlfn.XLOOKUP(P132,Tableau13[Product code],Tableau13[Designation],"") ->  | R132: =IFERROR(VLOOKUP('Product code generator'!$P132,Tableau13[[#All],[Product code]:[Price excl. tax]],3,FALSE),"") ->  | T132: =VLOOKUP(D132,Listes_masqué!$H$3:$J$6,3,FALSE) ->  | U132: =IF(K132="213",VLOOKUP(F132,Listes_masqué!$Q$9:$R$13,2,FALSE),VLOOKUP(F132,Listes_masqué!$Q$3:$R$7,2,FALSE)) -> 
J133: =IF(D133="","",VLOOKUP(D133,Listes_masqué!$H$3:$K$14,2,FALSE)) ->  | K133: =IF(E133="","",VLOOKUP(E133,Listes_masqué!$N$3:$O$22,2,FALSE)) ->  | L133: =IF(G133="","",VLOOKUP(G133,Listes_masqué!$F$3:$G$62,2,FALSE)) ->  | M133: =IF(H133="","",VLOOKUP(H133,Listes_masqué!$B$3:$C$25,2,FALSE)) ->  | Q133: =_xlfn.XLOOKUP(P133,Tableau13[Product code],Tableau13[Designation],"") ->  | R133: =IFERROR(VLOOKUP('Product code generator'!$P133,Tableau13[[#All],[Product code]:[Price excl. tax]],3,FALSE),"") ->  | T133: =VLOOKUP(D133,Listes_masqué!$H$3:$J$6,3,FALSE) ->  | U133: =IF(K133="213",VLOOKUP(F133,Listes_masqué!$Q$9:$R$13,2,FALSE),VLOOKUP(F133,Listes_masqué!$Q$3:$R$7,2,FALSE)) -> 
J134: =IF(D134="","",VLOOKUP(D134,Listes_masqué!$H$3:$K$14,2,FALSE)) ->  | K134: =IF(E134="","",VLOOKUP(E134,Listes_masqué!$N$3:$O$22,2,FALSE)) ->  | L134: =IF(G134="","",VLOOKUP(G134,Listes_masqué!$F$3:$G$62,2,FALSE)) ->  | M134: =IF(H134="","",VLOOKUP(H134,Listes_masqué!$B$3:$C$25,2,FALSE)) ->  | N134: =IF(I134="","",IF(I134="yes",1,0)) ->  | Q134: =_xlfn.XLOOKUP(P134,Tableau13[Product code],Tableau13[Designation],"") ->  | R134: =IFERROR(VLOOKUP('Product code generator'!$P134,Tableau13[[#All],[Product code]:[Price excl. tax]],3,FALSE),"") ->  | T134: =VLOOKUP(D134,Listes_masqué!$H$3:$J$6,3,FALSE) ->  | U134: =IF(K134="213",VLOOKUP(F134,Listes_masqué!$Q$9:$R$13,2,FALSE),VLOOKUP(F134,Listes_masqué!$Q$3:$R$7,2,FALSE)) -> 
J135: =IF(D135="","",VLOOKUP(D135,Listes_masqué!$H$3:$K$14,2,FALSE)) ->  | K135: =IF(E135="","",VLOOKUP(E135,Listes_masqué!$N$3:$O$22,2,FALSE)) ->  | L135: =IF(G135="","",VLOOKUP(G135,Listes_masqué!$F$3:$G$62,2,FALSE)) ->  | M135: =IF(H135="","",VLOOKUP(H135,Listes_masqué!$B$3:$C$25,2,FALSE)) ->  | Q135: =_xlfn.XLOOKUP(P135,Tableau13[Product code],Tableau13[Designation],"") ->  | R135: =IFERROR(VLOOKUP('Product code generator'!$P135,Tableau13[[#All],[Product code]:[Price excl. tax]],3,FALSE),"") ->  | S135: =IF(M135="089","Attention! Il faut déclarer un nombre de lot de 1000 et non des unités.",IF(I135="yes","Attention, pensez à bien verifier l'éligibilité de ce produit aux éco-modulations.","")) ->  | T135: =VLOOKUP(D135,Listes_masqué!$H$3:$J$6,3,FALSE) ->  | U135: =IF(K135="213",VLOOKUP(F135,Listes_masqué!$Q$9:$R$13,2,FALSE),VLOOKUP(F135,Listes_masqué!$Q$3:$R$7,2,FALSE)) -> 
J136: =IF(D136="","",VLOOKUP(D136,Listes_masqué!$H$3:$K$14,2,FALSE)) ->  | K136: =IF(E136="","",VLOOKUP(E136,Listes_masqué!$N$3:$O$22,2,FALSE)) ->  | L136: =IF(G136="","",VLOOKUP(G136,Listes_masqué!$F$3:$G$62,2,FALSE)) ->  | M136: =IF(H136="","",VLOOKUP(H136,Listes_masqué!$B$3:$C$25,2,FALSE)) ->  | P136: =IF(OR(H136="",G136="",E136="",D136="",I136=""),"",CONCATENATE(J136,K136,L136,M136,N136)) ->  | Q136: =_xlfn.XLOOKUP(P136,Tableau13[Product code],Tableau13[Designation],"") ->  | R136: =IFERROR(VLOOKUP('Product code generator'!$P136,Tableau13[[#All],[Product code]:[Price excl. tax]],3,FALSE),"") ->  | T136: =VLOOKUP(D136,Listes_masqué!$H$3:$J$6,3,FALSE) ->  | U136: =IF(K136="213",VLOOKUP(F136,Listes_masqué!$Q$9:$R$13,2,FALSE),VLOOKUP(F136,Listes_masqué!$Q$3:$R$7,2,FALSE)) -> 
J137: =IF(D137="","",VLOOKUP(D137,Listes_masqué!$H$3:$K$14,2,FALSE)) ->  | K137: =IF(E137="","",VLOOKUP(E137,Listes_masqué!$N$3:$O$22,2,FALSE)) ->  | L137: =IF(G137="","",VLOOKUP(G137,Listes_masqué!$F$3:$G$62,2,FALSE)) ->  | M137: =IF(H137="","",VLOOKUP(H137,Listes_masqué!$B$3:$C$25,2,FALSE)) ->  | Q137: =_xlfn.XLOOKUP(P137,Tableau13[Product code],Tableau13[Designation],"") ->  | R137: =IFERROR(VLOOKUP('Product code generator'!$P137,Tableau13[[#All],[Product code]:[Price excl. tax]],3,FALSE),"") ->  | T137: =VLOOKUP(D137,Listes_masqué!$H$3:$J$6,3,FALSE) ->  | U137: =IF(K137="213",VLOOKUP(F137,Listes_masqué!$Q$9:$R$13,2,FALSE),VLOOKUP(F137,Listes_masqué!$Q$3:$R$7,2,FALSE)) -> 
J138: =IF(D138="","",VLOOKUP(D138,Listes_masqué!$H$3:$K$14,2,FALSE)) ->  | K138: =IF(E138="","",VLOOKUP(E138,Listes_masqué!$N$3:$O$22,2,FALSE)) ->  | L138: =IF(G138="","",VLOOKUP(G138,Listes_masqué!$F$3:$G$62,2,FALSE)) ->  | M138: =IF(H138="","",VLOOKUP(H138,Listes_masqué!$B$3:$C$25,2,FALSE)) ->  | Q138: =_xlfn.XLOOKUP(P138,Tableau13[Product code],Tableau13[Designation],"") ->  | R138: =IFERROR(VLOOKUP('Product code generator'!$P138,Tableau13[[#All],[Product code]:[Price excl. tax]],3,FALSE),"") ->  | T138: =VLOOKUP(D138,Listes_masqué!$H$3:$J$6,3,FALSE) ->  | U138: =IF(K138="213",VLOOKUP(F138,Listes_masqué!$Q$9:$R$13,2,FALSE),VLOOKUP(F138,Listes_masqué!$Q$3:$R$7,2,FALSE)) -> 
J139: =IF(D139="","",VLOOKUP(D139,Listes_masqué!$H$3:$K$14,2,FALSE)) ->  | K139: =IF(E139="","",VLOOKUP(E139,Listes_masqué!$N$3:$O$22,2,FALSE)) ->  | L139: =IF(G139="","",VLOOKUP(G139,Listes_masqué!$F$3:$G$62,2,FALSE)) ->  | M139: =IF(H139="","",VLOOKUP(H139,Listes_masqué!$B$3:$C$25,2,FALSE)) ->  | Q139: =_xlfn.XLOOKUP(P139,Tableau13[Product code],Tableau13[Designation],"") ->  | R139: =IFERROR(VLOOKUP('Product code generator'!$P139,Tableau13[[#All],[Product code]:[Price excl. tax]],3,FALSE),"") ->  | T139: =VLOOKUP(D139,Listes_masqué!$H$3:$J$6,3,FALSE) ->  | U139: =IF(K139="213",VLOOKUP(F139,Listes_masqué!$Q$9:$R$13,2,FALSE),VLOOKUP(F139,Listes_masqué!$Q$3:$R$7,2,FALSE)) -> 
J140: =IF(D140="","",VLOOKUP(D140,Listes_masqué!$H$3:$K$14,2,FALSE)) ->  | K140: =IF(E140="","",VLOOKUP(E140,Listes_masqué!$N$3:$O$22,2,FALSE)) ->  | L140: =IF(G140="","",VLOOKUP(G140,Listes_masqué!$F$3:$G$62,2,FALSE)) ->  | M140: =IF(H140="","",VLOOKUP(H140,Listes_masqué!$B$3:$C$25,2,FALSE)) ->  | Q140: =_xlfn.XLOOKUP(P140,Tableau13[Product code],Tableau13[Designation],"") ->  | R140: =IFERROR(VLOOKUP('Product code generator'!$P140,Tableau13[[#All],[Product code]:[Price excl. tax]],3,FALSE),"") ->  | T140: =VLOOKUP(D140,Listes_masqué!$H$3:$J$6,3,FALSE) ->  | U140: =IF(K140="213",VLOOKUP(F140,Listes_masqué!$Q$9:$R$13,2,FALSE),VLOOKUP(F140,Listes_masqué!$Q$3:$R$7,2,FALSE)) -> 
J141: =IF(D141="","",VLOOKUP(D141,Listes_masqué!$H$3:$K$14,2,FALSE)) ->  | K141: =IF(E141="","",VLOOKUP(E141,Listes_masqué!$N$3:$O$22,2,FALSE)) ->  | L141: =IF(G141="","",VLOOKUP(G141,Listes_masqué!$F$3:$G$62,2,FALSE)) ->  | M141: =IF(H141="","",VLOOKUP(H141,Listes_masqué!$B$3:$C$25,2,FALSE)) ->  | Q141: =_xlfn.XLOOKUP(P141,Tableau13[Product code],Tableau13[Designation],"") ->  | R141: =IFERROR(VLOOKUP('Product code generator'!$P141,Tableau13[[#All],[Product code]:[Price excl. tax]],3,FALSE),"") ->  | T141: =VLOOKUP(D141,Listes_masqué!$H$3:$J$6,3,FALSE) ->  | U141: =IF(K141="213",VLOOKUP(F141,Listes_masqué!$Q$9:$R$13,2,FALSE),VLOOKUP(F141,Listes_masqué!$Q$3:$R$7,2,FALSE)) -> 
J142: =IF(D142="","",VLOOKUP(D142,Listes_masqué!$H$3:$K$14,2,FALSE)) ->  | K142: =IF(E142="","",VLOOKUP(E142,Listes_masqué!$N$3:$O$22,2,FALSE)) ->  | L142: =IF(G142="","",VLOOKUP(G142,Listes_masqué!$F$3:$G$62,2,FALSE)) ->  | M142: =IF(H142="","",VLOOKUP(H142,Listes_masqué!$B$3:$C$25,2,FALSE)) ->  | Q142: =_xlfn.XLOOKUP(P142,Tableau13[Product code],Tableau13[Designation],"") ->  | R142: =IFERROR(VLOOKUP('Product code generator'!$P142,Tableau13[[#All],[Product code]:[Price excl. tax]],3,FALSE),"") ->  | T142: =VLOOKUP(D142,Listes_masqué!$H$3:$J$6,3,FALSE) ->  | U142: =IF(K142="213",VLOOKUP(F142,Listes_masqué!$Q$9:$R$13,2,FALSE),VLOOKUP(F142,Listes_masqué!$Q$3:$R$7,2,FALSE)) -> 
J143: =IF(D143="","",VLOOKUP(D143,Listes_masqué!$H$3:$K$14,2,FALSE)) ->  | K143: =IF(E143="","",VLOOKUP(E143,Listes_masqué!$N$3:$O$22,2,FALSE)) ->  | L143: =IF(G143="","",VLOOKUP(G143,Listes_masqué!$F$3:$G$62,2,FALSE)) ->  | M143: =IF(H143="","",VLOOKUP(H143,Listes_masqué!$B$3:$C$25,2,FALSE)) ->  | Q143: =_xlfn.XLOOKUP(P143,Tableau13[Product code],Tableau13[Designation],"") ->  | R143: =IFERROR(VLOOKUP('Product code generator'!$P143,Tableau13[[#All],[Product code]:[Price excl. tax]],3,FALSE),"") ->  | T143: =VLOOKUP(D143,Listes_masqué!$H$3:$J$6,3,FALSE) ->  | U143: =IF(K143="213",VLOOKUP(F143,Listes_masqué!$Q$9:$R$13,2,FALSE),VLOOKUP(F143,Listes_masqué!$Q$3:$R$7,2,FALSE)) -> 
J144: =IF(D144="","",VLOOKUP(D144,Listes_masqué!$H$3:$K$14,2,FALSE)) ->  | K144: =IF(E144="","",VLOOKUP(E144,Listes_masqué!$N$3:$O$22,2,FALSE)) ->  | L144: =IF(G144="","",VLOOKUP(G144,Listes_masqué!$F$3:$G$62,2,FALSE)) ->  | M144: =IF(H144="","",VLOOKUP(H144,Listes_masqué!$B$3:$C$25,2,FALSE)) ->  | Q144: =_xlfn.XLOOKUP(P144,Tableau13[Product code],Tableau13[Designation],"") ->  | R144: =IFERROR(VLOOKUP('Product code generator'!$P144,Tableau13[[#All],[Product code]:[Price excl. tax]],3,FALSE),"") ->  | T144: =VLOOKUP(D144,Listes_masqué!$H$3:$J$6,3,FALSE) ->  | U144: =IF(K144="213",VLOOKUP(F144,Listes_masqué!$Q$9:$R$13,2,FALSE),VLOOKUP(F144,Listes_masqué!$Q$3:$R$7,2,FALSE)) -> 
J145: =IF(D145="","",VLOOKUP(D145,Listes_masqué!$H$3:$K$14,2,FALSE)) ->  | K145: =IF(E145="","",VLOOKUP(E145,Listes_masqué!$N$3:$O$22,2,FALSE)) ->  | L145: =IF(G145="","",VLOOKUP(G145,Listes_masqué!$F$3:$G$62,2,FALSE)) ->  | M145: =IF(H145="","",VLOOKUP(H145,Listes_masqué!$B$3:$C$25,2,FALSE)) ->  | Q145: =_xlfn.XLOOKUP(P145,Tableau13[Product code],Tableau13[Designation],"") ->  | R145: =IFERROR(VLOOKUP('Product code generator'!$P145,Tableau13[[#All],[Product code]:[Price excl. tax]],3,FALSE),"") ->  | T145: =VLOOKUP(D145,Listes_masqué!$H$3:$J$6,3,FALSE) ->  | U145: =IF(K145="213",VLOOKUP(F145,Listes_masqué!$Q$9:$R$13,2,FALSE),VLOOKUP(F145,Listes_masqué!$Q$3:$R$7,2,FALSE)) -> 
J146: =IF(D146="","",VLOOKUP(D146,Listes_masqué!$H$3:$K$14,2,FALSE)) ->  | K146: =IF(E146="","",VLOOKUP(E146,Listes_masqué!$N$3:$O$22,2,FALSE)) ->  | L146: =IF(G146="","",VLOOKUP(G146,Listes_masqué!$F$3:$G$62,2,FALSE)) ->  | M146: =IF(H146="","",VLOOKUP(H146,Listes_masqué!$B$3:$C$25,2,FALSE)) ->  | Q146: =_xlfn.XLOOKUP(P146,Tableau13[Product code],Tableau13[Designation],"") ->  | R146: =IFERROR(VLOOKUP('Product code generator'!$P146,Tableau13[[#All],[Product code]:[Price excl. tax]],3,FALSE),"") ->  | T146: =VLOOKUP(D146,Listes_masqué!$H$3:$J$6,3,FALSE) ->  | U146: =IF(K146="213",VLOOKUP(F146,Listes_masqué!$Q$9:$R$13,2,FALSE),VLOOKUP(F146,Listes_masqué!$Q$3:$R$7,2,FALSE)) -> 
J147: =IF(D147="","",VLOOKUP(D147,Listes_masqué!$H$3:$K$14,2,FALSE)) ->  | K147: =IF(E147="","",VLOOKUP(E147,Listes_masqué!$N$3:$O$22,2,FALSE)) ->  | L147: =IF(G147="","",VLOOKUP(G147,Listes_masqué!$F$3:$G$62,2,FALSE)) ->  | M147: =IF(H147="","",VLOOKUP(H147,Listes_masqué!$B$3:$C$25,2,FALSE)) ->  | Q147: =_xlfn.XLOOKUP(P147,Tableau13[Product code],Tableau13[Designation],"") ->  | R147: =IFERROR(VLOOKUP('Product code generator'!$P147,Tableau13[[#All],[Product code]:[Price excl. tax]],3,FALSE),"") ->  | T147: =VLOOKUP(D147,Listes_masqué!$H$3:$J$6,3,FALSE) ->  | U147: =IF(K147="213",VLOOKUP(F147,Listes_masqué!$Q$9:$R$13,2,FALSE),VLOOKUP(F147,Listes_masqué!$Q$3:$R$7,2,FALSE)) -> 
J148: =IF(D148="","",VLOOKUP(D148,Listes_masqué!$H$3:$K$14,2,FALSE)) ->  | K148: =IF(E148="","",VLOOKUP(E148,Listes_masqué!$N$3:$O$22,2,FALSE)) ->  | L148: =IF(G148="","",VLOOKUP(G148,Listes_masqué!$F$3:$G$62,2,FALSE)) ->  | M148: =IF(H148="","",VLOOKUP(H148,Listes_masqué!$B$3:$C$25,2,FALSE)) ->  | Q148: =_xlfn.XLOOKUP(P148,Tableau13[Product code],Tableau13[Designation],"") ->  | R148: =IFERROR(VLOOKUP('Product code generator'!$P148,Tableau13[[#All],[Product code]:[Price excl. tax]],3,FALSE),"") ->  | T148: =VLOOKUP(D148,Listes_masqué!$H$3:$J$6,3,FALSE) ->  | U148: =IF(K148="213",VLOOKUP(F148,Listes_masqué!$Q$9:$R$13,2,FALSE),VLOOKUP(F148,Listes_masqué!$Q$3:$R$7,2,FALSE)) -> 
J149: =IF(D149="","",VLOOKUP(D149,Listes_masqué!$H$3:$K$14,2,FALSE)) ->  | K149: =IF(E149="","",VLOOKUP(E149,Listes_masqué!$N$3:$O$22,2,FALSE)) ->  | L149: =IF(G149="","",VLOOKUP(G149,Listes_masqué!$F$3:$G$62,2,FALSE)) ->  | M149: =IF(H149="","",VLOOKUP(H149,Listes_masqué!$B$3:$C$25,2,FALSE)) ->  | Q149: =_xlfn.XLOOKUP(P149,Tableau13[Product code],Tableau13[Designation],"") ->  | R149: =IFERROR(VLOOKUP('Product code generator'!$P149,Tableau13[[#All],[Product code]:[Price excl. tax]],3,FALSE),"") ->  | T149: =VLOOKUP(D149,Listes_masqué!$H$3:$J$6,3,FALSE) ->  | U149: =IF(K149="213",VLOOKUP(F149,Listes_masqué!$Q$9:$R$13,2,FALSE),VLOOKUP(F149,Listes_masqué!$Q$3:$R$7,2,FALSE)) -> 
J150: =IF(D150="","",VLOOKUP(D150,Listes_masqué!$H$3:$K$14,2,FALSE)) ->  | K150: =IF(E150="","",VLOOKUP(E150,Listes_masqué!$N$3:$O$22,2,FALSE)) ->  | L150: =IF(G150="","",VLOOKUP(G150,Listes_masqué!$F$3:$G$62,2,FALSE)) ->  | M150: =IF(H150="","",VLOOKUP(H150,Listes_masqué!$B$3:$C$25,2,FALSE)) ->  | Q150: =_xlfn.XLOOKUP(P150,Tableau13[Product code],Tableau13[Designation],"") ->  | R150: =IFERROR(VLOOKUP('Product code generator'!$P150,Tableau13[[#All],[Product code]:[Price excl. tax]],3,FALSE),"") ->  | T150: =VLOOKUP(D150,Listes_masqué!$H$3:$J$6,3,FALSE) ->  | U150: =IF(K150="213",VLOOKUP(F150,Listes_masqué!$Q$9:$R$13,2,FALSE),VLOOKUP(F150,Listes_masqué!$Q$3:$R$7,2,FALSE)) -> 
J151: =IF(D151="","",VLOOKUP(D151,Listes_masqué!$H$3:$K$14,2,FALSE)) ->  | K151: =IF(E151="","",VLOOKUP(E151,Listes_masqué!$N$3:$O$22,2,FALSE)) ->  | L151: =IF(G151="","",VLOOKUP(G151,Listes_masqué!$F$3:$G$62,2,FALSE)) ->  | M151: =IF(H151="","",VLOOKUP(H151,Listes_masqué!$B$3:$C$25,2,FALSE)) ->  | Q151: =_xlfn.XLOOKUP(P151,Tableau13[Product code],Tableau13[Designation],"") ->  | R151: =IFERROR(VLOOKUP('Product code generator'!$P151,Tableau13[[#All],[Product code]:[Price excl. tax]],3,FALSE),"") ->  | T151: =VLOOKUP(D151,Listes_masqué!$H$3:$J$6,3,FALSE) ->  | U151: =IF(K151="213",VLOOKUP(F151,Listes_masqué!$Q$9:$R$13,2,FALSE),VLOOKUP(F151,Listes_masqué!$Q$3:$R$7,2,FALSE)) -> 
J152: =IF(D152="","",VLOOKUP(D152,Listes_masqué!$H$3:$K$14,2,FALSE)) ->  | K152: =IF(E152="","",VLOOKUP(E152,Listes_masqué!$N$3:$O$22,2,FALSE)) ->  | L152: =IF(G152="","",VLOOKUP(G152,Listes_masqué!$F$3:$G$62,2,FALSE)) ->  | M152: =IF(H152="","",VLOOKUP(H152,Listes_masqué!$B$3:$C$25,2,FALSE)) ->  | Q152: =_xlfn.XLOOKUP(P152,Tableau13[Product code],Tableau13[Designation],"") ->  | R152: =IFERROR(VLOOKUP('Product code generator'!$P152,Tableau13[[#All],[Product code]:[Price excl. tax]],3,FALSE),"") ->  | T152: =VLOOKUP(D152,Listes_masqué!$H$3:$J$6,3,FALSE) ->  | U152: =IF(K152="213",VLOOKUP(F152,Listes_masqué!$Q$9:$R$13,2,FALSE),VLOOKUP(F152,Listes_masqué!$Q$3:$R$7,2,FALSE)) -> 
J153: =IF(D153="","",VLOOKUP(D153,Listes_masqué!$H$3:$K$14,2,FALSE)) ->  | K153: =IF(E153="","",VLOOKUP(E153,Listes_masqué!$N$3:$O$22,2,FALSE)) ->  | L153: =IF(G153="","",VLOOKUP(G153,Listes_masqué!$F$3:$G$62,2,FALSE)) ->  | M153: =IF(H153="","",VLOOKUP(H153,Listes_masqué!$B$3:$C$25,2,FALSE)) ->  | Q153: =_xlfn.XLOOKUP(P153,Tableau13[Product code],Tableau13[Designation],"") ->  | R153: =IFERROR(VLOOKUP('Product code generator'!$P153,Tableau13[[#All],[Product code]:[Price excl. tax]],3,FALSE),"") ->  | T153: =VLOOKUP(D153,Listes_masqué!$H$3:$J$6,3,FALSE) ->  | U153: =IF(K153="213",VLOOKUP(F153,Listes_masqué!$Q$9:$R$13,2,FALSE),VLOOKUP(F153,Listes_masqué!$Q$3:$R$7,2,FALSE)) -> 
J154: =IF(D154="","",VLOOKUP(D154,Listes_masqué!$H$3:$K$14,2,FALSE)) ->  | K154: =IF(E154="","",VLOOKUP(E154,Listes_masqué!$N$3:$O$22,2,FALSE)) ->  | L154: =IF(G154="","",VLOOKUP(G154,Listes_masqué!$F$3:$G$62,2,FALSE)) ->  | M154: =IF(H154="","",VLOOKUP(H154,Listes_masqué!$B$3:$C$25,2,FALSE)) ->  | Q154: =_xlfn.XLOOKUP(P154,Tableau13[Product code],Tableau13[Designation],"") ->  | R154: =IFERROR(VLOOKUP('Product code generator'!$P154,Tableau13[[#All],[Product code]:[Price excl. tax]],3,FALSE),"") ->  | T154: =VLOOKUP(D154,Listes_masqué!$H$3:$J$6,3,FALSE) ->  | U154: =IF(K154="213",VLOOKUP(F154,Listes_masqué!$Q$9:$R$13,2,FALSE),VLOOKUP(F154,Listes_masqué!$Q$3:$R$7,2,FALSE)) -> 
J155: =IF(D155="","",VLOOKUP(D155,Listes_masqué!$H$3:$K$14,2,FALSE)) ->  | K155: =IF(E155="","",VLOOKUP(E155,Listes_masqué!$N$3:$O$22,2,FALSE)) ->  | L155: =IF(G155="","",VLOOKUP(G155,Listes_masqué!$F$3:$G$62,2,FALSE)) ->  | M155: =IF(H155="","",VLOOKUP(H155,Listes_masqué!$B$3:$C$25,2,FALSE)) ->  | Q155: =_xlfn.XLOOKUP(P155,Tableau13[Product code],Tableau13[Designation],"") ->  | R155: =IFERROR(VLOOKUP('Product code generator'!$P155,Tableau13[[#All],[Product code]:[Price excl. tax]],3,FALSE),"") ->  | T155: =VLOOKUP(D155,Listes_masqué!$H$3:$J$6,3,FALSE) ->  | U155: =IF(K155="213",VLOOKUP(F155,Listes_masqué!$Q$9:$R$13,2,FALSE),VLOOKUP(F155,Listes_masqué!$Q$3:$R$7,2,FALSE)) -> 
J156: =IF(D156="","",VLOOKUP(D156,Listes_masqué!$H$3:$K$14,2,FALSE)) ->  | K156: =IF(E156="","",VLOOKUP(E156,Listes_masqué!$N$3:$O$22,2,FALSE)) ->  | L156: =IF(G156="","",VLOOKUP(G156,Listes_masqué!$F$3:$G$62,2,FALSE)) ->  | M156: =IF(H156="","",VLOOKUP(H156,Listes_masqué!$B$3:$C$25,2,FALSE)) ->  | Q156: =_xlfn.XLOOKUP(P156,Tableau13[Product code],Tableau13[Designation],"") ->  | R156: =IFERROR(VLOOKUP('Product code generator'!$P156,Tableau13[[#All],[Product code]:[Price excl. tax]],3,FALSE),"") ->  | T156: =VLOOKUP(D156,Listes_masqué!$H$3:$J$6,3,FALSE) ->  | U156: =IF(K156="213",VLOOKUP(F156,Listes_masqué!$Q$9:$R$13,2,FALSE),VLOOKUP(F156,Listes_masqué!$Q$3:$R$7,2,FALSE)) -> 
J157: =IF(D157="","",VLOOKUP(D157,Listes_masqué!$H$3:$K$14,2,FALSE)) ->  | K157: =IF(E157="","",VLOOKUP(E157,Listes_masqué!$N$3:$O$22,2,FALSE)) ->  | L157: =IF(G157="","",VLOOKUP(G157,Listes_masqué!$F$3:$G$62,2,FALSE)) ->  | M157: =IF(H157="","",VLOOKUP(H157,Listes_masqué!$B$3:$C$25,2,FALSE)) ->  | Q157: =_xlfn.XLOOKUP(P157,Tableau13[Product code],Tableau13[Designation],"") ->  | R157: =IFERROR(VLOOKUP('Product code generator'!$P157,Tableau13[[#All],[Product code]:[Price excl. tax]],3,FALSE),"") ->  | T157: =VLOOKUP(D157,Listes_masqué!$H$3:$J$6,3,FALSE) ->  | U157: =IF(K157="213",VLOOKUP(F157,Listes_masqué!$Q$9:$R$13,2,FALSE),VLOOKUP(F157,Listes_masqué!$Q$3:$R$7,2,FALSE)) -> 
J158: =IF(D158="","",VLOOKUP(D158,Listes_masqué!$H$3:$K$14,2,FALSE)) ->  | K158: =IF(E158="","",VLOOKUP(E158,Listes_masqué!$N$3:$O$22,2,FALSE)) ->  | L158: =IF(G158="","",VLOOKUP(G158,Listes_masqué!$F$3:$G$62,2,FALSE)) ->  | M158: =IF(H158="","",VLOOKUP(H158,Listes_masqué!$B$3:$C$25,2,FALSE)) ->  | Q158: =_xlfn.XLOOKUP(P158,Tableau13[Product code],Tableau13[Designation],"") ->  | R158: =IFERROR(VLOOKUP('Product code generator'!$P158,Tableau13[[#All],[Product code]:[Price excl. tax]],3,FALSE),"") ->  | T158: =VLOOKUP(D158,Listes_masqué!$H$3:$J$6,3,FALSE) ->  | U158: =IF(K158="213",VLOOKUP(F158,Listes_masqué!$Q$9:$R$13,2,FALSE),VLOOKUP(F158,Listes_masqué!$Q$3:$R$7,2,FALSE)) -> 
J159: =IF(D159="","",VLOOKUP(D159,Listes_masqué!$H$3:$K$14,2,FALSE)) ->  | K159: =IF(E159="","",VLOOKUP(E159,Listes_masqué!$N$3:$O$22,2,FALSE)) ->  | L159: =IF(G159="","",VLOOKUP(G159,Listes_masqué!$F$3:$G$62,2,FALSE)) ->  | M159: =IF(H159="","",VLOOKUP(H159,Listes_masqué!$B$3:$C$25,2,FALSE)) ->  | Q159: =_xlfn.XLOOKUP(P159,Tableau13[Product code],Tableau13[Designation],"") ->  | R159: =IFERROR(VLOOKUP('Product code generator'!$P159,Tableau13[[#All],[Product code]:[Price excl. tax]],3,FALSE),"") ->  | T159: =VLOOKUP(D159,Listes_masqué!$H$3:$J$6,3,FALSE) ->  | U159: =IF(K159="213",VLOOKUP(F159,Listes_masqué!$Q$9:$R$13,2,FALSE),VLOOKUP(F159,Listes_masqué!$Q$3:$R$7,2,FALSE)) -> 
J160: =IF(D160="","",VLOOKUP(D160,Listes_masqué!$H$3:$K$14,2,FALSE)) ->  | K160: =IF(E160="","",VLOOKUP(E160,Listes_masqué!$N$3:$O$22,2,FALSE)) ->  | L160: =IF(G160="","",VLOOKUP(G160,Listes_masqué!$F$3:$G$62,2,FALSE)) ->  | M160: =IF(H160="","",VLOOKUP(H160,Listes_masqué!$B$3:$C$25,2,FALSE)) ->  | Q160: =_xlfn.XLOOKUP(P160,Tableau13[Product code],Tableau13[Designation],"") ->  | R160: =IFERROR(VLOOKUP('Product code generator'!$P160,Tableau13[[#All],[Product code]:[Price excl. tax]],3,FALSE),"") ->  | T160: =VLOOKUP(D160,Listes_masqué!$H$3:$J$6,3,FALSE) ->  | U160: =IF(K160="213",VLOOKUP(F160,Listes_masqué!$Q$9:$R$13,2,FALSE),VLOOKUP(F160,Listes_masqué!$Q$3:$R$7,2,FALSE)) -> 
J161: =IF(D161="","",VLOOKUP(D161,Listes_masqué!$H$3:$K$14,2,FALSE)) ->  | K161: =IF(E161="","",VLOOKUP(E161,Listes_masqué!$N$3:$O$22,2,FALSE)) ->  | L161: =IF(G161="","",VLOOKUP(G161,Listes_masqué!$F$3:$G$62,2,FALSE)) ->  | M161: =IF(H161="","",VLOOKUP(H161,Listes_masqué!$B$3:$C$25,2,FALSE)) ->  | Q161: =_xlfn.XLOOKUP(P161,Tableau13[Product code],Tableau13[Designation],"") ->  | R161: =IFERROR(VLOOKUP('Product code generator'!$P161,Tableau13[[#All],[Product code]:[Price excl. tax]],3,FALSE),"") ->  | T161: =VLOOKUP(D161,Listes_masqué!$H$3:$J$6,3,FALSE) ->  | U161: =IF(K161="213",VLOOKUP(F161,Listes_masqué!$Q$9:$R$13,2,FALSE),VLOOKUP(F161,Listes_masqué!$Q$3:$R$7,2,FALSE)) -> 
J162: =IF(D162="","",VLOOKUP(D162,Listes_masqué!$H$3:$K$14,2,FALSE)) ->  | K162: =IF(E162="","",VLOOKUP(E162,Listes_masqué!$N$3:$O$22,2,FALSE)) ->  | L162: =IF(G162="","",VLOOKUP(G162,Listes_masqué!$F$3:$G$62,2,FALSE)) ->  | M162: =IF(H162="","",VLOOKUP(H162,Listes_masqué!$B$3:$C$25,2,FALSE)) ->  | Q162: =_xlfn.XLOOKUP(P162,Tableau13[Product code],Tableau13[Designation],"") ->  | R162: =IFERROR(VLOOKUP('Product code generator'!$P162,Tableau13[[#All],[Product code]:[Price excl. tax]],3,FALSE),"") ->  | T162: =VLOOKUP(D162,Listes_masqué!$H$3:$J$6,3,FALSE) ->  | U162: =IF(K162="213",VLOOKUP(F162,Listes_masqué!$Q$9:$R$13,2,FALSE),VLOOKUP(F162,Listes_masqué!$Q$3:$R$7,2,FALSE)) -> 
J163: =IF(D163="","",VLOOKUP(D163,Listes_masqué!$H$3:$K$14,2,FALSE)) ->  | K163: =IF(E163="","",VLOOKUP(E163,Listes_masqué!$N$3:$O$22,2,FALSE)) ->  | L163: =IF(G163="","",VLOOKUP(G163,Listes_masqué!$F$3:$G$62,2,FALSE)) ->  | M163: =IF(H163="","",VLOOKUP(H163,Listes_masqué!$B$3:$C$25,2,FALSE)) ->  | Q163: =_xlfn.XLOOKUP(P163,Tableau13[Product code],Tableau13[Designation],"") ->  | R163: =IFERROR(VLOOKUP('Product code generator'!$P163,Tableau13[[#All],[Product code]:[Price excl. tax]],3,FALSE),"") ->  | T163: =VLOOKUP(D163,Listes_masqué!$H$3:$J$6,3,FALSE) ->  | U163: =IF(K163="213",VLOOKUP(F163,Listes_masqué!$Q$9:$R$13,2,FALSE),VLOOKUP(F163,Listes_masqué!$Q$3:$R$7,2,FALSE)) -> 
J164: =IF(D164="","",VLOOKUP(D164,Listes_masqué!$H$3:$K$14,2,FALSE)) ->  | K164: =IF(E164="","",VLOOKUP(E164,Listes_masqué!$N$3:$O$22,2,FALSE)) ->  | L164: =IF(G164="","",VLOOKUP(G164,Listes_masqué!$F$3:$G$62,2,FALSE)) ->  | M164: =IF(H164="","",VLOOKUP(H164,Listes_masqué!$B$3:$C$25,2,FALSE)) ->  | Q164: =_xlfn.XLOOKUP(P164,Tableau13[Product code],Tableau13[Designation],"") ->  | R164: =IFERROR(VLOOKUP('Product code generator'!$P164,Tableau13[[#All],[Product code]:[Price excl. tax]],3,FALSE),"") ->  | T164: =VLOOKUP(D164,Listes_masqué!$H$3:$J$6,3,FALSE) ->  | U164: =IF(K164="213",VLOOKUP(F164,Listes_masqué!$Q$9:$R$13,2,FALSE),VLOOKUP(F164,Listes_masqué!$Q$3:$R$7,2,FALSE)) -> 
J165: =IF(D165="","",VLOOKUP(D165,Listes_masqué!$H$3:$K$14,2,FALSE)) ->  | K165: =IF(E165="","",VLOOKUP(E165,Listes_masqué!$N$3:$O$22,2,FALSE)) ->  | L165: =IF(G165="","",VLOOKUP(G165,Listes_masqué!$F$3:$G$62,2,FALSE)) ->  | M165: =IF(H165="","",VLOOKUP(H165,Listes_masqué!$B$3:$C$25,2,FALSE)) ->  | Q165: =_xlfn.XLOOKUP(P165,Tableau13[Product code],Tableau13[Designation],"") ->  | R165: =IFERROR(VLOOKUP('Product code generator'!$P165,Tableau13[[#All],[Product code]:[Price excl. tax]],3,FALSE),"") ->  | T165: =VLOOKUP(D165,Listes_masqué!$H$3:$J$6,3,FALSE) ->  | U165: =IF(K165="213",VLOOKUP(F165,Listes_masqué!$Q$9:$R$13,2,FALSE),VLOOKUP(F165,Listes_masqué!$Q$3:$R$7,2,FALSE)) -> 
J166: =IF(D166="","",VLOOKUP(D166,Listes_masqué!$H$3:$K$14,2,FALSE)) ->  | K166: =IF(E166="","",VLOOKUP(E166,Listes_masqué!$N$3:$O$22,2,FALSE)) ->  | L166: =IF(G166="","",VLOOKUP(G166,Listes_masqué!$F$3:$G$62,2,FALSE)) ->  | M166: =IF(H166="","",VLOOKUP(H166,Listes_masqué!$B$3:$C$25,2,FALSE)) ->  | Q166: =_xlfn.XLOOKUP(P166,Tableau13[Product code],Tableau13[Designation],"") ->  | R166: =IFERROR(VLOOKUP('Product code generator'!$P166,Tableau13[[#All],[Product code]:[Price excl. tax]],3,FALSE),"") ->  | T166: =VLOOKUP(D166,Listes_masqué!$H$3:$J$6,3,FALSE) ->  | U166: =IF(K166="213",VLOOKUP(F166,Listes_masqué!$Q$9:$R$13,2,FALSE),VLOOKUP(F166,Listes_masqué!$Q$3:$R$7,2,FALSE)) -> 
J167: =IF(D167="","",VLOOKUP(D167,Listes_masqué!$H$3:$K$14,2,FALSE)) ->  | K167: =IF(E167="","",VLOOKUP(E167,Listes_masqué!$N$3:$O$22,2,FALSE)) ->  | L167: =IF(G167="","",VLOOKUP(G167,Listes_masqué!$F$3:$G$62,2,FALSE)) ->  | M167: =IF(H167="","",VLOOKUP(H167,Listes_masqué!$B$3:$C$25,2,FALSE)) ->  | Q167: =_xlfn.XLOOKUP(P167,Tableau13[Product code],Tableau13[Designation],"") ->  | R167: =IFERROR(VLOOKUP('Product code generator'!$P167,Tableau13[[#All],[Product code]:[Price excl. tax]],3,FALSE),"") ->  | T167: =VLOOKUP(D167,Listes_masqué!$H$3:$J$6,3,FALSE) ->  | U167: =IF(K167="213",VLOOKUP(F167,Listes_masqué!$Q$9:$R$13,2,FALSE),VLOOKUP(F167,Listes_masqué!$Q$3:$R$7,2,FALSE)) -> 
J168: =IF(D168="","",VLOOKUP(D168,Listes_masqué!$H$3:$K$14,2,FALSE)) ->  | K168: =IF(E168="","",VLOOKUP(E168,Listes_masqué!$N$3:$O$22,2,FALSE)) ->  | L168: =IF(G168="","",VLOOKUP(G168,Listes_masqué!$F$3:$G$62,2,FALSE)) ->  | M168: =IF(H168="","",VLOOKUP(H168,Listes_masqué!$B$3:$C$25,2,FALSE)) ->  | Q168: =_xlfn.XLOOKUP(P168,Tableau13[Product code],Tableau13[Designation],"") ->  | R168: =IFERROR(VLOOKUP('Product code generator'!$P168,Tableau13[[#All],[Product code]:[Price excl. tax]],3,FALSE),"") ->  | T168: =VLOOKUP(D168,Listes_masqué!$H$3:$J$6,3,FALSE) ->  | U168: =IF(K168="213",VLOOKUP(F168,Listes_masqué!$Q$9:$R$13,2,FALSE),VLOOKUP(F168,Listes_masqué!$Q$3:$R$7,2,FALSE)) -> 
J169: =IF(D169="","",VLOOKUP(D169,Listes_masqué!$H$3:$K$14,2,FALSE)) ->  | K169: =IF(E169="","",VLOOKUP(E169,Listes_masqué!$N$3:$O$22,2,FALSE)) ->  | L169: =IF(G169="","",VLOOKUP(G169,Listes_masqué!$F$3:$G$62,2,FALSE)) ->  | M169: =IF(H169="","",VLOOKUP(H169,Listes_masqué!$B$3:$C$25,2,FALSE)) ->  | Q169: =_xlfn.XLOOKUP(P169,Tableau13[Product code],Tableau13[Designation],"") ->  | R169: =IFERROR(VLOOKUP('Product code generator'!$P169,Tableau13[[#All],[Product code]:[Price excl. tax]],3,FALSE),"") ->  | T169: =VLOOKUP(D169,Listes_masqué!$H$3:$J$6,3,FALSE) ->  | U169: =IF(K169="213",VLOOKUP(F169,Listes_masqué!$Q$9:$R$13,2,FALSE),VLOOKUP(F169,Listes_masqué!$Q$3:$R$7,2,FALSE)) -> 
J170: =IF(D170="","",VLOOKUP(D170,Listes_masqué!$H$3:$K$14,2,FALSE)) ->  | K170: =IF(E170="","",VLOOKUP(E170,Listes_masqué!$N$3:$O$22,2,FALSE)) ->  | L170: =IF(G170="","",VLOOKUP(G170,Listes_masqué!$F$3:$G$62,2,FALSE)) ->  | M170: =IF(H170="","",VLOOKUP(H170,Listes_masqué!$B$3:$C$25,2,FALSE)) ->  | Q170: =_xlfn.XLOOKUP(P170,Tableau13[Product code],Tableau13[Designation],"") ->  | R170: =IFERROR(VLOOKUP('Product code generator'!$P170,Tableau13[[#All],[Product code]:[Price excl. tax]],3,FALSE),"") ->  | T170: =VLOOKUP(D170,Listes_masqué!$H$3:$J$6,3,FALSE) ->  | U170: =IF(K170="213",VLOOKUP(F170,Listes_masqué!$Q$9:$R$13,2,FALSE),VLOOKUP(F170,Listes_masqué!$Q$3:$R$7,2,FALSE)) -> 
J171: =IF(D171="","",VLOOKUP(D171,Listes_masqué!$H$3:$K$14,2,FALSE)) ->  | K171: =IF(E171="","",VLOOKUP(E171,Listes_masqué!$N$3:$O$22,2,FALSE)) ->  | L171: =IF(G171="","",VLOOKUP(G171,Listes_masqué!$F$3:$G$62,2,FALSE)) ->  | M171: =IF(H171="","",VLOOKUP(H171,Listes_masqué!$B$3:$C$25,2,FALSE)) ->  | Q171: =_xlfn.XLOOKUP(P171,Tableau13[Product code],Tableau13[Designation],"") ->  | R171: =IFERROR(VLOOKUP('Product code generator'!$P171,Tableau13[[#All],[Product code]:[Price excl. tax]],3,FALSE),"") ->  | T171: =VLOOKUP(D171,Listes_masqué!$H$3:$J$6,3,FALSE) ->  | U171: =IF(K171="213",VLOOKUP(F171,Listes_masqué!$Q$9:$R$13,2,FALSE),VLOOKUP(F171,Listes_masqué!$Q$3:$R$7,2,FALSE)) -> 
J172: =IF(D172="","",VLOOKUP(D172,Listes_masqué!$H$3:$K$14,2,FALSE)) ->  | K172: =IF(E172="","",VLOOKUP(E172,Listes_masqué!$N$3:$O$22,2,FALSE)) ->  | L172: =IF(G172="","",VLOOKUP(G172,Listes_masqué!$F$3:$G$62,2,FALSE)) ->  | M172: =IF(H172="","",VLOOKUP(H172,Listes_masqué!$B$3:$C$25,2,FALSE)) ->  | Q172: =_xlfn.XLOOKUP(P172,Tableau13[Product code],Tableau13[Designation],"") ->  | R172: =IFERROR(VLOOKUP('Product code generator'!$P172,Tableau13[[#All],[Product code]:[Price excl. tax]],3,FALSE),"") ->  | T172: =VLOOKUP(D172,Listes_masqué!$H$3:$J$6,3,FALSE) ->  | U172: =IF(K172="213",VLOOKUP(F172,Listes_masqué!$Q$9:$R$13,2,FALSE),VLOOKUP(F172,Listes_masqué!$Q$3:$R$7,2,FALSE)) -> 
J173: =IF(D173="","",VLOOKUP(D173,Listes_masqué!$H$3:$K$14,2,FALSE)) ->  | K173: =IF(E173="","",VLOOKUP(E173,Listes_masqué!$N$3:$O$22,2,FALSE)) ->  | L173: =IF(G173="","",VLOOKUP(G173,Listes_masqué!$F$3:$G$62,2,FALSE)) ->  | M173: =IF(H173="","",VLOOKUP(H173,Listes_masqué!$B$3:$C$25,2,FALSE)) ->  | Q173: =_xlfn.XLOOKUP(P173,Tableau13[Product code],Tableau13[Designation],"") ->  | R173: =IFERROR(VLOOKUP('Product code generator'!$P173,Tableau13[[#All],[Product code]:[Price excl. tax]],3,FALSE),"") ->  | T173: =VLOOKUP(D173,Listes_masqué!$H$3:$J$6,3,FALSE) ->  | U173: =IF(K173="213",VLOOKUP(F173,Listes_masqué!$Q$9:$R$13,2,FALSE),VLOOKUP(F173,Listes_masqué!$Q$3:$R$7,2,FALSE)) -> 
J174: =IF(D174="","",VLOOKUP(D174,Listes_masqué!$H$3:$K$14,2,FALSE)) ->  | K174: =IF(E174="","",VLOOKUP(E174,Listes_masqué!$N$3:$O$22,2,FALSE)) ->  | L174: =IF(G174="","",VLOOKUP(G174,Listes_masqué!$F$3:$G$62,2,FALSE)) ->  | M174: =IF(H174="","",VLOOKUP(H174,Listes_masqué!$B$3:$C$25,2,FALSE)) ->  | Q174: =_xlfn.XLOOKUP(P174,Tableau13[Product code],Tableau13[Designation],"") ->  | R174: =IFERROR(VLOOKUP('Product code generator'!$P174,Tableau13[[#All],[Product code]:[Price excl. tax]],3,FALSE),"") ->  | T174: =VLOOKUP(D174,Listes_masqué!$H$3:$J$6,3,FALSE) ->  | U174: =IF(K174="213",VLOOKUP(F174,Listes_masqué!$Q$9:$R$13,2,FALSE),VLOOKUP(F174,Listes_masqué!$Q$3:$R$7,2,FALSE)) -> 
J175: =IF(D175="","",VLOOKUP(D175,Listes_masqué!$H$3:$K$14,2,FALSE)) ->  | K175: =IF(E175="","",VLOOKUP(E175,Listes_masqué!$N$3:$O$22,2,FALSE)) ->  | L175: =IF(G175="","",VLOOKUP(G175,Listes_masqué!$F$3:$G$62,2,FALSE)) ->  | M175: =IF(H175="","",VLOOKUP(H175,Listes_masqué!$B$3:$C$25,2,FALSE)) ->  | Q175: =_xlfn.XLOOKUP(P175,Tableau13[Product code],Tableau13[Designation],"") ->  | R175: =IFERROR(VLOOKUP('Product code generator'!$P175,Tableau13[[#All],[Product code]:[Price excl. tax]],3,FALSE),"") ->  | T175: =VLOOKUP(D175,Listes_masqué!$H$3:$J$6,3,FALSE) ->  | U175: =IF(K175="213",VLOOKUP(F175,Listes_masqué!$Q$9:$R$13,2,FALSE),VLOOKUP(F175,Listes_masqué!$Q$3:$R$7,2,FALSE)) -> 
J176: =IF(D176="","",VLOOKUP(D176,Listes_masqué!$H$3:$K$14,2,FALSE)) ->  | K176: =IF(E176="","",VLOOKUP(E176,Listes_masqué!$N$3:$O$22,2,FALSE)) ->  | L176: =IF(G176="","",VLOOKUP(G176,Listes_masqué!$F$3:$G$62,2,FALSE)) ->  | M176: =IF(H176="","",VLOOKUP(H176,Listes_masqué!$B$3:$C$25,2,FALSE)) ->  | Q176: =_xlfn.XLOOKUP(P176,Tableau13[Product code],Tableau13[Designation],"") ->  | R176: =IFERROR(VLOOKUP('Product code generator'!$P176,Tableau13[[#All],[Product code]:[Price excl. tax]],3,FALSE),"") ->  | T176: =VLOOKUP(D176,Listes_masqué!$H$3:$J$6,3,FALSE) ->  | U176: =IF(K176="213",VLOOKUP(F176,Listes_masqué!$Q$9:$R$13,2,FALSE),VLOOKUP(F176,Listes_masqué!$Q$3:$R$7,2,FALSE)) -> 
J177: =IF(D177="","",VLOOKUP(D177,Listes_masqué!$H$3:$K$14,2,FALSE)) ->  | K177: =IF(E177="","",VLOOKUP(E177,Listes_masqué!$N$3:$O$22,2,FALSE)) ->  | L177: =IF(G177="","",VLOOKUP(G177,Listes_masqué!$F$3:$G$62,2,FALSE)) ->  | M177: =IF(H177="","",VLOOKUP(H177,Listes_masqué!$B$3:$C$25,2,FALSE)) ->  | Q177: =_xlfn.XLOOKUP(P177,Tableau13[Product code],Tableau13[Designation],"") ->  | R177: =IFERROR(VLOOKUP('Product code generator'!$P177,Tableau13[[#All],[Product code]:[Price excl. tax]],3,FALSE),"") ->  | T177: =VLOOKUP(D177,Listes_masqué!$H$3:$J$6,3,FALSE) ->  | U177: =IF(K177="213",VLOOKUP(F177,Listes_masqué!$Q$9:$R$13,2,FALSE),VLOOKUP(F177,Listes_masqué!$Q$3:$R$7,2,FALSE)) -> 
J178: =IF(D178="","",VLOOKUP(D178,Listes_masqué!$H$3:$K$14,2,FALSE)) ->  | K178: =IF(E178="","",VLOOKUP(E178,Listes_masqué!$N$3:$O$22,2,FALSE)) ->  | L178: =IF(G178="","",VLOOKUP(G178,Listes_masqué!$F$3:$G$62,2,FALSE)) ->  | M178: =IF(H178="","",VLOOKUP(H178,Listes_masqué!$B$3:$C$25,2,FALSE)) ->  | Q178: =_xlfn.XLOOKUP(P178,Tableau13[Product code],Tableau13[Designation],"") ->  | R178: =IFERROR(VLOOKUP('Product code generator'!$P178,Tableau13[[#All],[Product code]:[Price excl. tax]],3,FALSE),"") ->  | T178: =VLOOKUP(D178,Listes_masqué!$H$3:$J$6,3,FALSE) ->  | U178: =IF(K178="213",VLOOKUP(F178,Listes_masqué!$Q$9:$R$13,2,FALSE),VLOOKUP(F178,Listes_masqué!$Q$3:$R$7,2,FALSE)) -> 
J179: =IF(D179="","",VLOOKUP(D179,Listes_masqué!$H$3:$K$14,2,FALSE)) ->  | K179: =IF(E179="","",VLOOKUP(E179,Listes_masqué!$N$3:$O$22,2,FALSE)) ->  | L179: =IF(G179="","",VLOOKUP(G179,Listes_masqué!$F$3:$G$62,2,FALSE)) ->  | M179: =IF(H179="","",VLOOKUP(H179,Listes_masqué!$B$3:$C$25,2,FALSE)) ->  | Q179: =_xlfn.XLOOKUP(P179,Tableau13[Product code],Tableau13[Designation],"") ->  | R179: =IFERROR(VLOOKUP('Product code generator'!$P179,Tableau13[[#All],[Product code]:[Price excl. tax]],3,FALSE),"") ->  | T179: =VLOOKUP(D179,Listes_masqué!$H$3:$J$6,3,FALSE) ->  | U179: =IF(K179="213",VLOOKUP(F179,Listes_masqué!$Q$9:$R$13,2,FALSE),VLOOKUP(F179,Listes_masqué!$Q$3:$R$7,2,FALSE)) -> 
J180: =IF(D180="","",VLOOKUP(D180,Listes_masqué!$H$3:$K$14,2,FALSE)) ->  | K180: =IF(E180="","",VLOOKUP(E180,Listes_masqué!$N$3:$O$22,2,FALSE)) ->  | L180: =IF(G180="","",VLOOKUP(G180,Listes_masqué!$F$3:$G$62,2,FALSE)) ->  | M180: =IF(H180="","",VLOOKUP(H180,Listes_masqué!$B$3:$C$25,2,FALSE)) ->  | Q180: =_xlfn.XLOOKUP(P180,Tableau13[Product code],Tableau13[Designation],"") ->  | R180: =IFERROR(VLOOKUP('Product code generator'!$P180,Tableau13[[#All],[Product code]:[Price excl. tax]],3,FALSE),"") ->  | T180: =VLOOKUP(D180,Listes_masqué!$H$3:$J$6,3,FALSE) ->  | U180: =IF(K180="213",VLOOKUP(F180,Listes_masqué!$Q$9:$R$13,2,FALSE),VLOOKUP(F180,Listes_masqué!$Q$3:$R$7,2,FALSE)) -> 
J181: =IF(D181="","",VLOOKUP(D181,Listes_masqué!$H$3:$K$14,2,FALSE)) ->  | K181: =IF(E181="","",VLOOKUP(E181,Listes_masqué!$N$3:$O$22,2,FALSE)) ->  | L181: =IF(G181="","",VLOOKUP(G181,Listes_masqué!$F$3:$G$62,2,FALSE)) ->  | M181: =IF(H181="","",VLOOKUP(H181,Listes_masqué!$B$3:$C$25,2,FALSE)) ->  | Q181: =_xlfn.XLOOKUP(P181,Tableau13[Product code],Tableau13[Designation],"") ->  | R181: =IFERROR(VLOOKUP('Product code generator'!$P181,Tableau13[[#All],[Product code]:[Price excl. tax]],3,FALSE),"") ->  | T181: =VLOOKUP(D181,Listes_masqué!$H$3:$J$6,3,FALSE) ->  | U181: =IF(K181="213",VLOOKUP(F181,Listes_masqué!$Q$9:$R$13,2,FALSE),VLOOKUP(F181,Listes_masqué!$Q$3:$R$7,2,FALSE)) -> 
J182: =IF(D182="","",VLOOKUP(D182,Listes_masqué!$H$3:$K$14,2,FALSE)) ->  | K182: =IF(E182="","",VLOOKUP(E182,Listes_masqué!$N$3:$O$22,2,FALSE)) ->  | L182: =IF(G182="","",VLOOKUP(G182,Listes_masqué!$F$3:$G$62,2,FALSE)) ->  | M182: =IF(H182="","",VLOOKUP(H182,Listes_masqué!$B$3:$C$25,2,FALSE)) ->  | Q182: =_xlfn.XLOOKUP(P182,Tableau13[Product code],Tableau13[Designation],"") ->  | R182: =IFERROR(VLOOKUP('Product code generator'!$P182,Tableau13[[#All],[Product code]:[Price excl. tax]],3,FALSE),"") ->  | T182: =VLOOKUP(D182,Listes_masqué!$H$3:$J$6,3,FALSE) ->  | U182: =IF(K182="213",VLOOKUP(F182,Listes_masqué!$Q$9:$R$13,2,FALSE),VLOOKUP(F182,Listes_masqué!$Q$3:$R$7,2,FALSE)) -> 
J183: =IF(D183="","",VLOOKUP(D183,Listes_masqué!$H$3:$K$14,2,FALSE)) ->  | K183: =IF(E183="","",VLOOKUP(E183,Listes_masqué!$N$3:$O$22,2,FALSE)) ->  | L183: =IF(G183="","",VLOOKUP(G183,Listes_masqué!$F$3:$G$62,2,FALSE)) ->  | M183: =IF(H183="","",VLOOKUP(H183,Listes_masqué!$B$3:$C$25,2,FALSE)) ->  | Q183: =_xlfn.XLOOKUP(P183,Tableau13[Product code],Tableau13[Designation],"") ->  | R183: =IFERROR(VLOOKUP('Product code generator'!$P183,Tableau13[[#All],[Product code]:[Price excl. tax]],3,FALSE),"") ->  | T183: =VLOOKUP(D183,Listes_masqué!$H$3:$J$6,3,FALSE) ->  | U183: =IF(K183="213",VLOOKUP(F183,Listes_masqué!$Q$9:$R$13,2,FALSE),VLOOKUP(F183,Listes_masqué!$Q$3:$R$7,2,FALSE)) -> 
J184: =IF(D184="","",VLOOKUP(D184,Listes_masqué!$H$3:$K$14,2,FALSE)) ->  | K184: =IF(E184="","",VLOOKUP(E184,Listes_masqué!$N$3:$O$22,2,FALSE)) ->  | L184: =IF(G184="","",VLOOKUP(G184,Listes_masqué!$F$3:$G$62,2,FALSE)) ->  | M184: =IF(H184="","",VLOOKUP(H184,Listes_masqué!$B$3:$C$25,2,FALSE)) ->  | Q184: =_xlfn.XLOOKUP(P184,Tableau13[Product code],Tableau13[Designation],"") ->  | R184: =IFERROR(VLOOKUP('Product code generator'!$P184,Tableau13[[#All],[Product code]:[Price excl. tax]],3,FALSE),"") ->  | T184: =VLOOKUP(D184,Listes_masqué!$H$3:$J$6,3,FALSE) ->  | U184: =IF(K184="213",VLOOKUP(F184,Listes_masqué!$Q$9:$R$13,2,FALSE),VLOOKUP(F184,Listes_masqué!$Q$3:$R$7,2,FALSE)) -> 
J185: =IF(D185="","",VLOOKUP(D185,Listes_masqué!$H$3:$K$14,2,FALSE)) ->  | K185: =IF(E185="","",VLOOKUP(E185,Listes_masqué!$N$3:$O$22,2,FALSE)) ->  | L185: =IF(G185="","",VLOOKUP(G185,Listes_masqué!$F$3:$G$62,2,FALSE)) ->  | M185: =IF(H185="","",VLOOKUP(H185,Listes_masqué!$B$3:$C$25,2,FALSE)) ->  | Q185: =_xlfn.XLOOKUP(P185,Tableau13[Product code],Tableau13[Designation],"") ->  | R185: =IFERROR(VLOOKUP('Product code generator'!$P185,Tableau13[[#All],[Product code]:[Price excl. tax]],3,FALSE),"") ->  | T185: =VLOOKUP(D185,Listes_masqué!$H$3:$J$6,3,FALSE) ->  | U185: =IF(K185="213",VLOOKUP(F185,Listes_masqué!$Q$9:$R$13,2,FALSE),VLOOKUP(F185,Listes_masqué!$Q$3:$R$7,2,FALSE)) -> 
J186: =IF(D186="","",VLOOKUP(D186,Listes_masqué!$H$3:$K$14,2,FALSE)) ->  | K186: =IF(E186="","",VLOOKUP(E186,Listes_masqué!$N$3:$O$22,2,FALSE)) ->  | L186: =IF(G186="","",VLOOKUP(G186,Listes_masqué!$F$3:$G$62,2,FALSE)) ->  | M186: =IF(H186="","",VLOOKUP(H186,Listes_masqué!$B$3:$C$25,2,FALSE)) ->  | Q186: =_xlfn.XLOOKUP(P186,Tableau13[Product code],Tableau13[Designation],"") ->  | R186: =IFERROR(VLOOKUP('Product code generator'!$P186,Tableau13[[#All],[Product code]:[Price excl. tax]],3,FALSE),"") ->  | T186: =VLOOKUP(D186,Listes_masqué!$H$3:$J$6,3,FALSE) ->  | U186: =IF(K186="213",VLOOKUP(F186,Listes_masqué!$Q$9:$R$13,2,FALSE),VLOOKUP(F186,Listes_masqué!$Q$3:$R$7,2,FALSE)) -> 
J187: =IF(D187="","",VLOOKUP(D187,Listes_masqué!$H$3:$K$14,2,FALSE)) ->  | K187: =IF(E187="","",VLOOKUP(E187,Listes_masqué!$N$3:$O$22,2,FALSE)) ->  | L187: =IF(G187="","",VLOOKUP(G187,Listes_masqué!$F$3:$G$62,2,FALSE)) ->  | M187: =IF(H187="","",VLOOKUP(H187,Listes_masqué!$B$3:$C$25,2,FALSE)) ->  | Q187: =_xlfn.XLOOKUP(P187,Tableau13[Product code],Tableau13[Designation],"") ->  | R187: =IFERROR(VLOOKUP('Product code generator'!$P187,Tableau13[[#All],[Product code]:[Price excl. tax]],3,FALSE),"") ->  | T187: =VLOOKUP(D187,Listes_masqué!$H$3:$J$6,3,FALSE) ->  | U187: =IF(K187="213",VLOOKUP(F187,Listes_masqué!$Q$9:$R$13,2,FALSE),VLOOKUP(F187,Listes_masqué!$Q$3:$R$7,2,FALSE)) -> 
J188: =IF(D188="","",VLOOKUP(D188,Listes_masqué!$H$3:$K$14,2,FALSE)) ->  | K188: =IF(E188="","",VLOOKUP(E188,Listes_masqué!$N$3:$O$22,2,FALSE)) ->  | L188: =IF(G188="","",VLOOKUP(G188,Listes_masqué!$F$3:$G$62,2,FALSE)) ->  | M188: =IF(H188="","",VLOOKUP(H188,Listes_masqué!$B$3:$C$25,2,FALSE)) ->  | Q188: =_xlfn.XLOOKUP(P188,Tableau13[Product code],Tableau13[Designation],"") ->  | R188: =IFERROR(VLOOKUP('Product code generator'!$P188,Tableau13[[#All],[Product code]:[Price excl. tax]],3,FALSE),"") ->  | T188: =VLOOKUP(D188,Listes_masqué!$H$3:$J$6,3,FALSE) ->  | U188: =IF(K188="213",VLOOKUP(F188,Listes_masqué!$Q$9:$R$13,2,FALSE),VLOOKUP(F188,Listes_masqué!$Q$3:$R$7,2,FALSE)) -> 
J189: =IF(D189="","",VLOOKUP(D189,Listes_masqué!$H$3:$K$14,2,FALSE)) ->  | K189: =IF(E189="","",VLOOKUP(E189,Listes_masqué!$N$3:$O$22,2,FALSE)) ->  | L189: =IF(G189="","",VLOOKUP(G189,Listes_masqué!$F$3:$G$62,2,FALSE)) ->  | M189: =IF(H189="","",VLOOKUP(H189,Listes_masqué!$B$3:$C$25,2,FALSE)) ->  | Q189: =_xlfn.XLOOKUP(P189,Tableau13[Product code],Tableau13[Designation],"") ->  | R189: =IFERROR(VLOOKUP('Product code generator'!$P189,Tableau13[[#All],[Product code]:[Price excl. tax]],3,FALSE),"") ->  | T189: =VLOOKUP(D189,Listes_masqué!$H$3:$J$6,3,FALSE) ->  | U189: =IF(K189="213",VLOOKUP(F189,Listes_masqué!$Q$9:$R$13,2,FALSE),VLOOKUP(F189,Listes_masqué!$Q$3:$R$7,2,FALSE)) -> 
J190: =IF(D190="","",VLOOKUP(D190,Listes_masqué!$H$3:$K$14,2,FALSE)) ->  | K190: =IF(E190="","",VLOOKUP(E190,Listes_masqué!$N$3:$O$22,2,FALSE)) ->  | L190: =IF(G190="","",VLOOKUP(G190,Listes_masqué!$F$3:$G$62,2,FALSE)) ->  | M190: =IF(H190="","",VLOOKUP(H190,Listes_masqué!$B$3:$C$25,2,FALSE)) ->  | Q190: =_xlfn.XLOOKUP(P190,Tableau13[Product code],Tableau13[Designation],"") ->  | R190: =IFERROR(VLOOKUP('Product code generator'!$P190,Tableau13[[#All],[Product code]:[Price excl. tax]],3,FALSE),"") ->  | T190: =VLOOKUP(D190,Listes_masqué!$H$3:$J$6,3,FALSE) ->  | U190: =IF(K190="213",VLOOKUP(F190,Listes_masqué!$Q$9:$R$13,2,FALSE),VLOOKUP(F190,Listes_masqué!$Q$3:$R$7,2,FALSE)) -> 
J191: =IF(D191="","",VLOOKUP(D191,Listes_masqué!$H$3:$K$14,2,FALSE)) ->  | K191: =IF(E191="","",VLOOKUP(E191,Listes_masqué!$N$3:$O$22,2,FALSE)) ->  | L191: =IF(G191="","",VLOOKUP(G191,Listes_masqué!$F$3:$G$62,2,FALSE)) ->  | M191: =IF(H191="","",VLOOKUP(H191,Listes_masqué!$B$3:$C$25,2,FALSE)) ->  | Q191: =_xlfn.XLOOKUP(P191,Tableau13[Product code],Tableau13[Designation],"") ->  | R191: =IFERROR(VLOOKUP('Product code generator'!$P191,Tableau13[[#All],[Product code]:[Price excl. tax]],3,FALSE),"") ->  | T191: =VLOOKUP(D191,Listes_masqué!$H$3:$J$6,3,FALSE) ->  | U191: =IF(K191="213",VLOOKUP(F191,Listes_masqué!$Q$9:$R$13,2,FALSE),VLOOKUP(F191,Listes_masqué!$Q$3:$R$7,2,FALSE)) -> 
J192: =IF(D192="","",VLOOKUP(D192,Listes_masqué!$H$3:$K$14,2,FALSE)) ->  | K192: =IF(E192="","",VLOOKUP(E192,Listes_masqué!$N$3:$O$22,2,FALSE)) ->  | L192: =IF(G192="","",VLOOKUP(G192,Listes_masqué!$F$3:$G$62,2,FALSE)) ->  | M192: =IF(H192="","",VLOOKUP(H192,Listes_masqué!$B$3:$C$25,2,FALSE)) ->  | Q192: =_xlfn.XLOOKUP(P192,Tableau13[Product code],Tableau13[Designation],"") ->  | R192: =IFERROR(VLOOKUP('Product code generator'!$P192,Tableau13[[#All],[Product code]:[Price excl. tax]],3,FALSE),"") ->  | T192: =VLOOKUP(D192,Listes_masqué!$H$3:$J$6,3,FALSE) ->  | U192: =IF(K192="213",VLOOKUP(F192,Listes_masqué!$Q$9:$R$13,2,FALSE),VLOOKUP(F192,Listes_masqué!$Q$3:$R$7,2,FALSE)) -> 
J193: =IF(D193="","",VLOOKUP(D193,Listes_masqué!$H$3:$K$14,2,FALSE)) ->  | K193: =IF(E193="","",VLOOKUP(E193,Listes_masqué!$N$3:$O$22,2,FALSE)) ->  | L193: =IF(G193="","",VLOOKUP(G193,Listes_masqué!$F$3:$G$62,2,FALSE)) ->  | M193: =IF(H193="","",VLOOKUP(H193,Listes_masqué!$B$3:$C$25,2,FALSE)) ->  | Q193: =_xlfn.XLOOKUP(P193,Tableau13[Product code],Tableau13[Designation],"") ->  | R193: =IFERROR(VLOOKUP('Product code generator'!$P193,Tableau13[[#All],[Product code]:[Price excl. tax]],3,FALSE),"") ->  | T193: =VLOOKUP(D193,Listes_masqué!$H$3:$J$6,3,FALSE) ->  | U193: =IF(K193="213",VLOOKUP(F193,Listes_masqué!$Q$9:$R$13,2,FALSE),VLOOKUP(F193,Listes_masqué!$Q$3:$R$7,2,FALSE)) -> 
J194: =IF(D194="","",VLOOKUP(D194,Listes_masqué!$H$3:$K$14,2,FALSE)) ->  | K194: =IF(E194="","",VLOOKUP(E194,Listes_masqué!$N$3:$O$22,2,FALSE)) ->  | L194: =IF(G194="","",VLOOKUP(G194,Listes_masqué!$F$3:$G$62,2,FALSE)) ->  | M194: =IF(H194="","",VLOOKUP(H194,Listes_masqué!$B$3:$C$25,2,FALSE)) ->  | Q194: =_xlfn.XLOOKUP(P194,Tableau13[Product code],Tableau13[Designation],"") ->  | R194: =IFERROR(VLOOKUP('Product code generator'!$P194,Tableau13[[#All],[Product code]:[Price excl. tax]],3,FALSE),"") ->  | T194: =VLOOKUP(D194,Listes_masqué!$H$3:$J$6,3,FALSE) ->  | U194: =IF(K194="213",VLOOKUP(F194,Listes_masqué!$Q$9:$R$13,2,FALSE),VLOOKUP(F194,Listes_masqué!$Q$3:$R$7,2,FALSE)) -> 
J195: =IF(D195="","",VLOOKUP(D195,Listes_masqué!$H$3:$K$14,2,FALSE)) ->  | K195: =IF(E195="","",VLOOKUP(E195,Listes_masqué!$N$3:$O$22,2,FALSE)) ->  | L195: =IF(G195="","",VLOOKUP(G195,Listes_masqué!$F$3:$G$62,2,FALSE)) ->  | M195: =IF(H195="","",VLOOKUP(H195,Listes_masqué!$B$3:$C$25,2,FALSE)) ->  | Q195: =_xlfn.XLOOKUP(P195,Tableau13[Product code],Tableau13[Designation],"") ->  | R195: =IFERROR(VLOOKUP('Product code generator'!$P195,Tableau13[[#All],[Product code]:[Price excl. tax]],3,FALSE),"") ->  | T195: =VLOOKUP(D195,Listes_masqué!$H$3:$J$6,3,FALSE) ->  | U195: =IF(K195="213",VLOOKUP(F195,Listes_masqué!$Q$9:$R$13,2,FALSE),VLOOKUP(F195,Listes_masqué!$Q$3:$R$7,2,FALSE)) -> 
J196: =IF(D196="","",VLOOKUP(D196,Listes_masqué!$H$3:$K$14,2,FALSE)) ->  | K196: =IF(E196="","",VLOOKUP(E196,Listes_masqué!$N$3:$O$22,2,FALSE)) ->  | L196: =IF(G196="","",VLOOKUP(G196,Listes_masqué!$F$3:$G$62,2,FALSE)) ->  | M196: =IF(H196="","",VLOOKUP(H196,Listes_masqué!$B$3:$C$25,2,FALSE)) ->  | Q196: =_xlfn.XLOOKUP(P196,Tableau13[Product code],Tableau13[Designation],"") ->  | R196: =IFERROR(VLOOKUP('Product code generator'!$P196,Tableau13[[#All],[Product code]:[Price excl. tax]],3,FALSE),"") ->  | T196: =VLOOKUP(D196,Listes_masqué!$H$3:$J$6,3,FALSE) ->  | U196: =IF(K196="213",VLOOKUP(F196,Listes_masqué!$Q$9:$R$13,2,FALSE),VLOOKUP(F196,Listes_masqué!$Q$3:$R$7,2,FALSE)) -> 
J197: =IF(D197="","",VLOOKUP(D197,Listes_masqué!$H$3:$K$14,2,FALSE)) ->  | K197: =IF(E197="","",VLOOKUP(E197,Listes_masqué!$N$3:$O$22,2,FALSE)) ->  | L197: =IF(G197="","",VLOOKUP(G197,Listes_masqué!$F$3:$G$62,2,FALSE)) ->  | M197: =IF(H197="","",VLOOKUP(H197,Listes_masqué!$B$3:$C$25,2,FALSE)) ->  | Q197: =_xlfn.XLOOKUP(P197,Tableau13[Product code],Tableau13[Designation],"") ->  | R197: =IFERROR(VLOOKUP('Product code generator'!$P197,Tableau13[[#All],[Product code]:[Price excl. tax]],3,FALSE),"") ->  | T197: =VLOOKUP(D197,Listes_masqué!$H$3:$J$6,3,FALSE) ->  | U197: =IF(K197="213",VLOOKUP(F197,Listes_masqué!$Q$9:$R$13,2,FALSE),VLOOKUP(F197,Listes_masqué!$Q$3:$R$7,2,FALSE)) -> 
J198: =IF(D198="","",VLOOKUP(D198,Listes_masqué!$H$3:$K$14,2,FALSE)) ->  | K198: =IF(E198="","",VLOOKUP(E198,Listes_masqué!$N$3:$O$22,2,FALSE)) ->  | L198: =IF(G198="","",VLOOKUP(G198,Listes_masqué!$F$3:$G$62,2,FALSE)) ->  | M198: =IF(H198="","",VLOOKUP(H198,Listes_masqué!$B$3:$C$25,2,FALSE)) ->  | N198: =IF(I198="","",IF(I198="yes",1,0)) ->  | Q198: =_xlfn.XLOOKUP(P198,Tableau13[Product code],Tableau13[Designation],"") ->  | R198: =IFERROR(VLOOKUP('Product code generator'!$P198,Tableau13[[#All],[Product code]:[Price excl. tax]],3,FALSE),"") ->  | T198: =VLOOKUP(D198,Listes_masqué!$H$3:$J$6,3,FALSE) ->  | U198: =IF(K198="213",VLOOKUP(F198,Listes_masqué!$Q$9:$R$13,2,FALSE),VLOOKUP(F198,Listes_masqué!$Q$3:$R$7,2,FALSE)) -> 
J199: =IF(D199="","",VLOOKUP(D199,Listes_masqué!$H$3:$K$14,2,FALSE)) ->  | K199: =IF(E199="","",VLOOKUP(E199,Listes_masqué!$N$3:$O$22,2,FALSE)) ->  | L199: =IF(G199="","",VLOOKUP(G199,Listes_masqué!$F$3:$G$62,2,FALSE)) ->  | M199: =IF(H199="","",VLOOKUP(H199,Listes_masqué!$B$3:$C$25,2,FALSE)) ->  | Q199: =_xlfn.XLOOKUP(P199,Tableau13[Product code],Tableau13[Designation],"") ->  | R199: =IFERROR(VLOOKUP('Product code generator'!$P199,Tableau13[[#All],[Product code]:[Price excl. tax]],3,FALSE),"") ->  | S199: =IF(M199="089","Attention! Il faut déclarer un nombre de lot de 1000 et non des unités.",IF(I199="yes","Attention, pensez à bien verifier l'éligibilité de ce produit aux éco-modulations.","")) ->  | T199: =VLOOKUP(D199,Listes_masqué!$H$3:$J$6,3,FALSE) ->  | U199: =IF(K199="213",VLOOKUP(F199,Listes_masqué!$Q$9:$R$13,2,FALSE),VLOOKUP(F199,Listes_masqué!$Q$3:$R$7,2,FALSE)) -> 
J200: =IF(D200="","",VLOOKUP(D200,Listes_masqué!$H$3:$K$14,2,FALSE)) ->  | K200: =IF(E200="","",VLOOKUP(E200,Listes_masqué!$N$3:$O$22,2,FALSE)) ->  | L200: =IF(G200="","",VLOOKUP(G200,Listes_masqué!$F$3:$G$62,2,FALSE)) ->  | M200: =IF(H200="","",VLOOKUP(H200,Listes_masqué!$B$3:$C$25,2,FALSE)) ->  | P200: =IF(OR(H200="",G200="",E200="",D200="",I200=""),"",CONCATENATE(J200,K200,L200,M200,N200)) ->  | Q200: =_xlfn.XLOOKUP(P200,Tableau13[Product code],Tableau13[Designation],"") ->  | R200: =IFERROR(VLOOKUP('Product code generator'!$P200,Tableau13[[#All],[Product code]:[Price excl. tax]],3,FALSE),"") ->  | T200: =VLOOKUP(D200,Listes_masqué!$H$3:$J$6,3,FALSE) ->  | U200: =IF(K200="213",VLOOKUP(F200,Listes_masqué!$Q$9:$R$13,2,FALSE),VLOOKUP(F200,Listes_masqué!$Q$3:$R$7,2,FALSE)) -> 
J201: =IF(D201="","",VLOOKUP(D201,Listes_masqué!$H$3:$K$14,2,FALSE)) ->  | K201: =IF(E201="","",VLOOKUP(E201,Listes_masqué!$N$3:$O$22,2,FALSE)) ->  | L201: =IF(G201="","",VLOOKUP(G201,Listes_masqué!$F$3:$G$62,2,FALSE)) ->  | M201: =IF(H201="","",VLOOKUP(H201,Listes_masqué!$B$3:$C$25,2,FALSE)) ->  | Q201: =_xlfn.XLOOKUP(P201,Tableau13[Product code],Tableau13[Designation],"") ->  | R201: =IFERROR(VLOOKUP('Product code generator'!$P201,Tableau13[[#All],[Product code]:[Price excl. tax]],3,FALSE),"") ->  | T201: =VLOOKUP(D201,Listes_masqué!$H$3:$J$6,3,FALSE) ->  | U201: =IF(K201="213",VLOOKUP(F201,Listes_masqué!$Q$9:$R$13,2,FALSE),VLOOKUP(F201,Listes_masqué!$Q$3:$R$7,2,FALSE)) -> 
J202: =IF(D202="","",VLOOKUP(D202,Listes_masqué!$H$3:$K$14,2,FALSE)) ->  | K202: =IF(E202="","",VLOOKUP(E202,Listes_masqué!$N$3:$O$22,2,FALSE)) ->  | L202: =IF(G202="","",VLOOKUP(G202,Listes_masqué!$F$3:$G$62,2,FALSE)) ->  | M202: =IF(H202="","",VLOOKUP(H202,Listes_masqué!$B$3:$C$25,2,FALSE)) ->  | Q202: =_xlfn.XLOOKUP(P202,Tableau13[Product code],Tableau13[Designation],"") ->  | R202: =IFERROR(VLOOKUP('Product code generator'!$P202,Tableau13[[#All],[Product code]:[Price excl. tax]],3,FALSE),"") ->  | T202: =VLOOKUP(D202,Listes_masqué!$H$3:$J$6,3,FALSE) ->  | U202: =IF(K202="213",VLOOKUP(F202,Listes_masqué!$Q$9:$R$13,2,FALSE),VLOOKUP(F202,Listes_masqué!$Q$3:$R$7,2,FALSE)) -> 
... 88 more rows

Sheet Codes
A1: Category Code | B1: Category designation | C1: Product code type | D1: Type designation | E1: Material code | F1: Material designation | G1: Characteristic code | H1: Characteristic designation | I1: Index tarif | J1: Product code | K1: Designation | L1: Price excl. tax | M1: Eco-fee code | N1: Price incl. VAT
A2: =MID(J2,1,2) -> 31 | B2: =VLOOKUP(A2,'Understanding codification'!$A$13:$B$16,2,FALSE) -> Toys | C2: =MID(J2,3,3) -> 201 | D2: =VLOOKUP(C2,'Understanding codification'!$D$13:$E$50,2,FALSE) -> Action figures and accessories | E2: =MID(J2,6,2) -> 00 | F2: =VLOOKUP(E2,'Understanding codification'!$G$13:$H$69,2,FALSE) -> Not found | G2: =MID(J2,8,3) -> 021 | H2: =VLOOKUP(G2,'Understanding codification'!$J$13:$K$35,2,FALSE) -> ≥ 0.5kg and < 1kg | J2: 31201000210 | K2: =B2&" - "&D2&" en "&F2&H2 -> Toys - Action figures and accessories en Not found≥ 0.5kg and < 1kg | L2: 0.24 | M2: =VLOOKUP(Tableau13[[#This Row],[Price excl. tax]],'Eco-fee codes'!$C$4:$E$408,3,FALSE) -> 248 | N2: =Tableau13[[#This Row],[Price excl. tax]]*1.2 -> 0.288
A3: 31 | B3: =VLOOKUP(A3,'Understanding codification'!$A$13:$B$16,2,FALSE) -> Toys | C3: 201 | D3: =VLOOKUP(C3,'Understanding codification'!$D$13:$E$50,2,FALSE) -> Action figures and accessories | E3: 00 | F3: =VLOOKUP(E3,'Understanding codification'!$G$13:$H$69,2,FALSE) -> Not found | G3: 022 | H3: =VLOOKUP(G3,'Understanding codification'!$J$13:$K$35,2,FALSE) -> ≥ 1kg and < 2kg | J3: 31201000220 | K3: Toys - Action figures and accessories en Not found≥ 1kg and < 2kg | L3: 0.47 | M3: =VLOOKUP(Tableau13[[#This Row],[Price excl. tax]],'Eco-fee codes'!$C$4:$E$408,3,FALSE) -> 107 | N3: =Tableau13[[#This Row],[Price excl. tax]]*1.2 -> 0.564
A4: 31 | B4: =VLOOKUP(A4,'Understanding codification'!$A$13:$B$16,2,FALSE) -> Toys | C4: 201 | D4: =VLOOKUP(C4,'Understanding codification'!$D$13:$E$50,2,FALSE) -> Action figures and accessories | E4: 00 | F4: =VLOOKUP(E4,'Understanding codification'!$G$13:$H$69,2,FALSE) -> Not found | G4: 027 | H4: =VLOOKUP(G4,'Understanding codification'!$J$13:$K$35,2,FALSE) -> ≥ 30kg and < 40kg | J4: 31201000270 | K4: Toys - Action figures and accessories en Not found≥ 30kg and < 40kg | L4: 9.3 | M4: =VLOOKUP(Tableau13[[#This Row],[Price excl. tax]],'Eco-fee codes'!$C$4:$E$408,3,FALSE) -> 420 | N4: =Tableau13[[#This Row],[Price excl. tax]]*1.2 -> 11.16
A5: 31 | B5: =VLOOKUP(A5,'Understanding codification'!$A$13:$B$16,2,FALSE) -> Toys | C5: 201 | D5: =VLOOKUP(C5,'Understanding codification'!$D$13:$E$50,2,FALSE) -> Action figures and accessories | E5: 00 | F5: =VLOOKUP(E5,'Understanding codification'!$G$13:$H$69,2,FALSE) -> Not found | G5: 030 | H5: =VLOOKUP(G5,'Understanding codification'!$J$13:$K$35,2,FALSE) -> ≥ 100kg and < 150kg | J5: 31201000300 | K5: Toys - Action figures and accessories en Not found≥ 100kg and < 150kg | L5: 27.1 | M5: =VLOOKUP(Tableau13[[#This Row],[Price excl. tax]],'Eco-fee codes'!$C$4:$E$408,3,FALSE) -> 421 | N5: =Tableau13[[#This Row],[Price excl. tax]]*1.2 -> 32.52
A6: 31 | B6: =VLOOKUP(A6,'Understanding codification'!$A$13:$B$16,2,FALSE) -> Toys | C6: 201 | D6: =VLOOKUP(C6,'Understanding codification'!$D$13:$E$50,2,FALSE) -> Action figures and accessories | E6: 00 | F6: =VLOOKUP(E6,'Understanding codification'!$G$13:$H$69,2,FALSE) -> Not found | G6: 031 | H6: =VLOOKUP(G6,'Understanding codification'!$J$13:$K$35,2,FALSE) -> ≥ 150kg and < 200kg | J6: 31201000310 | K6: Toys - Action figures and accessories en Not found≥ 150kg and < 200kg | L6: 37.95 | M6: =VLOOKUP(Tableau13[[#This Row],[Price excl. tax]],'Eco-fee codes'!$C$4:$E$408,3,FALSE) -> 422 | N6: =Tableau13[[#This Row],[Price excl. tax]]*1.2 -> 45.54
A7: 31 | B7: =VLOOKUP(A7,'Understanding codification'!$A$13:$B$16,2,FALSE) -> Toys | C7: 201 | D7: =VLOOKUP(C7,'Understanding codification'!$D$13:$E$50,2,FALSE) -> Action figures and accessories | E7: 00 | F7: =VLOOKUP(E7,'Understanding codification'!$G$13:$H$69,2,FALSE) -> Not found | G7: 032 | H7: =VLOOKUP(G7,'Understanding codification'!$J$13:$K$35,2,FALSE) -> ≥ 200kg and < 250kg | J7: 31201000320 | K7: Toys - Action figures and accessories en Not found≥ 200kg and < 250kg | L7: 48.79 | M7: =VLOOKUP(Tableau13[[#This Row],[Price excl. tax]],'Eco-fee codes'!$C$4:$E$408,3,FALSE) -> 423 | N7: =Tableau13[[#This Row],[Price excl. tax]]*1.2 -> 58.548
A8: 31 | B8: =VLOOKUP(A8,'Understanding codification'!$A$13:$B$16,2,FALSE) -> Toys | C8: 201 | D8: =VLOOKUP(C8,'Understanding codification'!$D$13:$E$50,2,FALSE) -> Action figures and accessories | E8: 00 | F8: =VLOOKUP(E8,'Understanding codification'!$G$13:$H$69,2,FALSE) -> Not found | G8: 052 | H8: =VLOOKUP(G8,'Understanding codification'!$J$13:$K$35,2,FALSE) -> ≥ 2kg and < 3kg | J8: 31201000520 | K8: Toys - Action figures and accessories en Not found≥ 2kg and < 3kg | L8: 0.78 | M8: =VLOOKUP(Tableau13[[#This Row],[Price excl. tax]],'Eco-fee codes'!$C$4:$E$408,3,FALSE) -> 312 | N8: =Tableau13[[#This Row],[Price excl. tax]]*1.2 -> 0.936
A9: 31 | B9: =VLOOKUP(A9,'Understanding codification'!$A$13:$B$16,2,FALSE) -> Toys | C9: 201 | D9: =VLOOKUP(C9,'Understanding codification'!$D$13:$E$50,2,FALSE) -> Action figures and accessories | E9: 00 | F9: =VLOOKUP(E9,'Understanding codification'!$G$13:$H$69,2,FALSE) -> Not found | G9: 053 | H9: =VLOOKUP(G9,'Understanding codification'!$J$13:$K$35,2,FALSE) -> ≥ 3kg and < 5kg | J9: 31201000530 | K9: Toys - Action figures and accessories en Not found≥ 3kg and < 5kg | L9: 1.24 | M9: =VLOOKUP(Tableau13[[#This Row],[Price excl. tax]],'Eco-fee codes'!$C$4:$E$408,3,FALSE) -> 313 | N9: =Tableau13[[#This Row],[Price excl. tax]]*1.2 -> 1.488
A10: 31 | B10: =VLOOKUP(A10,'Understanding codification'!$A$13:$B$16,2,FALSE) -> Toys | C10: 201 | D10: =VLOOKUP(C10,'Understanding codification'!$D$13:$E$50,2,FALSE) -> Action figures and accessories | E10: 00 | F10: =VLOOKUP(E10,'Understanding codification'!$G$13:$H$69,2,FALSE) -> Not found | G10: 054 | H10: =VLOOKUP(G10,'Understanding codification'!$J$13:$K$35,2,FALSE) -> ≥ 5kg and < 7kg | J10: 31201000540 | K10: Toys - Action figures and accessories en Not found≥ 5kg and < 7kg | L10: 1.86 | M10: =VLOOKUP(Tableau13[[#This Row],[Price excl. tax]],'Eco-fee codes'!$C$4:$E$408,3,FALSE) -> 314 | N10: =Tableau13[[#This Row],[Price excl. tax]]*1.2 -> 2.232
A11: 31 | B11: =VLOOKUP(A11,'Understanding codification'!$A$13:$B$16,2,FALSE) -> Toys | C11: 201 | D11: =VLOOKUP(C11,'Understanding codification'!$D$13:$E$50,2,FALSE) -> Action figures and accessories | E11: 00 | F11: =VLOOKUP(E11,'Understanding codification'!$G$13:$H$69,2,FALSE) -> Not found | G11: 055 | H11: =VLOOKUP(G11,'Understanding codification'!$J$13:$K$35,2,FALSE) -> ≥ 7kg and < 10kg | J11: 31201000550 | K11: Toys - Action figures and accessories en Not found≥ 7kg and < 10kg | L11: 2.33 | M11: =VLOOKUP(Tableau13[[#This Row],[Price excl. tax]],'Eco-fee codes'!$C$4:$E$408,3,FALSE) -> 062 | N11: =Tableau13[[#This Row],[Price excl. tax]]*1.2 -> 2.796
A12: 31 | B12: =VLOOKUP(A12,'Understanding codification'!$A$13:$B$16,2,FALSE) -> Toys | C12: 201 | D12: =VLOOKUP(C12,'Understanding codification'!$D$13:$E$50,2,FALSE) -> Action figures and accessories | E12: 00 | F12: =VLOOKUP(E12,'Understanding codification'!$G$13:$H$69,2,FALSE) -> Not found | G12: 056 | H12: =VLOOKUP(G12,'Understanding codification'!$J$13:$K$35,2,FALSE) -> ≥ 10kg and < 15kg | J12: 31201000560 | K12: Toys - Action figures and accessories en Not found≥ 10kg and < 15kg | L12: 3.88 | M12: =VLOOKUP(Tableau13[[#This Row],[Price excl. tax]],'Eco-fee codes'!$C$4:$E$408,3,FALSE) -> 315 | N12: =Tableau13[[#This Row],[Price excl. tax]]*1.2 -> 4.656
A13: 31 | B13: =VLOOKUP(A13,'Understanding codification'!$A$13:$B$16,2,FALSE) -> Toys | C13: 201 | D13: =VLOOKUP(C13,'Understanding codification'!$D$13:$E$50,2,FALSE) -> Action figures and accessories | E13: 00 | F13: =VLOOKUP(E13,'Understanding codification'!$G$13:$H$69,2,FALSE) -> Not found | G13: 057 | H13: =VLOOKUP(G13,'Understanding codification'!$J$13:$K$35,2,FALSE) -> ≥ 15kg and < 20kg | J13: 31201000570 | K13: Toys - Action figures and accessories en Not found≥ 15kg and < 20kg | L13: 5.43 | M13: =VLOOKUP(Tableau13[[#This Row],[Price excl. tax]],'Eco-fee codes'!$C$4:$E$408,3,FALSE) -> 316 | N13: =Tableau13[[#This Row],[Price excl. tax]]*1.2 -> 6.516
A14: 31 | B14: =VLOOKUP(A14,'Understanding codification'!$A$13:$B$16,2,FALSE) -> Toys | C14: 201 | D14: =VLOOKUP(C14,'Understanding codification'!$D$13:$E$50,2,FALSE) -> Action figures and accessories | E14: 00 | F14: =VLOOKUP(E14,'Understanding codification'!$G$13:$H$69,2,FALSE) -> Not found | G14: 058 | H14: =VLOOKUP(G14,'Understanding codification'!$J$13:$K$35,2,FALSE) -> ≥ 20kg and < 25kg | J14: 31201000580 | K14: Toys - Action figures and accessories en Not found≥ 20kg and < 25kg | L14: 6.62 | M14: =VLOOKUP(Tableau13[[#This Row],[Price excl. tax]],'Eco-fee codes'!$C$4:$E$408,3,FALSE) -> 424 | N14: =Tableau13[[#This Row],[Price excl. tax]]*1.2 -> 7.944
A15: 31 | B15: =VLOOKUP(A15,'Understanding codification'!$A$13:$B$16,2,FALSE) -> Toys | C15: 201 | D15: =VLOOKUP(C15,'Understanding codification'!$D$13:$E$50,2,FALSE) -> Action figures and accessories | E15: 00 | F15: =VLOOKUP(E15,'Understanding codification'!$G$13:$H$69,2,FALSE) -> Not found | G15: 059 | H15: =VLOOKUP(G15,'Understanding codification'!$J$13:$K$35,2,FALSE) -> ≥ 25kg and < 30kg | J15: 31201000590 | K15: Toys - Action figures and accessories en Not found≥ 25kg and < 30kg | L15: 7.69 | M15: =VLOOKUP(Tableau13[[#This Row],[Price excl. tax]],'Eco-fee codes'!$C$4:$E$408,3,FALSE) -> 425 | N15: =Tableau13[[#This Row],[Price excl. tax]]*1.2 -> 9.228
A16: 31 | B16: =VLOOKUP(A16,'Understanding codification'!$A$13:$B$16,2,FALSE) -> Toys | C16: 201 | D16: =VLOOKUP(C16,'Understanding codification'!$D$13:$E$50,2,FALSE) -> Action figures and accessories | E16: 00 | F16: =VLOOKUP(E16,'Understanding codification'!$G$13:$H$69,2,FALSE) -> Not found | G16: 060 | H16: =VLOOKUP(G16,'Understanding codification'!$J$13:$K$35,2,FALSE) -> ≥ 40kg and < 50kg | J16: 31201000600 | K16: Toys - Action figures and accessories en Not found≥ 40kg and < 50kg | L16: 11.35 | M16: =VLOOKUP(Tableau13[[#This Row],[Price excl. tax]],'Eco-fee codes'!$C$4:$E$408,3,FALSE) -> 426 | N16: =Tableau13[[#This Row],[Price excl. tax]]*1.2 -> 13.62
A17: 31 | B17: =VLOOKUP(A17,'Understanding codification'!$A$13:$B$16,2,FALSE) -> Toys | C17: 201 | D17: =VLOOKUP(C17,'Understanding codification'!$D$13:$E$50,2,FALSE) -> Action figures and accessories | E17: 00 | F17: =VLOOKUP(E17,'Understanding codification'!$G$13:$H$69,2,FALSE) -> Not found | G17: 082 | H17: =VLOOKUP(G17,'Understanding codification'!$J$13:$K$35,2,FALSE) -> Greater than 250 kg | J17: 31201000820 | K17: Toys - Action figures and accessories en Not foundGreater than 250 kg | L17: 54.21 | M17: =VLOOKUP(Tableau13[[#This Row],[Price excl. tax]],'Eco-fee codes'!$C$4:$E$408,3,FALSE) -> 310 | N17: =Tableau13[[#This Row],[Price excl. tax]]*1.2 -> 65.052
A18: 31 | B18: =VLOOKUP(A18,'Understanding codification'!$A$13:$B$16,2,FALSE) -> Toys | C18: 201 | D18: =VLOOKUP(C18,'Understanding codification'!$D$13:$E$50,2,FALSE) -> Action figures and accessories | E18: 00 | F18: =VLOOKUP(E18,'Understanding codification'!$G$13:$H$69,2,FALSE) -> Not found | G18: 083 | H18: =VLOOKUP(G18,'Understanding codification'!$J$13:$K$35,2,FALSE) -> Strictly under 0.1 kg | J18: 31201000830 | K18: Toys - Action figures and accessories en Not foundStrictly under 0.1 kg | L18: 0.02 | M18: =VLOOKUP(Tableau13[[#This Row],[Price excl. tax]],'Eco-fee codes'!$C$4:$E$408,3,FALSE) -> 047 | N18: =Tableau13[[#This Row],[Price excl. tax]]*1.2 -> 0.024
A19: 31 | B19: =VLOOKUP(A19,'Understanding codification'!$A$13:$B$16,2,FALSE) -> Toys | C19: 201 | D19: =VLOOKUP(C19,'Understanding codification'!$D$13:$E$50,2,FALSE) -> Action figures and accessories | E19: 00 | F19: =VLOOKUP(E19,'Understanding codification'!$G$13:$H$69,2,FALSE) -> Not found | G19: 084 | H19: =VLOOKUP(G19,'Understanding codification'!$J$13:$K$35,2,FALSE) -> ≥ 0.1kg and < 0.2kg | J19: 31201000840 | K19: Toys - Action figures and accessories en Not found≥ 0.1kg and < 0.2kg | L19: 0.05 | M19: =VLOOKUP(Tableau13[[#This Row],[Price excl. tax]],'Eco-fee codes'!$C$4:$E$408,3,FALSE) -> 048 | N19: =Tableau13[[#This Row],[Price excl. tax]]*1.2 -> 0.06
A20: 31 | B20: =VLOOKUP(A20,'Understanding codification'!$A$13:$B$16,2,FALSE) -> Toys | C20: 201 | D20: =VLOOKUP(C20,'Understanding codification'!$D$13:$E$50,2,FALSE) -> Action figures and accessories | E20: 00 | F20: =VLOOKUP(E20,'Understanding codification'!$G$13:$H$69,2,FALSE) -> Not found | G20: 085 | H20: =VLOOKUP(G20,'Understanding codification'!$J$13:$K$35,2,FALSE) -> ≥ 0.2kg and < 0.3kg | J20: 31201000850 | K20: Toys - Action figures and accessories en Not found≥ 0.2kg and < 0.3kg | L20: 0.08 | M20: =VLOOKUP(Tableau13[[#This Row],[Price excl. tax]],'Eco-fee codes'!$C$4:$E$408,3,FALSE) -> 003 | N20: =Tableau13[[#This Row],[Price excl. tax]]*1.2 -> 0.096
A21: 31 | B21: =VLOOKUP(A21,'Understanding codification'!$A$13:$B$16,2,FALSE) -> Toys | C21: 201 | D21: =VLOOKUP(C21,'Understanding codification'!$D$13:$E$50,2,FALSE) -> Action figures and accessories | E21: 00 | F21: =VLOOKUP(E21,'Understanding codification'!$G$13:$H$69,2,FALSE) -> Not found | G21: 086 | H21: =VLOOKUP(G21,'Understanding codification'!$J$13:$K$35,2,FALSE) -> ≥ 0.3kg and < 0.4kg | J21: 31201000860 | K21: Toys - Action figures and accessories en Not found≥ 0.3kg and < 0.4kg | L21: 0.11 | M21: =VLOOKUP(Tableau13[[#This Row],[Price excl. tax]],'Eco-fee codes'!$C$4:$E$408,3,FALSE) -> 262 | N21: =Tableau13[[#This Row],[Price excl. tax]]*1.2 -> 0.132
A22: 31 | B22: =VLOOKUP(A22,'Understanding codification'!$A$13:$B$16,2,FALSE) -> Toys | C22: 201 | D22: =VLOOKUP(C22,'Understanding codification'!$D$13:$E$50,2,FALSE) -> Action figures and accessories | E22: 00 | F22: =VLOOKUP(E22,'Understanding codification'!$G$13:$H$69,2,FALSE) -> Not found | G22: 087 | H22: =VLOOKUP(G22,'Understanding codification'!$J$13:$K$35,2,FALSE) -> ≥ 0.4kg and < 0.5kg | J22: 31201000870 | K22: Toys - Action figures and accessories en Not found≥ 0.4kg and < 0.5kg | L22: 0.14 | M22: =VLOOKUP(Tableau13[[#This Row],[Price excl. tax]],'Eco-fee codes'!$C$4:$E$408,3,FALSE) -> 098 | N22: =Tableau13[[#This Row],[Price excl. tax]]*1.2 -> 0.168
A23: 31 | B23: =VLOOKUP(A23,'Understanding codification'!$A$13:$B$16,2,FALSE) -> Toys | C23: 201 | D23: =VLOOKUP(C23,'Understanding codification'!$D$13:$E$50,2,FALSE) -> Action figures and accessories | E23: 00 | F23: =VLOOKUP(E23,'Understanding codification'!$G$13:$H$69,2,FALSE) -> Not found | G23: 088 | H23: =VLOOKUP(G23,'Understanding codification'!$J$13:$K$35,2,FALSE) -> ≥ 50kg and < 100kg | J23: 31201000880 | K23: Toys - Action figures and accessories en Not found≥ 50kg and < 100kg | L23: 17.98 | M23: =VLOOKUP(Tableau13[[#This Row],[Price excl. tax]],'Eco-fee codes'!$C$4:$E$408,3,FALSE) -> 427 | N23: =Tableau13[[#This Row],[Price excl. tax]]*1.2 -> 21.576
A24: 31 | B24: =VLOOKUP(A24,'Understanding codification'!$A$13:$B$16,2,FALSE) -> Toys | C24: 201 | D24: =VLOOKUP(C24,'Understanding codification'!$D$13:$E$50,2,FALSE) -> Action figures and accessories | E24: 01 | F24: =VLOOKUP(E24,'Understanding codification'!$G$13:$H$69,2,FALSE) -> Wood, panels and wood derivatives >50% | G24: 021 | H24: =VLOOKUP(G24,'Understanding codification'!$J$13:$K$35,2,FALSE) -> ≥ 0.5kg and < 1kg | J24: 31201010210 | K24: Toys - Action figures and accessories en Wood, panels and wood derivatives >50%≥ 0.5kg and < 1kg | L24: 0.14 | M24: =VLOOKUP(Tableau13[[#This Row],[Price excl. tax]],'Eco-fee codes'!$C$4:$E$408,3,FALSE) -> 098 | N24: =Tableau13[[#This Row],[Price excl. tax]]*1.2 -> 0.168
A25: 31 | B25: =VLOOKUP(A25,'Understanding codification'!$A$13:$B$16,2,FALSE) -> Toys | C25: 201 | D25: =VLOOKUP(C25,'Understanding codification'!$D$13:$E$50,2,FALSE) -> Action figures and accessories | E25: 01 | F25: =VLOOKUP(E25,'Understanding codification'!$G$13:$H$69,2,FALSE) -> Wood, panels and wood derivatives >50% | G25: 022 | H25: =VLOOKUP(G25,'Understanding codification'!$J$13:$K$35,2,FALSE) -> ≥ 1kg and < 2kg | J25: 31201010220 | K25: Toys - Action figures and accessories en Wood, panels and wood derivatives >50%≥ 1kg and < 2kg | L25: 0.27 | M25: =VLOOKUP(Tableau13[[#This Row],[Price excl. tax]],'Eco-fee codes'!$C$4:$E$408,3,FALSE) -> 103 | N25: =Tableau13[[#This Row],[Price excl. tax]]*1.2 -> 0.324
A26: 31 | B26: =VLOOKUP(A26,'Understanding codification'!$A$13:$B$16,2,FALSE) -> Toys | C26: 201 | D26: =VLOOKUP(C26,'Understanding codification'!$D$13:$E$50,2,FALSE) -> Action figures and accessories | E26: 01 | F26: =VLOOKUP(E26,'Understanding codification'!$G$13:$H$69,2,FALSE) -> Wood, panels and wood derivatives >50% | G26: 027 | H26: =VLOOKUP(G26,'Understanding codification'!$J$13:$K$35,2,FALSE) -> ≥ 30kg and < 40kg | J26: 31201010270 | K26: Toys - Action figures and accessories en Wood, panels and wood derivatives >50%≥ 30kg and < 40kg | L26: 5.23 | M26: =VLOOKUP(Tableau13[[#This Row],[Price excl. tax]],'Eco-fee codes'!$C$4:$E$408,3,FALSE) -> 403 | N26: =Tableau13[[#This Row],[Price excl. tax]]*1.2 -> 6.276
A27: 31 | B27: =VLOOKUP(A27,'Understanding codification'!$A$13:$B$16,2,FALSE) -> Toys | C27: 201 | D27: =VLOOKUP(C27,'Understanding codification'!$D$13:$E$50,2,FALSE) -> Action figures and accessories | E27: 01 | F27: =VLOOKUP(E27,'Understanding codification'!$G$13:$H$69,2,FALSE) -> Wood, panels and wood derivatives >50% | G27: 030 | H27: =VLOOKUP(G27,'Understanding codification'!$J$13:$K$35,2,FALSE) -> ≥ 100kg and < 150kg | J27: 31201010300 | K27: Toys - Action figures and accessories en Wood, panels and wood derivatives >50%≥ 100kg and < 150kg | L27: 15.25 | M27: =VLOOKUP(Tableau13[[#This Row],[Price excl. tax]],'Eco-fee codes'!$C$4:$E$408,3,FALSE) -> 404 | N27: =Tableau13[[#This Row],[Price excl. tax]]*1.2 -> 18.3
A28: 31 | B28: =VLOOKUP(A28,'Understanding codification'!$A$13:$B$16,2,FALSE) -> Toys | C28: 201 | D28: =VLOOKUP(C28,'Understanding codification'!$D$13:$E$50,2,FALSE) -> Action figures and accessories | E28: 01 | F28: =VLOOKUP(E28,'Understanding codification'!$G$13:$H$69,2,FALSE) -> Wood, panels and wood derivatives >50% | G28: 031 | H28: =VLOOKUP(G28,'Understanding codification'!$J$13:$K$35,2,FALSE) -> ≥ 150kg and < 200kg | J28: 31201010310 | K28: Toys - Action figures and accessories en Wood, panels and wood derivatives >50%≥ 150kg and < 200kg | L28: 21.35 | M28: =VLOOKUP(Tableau13[[#This Row],[Price excl. tax]],'Eco-fee codes'!$C$4:$E$408,3,FALSE) -> 405 | N28: =Tableau13[[#This Row],[Price excl. tax]]*1.2 -> 25.62
A29: 31 | B29: =VLOOKUP(A29,'Understanding codification'!$A$13:$B$16,2,FALSE) -> Toys | C29: 201 | D29: =VLOOKUP(C29,'Understanding codification'!$D$13:$E$50,2,FALSE) -> Action figures and accessories | E29: 01 | F29: =VLOOKUP(E29,'Understanding codification'!$G$13:$H$69,2,FALSE) -> Wood, panels and wood derivatives >50% | G29: 032 | H29: =VLOOKUP(G29,'Understanding codification'!$J$13:$K$35,2,FALSE) -> ≥ 200kg and < 250kg | J29: 31201010320 | K29: Toys - Action figures and accessories en Wood, panels and wood derivatives >50%≥ 200kg and < 250kg | L29: 27.45 | M29: =VLOOKUP(Tableau13[[#This Row],[Price excl. tax]],'Eco-fee codes'!$C$4:$E$408,3,FALSE) -> 406 | N29: =Tableau13[[#This Row],[Price excl. tax]]*1.2 -> 32.94
A30: 31 | B30: =VLOOKUP(A30,'Understanding codification'!$A$13:$B$16,2,FALSE) -> Toys | C30: 201 | D30: =VLOOKUP(C30,'Understanding codification'!$D$13:$E$50,2,FALSE) -> Action figures and accessories | E30: 01 | F30: =VLOOKUP(E30,'Understanding codification'!$G$13:$H$69,2,FALSE) -> Wood, panels and wood derivatives >50% | G30: 052 | H30: =VLOOKUP(G30,'Understanding codification'!$J$13:$K$35,2,FALSE) -> ≥ 2kg and < 3kg | J30: 31201010520 | K30: Toys - Action figures and accessories en Wood, panels and wood derivatives >50%≥ 2kg and < 3kg | L30: 0.44 | M30: =VLOOKUP(Tableau13[[#This Row],[Price excl. tax]],'Eco-fee codes'!$C$4:$E$408,3,FALSE) -> 281 | N30: =Tableau13[[#This Row],[Price excl. tax]]*1.2 -> 0.528
A31: 31 | B31: =VLOOKUP(A31,'Understanding codification'!$A$13:$B$16,2,FALSE) -> Toys | C31: 201 | D31: =VLOOKUP(C31,'Understanding codification'!$D$13:$E$50,2,FALSE) -> Action figures and accessories | E31: 01 | F31: =VLOOKUP(E31,'Understanding codification'!$G$13:$H$69,2,FALSE) -> Wood, panels and wood derivatives >50% | G31: 053 | H31: =VLOOKUP(G31,'Understanding codification'!$J$13:$K$35,2,FALSE) -> ≥ 3kg and < 5kg | J31: 31201010530 | K31: Toys - Action figures and accessories en Wood, panels and wood derivatives >50%≥ 3kg and < 5kg | L31: 0.7 | M31: =VLOOKUP(Tableau13[[#This Row],[Price excl. tax]],'Eco-fee codes'!$C$4:$E$408,3,FALSE) -> 282 | N31: =Tableau13[[#This Row],[Price excl. tax]]*1.2 -> 0.84
A32: 31 | B32: =VLOOKUP(A32,'Understanding codification'!$A$13:$B$16,2,FALSE) -> Toys | C32: 201 | D32: =VLOOKUP(C32,'Understanding codification'!$D$13:$E$50,2,FALSE) -> Action figures and accessories | E32: 01 | F32: =VLOOKUP(E32,'Understanding codification'!$G$13:$H$69,2,FALSE) -> Wood, panels and wood derivatives >50% | G32: 054 | H32: =VLOOKUP(G32,'Understanding codification'!$J$13:$K$35,2,FALSE) -> ≥ 5kg and < 7kg | J32: 31201010540 | K32: Toys - Action figures and accessories en Wood, panels and wood derivatives >50%≥ 5kg and < 7kg | L32: 1.05 | M32: =VLOOKUP(Tableau13[[#This Row],[Price excl. tax]],'Eco-fee codes'!$C$4:$E$408,3,FALSE) -> 283 | N32: =Tableau13[[#This Row],[Price excl. tax]]*1.2 -> 1.26
A33: 31 | B33: =VLOOKUP(A33,'Understanding codification'!$A$13:$B$16,2,FALSE) -> Toys | C33: 201 | D33: =VLOOKUP(C33,'Understanding codification'!$D$13:$E$50,2,FALSE) -> Action figures and accessories | E33: 01 | F33: =VLOOKUP(E33,'Understanding codification'!$G$13:$H$69,2,FALSE) -> Wood, panels and wood derivatives >50% | G33: 055 | H33: =VLOOKUP(G33,'Understanding codification'!$J$13:$K$35,2,FALSE) -> ≥ 7kg and < 10kg | J33: 31201010550 | K33: Toys - Action figures and accessories en Wood, panels and wood derivatives >50%≥ 7kg and < 10kg | L33: 1.31 | M33: =VLOOKUP(Tableau13[[#This Row],[Price excl. tax]],'Eco-fee codes'!$C$4:$E$408,3,FALSE) -> 284 | N33: =Tableau13[[#This Row],[Price excl. tax]]*1.2 -> 1.572
A34: 31 | B34: =VLOOKUP(A34,'Understanding codification'!$A$13:$B$16,2,FALSE) -> Toys | C34: 201 | D34: =VLOOKUP(C34,'Understanding codification'!$D$13:$E$50,2,FALSE) -> Action figures and accessories | E34: 01 | F34: =VLOOKUP(E34,'Understanding codification'!$G$13:$H$69,2,FALSE) -> Wood, panels and wood derivatives >50% | G34: 056 | H34: =VLOOKUP(G34,'Understanding codification'!$J$13:$K$35,2,FALSE) -> ≥ 10kg and < 15kg | J34: 31201010560 | K34: Toys - Action figures and accessories en Wood, panels and wood derivatives >50%≥ 10kg and < 15kg | L34: 2.18 | M34: =VLOOKUP(Tableau13[[#This Row],[Price excl. tax]],'Eco-fee codes'!$C$4:$E$408,3,FALSE) -> 257 | N34: =Tableau13[[#This Row],[Price excl. tax]]*1.2 -> 2.616
A35: 31 | B35: =VLOOKUP(A35,'Understanding codification'!$A$13:$B$16,2,FALSE) -> Toys | C35: 201 | D35: =VLOOKUP(C35,'Understanding codification'!$D$13:$E$50,2,FALSE) -> Action figures and accessories | E35: 01 | F35: =VLOOKUP(E35,'Understanding codification'!$G$13:$H$69,2,FALSE) -> Wood, panels and wood derivatives >50% | G35: 057 | H35: =VLOOKUP(G35,'Understanding codification'!$J$13:$K$35,2,FALSE) -> ≥ 15kg and < 20kg | J35: 31201010570 | K35: Toys - Action figures and accessories en Wood, panels and wood derivatives >50%≥ 15kg and < 20kg | L35: 3.05 | M35: =VLOOKUP(Tableau13[[#This Row],[Price excl. tax]],'Eco-fee codes'!$C$4:$E$408,3,FALSE) -> 285 | N35: =Tableau13[[#This Row],[Price excl. tax]]*1.2 -> 3.66
A36: 31 | B36: =VLOOKUP(A36,'Understanding codification'!$A$13:$B$16,2,FALSE) -> Toys | C36: 201 | D36: =VLOOKUP(C36,'Understanding codification'!$D$13:$E$50,2,FALSE) -> Action figures and accessories | E36: 01 | F36: =VLOOKUP(E36,'Understanding codification'!$G$13:$H$69,2,FALSE) -> Wood, panels and wood derivatives >50% | G36: 058 | H36: =VLOOKUP(G36,'Understanding codification'!$J$13:$K$35,2,FALSE) -> ≥ 20kg and < 25kg | J36: 31201010580 | K36: Toys - Action figures and accessories en Wood, panels and wood derivatives >50%≥ 20kg and < 25kg | L36: 3.73 | M36: =VLOOKUP(Tableau13[[#This Row],[Price excl. tax]],'Eco-fee codes'!$C$4:$E$408,3,FALSE) -> 407 | N36: =Tableau13[[#This Row],[Price excl. tax]]*1.2 -> 4.476
A37: 31 | B37: =VLOOKUP(A37,'Understanding codification'!$A$13:$B$16,2,FALSE) -> Toys | C37: 201 | D37: =VLOOKUP(C37,'Understanding codification'!$D$13:$E$50,2,FALSE) -> Action figures and accessories | E37: 01 | F37: =VLOOKUP(E37,'Understanding codification'!$G$13:$H$69,2,FALSE) -> Wood, panels and wood derivatives >50% | G37: 059 | H37: =VLOOKUP(G37,'Understanding codification'!$J$13:$K$35,2,FALSE) -> ≥ 25kg and < 30kg | J37: 31201010590 | K37: Toys - Action figures and accessories en Wood, panels and wood derivatives >50%≥ 25kg and < 30kg | L37: 4.33 | M37: =VLOOKUP(Tableau13[[#This Row],[Price excl. tax]],'Eco-fee codes'!$C$4:$E$408,3,FALSE) -> 408 | N37: =Tableau13[[#This Row],[Price excl. tax]]*1.2 -> 5.196
A38: 31 | B38: =VLOOKUP(A38,'Understanding codification'!$A$13:$B$16,2,FALSE) -> Toys | C38: 201 | D38: =VLOOKUP(C38,'Understanding codification'!$D$13:$E$50,2,FALSE) -> Action figures and accessories | E38: 01 | F38: =VLOOKUP(E38,'Understanding codification'!$G$13:$H$69,2,FALSE) -> Wood, panels and wood derivatives >50% | G38: 060 | H38: =VLOOKUP(G38,'Understanding codification'!$J$13:$K$35,2,FALSE) -> ≥ 40kg and < 50kg | J38: 31201010600 | K38: Toys - Action figures and accessories en Wood, panels and wood derivatives >50%≥ 40kg and < 50kg | L38: 6.39 | M38: =VLOOKUP(Tableau13[[#This Row],[Price excl. tax]],'Eco-fee codes'!$C$4:$E$408,3,FALSE) -> 409 | N38: =Tableau13[[#This Row],[Price excl. tax]]*1.2 -> 7.668
A39: 31 | B39: =VLOOKUP(A39,'Understanding codification'!$A$13:$B$16,2,FALSE) -> Toys | C39: 201 | D39: =VLOOKUP(C39,'Understanding codification'!$D$13:$E$50,2,FALSE) -> Action figures and accessories | E39: 01 | F39: =VLOOKUP(E39,'Understanding codification'!$G$13:$H$69,2,FALSE) -> Wood, panels and wood derivatives >50% | G39: 082 | H39: =VLOOKUP(G39,'Understanding codification'!$J$13:$K$35,2,FALSE) -> Greater than 250 kg | J39: 31201010820 | K39: Toys - Action figures and accessories en Wood, panels and wood derivatives >50%Greater than 250 kg | L39: 30.49 | M39: =VLOOKUP(Tableau13[[#This Row],[Price excl. tax]],'Eco-fee codes'!$C$4:$E$408,3,FALSE) -> 410 | N39: =Tableau13[[#This Row],[Price excl. tax]]*1.2 -> 36.588
A40: 31 | B40: =VLOOKUP(A40,'Understanding codification'!$A$13:$B$16,2,FALSE) -> Toys | C40: 201 | D40: =VLOOKUP(C40,'Understanding codification'!$D$13:$E$50,2,FALSE) -> Action figures and accessories | E40: 01 | F40: =VLOOKUP(E40,'Understanding codification'!$G$13:$H$69,2,FALSE) -> Wood, panels and wood derivatives >50% | G40: 083 | H40: =VLOOKUP(G40,'Understanding codification'!$J$13:$K$35,2,FALSE) -> Strictly under 0.1 kg | J40: 31201010830 | K40: Toys - Action figures and accessories en Wood, panels and wood derivatives >50%Strictly under 0.1 kg | L40: 0.01 | M40: =VLOOKUP(Tableau13[[#This Row],[Price excl. tax]],'Eco-fee codes'!$C$4:$E$408,3,FALSE) -> 260 | N40: =Tableau13[[#This Row],[Price excl. tax]]*1.2 -> 0.012
A41: 31 | B41: =VLOOKUP(A41,'Understanding codification'!$A$13:$B$16,2,FALSE) -> Toys | C41: 201 | D41: =VLOOKUP(C41,'Understanding codification'!$D$13:$E$50,2,FALSE) -> Action figures and accessories | E41: 01 | F41: =VLOOKUP(E41,'Understanding codification'!$G$13:$H$69,2,FALSE) -> Wood, panels and wood derivatives >50% | G41: 084 | H41: =VLOOKUP(G41,'Understanding codification'!$J$13:$K$35,2,FALSE) -> ≥ 0.1kg and < 0.2kg | J41: 31201010840 | K41: Toys - Action figures and accessories en Wood, panels and wood derivatives >50%≥ 0.1kg and < 0.2kg | L41: 0.03 | M41: =VLOOKUP(Tableau13[[#This Row],[Price excl. tax]],'Eco-fee codes'!$C$4:$E$408,3,FALSE) -> 092 | N41: =Tableau13[[#This Row],[Price excl. tax]]*1.2 -> 0.036
A42: 31 | B42: =VLOOKUP(A42,'Understanding codification'!$A$13:$B$16,2,FALSE) -> Toys | C42: 201 | D42: =VLOOKUP(C42,'Understanding codification'!$D$13:$E$50,2,FALSE) -> Action figures and accessories | E42: 01 | F42: =VLOOKUP(E42,'Understanding codification'!$G$13:$H$69,2,FALSE) -> Wood, panels and wood derivatives >50% | G42: 085 | H42: =VLOOKUP(G42,'Understanding codification'!$J$13:$K$35,2,FALSE) -> ≥ 0.2kg and < 0.3kg | J42: 31201010850 | K42: Toys - Action figures and accessories en Wood, panels and wood derivatives >50%≥ 0.2kg and < 0.3kg | L42: 0.05 | M42: =VLOOKUP(Tableau13[[#This Row],[Price excl. tax]],'Eco-fee codes'!$C$4:$E$408,3,FALSE) -> 048 | N42: =Tableau13[[#This Row],[Price excl. tax]]*1.2 -> 0.06
A43: 31 | B43: =VLOOKUP(A43,'Understanding codification'!$A$13:$B$16,2,FALSE) -> Toys | C43: 201 | D43: =VLOOKUP(C43,'Understanding codification'!$D$13:$E$50,2,FALSE) -> Action figures and accessories | E43: 01 | F43: =VLOOKUP(E43,'Understanding codification'!$G$13:$H$69,2,FALSE) -> Wood, panels and wood derivatives >50% | G43: 086 | H43: =VLOOKUP(G43,'Understanding codification'!$J$13:$K$35,2,FALSE) -> ≥ 0.3kg and < 0.4kg | J43: 31201010860 | K43: Toys - Action figures and accessories en Wood, panels and wood derivatives >50%≥ 0.3kg and < 0.4kg | L43: 0.07 | M43: =VLOOKUP(Tableau13[[#This Row],[Price excl. tax]],'Eco-fee codes'!$C$4:$E$408,3,FALSE) -> 247 | N43: =Tableau13[[#This Row],[Price excl. tax]]*1.2 -> 0.084
A44: 31 | B44: =VLOOKUP(A44,'Understanding codification'!$A$13:$B$16,2,FALSE) -> Toys | C44: 201 | D44: =VLOOKUP(C44,'Understanding codification'!$D$13:$E$50,2,FALSE) -> Action figures and accessories | E44: 01 | F44: =VLOOKUP(E44,'Understanding codification'!$G$13:$H$69,2,FALSE) -> Wood, panels and wood derivatives >50% | G44: 087 | H44: =VLOOKUP(G44,'Understanding codification'!$J$13:$K$35,2,FALSE) -> ≥ 0.4kg and < 0.5kg | J44: 31201010870 | K44: Toys - Action figures and accessories en Wood, panels and wood derivatives >50%≥ 0.4kg and < 0.5kg | L44: 0.08 | M44: =VLOOKUP(Tableau13[[#This Row],[Price excl. tax]],'Eco-fee codes'!$C$4:$E$408,3,FALSE) -> 003 | N44: =Tableau13[[#This Row],[Price excl. tax]]*1.2 -> 0.096
A45: 31 | B45: =VLOOKUP(A45,'Understanding codification'!$A$13:$B$16,2,FALSE) -> Toys | C45: 201 | D45: =VLOOKUP(C45,'Understanding codification'!$D$13:$E$50,2,FALSE) -> Action figures and accessories | E45: 01 | F45: =VLOOKUP(E45,'Understanding codification'!$G$13:$H$69,2,FALSE) -> Wood, panels and wood derivatives >50% | G45: 088 | H45: =VLOOKUP(G45,'Understanding codification'!$J$13:$K$35,2,FALSE) -> ≥ 50kg and < 100kg | J45: 31201010880 | K45: Toys - Action figures and accessories en Wood, panels and wood derivatives >50%≥ 50kg and < 100kg | L45: 10.11 | M45: =VLOOKUP(Tableau13[[#This Row],[Price excl. tax]],'Eco-fee codes'!$C$4:$E$408,3,FALSE) -> 411 | N45: =Tableau13[[#This Row],[Price excl. tax]]*1.2 -> 12.132
A46: 31 | B46: =VLOOKUP(A46,'Understanding codification'!$A$13:$B$16,2,FALSE) -> Toys | C46: 201 | D46: =VLOOKUP(C46,'Understanding codification'!$D$13:$E$50,2,FALSE) -> Action figures and accessories | E46: 02 | F46: =VLOOKUP(E46,'Understanding codification'!$G$13:$H$69,2,FALSE) -> Metal >50% | G46: 021 | H46: =VLOOKUP(G46,'Understanding codification'!$J$13:$K$35,2,FALSE) -> ≥ 0.5kg and < 1kg | J46: 31201020210 | K46: Toys - Action figures and accessories en Metal >50%≥ 0.5kg and < 1kg | L46: 0.11 | M46: =VLOOKUP(Tableau13[[#This Row],[Price excl. tax]],'Eco-fee codes'!$C$4:$E$408,3,FALSE) -> 262 | N46: =Tableau13[[#This Row],[Price excl. tax]]*1.2 -> 0.132
A47: 31 | B47: =VLOOKUP(A47,'Understanding codification'!$A$13:$B$16,2,FALSE) -> Toys | C47: 201 | D47: =VLOOKUP(C47,'Understanding codification'!$D$13:$E$50,2,FALSE) -> Action figures and accessories | E47: 02 | F47: =VLOOKUP(E47,'Understanding codification'!$G$13:$H$69,2,FALSE) -> Metal >50% | G47: 022 | H47: =VLOOKUP(G47,'Understanding codification'!$J$13:$K$35,2,FALSE) -> ≥ 1kg and < 2kg | J47: 31201020220 | K47: Toys - Action figures and accessories en Metal >50%≥ 1kg and < 2kg | L47: 0.22 | M47: =VLOOKUP(Tableau13[[#This Row],[Price excl. tax]],'Eco-fee codes'!$C$4:$E$408,3,FALSE) -> 263 | N47: =Tableau13[[#This Row],[Price excl. tax]]*1.2 -> 0.264
A48: 31 | B48: =VLOOKUP(A48,'Understanding codification'!$A$13:$B$16,2,FALSE) -> Toys | C48: 201 | D48: =VLOOKUP(C48,'Understanding codification'!$D$13:$E$50,2,FALSE) -> Action figures and accessories | E48: 02 | F48: =VLOOKUP(E48,'Understanding codification'!$G$13:$H$69,2,FALSE) -> Metal >50% | G48: 027 | H48: =VLOOKUP(G48,'Understanding codification'!$J$13:$K$35,2,FALSE) -> ≥ 30kg and < 40kg | J48: 31201020270 | K48: Toys - Action figures and accessories en Metal >50%≥ 30kg and < 40kg | L48: 4.36 | M48: =VLOOKUP(Tableau13[[#This Row],[Price excl. tax]],'Eco-fee codes'!$C$4:$E$408,3,FALSE) -> 258 | N48: =Tableau13[[#This Row],[Price excl. tax]]*1.2 -> 5.232
A49: 31 | B49: =VLOOKUP(A49,'Understanding codification'!$A$13:$B$16,2,FALSE) -> Toys | C49: 201 | D49: =VLOOKUP(C49,'Understanding codification'!$D$13:$E$50,2,FALSE) -> Action figures and accessories | E49: 02 | F49: =VLOOKUP(E49,'Understanding codification'!$G$13:$H$69,2,FALSE) -> Metal >50% | G49: 030 | H49: =VLOOKUP(G49,'Understanding codification'!$J$13:$K$35,2,FALSE) -> ≥ 100kg and < 150kg | J49: 31201020300 | K49: Toys - Action figures and accessories en Metal >50%≥ 100kg and < 150kg | L49: 12.71 | M49: =VLOOKUP(Tableau13[[#This Row],[Price excl. tax]],'Eco-fee codes'!$C$4:$E$408,3,FALSE) -> 428 | N49: =Tableau13[[#This Row],[Price excl. tax]]*1.2 -> 15.252
A50: 31 | B50: =VLOOKUP(A50,'Understanding codification'!$A$13:$B$16,2,FALSE) -> Toys | C50: 201 | D50: =VLOOKUP(C50,'Understanding codification'!$D$13:$E$50,2,FALSE) -> Action figures and accessories | E50: 02 | F50: =VLOOKUP(E50,'Understanding codification'!$G$13:$H$69,2,FALSE) -> Metal >50% | G50: 031 | H50: =VLOOKUP(G50,'Understanding codification'!$J$13:$K$35,2,FALSE) -> ≥ 150kg and < 200kg | J50: 31201020310 | K50: Toys - Action figures and accessories en Metal >50%≥ 150kg and < 200kg | L50: 17.79 | M50: =VLOOKUP(Tableau13[[#This Row],[Price excl. tax]],'Eco-fee codes'!$C$4:$E$408,3,FALSE) -> 429 | N50: =Tableau13[[#This Row],[Price excl. tax]]*1.2 -> 21.348
A51: 31 | B51: =VLOOKUP(A51,'Understanding codification'!$A$13:$B$16,2,FALSE) -> Toys | C51: 201 | D51: =VLOOKUP(C51,'Understanding codification'!$D$13:$E$50,2,FALSE) -> Action figures and accessories | E51: 02 | F51: =VLOOKUP(E51,'Understanding codification'!$G$13:$H$69,2,FALSE) -> Metal >50% | G51: 032 | H51: =VLOOKUP(G51,'Understanding codification'!$J$13:$K$35,2,FALSE) -> ≥ 200kg and < 250kg | J51: 31201020320 | K51: Toys - Action figures and accessories en Metal >50%≥ 200kg and < 250kg | L51: 22.87 | M51: =VLOOKUP(Tableau13[[#This Row],[Price excl. tax]],'Eco-fee codes'!$C$4:$E$408,3,FALSE) -> 430 | N51: =Tableau13[[#This Row],[Price excl. tax]]*1.2 -> 27.444
A52: 31 | B52: =VLOOKUP(A52,'Understanding codification'!$A$13:$B$16,2,FALSE) -> Toys | C52: 201 | D52: =VLOOKUP(C52,'Understanding codification'!$D$13:$E$50,2,FALSE) -> Action figures and accessories | E52: 02 | F52: =VLOOKUP(E52,'Understanding codification'!$G$13:$H$69,2,FALSE) -> Metal >50% | G52: 052 | H52: =VLOOKUP(G52,'Understanding codification'!$J$13:$K$35,2,FALSE) -> ≥ 2kg and < 3kg | J52: 31201020520 | K52: Toys - Action figures and accessories en Metal >50%≥ 2kg and < 3kg | L52: 0.37 | M52: =VLOOKUP(Tableau13[[#This Row],[Price excl. tax]],'Eco-fee codes'!$C$4:$E$408,3,FALSE) -> 268 | N52: =Tableau13[[#This Row],[Price excl. tax]]*1.2 -> 0.444
A53: 31 | B53: =VLOOKUP(A53,'Understanding codification'!$A$13:$B$16,2,FALSE) -> Toys | C53: 201 | D53: =VLOOKUP(C53,'Understanding codification'!$D$13:$E$50,2,FALSE) -> Action figures and accessories | E53: 02 | F53: =VLOOKUP(E53,'Understanding codification'!$G$13:$H$69,2,FALSE) -> Metal >50% | G53: 053 | H53: =VLOOKUP(G53,'Understanding codification'!$J$13:$K$35,2,FALSE) -> ≥ 3kg and < 5kg | J53: 31201020530 | K53: Toys - Action figures and accessories en Metal >50%≥ 3kg and < 5kg | L53: 0.59 | M53: =VLOOKUP(Tableau13[[#This Row],[Price excl. tax]],'Eco-fee codes'!$C$4:$E$408,3,FALSE) -> 254 | N53: =Tableau13[[#This Row],[Price excl. tax]]*1.2 -> 0.708
A54: 31 | B54: =VLOOKUP(A54,'Understanding codification'!$A$13:$B$16,2,FALSE) -> Toys | C54: 201 | D54: =VLOOKUP(C54,'Understanding codification'!$D$13:$E$50,2,FALSE) -> Action figures and accessories | E54: 02 | F54: =VLOOKUP(E54,'Understanding codification'!$G$13:$H$69,2,FALSE) -> Metal >50% | G54: 054 | H54: =VLOOKUP(G54,'Understanding codification'!$J$13:$K$35,2,FALSE) -> ≥ 5kg and < 7kg | J54: 31201020540 | K54: Toys - Action figures and accessories en Metal >50%≥ 5kg and < 7kg | L54: 0.88 | M54: =VLOOKUP(Tableau13[[#This Row],[Price excl. tax]],'Eco-fee codes'!$C$4:$E$408,3,FALSE) -> 269 | N54: =Tableau13[[#This Row],[Price excl. tax]]*1.2 -> 1.056
A55: 31 | B55: =VLOOKUP(A55,'Understanding codification'!$A$13:$B$16,2,FALSE) -> Toys | C55: 201 | D55: =VLOOKUP(C55,'Understanding codification'!$D$13:$E$50,2,FALSE) -> Action figures and accessories | E55: 02 | F55: =VLOOKUP(E55,'Understanding codification'!$G$13:$H$69,2,FALSE) -> Metal >50% | G55: 055 | H55: =VLOOKUP(G55,'Understanding codification'!$J$13:$K$35,2,FALSE) -> ≥ 7kg and < 10kg | J55: 31201020550 | K55: Toys - Action figures and accessories en Metal >50%≥ 7kg and < 10kg | L55: 1.09 | M55: =VLOOKUP(Tableau13[[#This Row],[Price excl. tax]],'Eco-fee codes'!$C$4:$E$408,3,FALSE) -> 270 | N55: =Tableau13[[#This Row],[Price excl. tax]]*1.2 -> 1.308
A56: 31 | B56: =VLOOKUP(A56,'Understanding codification'!$A$13:$B$16,2,FALSE) -> Toys | C56: 201 | D56: =VLOOKUP(C56,'Understanding codification'!$D$13:$E$50,2,FALSE) -> Action figures and accessories | E56: 02 | F56: =VLOOKUP(E56,'Understanding codification'!$G$13:$H$69,2,FALSE) -> Metal >50% | G56: 056 | H56: =VLOOKUP(G56,'Understanding codification'!$J$13:$K$35,2,FALSE) -> ≥ 10kg and < 15kg | J56: 31201020560 | K56: Toys - Action figures and accessories en Metal >50%≥ 10kg and < 15kg | L56: 1.82 | M56: =VLOOKUP(Tableau13[[#This Row],[Price excl. tax]],'Eco-fee codes'!$C$4:$E$408,3,FALSE) -> 271 | N56: =Tableau13[[#This Row],[Price excl. tax]]*1.2 -> 2.184
A57: 31 | B57: =VLOOKUP(A57,'Understanding codification'!$A$13:$B$16,2,FALSE) -> Toys | C57: 201 | D57: =VLOOKUP(C57,'Understanding codification'!$D$13:$E$50,2,FALSE) -> Action figures and accessories | E57: 02 | F57: =VLOOKUP(E57,'Understanding codification'!$G$13:$H$69,2,FALSE) -> Metal >50% | G57: 057 | H57: =VLOOKUP(G57,'Understanding codification'!$J$13:$K$35,2,FALSE) -> ≥ 15kg and < 20kg | J57: 31201020570 | K57: Toys - Action figures and accessories en Metal >50%≥ 15kg and < 20kg | L57: 2.55 | M57: =VLOOKUP(Tableau13[[#This Row],[Price excl. tax]],'Eco-fee codes'!$C$4:$E$408,3,FALSE) -> 272 | N57: =Tableau13[[#This Row],[Price excl. tax]]*1.2 -> 3.06
A58: 31 | B58: =VLOOKUP(A58,'Understanding codification'!$A$13:$B$16,2,FALSE) -> Toys | C58: 201 | D58: =VLOOKUP(C58,'Understanding codification'!$D$13:$E$50,2,FALSE) -> Action figures and accessories | E58: 02 | F58: =VLOOKUP(E58,'Understanding codification'!$G$13:$H$69,2,FALSE) -> Metal >50% | G58: 058 | H58: =VLOOKUP(G58,'Understanding codification'!$J$13:$K$35,2,FALSE) -> ≥ 20kg and < 25kg | J58: 31201020580 | K58: Toys - Action figures and accessories en Metal >50%≥ 20kg and < 25kg | L58: 3.11 | M58: =VLOOKUP(Tableau13[[#This Row],[Price excl. tax]],'Eco-fee codes'!$C$4:$E$408,3,FALSE) -> 431 | N58: =Tableau13[[#This Row],[Price excl. tax]]*1.2 -> 3.732
A59: 31 | B59: =VLOOKUP(A59,'Understanding codification'!$A$13:$B$16,2,FALSE) -> Toys | C59: 201 | D59: =VLOOKUP(C59,'Understanding codification'!$D$13:$E$50,2,FALSE) -> Action figures and accessories | E59: 02 | F59: =VLOOKUP(E59,'Understanding codification'!$G$13:$H$69,2,FALSE) -> Metal >50% | G59: 059 | H59: =VLOOKUP(G59,'Understanding codification'!$J$13:$K$35,2,FALSE) -> ≥ 25kg and < 30kg | J59: 31201020590 | K59: Toys - Action figures and accessories en Metal >50%≥ 25kg and < 30kg | L59: 3.61 | M59: =VLOOKUP(Tableau13[[#This Row],[Price excl. tax]],'Eco-fee codes'!$C$4:$E$408,3,FALSE) -> 432 | N59: =Tableau13[[#This Row],[Price excl. tax]]*1.2 -> 4.332
A60: 31 | B60: =VLOOKUP(A60,'Understanding codification'!$A$13:$B$16,2,FALSE) -> Toys | C60: 201 | D60: =VLOOKUP(C60,'Understanding codification'!$D$13:$E$50,2,FALSE) -> Action figures and accessories | E60: 02 | F60: =VLOOKUP(E60,'Understanding codification'!$G$13:$H$69,2,FALSE) -> Metal >50% | G60: 060 | H60: =VLOOKUP(G60,'Understanding codification'!$J$13:$K$35,2,FALSE) -> ≥ 40kg and < 50kg | J60: 31201020600 | K60: Toys - Action figures and accessories en Metal >50%≥ 40kg and < 50kg | L60: 5.33 | M60: =VLOOKUP(Tableau13[[#This Row],[Price excl. tax]],'Eco-fee codes'!$C$4:$E$408,3,FALSE) -> 132 | N60: =Tableau13[[#This Row],[Price excl. tax]]*1.2 -> 6.396
A61: 31 | B61: =VLOOKUP(A61,'Understanding codification'!$A$13:$B$16,2,FALSE) -> Toys | C61: 201 | D61: =VLOOKUP(C61,'Understanding codification'!$D$13:$E$50,2,FALSE) -> Action figures and accessories | E61: 02 | F61: =VLOOKUP(E61,'Understanding codification'!$G$13:$H$69,2,FALSE) -> Metal >50% | G61: 082 | H61: =VLOOKUP(G61,'Understanding codification'!$J$13:$K$35,2,FALSE) -> Greater than 250 kg | J61: 31201020820 | K61: Toys - Action figures and accessories en Metal >50%Greater than 250 kg | L61: 25.41 | M61: =VLOOKUP(Tableau13[[#This Row],[Price excl. tax]],'Eco-fee codes'!$C$4:$E$408,3,FALSE) -> 266 | N61: =Tableau13[[#This Row],[Price excl. tax]]*1.2 -> 30.492
A62: 31 | B62: =VLOOKUP(A62,'Understanding codification'!$A$13:$B$16,2,FALSE) -> Toys | C62: 201 | D62: =VLOOKUP(C62,'Understanding codification'!$D$13:$E$50,2,FALSE) -> Action figures and accessories | E62: 02 | F62: =VLOOKUP(E62,'Understanding codification'!$G$13:$H$69,2,FALSE) -> Metal >50% | G62: 083 | H62: =VLOOKUP(G62,'Understanding codification'!$J$13:$K$35,2,FALSE) -> Strictly under 0.1 kg | J62: 31201020830 | K62: Toys - Action figures and accessories en Metal >50%Strictly under 0.1 kg | L62: 0.01 | M62: =VLOOKUP(Tableau13[[#This Row],[Price excl. tax]],'Eco-fee codes'!$C$4:$E$408,3,FALSE) -> 260 | N62: =Tableau13[[#This Row],[Price excl. tax]]*1.2 -> 0.012
A63: 31 | B63: =VLOOKUP(A63,'Understanding codification'!$A$13:$B$16,2,FALSE) -> Toys | C63: 201 | D63: =VLOOKUP(C63,'Understanding codification'!$D$13:$E$50,2,FALSE) -> Action figures and accessories | E63: 02 | F63: =VLOOKUP(E63,'Understanding codification'!$G$13:$H$69,2,FALSE) -> Metal >50% | G63: 084 | H63: =VLOOKUP(G63,'Understanding codification'!$J$13:$K$35,2,FALSE) -> ≥ 0.1kg and < 0.2kg | J63: 31201020840 | K63: Toys - Action figures and accessories en Metal >50%≥ 0.1kg and < 0.2kg | L63: 0.03 | M63: =VLOOKUP(Tableau13[[#This Row],[Price excl. tax]],'Eco-fee codes'!$C$4:$E$408,3,FALSE) -> 092 | N63: =Tableau13[[#This Row],[Price excl. tax]]*1.2 -> 0.036
A64: 31 | B64: =VLOOKUP(A64,'Understanding codification'!$A$13:$B$16,2,FALSE) -> Toys | C64: 201 | D64: =VLOOKUP(C64,'Understanding codification'!$D$13:$E$50,2,FALSE) -> Action figures and accessories | E64: 02 | F64: =VLOOKUP(E64,'Understanding codification'!$G$13:$H$69,2,FALSE) -> Metal >50% | G64: 085 | H64: =VLOOKUP(G64,'Understanding codification'!$J$13:$K$35,2,FALSE) -> ≥ 0.2kg and < 0.3kg | J64: 31201020850 | K64: Toys - Action figures and accessories en Metal >50%≥ 0.2kg and < 0.3kg | L64: 0.04 | M64: =VLOOKUP(Tableau13[[#This Row],[Price excl. tax]],'Eco-fee codes'!$C$4:$E$408,3,FALSE) -> 002 | N64: =Tableau13[[#This Row],[Price excl. tax]]*1.2 -> 0.048
A65: 31 | B65: =VLOOKUP(A65,'Understanding codification'!$A$13:$B$16,2,FALSE) -> Toys | C65: 201 | D65: =VLOOKUP(C65,'Understanding codification'!$D$13:$E$50,2,FALSE) -> Action figures and accessories | E65: 02 | F65: =VLOOKUP(E65,'Understanding codification'!$G$13:$H$69,2,FALSE) -> Metal >50% | G65: 086 | H65: =VLOOKUP(G65,'Understanding codification'!$J$13:$K$35,2,FALSE) -> ≥ 0.3kg and < 0.4kg | J65: 31201020860 | K65: Toys - Action figures and accessories en Metal >50%≥ 0.3kg and < 0.4kg | L65: 0.06 | M65: =VLOOKUP(Tableau13[[#This Row],[Price excl. tax]],'Eco-fee codes'!$C$4:$E$408,3,FALSE) -> 096 | N65: =Tableau13[[#This Row],[Price excl. tax]]*1.2 -> 0.072
A66: =MID(J66,1,2) -> 31 | B66: =VLOOKUP(A66,'Understanding codification'!$A$13:$B$16,2,FALSE) -> Toys | C66: =MID(J66,3,3) -> 201 | D66: =VLOOKUP(C66,'Understanding codification'!$D$13:$E$50,2,FALSE) -> Action figures and accessories | E66: =MID(J66,6,2) -> 02 | F66: =VLOOKUP(E66,'Understanding codification'!$G$13:$H$69,2,FALSE) -> Metal >50% | G66: =MID(J66,8,3) -> 087 | H66: =VLOOKUP(G66,'Understanding codification'!$J$13:$K$35,2,FALSE) -> ≥ 0.4kg and < 0.5kg | J66: 31201020870 | K66: =B66&" - "&D66&" en "&F66&H66 -> Toys - Action figures and accessories en Metal >50%≥ 0.4kg and < 0.5kg | L66: 0.07 | M66: =VLOOKUP(Tableau13[[#This Row],[Price excl. tax]],'Eco-fee codes'!$C$4:$E$408,3,FALSE) -> 247 | N66: =Tableau13[[#This Row],[Price excl. tax]]*1.2 -> 0.084
A67: 31 | B67: =VLOOKUP(A67,'Understanding codification'!$A$13:$B$16,2,FALSE) -> Toys | C67: 201 | D67: =VLOOKUP(C67,'Understanding codification'!$D$13:$E$50,2,FALSE) -> Action figures and accessories | E67: 02 | F67: =VLOOKUP(E67,'Understanding codification'!$G$13:$H$69,2,FALSE) -> Metal >50% | G67: 088 | H67: =VLOOKUP(G67,'Understanding codification'!$J$13:$K$35,2,FALSE) -> ≥ 50kg and < 100kg | J67: 31201020880 | K67: Toys - Action figures and accessories en Metal >50%≥ 50kg and < 100kg | L67: 8.43 | M67: =VLOOKUP(Tableau13[[#This Row],[Price excl. tax]],'Eco-fee codes'!$C$4:$E$408,3,FALSE) -> 433 | N67: =Tableau13[[#This Row],[Price excl. tax]]*1.2 -> 10.116
A68: 31 | B68: =VLOOKUP(A68,'Understanding codification'!$A$13:$B$16,2,FALSE) -> Toys | C68: 201 | D68: =VLOOKUP(C68,'Understanding codification'!$D$13:$E$50,2,FALSE) -> Action figures and accessories | E68: 03 | F68: =VLOOKUP(E68,'Understanding codification'!$G$13:$H$69,2,FALSE) -> Bamboo/rattan >50% | G68: 021 | H68: =VLOOKUP(G68,'Understanding codification'!$J$13:$K$35,2,FALSE) -> ≥ 0.5kg and < 1kg | J68: 31201030210 | K68: Toys - Action figures and accessories en Bamboo/rattan >50%≥ 0.5kg and < 1kg | L68: 0.14 | M68: =VLOOKUP(Tableau13[[#This Row],[Price excl. tax]],'Eco-fee codes'!$C$4:$E$408,3,FALSE) -> 098 | N68: =Tableau13[[#This Row],[Price excl. tax]]*1.2 -> 0.168
A69: 31 | B69: =VLOOKUP(A69,'Understanding codification'!$A$13:$B$16,2,FALSE) -> Toys | C69: 201 | D69: =VLOOKUP(C69,'Understanding codification'!$D$13:$E$50,2,FALSE) -> Action figures and accessories | E69: 03 | F69: =VLOOKUP(E69,'Understanding codification'!$G$13:$H$69,2,FALSE) -> Bamboo/rattan >50% | G69: 022 | H69: =VLOOKUP(G69,'Understanding codification'!$J$13:$K$35,2,FALSE) -> ≥ 1kg and < 2kg | J69: 31201030220 | K69: Toys - Action figures and accessories en Bamboo/rattan >50%≥ 1kg and < 2kg | L69: 0.27 | M69: =VLOOKUP(Tableau13[[#This Row],[Price excl. tax]],'Eco-fee codes'!$C$4:$E$408,3,FALSE) -> 103 | N69: =Tableau13[[#This Row],[Price excl. tax]]*1.2 -> 0.324
A70: 31 | B70: =VLOOKUP(A70,'Understanding codification'!$A$13:$B$16,2,FALSE) -> Toys | C70: 201 | D70: =VLOOKUP(C70,'Understanding codification'!$D$13:$E$50,2,FALSE) -> Action figures and accessories | E70: 03 | F70: =VLOOKUP(E70,'Understanding codification'!$G$13:$H$69,2,FALSE) -> Bamboo/rattan >50% | G70: 027 | H70: =VLOOKUP(G70,'Understanding codification'!$J$13:$K$35,2,FALSE) -> ≥ 30kg and < 40kg | J70: 31201030270 | K70: Toys - Action figures and accessories en Bamboo/rattan >50%≥ 30kg and < 40kg | L70: 5.23 | M70: =VLOOKUP(Tableau13[[#This Row],[Price excl. tax]],'Eco-fee codes'!$C$4:$E$408,3,FALSE) -> 403 | N70: =Tableau13[[#This Row],[Price excl. tax]]*1.2 -> 6.276
A71: 31 | B71: =VLOOKUP(A71,'Understanding codification'!$A$13:$B$16,2,FALSE) -> Toys | C71: 201 | D71: =VLOOKUP(C71,'Understanding codification'!$D$13:$E$50,2,FALSE) -> Action figures and accessories | E71: 03 | F71: =VLOOKUP(E71,'Understanding codification'!$G$13:$H$69,2,FALSE) -> Bamboo/rattan >50% | G71: 030 | H71: =VLOOKUP(G71,'Understanding codification'!$J$13:$K$35,2,FALSE) -> ≥ 100kg and < 150kg | J71: 31201030300 | K71: Toys - Action figures and accessories en Bamboo/rattan >50%≥ 100kg and < 150kg | L71: 15.25 | M71: =VLOOKUP(Tableau13[[#This Row],[Price excl. tax]],'Eco-fee codes'!$C$4:$E$408,3,FALSE) -> 404 | N71: =Tableau13[[#This Row],[Price excl. tax]]*1.2 -> 18.3
A72: 31 | B72: =VLOOKUP(A72,'Understanding codification'!$A$13:$B$16,2,FALSE) -> Toys | C72: 201 | D72: =VLOOKUP(C72,'Understanding codification'!$D$13:$E$50,2,FALSE) -> Action figures and accessories | E72: 03 | F72: =VLOOKUP(E72,'Understanding codification'!$G$13:$H$69,2,FALSE) -> Bamboo/rattan >50% | G72: 031 | H72: =VLOOKUP(G72,'Understanding codification'!$J$13:$K$35,2,FALSE) -> ≥ 150kg and < 200kg | J72: 31201030310 | K72: Toys - Action figures and accessories en Bamboo/rattan >50%≥ 150kg and < 200kg | L72: 21.35 | M72: =VLOOKUP(Tableau13[[#This Row],[Price excl. tax]],'Eco-fee codes'!$C$4:$E$408,3,FALSE) -> 405 | N72: =Tableau13[[#This Row],[Price excl. tax]]*1.2 -> 25.62
A73: 31 | B73: =VLOOKUP(A73,'Understanding codification'!$A$13:$B$16,2,FALSE) -> Toys | C73: 201 | D73: =VLOOKUP(C73,'Understanding codification'!$D$13:$E$50,2,FALSE) -> Action figures and accessories | E73: 03 | F73: =VLOOKUP(E73,'Understanding codification'!$G$13:$H$69,2,FALSE) -> Bamboo/rattan >50% | G73: 032 | H73: =VLOOKUP(G73,'Understanding codification'!$J$13:$K$35,2,FALSE) -> ≥ 200kg and < 250kg | J73: 31201030320 | K73: Toys - Action figures and accessories en Bamboo/rattan >50%≥ 200kg and < 250kg | L73: 27.45 | M73: =VLOOKUP(Tableau13[[#This Row],[Price excl. tax]],'Eco-fee codes'!$C$4:$E$408,3,FALSE) -> 406 | N73: =Tableau13[[#This Row],[Price excl. tax]]*1.2 -> 32.94
A74: 31 | B74: =VLOOKUP(A74,'Understanding codification'!$A$13:$B$16,2,FALSE) -> Toys | C74: 201 | D74: =VLOOKUP(C74,'Understanding codification'!$D$13:$E$50,2,FALSE) -> Action figures and accessories | E74: 03 | F74: =VLOOKUP(E74,'Understanding codification'!$G$13:$H$69,2,FALSE) -> Bamboo/rattan >50% | G74: 052 | H74: =VLOOKUP(G74,'Understanding codification'!$J$13:$K$35,2,FALSE) -> ≥ 2kg and < 3kg | J74: 31201030520 | K74: Toys - Action figures and accessories en Bamboo/rattan >50%≥ 2kg and < 3kg | L74: 0.44 | M74: =VLOOKUP(Tableau13[[#This Row],[Price excl. tax]],'Eco-fee codes'!$C$4:$E$408,3,FALSE) -> 281 | N74: =Tableau13[[#This Row],[Price excl. tax]]*1.2 -> 0.528
A75: 31 | B75: =VLOOKUP(A75,'Understanding codification'!$A$13:$B$16,2,FALSE) -> Toys | C75: 201 | D75: =VLOOKUP(C75,'Understanding codification'!$D$13:$E$50,2,FALSE) -> Action figures and accessories | E75: 03 | F75: =VLOOKUP(E75,'Understanding codification'!$G$13:$H$69,2,FALSE) -> Bamboo/rattan >50% | G75: 053 | H75: =VLOOKUP(G75,'Understanding codification'!$J$13:$K$35,2,FALSE) -> ≥ 3kg and < 5kg | J75: 31201030530 | K75: Toys - Action figures and accessories en Bamboo/rattan >50%≥ 3kg and < 5kg | L75: 0.7 | M75: =VLOOKUP(Tableau13[[#This Row],[Price excl. tax]],'Eco-fee codes'!$C$4:$E$408,3,FALSE) -> 282 | N75: =Tableau13[[#This Row],[Price excl. tax]]*1.2 -> 0.84
A76: 31 | B76: =VLOOKUP(A76,'Understanding codification'!$A$13:$B$16,2,FALSE) -> Toys | C76: 201 | D76: =VLOOKUP(C76,'Understanding codification'!$D$13:$E$50,2,FALSE) -> Action figures and accessories | E76: 03 | F76: =VLOOKUP(E76,'Understanding codification'!$G$13:$H$69,2,FALSE) -> Bamboo/rattan >50% | G76: 054 | H76: =VLOOKUP(G76,'Understanding codification'!$J$13:$K$35,2,FALSE) -> ≥ 5kg and < 7kg | J76: 31201030540 | K76: Toys - Action figures and accessories en Bamboo/rattan >50%≥ 5kg and < 7kg | L76: 1.05 | M76: =VLOOKUP(Tableau13[[#This Row],[Price excl. tax]],'Eco-fee codes'!$C$4:$E$408,3,FALSE) -> 283 | N76: =Tableau13[[#This Row],[Price excl. tax]]*1.2 -> 1.26
A77: 31 | B77: =VLOOKUP(A77,'Understanding codification'!$A$13:$B$16,2,FALSE) -> Toys | C77: 201 | D77: =VLOOKUP(C77,'Understanding codification'!$D$13:$E$50,2,FALSE) -> Action figures and accessories | E77: 03 | F77: =VLOOKUP(E77,'Understanding codification'!$G$13:$H$69,2,FALSE) -> Bamboo/rattan >50% | G77: 055 | H77: =VLOOKUP(G77,'Understanding codification'!$J$13:$K$35,2,FALSE) -> ≥ 7kg and < 10kg | J77: 31201030550 | K77: Toys - Action figures and accessories en Bamboo/rattan >50%≥ 7kg and < 10kg | L77: 1.31 | M77: =VLOOKUP(Tableau13[[#This Row],[Price excl. tax]],'Eco-fee codes'!$C$4:$E$408,3,FALSE) -> 284 | N77: =Tableau13[[#This Row],[Price excl. tax]]*1.2 -> 1.572
A78: 31 | B78: =VLOOKUP(A78,'Understanding codification'!$A$13:$B$16,2,FALSE) -> Toys | C78: 201 | D78: =VLOOKUP(C78,'Understanding codification'!$D$13:$E$50,2,FALSE) -> Action figures and accessories | E78: 03 | F78: =VLOOKUP(E78,'Understanding codification'!$G$13:$H$69,2,FALSE) -> Bamboo/rattan >50% | G78: 056 | H78: =VLOOKUP(G78,'Understanding codification'!$J$13:$K$35,2,FALSE) -> ≥ 10kg and < 15kg | J78: 31201030560 | K78: Toys - Action figures and accessories en Bamboo/rattan >50%≥ 10kg and < 15kg | L78: 2.18 | M78: =VLOOKUP(Tableau13[[#This Row],[Price excl. tax]],'Eco-fee codes'!$C$4:$E$408,3,FALSE) -> 257 | N78: =Tableau13[[#This Row],[Price excl. tax]]*1.2 -> 2.616
A79: 31 | B79: =VLOOKUP(A79,'Understanding codification'!$A$13:$B$16,2,FALSE) -> Toys | C79: 201 | D79: =VLOOKUP(C79,'Understanding codification'!$D$13:$E$50,2,FALSE) -> Action figures and accessories | E79: 03 | F79: =VLOOKUP(E79,'Understanding codification'!$G$13:$H$69,2,FALSE) -> Bamboo/rattan >50% | G79: 057 | H79: =VLOOKUP(G79,'Understanding codification'!$J$13:$K$35,2,FALSE) -> ≥ 15kg and < 20kg | J79: 31201030570 | K79: Toys - Action figures and accessories en Bamboo/rattan >50%≥ 15kg and < 20kg | L79: 3.05 | M79: =VLOOKUP(Tableau13[[#This Row],[Price excl. tax]],'Eco-fee codes'!$C$4:$E$408,3,FALSE) -> 285 | N79: =Tableau13[[#This Row],[Price excl. tax]]*1.2 -> 3.66
A80: 31 | B80: =VLOOKUP(A80,'Understanding codification'!$A$13:$B$16,2,FALSE) -> Toys | C80: 201 | D80: =VLOOKUP(C80,'Understanding codification'!$D$13:$E$50,2,FALSE) -> Action figures and accessories | E80: 03 | F80: =VLOOKUP(E80,'Understanding codification'!$G$13:$H$69,2,FALSE) -> Bamboo/rattan >50% | G80: 058 | H80: =VLOOKUP(G80,'Understanding codification'!$J$13:$K$35,2,FALSE) -> ≥ 20kg and < 25kg | J80: 31201030580 | K80: Toys - Action figures and accessories en Bamboo/rattan >50%≥ 20kg and < 25kg | L80: 3.73 | M80: =VLOOKUP(Tableau13[[#This Row],[Price excl. tax]],'Eco-fee codes'!$C$4:$E$408,3,FALSE) -> 407 | N80: =Tableau13[[#This Row],[Price excl. tax]]*1.2 -> 4.476
A81: 31 | B81: =VLOOKUP(A81,'Understanding codification'!$A$13:$B$16,2,FALSE) -> Toys | C81: 201 | D81: =VLOOKUP(C81,'Understanding codification'!$D$13:$E$50,2,FALSE) -> Action figures and accessories | E81: 03 | F81: =VLOOKUP(E81,'Understanding codification'!$G$13:$H$69,2,FALSE) -> Bamboo/rattan >50% | G81: 059 | H81: =VLOOKUP(G81,'Understanding codification'!$J$13:$K$35,2,FALSE) -> ≥ 25kg and < 30kg | J81: 31201030590 | K81: Toys - Action figures and accessories en Bamboo/rattan >50%≥ 25kg and < 30kg | L81: 4.33 | M81: =VLOOKUP(Tableau13[[#This Row],[Price excl. tax]],'Eco-fee codes'!$C$4:$E$408,3,FALSE) -> 408 | N81: =Tableau13[[#This Row],[Price excl. tax]]*1.2 -> 5.196
A82: 31 | B82: =VLOOKUP(A82,'Understanding codification'!$A$13:$B$16,2,FALSE) -> Toys | C82: 201 | D82: =VLOOKUP(C82,'Understanding codification'!$D$13:$E$50,2,FALSE) -> Action figures and accessories | E82: 03 | F82: =VLOOKUP(E82,'Understanding codification'!$G$13:$H$69,2,FALSE) -> Bamboo/rattan >50% | G82: 060 | H82: =VLOOKUP(G82,'Understanding codification'!$J$13:$K$35,2,FALSE) -> ≥ 40kg and < 50kg | J82: 31201030600 | K82: Toys - Action figures and accessories en Bamboo/rattan >50%≥ 40kg and < 50kg | L82: 6.39 | M82: =VLOOKUP(Tableau13[[#This Row],[Price excl. tax]],'Eco-fee codes'!$C$4:$E$408,3,FALSE) -> 409 | N82: =Tableau13[[#This Row],[Price excl. tax]]*1.2 -> 7.668
A83: 31 | B83: =VLOOKUP(A83,'Understanding codification'!$A$13:$B$16,2,FALSE) -> Toys | C83: 201 | D83: =VLOOKUP(C83,'Understanding codification'!$D$13:$E$50,2,FALSE) -> Action figures and accessories | E83: 03 | F83: =VLOOKUP(E83,'Understanding codification'!$G$13:$H$69,2,FALSE) -> Bamboo/rattan >50% | G83: 082 | H83: =VLOOKUP(G83,'Understanding codification'!$J$13:$K$35,2,FALSE) -> Greater than 250 kg | J83: 31201030820 | K83: Toys - Action figures and accessories en Bamboo/rattan >50%Greater than 250 kg | L83: 30.49 | M83: =VLOOKUP(Tableau13[[#This Row],[Price excl. tax]],'Eco-fee codes'!$C$4:$E$408,3,FALSE) -> 410 | N83: =Tableau13[[#This Row],[Price excl. tax]]*1.2 -> 36.588
A84: 31 | B84: =VLOOKUP(A84,'Understanding codification'!$A$13:$B$16,2,FALSE) -> Toys | C84: 201 | D84: =VLOOKUP(C84,'Understanding codification'!$D$13:$E$50,2,FALSE) -> Action figures and accessories | E84: 03 | F84: =VLOOKUP(E84,'Understanding codification'!$G$13:$H$69,2,FALSE) -> Bamboo/rattan >50% | G84: 083 | H84: =VLOOKUP(G84,'Understanding codification'!$J$13:$K$35,2,FALSE) -> Strictly under 0.1 kg | J84: 31201030830 | K84: Toys - Action figures and accessories en Bamboo/rattan >50%Strictly under 0.1 kg | L84: 0.01 | M84: =VLOOKUP(Tableau13[[#This Row],[Price excl. tax]],'Eco-fee codes'!$C$4:$E$408,3,FALSE) -> 260 | N84: =Tableau13[[#This Row],[Price excl. tax]]*1.2 -> 0.012
A85: 31 | B85: =VLOOKUP(A85,'Understanding codification'!$A$13:$B$16,2,FALSE) -> Toys | C85: 201 | D85: =VLOOKUP(C85,'Understanding codification'!$D$13:$E$50,2,FALSE) -> Action figures and accessories | E85: 03 | F85: =VLOOKUP(E85,'Understanding codification'!$G$13:$H$69,2,FALSE) -> Bamboo/rattan >50% | G85: 084 | H85: =VLOOKUP(G85,'Understanding codification'!$J$13:$K$35,2,FALSE) -> ≥ 0.1kg and < 0.2kg | J85: 31201030840 | K85: Toys - Action figures and accessories en Bamboo/rattan >50%≥ 0.1kg and < 0.2kg | L85: 0.03 | M85: =VLOOKUP(Tableau13[[#This Row],[Price excl. tax]],'Eco-fee codes'!$C$4:$E$408,3,FALSE) -> 092 | N85: =Tableau13[[#This Row],[Price excl. tax]]*1.2 -> 0.036
A86: 31 | B86: =VLOOKUP(A86,'Understanding codification'!$A$13:$B$16,2,FALSE) -> Toys | C86: 201 | D86: =VLOOKUP(C86,'Understanding codification'!$D$13:$E$50,2,FALSE) -> Action figures and accessories | E86: 03 | F86: =VLOOKUP(E86,'Understanding codification'!$G$13:$H$69,2,FALSE) -> Bamboo/rattan >50% | G86: 085 | H86: =VLOOKUP(G86,'Understanding codification'!$J$13:$K$35,2,FALSE) -> ≥ 0.2kg and < 0.3kg | J86: 31201030850 | K86: Toys - Action figures and accessories en Bamboo/rattan >50%≥ 0.2kg and < 0.3kg | L86: 0.05 | M86: =VLOOKUP(Tableau13[[#This Row],[Price excl. tax]],'Eco-fee codes'!$C$4:$E$408,3,FALSE) -> 048 | N86: =Tableau13[[#This Row],[Price excl. tax]]*1.2 -> 0.06
A87: 31 | B87: =VLOOKUP(A87,'Understanding codification'!$A$13:$B$16,2,FALSE) -> Toys | C87: 201 | D87: =VLOOKUP(C87,'Understanding codification'!$D$13:$E$50,2,FALSE) -> Action figures and accessories | E87: 03 | F87: =VLOOKUP(E87,'Understanding codification'!$G$13:$H$69,2,FALSE) -> Bamboo/rattan >50% | G87: 086 | H87: =VLOOKUP(G87,'Understanding codification'!$J$13:$K$35,2,FALSE) -> ≥ 0.3kg and < 0.4kg | J87: 31201030860 | K87: Toys - Action figures and accessories en Bamboo/rattan >50%≥ 0.3kg and < 0.4kg | L87: 0.07 | M87: =VLOOKUP(Tableau13[[#This Row],[Price excl. tax]],'Eco-fee codes'!$C$4:$E$408,3,FALSE) -> 247 | N87: =Tableau13[[#This Row],[Price excl. tax]]*1.2 -> 0.084
A88: 31 | B88: =VLOOKUP(A88,'Understanding codification'!$A$13:$B$16,2,FALSE) -> Toys | C88: 201 | D88: =VLOOKUP(C88,'Understanding codification'!$D$13:$E$50,2,FALSE) -> Action figures and accessories | E88: 03 | F88: =VLOOKUP(E88,'Understanding codification'!$G$13:$H$69,2,FALSE) -> Bamboo/rattan >50% | G88: 087 | H88: =VLOOKUP(G88,'Understanding codification'!$J$13:$K$35,2,FALSE) -> ≥ 0.4kg and < 0.5kg | J88: 31201030870 | K88: Toys - Action figures and accessories en Bamboo/rattan >50%≥ 0.4kg and < 0.5kg | L88: 0.08 | M88: =VLOOKUP(Tableau13[[#This Row],[Price excl. tax]],'Eco-fee codes'!$C$4:$E$408,3,FALSE) -> 003 | N88: =Tableau13[[#This Row],[Price excl. tax]]*1.2 -> 0.096
A89: 31 | B89: =VLOOKUP(A89,'Understanding codification'!$A$13:$B$16,2,FALSE) -> Toys | C89: 201 | D89: =VLOOKUP(C89,'Understanding codification'!$D$13:$E$50,2,FALSE) -> Action figures and accessories | E89: 03 | F89: =VLOOKUP(E89,'Understanding codification'!$G$13:$H$69,2,FALSE) -> Bamboo/rattan >50% | G89: 088 | H89: =VLOOKUP(G89,'Understanding codification'!$J$13:$K$35,2,FALSE) -> ≥ 50kg and < 100kg | J89: 31201030880 | K89: Toys - Action figures and accessories en Bamboo/rattan >50%≥ 50kg and < 100kg | L89: 10.11 | M89: =VLOOKUP(Tableau13[[#This Row],[Price excl. tax]],'Eco-fee codes'!$C$4:$E$408,3,FALSE) -> 411 | N89: =Tableau13[[#This Row],[Price excl. tax]]*1.2 -> 12.132
A90: 31 | B90: =VLOOKUP(A90,'Understanding codification'!$A$13:$B$16,2,FALSE) -> Toys | C90: 201 | D90: =VLOOKUP(C90,'Understanding codification'!$D$13:$E$50,2,FALSE) -> Action figures and accessories | E90: 04 | F90: =VLOOKUP(E90,'Understanding codification'!$G$13:$H$69,2,FALSE) -> Wicker and other plant stalks >50% | G90: 021 | H90: =VLOOKUP(G90,'Understanding codification'!$J$13:$K$35,2,FALSE) -> ≥ 0.5kg and < 1kg | J90: 31201040210 | K90: Toys - Action figures and accessories en Wicker and other plant stalks >50%≥ 0.5kg and < 1kg | L90: 0.14 | M90: =VLOOKUP(Tableau13[[#This Row],[Price excl. tax]],'Eco-fee codes'!$C$4:$E$408,3,FALSE) -> 098 | N90: =Tableau13[[#This Row],[Price excl. tax]]*1.2 -> 0.168
A91: 31 | B91: =VLOOKUP(A91,'Understanding codification'!$A$13:$B$16,2,FALSE) -> Toys | C91: 201 | D91: =VLOOKUP(C91,'Understanding codification'!$D$13:$E$50,2,FALSE) -> Action figures and accessories | E91: 04 | F91: =VLOOKUP(E91,'Understanding codification'!$G$13:$H$69,2,FALSE) -> Wicker and other plant stalks >50% | G91: 022 | H91: =VLOOKUP(G91,'Understanding codification'!$J$13:$K$35,2,FALSE) -> ≥ 1kg and < 2kg | J91: 31201040220 | K91: Toys - Action figures and accessories en Wicker and other plant stalks >50%≥ 1kg and < 2kg | L91: 0.27 | M91: =VLOOKUP(Tableau13[[#This Row],[Price excl. tax]],'Eco-fee codes'!$C$4:$E$408,3,FALSE) -> 103 | N91: =Tableau13[[#This Row],[Price excl. tax]]*1.2 -> 0.324
A92: 31 | B92: =VLOOKUP(A92,'Understanding codification'!$A$13:$B$16,2,FALSE) -> Toys | C92: 201 | D92: =VLOOKUP(C92,'Understanding codification'!$D$13:$E$50,2,FALSE) -> Action figures and accessories | E92: 04 | F92: =VLOOKUP(E92,'Understanding codification'!$G$13:$H$69,2,FALSE) -> Wicker and other plant stalks >50% | G92: 027 | H92: =VLOOKUP(G92,'Understanding codification'!$J$13:$K$35,2,FALSE) -> ≥ 30kg and < 40kg | J92: 31201040270 | K92: Toys - Action figures and accessories en Wicker and other plant stalks >50%≥ 30kg and < 40kg | L92: 5.23 | M92: =VLOOKUP(Tableau13[[#This Row],[Price excl. tax]],'Eco-fee codes'!$C$4:$E$408,3,FALSE) -> 403 | N92: =Tableau13[[#This Row],[Price excl. tax]]*1.2 -> 6.276
A93: 31 | B93: =VLOOKUP(A93,'Understanding codification'!$A$13:$B$16,2,FALSE) -> Toys | C93: 201 | D93: =VLOOKUP(C93,'Understanding codification'!$D$13:$E$50,2,FALSE) -> Action figures and accessories | E93: 04 | F93: =VLOOKUP(E93,'Understanding codification'!$G$13:$H$69,2,FALSE) -> Wicker and other plant stalks >50% | G93: 030 | H93: =VLOOKUP(G93,'Understanding codification'!$J$13:$K$35,2,FALSE) -> ≥ 100kg and < 150kg | J93: 31201040300 | K93: Toys - Action figures and accessories en Wicker and other plant stalks >50%≥ 100kg and < 150kg | L93: 15.25 | M93: =VLOOKUP(Tableau13[[#This Row],[Price excl. tax]],'Eco-fee codes'!$C$4:$E$408,3,FALSE) -> 404 | N93: =Tableau13[[#This Row],[Price excl. tax]]*1.2 -> 18.3
A94: 31 | B94: =VLOOKUP(A94,'Understanding codification'!$A$13:$B$16,2,FALSE) -> Toys | C94: 201 | D94: =VLOOKUP(C94,'Understanding codification'!$D$13:$E$50,2,FALSE) -> Action figures and accessories | E94: 04 | F94: =VLOOKUP(E94,'Understanding codification'!$G$13:$H$69,2,FALSE) -> Wicker and other plant stalks >50% | G94: 031 | H94: =VLOOKUP(G94,'Understanding codification'!$J$13:$K$35,2,FALSE) -> ≥ 150kg and < 200kg | J94: 31201040310 | K94: Toys - Action figures and accessories en Wicker and other plant stalks >50%≥ 150kg and < 200kg | L94: 21.35 | M94: =VLOOKUP(Tableau13[[#This Row],[Price excl. tax]],'Eco-fee codes'!$C$4:$E$408,3,FALSE) -> 405 | N94: =Tableau13[[#This Row],[Price excl. tax]]*1.2 -> 25.62
A95: 31 | B95: =VLOOKUP(A95,'Understanding codification'!$A$13:$B$16,2,FALSE) -> Toys | C95: 201 | D95: =VLOOKUP(C95,'Understanding codification'!$D$13:$E$50,2,FALSE) -> Action figures and accessories | E95: 04 | F95: =VLOOKUP(E95,'Understanding codification'!$G$13:$H$69,2,FALSE) -> Wicker and other plant stalks >50% | G95: 032 | H95: =VLOOKUP(G95,'Understanding codification'!$J$13:$K$35,2,FALSE) -> ≥ 200kg and < 250kg | J95: 31201040320 | K95: Toys - Action figures and accessories en Wicker and other plant stalks >50%≥ 200kg and < 250kg | L95: 27.45 | M95: =VLOOKUP(Tableau13[[#This Row],[Price excl. tax]],'Eco-fee codes'!$C$4:$E$408,3,FALSE) -> 406 | N95: =Tableau13[[#This Row],[Price excl. tax]]*1.2 -> 32.94
A96: 31 | B96: =VLOOKUP(A96,'Understanding codification'!$A$13:$B$16,2,FALSE) -> Toys | C96: 201 | D96: =VLOOKUP(C96,'Understanding codification'!$D$13:$E$50,2,FALSE) -> Action figures and accessories | E96: 04 | F96: =VLOOKUP(E96,'Understanding codification'!$G$13:$H$69,2,FALSE) -> Wicker and other plant stalks >50% | G96: 052 | H96: =VLOOKUP(G96,'Understanding codification'!$J$13:$K$35,2,FALSE) -> ≥ 2kg and < 3kg | J96: 31201040520 | K96: Toys - Action figures and accessories en Wicker and other plant stalks >50%≥ 2kg and < 3kg | L96: 0.44 | M96: =VLOOKUP(Tableau13[[#This Row],[Price excl. tax]],'Eco-fee codes'!$C$4:$E$408,3,FALSE) -> 281 | N96: =Tableau13[[#This Row],[Price excl. tax]]*1.2 -> 0.528
A97: 31 | B97: =VLOOKUP(A97,'Understanding codification'!$A$13:$B$16,2,FALSE) -> Toys | C97: 201 | D97: =VLOOKUP(C97,'Understanding codification'!$D$13:$E$50,2,FALSE) -> Action figures and accessories | E97: 04 | F97: =VLOOKUP(E97,'Understanding codification'!$G$13:$H$69,2,FALSE) -> Wicker and other plant stalks >50% | G97: 053 | H97: =VLOOKUP(G97,'Understanding codification'!$J$13:$K$35,2,FALSE) -> ≥ 3kg and < 5kg | J97: 31201040530 | K97: Toys - Action figures and accessories en Wicker and other plant stalks >50%≥ 3kg and < 5kg | L97: 0.7 | M97: =VLOOKUP(Tableau13[[#This Row],[Price excl. tax]],'Eco-fee codes'!$C$4:$E$408,3,FALSE) -> 282 | N97: =Tableau13[[#This Row],[Price excl. tax]]*1.2 -> 0.84
A98: 31 | B98: =VLOOKUP(A98,'Understanding codification'!$A$13:$B$16,2,FALSE) -> Toys | C98: 201 | D98: =VLOOKUP(C98,'Understanding codification'!$D$13:$E$50,2,FALSE) -> Action figures and accessories | E98: 04 | F98: =VLOOKUP(E98,'Understanding codification'!$G$13:$H$69,2,FALSE) -> Wicker and other plant stalks >50% | G98: 054 | H98: =VLOOKUP(G98,'Understanding codification'!$J$13:$K$35,2,FALSE) -> ≥ 5kg and < 7kg | J98: 31201040540 | K98: Toys - Action figures and accessories en Wicker and other plant stalks >50%≥ 5kg and < 7kg | L98: 1.05 | M98: =VLOOKUP(Tableau13[[#This Row],[Price excl. tax]],'Eco-fee codes'!$C$4:$E$408,3,FALSE) -> 283 | N98: =Tableau13[[#This Row],[Price excl. tax]]*1.2 -> 1.26
A99: 31 | B99: =VLOOKUP(A99,'Understanding codification'!$A$13:$B$16,2,FALSE) -> Toys | C99: 201 | D99: =VLOOKUP(C99,'Understanding codification'!$D$13:$E$50,2,FALSE) -> Action figures and accessories | E99: 04 | F99: =VLOOKUP(E99,'Understanding codification'!$G$13:$H$69,2,FALSE) -> Wicker and other plant stalks >50% | G99: 055 | H99: =VLOOKUP(G99,'Understanding codification'!$J$13:$K$35,2,FALSE) -> ≥ 7kg and < 10kg | J99: 31201040550 | K99: Toys - Action figures and accessories en Wicker and other plant stalks >50%≥ 7kg and < 10kg | L99: 1.31 | M99: =VLOOKUP(Tableau13[[#This Row],[Price excl. tax]],'Eco-fee codes'!$C$4:$E$408,3,FALSE) -> 284 | N99: =Tableau13[[#This Row],[Price excl. tax]]*1.2 -> 1.572
A100: 31 | B100: =VLOOKUP(A100,'Understanding codification'!$A$13:$B$16,2,FALSE) -> Toys | C100: 201 | D100: =VLOOKUP(C100,'Understanding codification'!$D$13:$E$50,2,FALSE) -> Action figures and accessories | E100: 04 | F100: =VLOOKUP(E100,'Understanding codification'!$G$13:$H$69,2,FALSE) -> Wicker and other plant stalks >50% | G100: 056 | H100: =VLOOKUP(G100,'Understanding codification'!$J$13:$K$35,2,FALSE) -> ≥ 10kg and < 15kg | J100: 31201040560 | K100: Toys - Action figures and accessories en Wicker and other plant stalks >50%≥ 10kg and < 15kg | L100: 2.18 | M100: =VLOOKUP(Tableau13[[#This Row],[Price excl. tax]],'Eco-fee codes'!$C$4:$E$408,3,FALSE) -> 257 | N100: =Tableau13[[#This Row],[Price excl. tax]]*1.2 -> 2.616
A101: 31 | B101: =VLOOKUP(A101,'Understanding codification'!$A$13:$B$16,2,FALSE) -> Toys | C101: 201 | D101: =VLOOKUP(C101,'Understanding codification'!$D$13:$E$50,2,FALSE) -> Action figures and accessories | E101: 04 | F101: =VLOOKUP(E101,'Understanding codification'!$G$13:$H$69,2,FALSE) -> Wicker and other plant stalks >50% | G101: 057 | H101: =VLOOKUP(G101,'Understanding codification'!$J$13:$K$35,2,FALSE) -> ≥ 15kg and < 20kg | J101: 31201040570 | K101: Toys - Action figures and accessories en Wicker and other plant stalks >50%≥ 15kg and < 20kg | L101: 3.05 | M101: =VLOOKUP(Tableau13[[#This Row],[Price excl. tax]],'Eco-fee codes'!$C$4:$E$408,3,FALSE) -> 285 | N101: =Tableau13[[#This Row],[Price excl. tax]]*1.2 -> 3.66
A102: 31 | B102: =VLOOKUP(A102,'Understanding codification'!$A$13:$B$16,2,FALSE) -> Toys | C102: 201 | D102: =VLOOKUP(C102,'Understanding codification'!$D$13:$E$50,2,FALSE) -> Action figures and accessories | E102: 04 | F102: =VLOOKUP(E102,'Understanding codification'!$G$13:$H$69,2,FALSE) -> Wicker and other plant stalks >50% | G102: 058 | H102: =VLOOKUP(G102,'Understanding codification'!$J$13:$K$35,2,FALSE) -> ≥ 20kg and < 25kg | J102: 31201040580 | K102: Toys - Action figures and accessories en Wicker and other plant stalks >50%≥ 20kg and < 25kg | L102: 3.73 | M102: =VLOOKUP(Tableau13[[#This Row],[Price excl. tax]],'Eco-fee codes'!$C$4:$E$408,3,FALSE) -> 407 | N102: =Tableau13[[#This Row],[Price excl. tax]]*1.2 -> 4.476
A103: 31 | B103: =VLOOKUP(A103,'Understanding codification'!$A$13:$B$16,2,FALSE) -> Toys | C103: 201 | D103: =VLOOKUP(C103,'Understanding codification'!$D$13:$E$50,2,FALSE) -> Action figures and accessories | E103: 04 | F103: =VLOOKUP(E103,'Understanding codification'!$G$13:$H$69,2,FALSE) -> Wicker and other plant stalks >50% | G103: 059 | H103: =VLOOKUP(G103,'Understanding codification'!$J$13:$K$35,2,FALSE) -> ≥ 25kg and < 30kg | J103: 31201040590 | K103: Toys - Action figures and accessories en Wicker and other plant stalks >50%≥ 25kg and < 30kg | L103: 4.33 | M103: =VLOOKUP(Tableau13[[#This Row],[Price excl. tax]],'Eco-fee codes'!$C$4:$E$408,3,FALSE) -> 408 | N103: =Tableau13[[#This Row],[Price excl. tax]]*1.2 -> 5.196
A104: 31 | B104: =VLOOKUP(A104,'Understanding codification'!$A$13:$B$16,2,FALSE) -> Toys | C104: 201 | D104: =VLOOKUP(C104,'Understanding codification'!$D$13:$E$50,2,FALSE) -> Action figures and accessories | E104: 04 | F104: =VLOOKUP(E104,'Understanding codification'!$G$13:$H$69,2,FALSE) -> Wicker and other plant stalks >50% | G104: 060 | H104: =VLOOKUP(G104,'Understanding codification'!$J$13:$K$35,2,FALSE) -> ≥ 40kg and < 50kg | J104: 31201040600 | K104: Toys - Action figures and accessories en Wicker and other plant stalks >50%≥ 40kg and < 50kg | L104: 6.39 | M104: =VLOOKUP(Tableau13[[#This Row],[Price excl. tax]],'Eco-fee codes'!$C$4:$E$408,3,FALSE) -> 409 | N104: =Tableau13[[#This Row],[Price excl. tax]]*1.2 -> 7.668
A105: 31 | B105: =VLOOKUP(A105,'Understanding codification'!$A$13:$B$16,2,FALSE) -> Toys | C105: 201 | D105: =VLOOKUP(C105,'Understanding codification'!$D$13:$E$50,2,FALSE) -> Action figures and accessories | E105: 04 | F105: =VLOOKUP(E105,'Understanding codification'!$G$13:$H$69,2,FALSE) -> Wicker and other plant stalks >50% | G105: 082 | H105: =VLOOKUP(G105,'Understanding codification'!$J$13:$K$35,2,FALSE) -> Greater than 250 kg | J105: 31201040820 | K105: Toys - Action figures and accessories en Wicker and other plant stalks >50%Greater than 250 kg | L105: 30.49 | M105: =VLOOKUP(Tableau13[[#This Row],[Price excl. tax]],'Eco-fee codes'!$C$4:$E$408,3,FALSE) -> 410 | N105: =Tableau13[[#This Row],[Price excl. tax]]*1.2 -> 36.588
A106: 31 | B106: =VLOOKUP(A106,'Understanding codification'!$A$13:$B$16,2,FALSE) -> Toys | C106: 201 | D106: =VLOOKUP(C106,'Understanding codification'!$D$13:$E$50,2,FALSE) -> Action figures and accessories | E106: 04 | F106: =VLOOKUP(E106,'Understanding codification'!$G$13:$H$69,2,FALSE) -> Wicker and other plant stalks >50% | G106: 083 | H106: =VLOOKUP(G106,'Understanding codification'!$J$13:$K$35,2,FALSE) -> Strictly under 0.1 kg | J106: 31201040830 | K106: Toys - Action figures and accessories en Wicker and other plant stalks >50%Strictly under 0.1 kg | L106: 0.01 | M106: =VLOOKUP(Tableau13[[#This Row],[Price excl. tax]],'Eco-fee codes'!$C$4:$E$408,3,FALSE) -> 260 | N106: =Tableau13[[#This Row],[Price excl. tax]]*1.2 -> 0.012
A107: 31 | B107: =VLOOKUP(A107,'Understanding codification'!$A$13:$B$16,2,FALSE) -> Toys | C107: 201 | D107: =VLOOKUP(C107,'Understanding codification'!$D$13:$E$50,2,FALSE) -> Action figures and accessories | E107: 04 | F107: =VLOOKUP(E107,'Understanding codification'!$G$13:$H$69,2,FALSE) -> Wicker and other plant stalks >50% | G107: 084 | H107: =VLOOKUP(G107,'Understanding codification'!$J$13:$K$35,2,FALSE) -> ≥ 0.1kg and < 0.2kg | J107: 31201040840 | K107: Toys - Action figures and accessories en Wicker and other plant stalks >50%≥ 0.1kg and < 0.2kg | L107: 0.03 | M107: =VLOOKUP(Tableau13[[#This Row],[Price excl. tax]],'Eco-fee codes'!$C$4:$E$408,3,FALSE) -> 092 | N107: =Tableau13[[#This Row],[Price excl. tax]]*1.2 -> 0.036
A108: 31 | B108: =VLOOKUP(A108,'Understanding codification'!$A$13:$B$16,2,FALSE) -> Toys | C108: 201 | D108: =VLOOKUP(C108,'Understanding codification'!$D$13:$E$50,2,FALSE) -> Action figures and accessories | E108: 04 | F108: =VLOOKUP(E108,'Understanding codification'!$G$13:$H$69,2,FALSE) -> Wicker and other plant stalks >50% | G108: 085 | H108: =VLOOKUP(G108,'Understanding codification'!$J$13:$K$35,2,FALSE) -> ≥ 0.2kg and < 0.3kg | J108: 31201040850 | K108: Toys - Action figures and accessories en Wicker and other plant stalks >50%≥ 0.2kg and < 0.3kg | L108: 0.05 | M108: =VLOOKUP(Tableau13[[#This Row],[Price excl. tax]],'Eco-fee codes'!$C$4:$E$408,3,FALSE) -> 048 | N108: =Tableau13[[#This Row],[Price excl. tax]]*1.2 -> 0.06
A109: 31 | B109: =VLOOKUP(A109,'Understanding codification'!$A$13:$B$16,2,FALSE) -> Toys | C109: 201 | D109: =VLOOKUP(C109,'Understanding codification'!$D$13:$E$50,2,FALSE) -> Action figures and accessories | E109: 04 | F109: =VLOOKUP(E109,'Understanding codification'!$G$13:$H$69,2,FALSE) -> Wicker and other plant stalks >50% | G109: 086 | H109: =VLOOKUP(G109,'Understanding codification'!$J$13:$K$35,2,FALSE) -> ≥ 0.3kg and < 0.4kg | J109: 31201040860 | K109: Toys - Action figures and accessories en Wicker and other plant stalks >50%≥ 0.3kg and < 0.4kg | L109: 0.07 | M109: =VLOOKUP(Tableau13[[#This Row],[Price excl. tax]],'Eco-fee codes'!$C$4:$E$408,3,FALSE) -> 247 | N109: =Tableau13[[#This Row],[Price excl. tax]]*1.2 -> 0.084
A110: 31 | B110: =VLOOKUP(A110,'Understanding codification'!$A$13:$B$16,2,FALSE) -> Toys | C110: 201 | D110: =VLOOKUP(C110,'Understanding codification'!$D$13:$E$50,2,FALSE) -> Action figures and accessories | E110: 04 | F110: =VLOOKUP(E110,'Understanding codification'!$G$13:$H$69,2,FALSE) -> Wicker and other plant stalks >50% | G110: 087 | H110: =VLOOKUP(G110,'Understanding codification'!$J$13:$K$35,2,FALSE) -> ≥ 0.4kg and < 0.5kg | J110: 31201040870 | K110: Toys - Action figures and accessories en Wicker and other plant stalks >50%≥ 0.4kg and < 0.5kg | L110: 0.08 | M110: =VLOOKUP(Tableau13[[#This Row],[Price excl. tax]],'Eco-fee codes'!$C$4:$E$408,3,FALSE) -> 003 | N110: =Tableau13[[#This Row],[Price excl. tax]]*1.2 -> 0.096
A111: 31 | B111: =VLOOKUP(A111,'Understanding codification'!$A$13:$B$16,2,FALSE) -> Toys | C111: 201 | D111: =VLOOKUP(C111,'Understanding codification'!$D$13:$E$50,2,FALSE) -> Action figures and accessories | E111: 04 | F111: =VLOOKUP(E111,'Understanding codification'!$G$13:$H$69,2,FALSE) -> Wicker and other plant stalks >50% | G111: 088 | H111: =VLOOKUP(G111,'Understanding codification'!$J$13:$K$35,2,FALSE) -> ≥ 50kg and < 100kg | J111: 31201040880 | K111: Toys - Action figures and accessories en Wicker and other plant stalks >50%≥ 50kg and < 100kg | L111: 10.11 | M111: =VLOOKUP(Tableau13[[#This Row],[Price excl. tax]],'Eco-fee codes'!$C$4:$E$408,3,FALSE) -> 411 | N111: =Tableau13[[#This Row],[Price excl. tax]]*1.2 -> 12.132
A112: 31 | B112: =VLOOKUP(A112,'Understanding codification'!$A$13:$B$16,2,FALSE) -> Toys | C112: 201 | D112: =VLOOKUP(C112,'Understanding codification'!$D$13:$E$50,2,FALSE) -> Action figures and accessories | E112: 05 | F112: =VLOOKUP(E112,'Understanding codification'!$G$13:$H$69,2,FALSE) -> Plastics >50% | G112: 021 | H112: =VLOOKUP(G112,'Understanding codification'!$J$13:$K$35,2,FALSE) -> ≥ 0.5kg and < 1kg | J112: 31201050210 | K112: Toys - Action figures and accessories en Plastics >50%≥ 0.5kg and < 1kg | L112: 0.19 | M112: =VLOOKUP(Tableau13[[#This Row],[Price excl. tax]],'Eco-fee codes'!$C$4:$E$408,3,FALSE) -> 291 | N112: =Tableau13[[#This Row],[Price excl. tax]]*1.2 -> 0.228
A113: 31 | B113: =VLOOKUP(A113,'Understanding codification'!$A$13:$B$16,2,FALSE) -> Toys | C113: 201 | D113: =VLOOKUP(C113,'Understanding codification'!$D$13:$E$50,2,FALSE) -> Action figures and accessories | E113: 05 | F113: =VLOOKUP(E113,'Understanding codification'!$G$13:$H$69,2,FALSE) -> Plastics >50% | G113: 022 | H113: =VLOOKUP(G113,'Understanding codification'!$J$13:$K$35,2,FALSE) -> ≥ 1kg and < 2kg | J113: 31201050220 | K113: Toys - Action figures and accessories en Plastics >50%≥ 1kg and < 2kg | L113: 0.38 | M113: =VLOOKUP(Tableau13[[#This Row],[Price excl. tax]],'Eco-fee codes'!$C$4:$E$408,3,FALSE) -> 292 | N113: =Tableau13[[#This Row],[Price excl. tax]]*1.2 -> 0.456
A114: 31 | B114: =VLOOKUP(A114,'Understanding codification'!$A$13:$B$16,2,FALSE) -> Toys | C114: 201 | D114: =VLOOKUP(C114,'Understanding codification'!$D$13:$E$50,2,FALSE) -> Action figures and accessories | E114: 05 | F114: =VLOOKUP(E114,'Understanding codification'!$G$13:$H$69,2,FALSE) -> Plastics >50% | G114: 027 | H114: =VLOOKUP(G114,'Understanding codification'!$J$13:$K$35,2,FALSE) -> ≥ 30kg and < 40kg | J114: 31201050270 | K114: Toys - Action figures and accessories en Plastics >50%≥ 30kg and < 40kg | L114: 7.55 | M114: =VLOOKUP(Tableau13[[#This Row],[Price excl. tax]],'Eco-fee codes'!$C$4:$E$408,3,FALSE) -> 412 | N114: =Tableau13[[#This Row],[Price excl. tax]]*1.2 -> 9.06
A115: 31 | B115: =VLOOKUP(A115,'Understanding codification'!$A$13:$B$16,2,FALSE) -> Toys | C115: 201 | D115: =VLOOKUP(C115,'Understanding codification'!$D$13:$E$50,2,FALSE) -> Action figures and accessories | E115: 05 | F115: =VLOOKUP(E115,'Understanding codification'!$G$13:$H$69,2,FALSE) -> Plastics >50% | G115: 030 | H115: =VLOOKUP(G115,'Understanding codification'!$J$13:$K$35,2,FALSE) -> ≥ 100kg and < 150kg | J115: 31201050300 | K115: Toys - Action figures and accessories en Plastics >50%≥ 100kg and < 150kg | L115: 22.02 | M115: =VLOOKUP(Tableau13[[#This Row],[Price excl. tax]],'Eco-fee codes'!$C$4:$E$408,3,FALSE) -> 413 | N115: =Tableau13[[#This Row],[Price excl. tax]]*1.2 -> 26.424
A116: 31 | B116: =VLOOKUP(A116,'Understanding codification'!$A$13:$B$16,2,FALSE) -> Toys | C116: 201 | D116: =VLOOKUP(C116,'Understanding codification'!$D$13:$E$50,2,FALSE) -> Action figures and accessories | E116: 05 | F116: =VLOOKUP(E116,'Understanding codification'!$G$13:$H$69,2,FALSE) -> Plastics >50% | G116: 031 | H116: =VLOOKUP(G116,'Understanding codification'!$J$13:$K$35,2,FALSE) -> ≥ 150kg and < 200kg | J116: 31201050310 | K116: Toys - Action figures and accessories en Plastics >50%≥ 150kg and < 200kg | L116: 30.84 | M116: =VLOOKUP(Tableau13[[#This Row],[Price excl. tax]],'Eco-fee codes'!$C$4:$E$408,3,FALSE) -> 414 | N116: =Tableau13[[#This Row],[Price excl. tax]]*1.2 -> 37.008
A117: 31 | B117: =VLOOKUP(A117,'Understanding codification'!$A$13:$B$16,2,FALSE) -> Toys | C117: 201 | D117: =VLOOKUP(C117,'Understanding codification'!$D$13:$E$50,2,FALSE) -> Action figures and accessories | E117: 05 | F117: =VLOOKUP(E117,'Understanding codification'!$G$13:$H$69,2,FALSE) -> Plastics >50% | G117: 032 | H117: =VLOOKUP(G117,'Understanding codification'!$J$13:$K$35,2,FALSE) -> ≥ 200kg and < 250kg | J117: 31201050320 | K117: Toys - Action figures and accessories en Plastics >50%≥ 200kg and < 250kg | L117: 39.64 | M117: =VLOOKUP(Tableau13[[#This Row],[Price excl. tax]],'Eco-fee codes'!$C$4:$E$408,3,FALSE) -> 415 | N117: =Tableau13[[#This Row],[Price excl. tax]]*1.2 -> 47.568
A118: 31 | B118: =VLOOKUP(A118,'Understanding codification'!$A$13:$B$16,2,FALSE) -> Toys | C118: 201 | D118: =VLOOKUP(C118,'Understanding codification'!$D$13:$E$50,2,FALSE) -> Action figures and accessories | E118: 05 | F118: =VLOOKUP(E118,'Understanding codification'!$G$13:$H$69,2,FALSE) -> Plastics >50% | G118: 052 | H118: =VLOOKUP(G118,'Understanding codification'!$J$13:$K$35,2,FALSE) -> ≥ 2kg and < 3kg | J118: 31201050520 | K118: Toys - Action figures and accessories en Plastics >50%≥ 2kg and < 3kg | L118: 0.63 | M118: =VLOOKUP(Tableau13[[#This Row],[Price excl. tax]],'Eco-fee codes'!$C$4:$E$408,3,FALSE) -> 297 | N118: =Tableau13[[#This Row],[Price excl. tax]]*1.2 -> 0.756
A119: 31 | B119: =VLOOKUP(A119,'Understanding codification'!$A$13:$B$16,2,FALSE) -> Toys | C119: 201 | D119: =VLOOKUP(C119,'Understanding codification'!$D$13:$E$50,2,FALSE) -> Action figures and accessories | E119: 05 | F119: =VLOOKUP(E119,'Understanding codification'!$G$13:$H$69,2,FALSE) -> Plastics >50% | G119: 053 | H119: =VLOOKUP(G119,'Understanding codification'!$J$13:$K$35,2,FALSE) -> ≥ 3kg and < 5kg | J119: 31201050530 | K119: Toys - Action figures and accessories en Plastics >50%≥ 3kg and < 5kg | L119: 1.01 | M119: =VLOOKUP(Tableau13[[#This Row],[Price excl. tax]],'Eco-fee codes'!$C$4:$E$408,3,FALSE) -> 298 | N119: =Tableau13[[#This Row],[Price excl. tax]]*1.2 -> 1.212
A120: 31 | B120: =VLOOKUP(A120,'Understanding codification'!$A$13:$B$16,2,FALSE) -> Toys | C120: 201 | D120: =VLOOKUP(C120,'Understanding codification'!$D$13:$E$50,2,FALSE) -> Action figures and accessories | E120: 05 | F120: =VLOOKUP(E120,'Understanding codification'!$G$13:$H$69,2,FALSE) -> Plastics >50% | G120: 054 | H120: =VLOOKUP(G120,'Understanding codification'!$J$13:$K$35,2,FALSE) -> ≥ 5kg and < 7kg | J120: 31201050540 | K120: Toys - Action figures and accessories en Plastics >50%≥ 5kg and < 7kg | L120: 1.52 | M120: =VLOOKUP(Tableau13[[#This Row],[Price excl. tax]],'Eco-fee codes'!$C$4:$E$408,3,FALSE) -> 299 | N120: =Tableau13[[#This Row],[Price excl. tax]]*1.2 -> 1.824
A121: 31 | B121: =VLOOKUP(A121,'Understanding codification'!$A$13:$B$16,2,FALSE) -> Toys | C121: 201 | D121: =VLOOKUP(C121,'Understanding codification'!$D$13:$E$50,2,FALSE) -> Action figures and accessories | E121: 05 | F121: =VLOOKUP(E121,'Understanding codification'!$G$13:$H$69,2,FALSE) -> Plastics >50% | G121: 055 | H121: =VLOOKUP(G121,'Understanding codification'!$J$13:$K$35,2,FALSE) -> ≥ 7kg and < 10kg | J121: 31201050550 | K121: Toys - Action figures and accessories en Plastics >50%≥ 7kg and < 10kg | L121: 1.89 | M121: =VLOOKUP(Tableau13[[#This Row],[Price excl. tax]],'Eco-fee codes'!$C$4:$E$408,3,FALSE) -> 300 | N121: =Tableau13[[#This Row],[Price excl. tax]]*1.2 -> 2.268
A122: 31 | B122: =VLOOKUP(A122,'Understanding codification'!$A$13:$B$16,2,FALSE) -> Toys | C122: 201 | D122: =VLOOKUP(C122,'Understanding codification'!$D$13:$E$50,2,FALSE) -> Action figures and accessories | E122: 05 | F122: =VLOOKUP(E122,'Understanding codification'!$G$13:$H$69,2,FALSE) -> Plastics >50% | G122: 056 | H122: =VLOOKUP(G122,'Understanding codification'!$J$13:$K$35,2,FALSE) -> ≥ 10kg and < 15kg | J122: 31201050560 | K122: Toys - Action figures and accessories en Plastics >50%≥ 10kg and < 15kg | L122: 3.15 | M122: =VLOOKUP(Tableau13[[#This Row],[Price excl. tax]],'Eco-fee codes'!$C$4:$E$408,3,FALSE) -> 301 | N122: =Tableau13[[#This Row],[Price excl. tax]]*1.2 -> 3.78
A123: 31 | B123: =VLOOKUP(A123,'Understanding codification'!$A$13:$B$16,2,FALSE) -> Toys | C123: 201 | D123: =VLOOKUP(C123,'Understanding codification'!$D$13:$E$50,2,FALSE) -> Action figures and accessories | E123: 05 | F123: =VLOOKUP(E123,'Understanding codification'!$G$13:$H$69,2,FALSE) -> Plastics >50% | G123: 057 | H123: =VLOOKUP(G123,'Understanding codification'!$J$13:$K$35,2,FALSE) -> ≥ 15kg and < 20kg | J123: 31201050570 | K123: Toys - Action figures and accessories en Plastics >50%≥ 15kg and < 20kg | L123: 4.41 | M123: =VLOOKUP(Tableau13[[#This Row],[Price excl. tax]],'Eco-fee codes'!$C$4:$E$408,3,FALSE) -> 302 | N123: =Tableau13[[#This Row],[Price excl. tax]]*1.2 -> 5.292
A124: 31 | B124: =VLOOKUP(A124,'Understanding codification'!$A$13:$B$16,2,FALSE) -> Toys | C124: 201 | D124: =VLOOKUP(C124,'Understanding codification'!$D$13:$E$50,2,FALSE) -> Action figures and accessories | E124: 05 | F124: =VLOOKUP(E124,'Understanding codification'!$G$13:$H$69,2,FALSE) -> Plastics >50% | G124: 058 | H124: =VLOOKUP(G124,'Understanding codification'!$J$13:$K$35,2,FALSE) -> ≥ 20kg and < 25kg | J124: 31201050580 | K124: Toys - Action figures and accessories en Plastics >50%≥ 20kg and < 25kg | L124: 5.39 | M124: =VLOOKUP(Tableau13[[#This Row],[Price excl. tax]],'Eco-fee codes'!$C$4:$E$408,3,FALSE) -> 416 | N124: =Tableau13[[#This Row],[Price excl. tax]]*1.2 -> 6.468
A125: 31 | B125: =VLOOKUP(A125,'Understanding codification'!$A$13:$B$16,2,FALSE) -> Toys | C125: 201 | D125: =VLOOKUP(C125,'Understanding codification'!$D$13:$E$50,2,FALSE) -> Action figures and accessories | E125: 05 | F125: =VLOOKUP(E125,'Understanding codification'!$G$13:$H$69,2,FALSE) -> Plastics >50% | G125: 059 | H125: =VLOOKUP(G125,'Understanding codification'!$J$13:$K$35,2,FALSE) -> ≥ 25kg and < 30kg | J125: 31201050590 | K125: Toys - Action figures and accessories en Plastics >50%≥ 25kg and < 30kg | L125: 6.25 | M125: =VLOOKUP(Tableau13[[#This Row],[Price excl. tax]],'Eco-fee codes'!$C$4:$E$408,3,FALSE) -> 135 | N125: =Tableau13[[#This Row],[Price excl. tax]]*1.2 -> 7.5
A126: 31 | B126: =VLOOKUP(A126,'Understanding codification'!$A$13:$B$16,2,FALSE) -> Toys | C126: 201 | D126: =VLOOKUP(C126,'Understanding codification'!$D$13:$E$50,2,FALSE) -> Action figures and accessories | E126: 05 | F126: =VLOOKUP(E126,'Understanding codification'!$G$13:$H$69,2,FALSE) -> Plastics >50% | G126: 060 | H126: =VLOOKUP(G126,'Understanding codification'!$J$13:$K$35,2,FALSE) -> ≥ 40kg and < 50kg | J126: 31201050600 | K126: Toys - Action figures and accessories en Plastics >50%≥ 40kg and < 50kg | L126: 9.23 | M126: =VLOOKUP(Tableau13[[#This Row],[Price excl. tax]],'Eco-fee codes'!$C$4:$E$408,3,FALSE) -> 417 | N126: =Tableau13[[#This Row],[Price excl. tax]]*1.2 -> 11.076
A127: 31 | B127: =VLOOKUP(A127,'Understanding codification'!$A$13:$B$16,2,FALSE) -> Toys | C127: 201 | D127: =VLOOKUP(C127,'Understanding codification'!$D$13:$E$50,2,FALSE) -> Action figures and accessories | E127: 05 | F127: =VLOOKUP(E127,'Understanding codification'!$G$13:$H$69,2,FALSE) -> Plastics >50% | G127: 082 | H127: =VLOOKUP(G127,'Understanding codification'!$J$13:$K$35,2,FALSE) -> Greater than 250 kg | J127: 31201050820 | K127: Toys - Action figures and accessories en Plastics >50%Greater than 250 kg | L127: 44.04 | M127: =VLOOKUP(Tableau13[[#This Row],[Price excl. tax]],'Eco-fee codes'!$C$4:$E$408,3,FALSE) -> 418 | N127: =Tableau13[[#This Row],[Price excl. tax]]*1.2 -> 52.848
A128: 31 | B128: =VLOOKUP(A128,'Understanding codification'!$A$13:$B$16,2,FALSE) -> Toys | C128: 201 | D128: =VLOOKUP(C128,'Understanding codification'!$D$13:$E$50,2,FALSE) -> Action figures and accessories | E128: 05 | F128: =VLOOKUP(E128,'Understanding codification'!$G$13:$H$69,2,FALSE) -> Plastics >50% | G128: 083 | H128: =VLOOKUP(G128,'Understanding codification'!$J$13:$K$35,2,FALSE) -> Strictly under 0.1 kg | J128: 31201050830 | K128: Toys - Action figures and accessories en Plastics >50%Strictly under 0.1 kg | L128: 0.02 | M128: =VLOOKUP(Tableau13[[#This Row],[Price excl. tax]],'Eco-fee codes'!$C$4:$E$408,3,FALSE) -> 047 | N128: =Tableau13[[#This Row],[Price excl. tax]]*1.2 -> 0.024
A129: 31 | B129: =VLOOKUP(A129,'Understanding codification'!$A$13:$B$16,2,FALSE) -> Toys | C129: 201 | D129: =VLOOKUP(C129,'Understanding codification'!$D$13:$E$50,2,FALSE) -> Action figures and accessories | E129: 05 | F129: =VLOOKUP(E129,'Understanding codification'!$G$13:$H$69,2,FALSE) -> Plastics >50% | G129: 084 | H129: =VLOOKUP(G129,'Understanding codification'!$J$13:$K$35,2,FALSE) -> ≥ 0.1kg and < 0.2kg | J129: 31201050840 | K129: Toys - Action figures and accessories en Plastics >50%≥ 0.1kg and < 0.2kg | L129: 0.04 | M129: =VLOOKUP(Tableau13[[#This Row],[Price excl. tax]],'Eco-fee codes'!$C$4:$E$408,3,FALSE) -> 002 | N129: =Tableau13[[#This Row],[Price excl. tax]]*1.2 -> 0.048
A130: =MID(J130,1,2) -> 31 | B130: =VLOOKUP(A130,'Understanding codification'!$A$13:$B$16,2,FALSE) -> Toys | C130: =MID(J130,3,3) -> 201 | D130: =VLOOKUP(C130,'Understanding codification'!$D$13:$E$50,2,FALSE) -> Action figures and accessories | E130: =MID(J130,6,2) -> 05 | F130: =VLOOKUP(E130,'Understanding codification'!$G$13:$H$69,2,FALSE) -> Plastics >50% | G130: =MID(J130,8,3) -> 085 | H130: =VLOOKUP(G130,'Understanding codification'!$J$13:$K$35,2,FALSE) -> ≥ 0.2kg and < 0.3kg | J130: 31201050850 | K130: =B130&" - "&D130&" en "&F130&H130 -> Toys - Action figures and accessories en Plastics >50%≥ 0.2kg and < 0.3kg | L130: 0.07 | M130: =VLOOKUP(Tableau13[[#This Row],[Price excl. tax]],'Eco-fee codes'!$C$4:$E$408,3,FALSE) -> 247 | N130: =Tableau13[[#This Row],[Price excl. tax]]*1.2 -> 0.084
A131: 31 | B131: =VLOOKUP(A131,'Understanding codification'!$A$13:$B$16,2,FALSE) -> Toys | C131: 201 | D131: =VLOOKUP(C131,'Understanding codification'!$D$13:$E$50,2,FALSE) -> Action figures and accessories | E131: 05 | F131: =VLOOKUP(E131,'Understanding codification'!$G$13:$H$69,2,FALSE) -> Plastics >50% | G131: 086 | H131: =VLOOKUP(G131,'Understanding codification'!$J$13:$K$35,2,FALSE) -> ≥ 0.3kg and < 0.4kg | J131: 31201050860 | K131: Toys - Action figures and accessories en Plastics >50%≥ 0.3kg and < 0.4kg | L131: 0.09 | M131: =VLOOKUP(Tableau13[[#This Row],[Price excl. tax]],'Eco-fee codes'!$C$4:$E$408,3,FALSE) -> 049 | N131: =Tableau13[[#This Row],[Price excl. tax]]*1.2 -> 0.108
A132: 31 | B132: =VLOOKUP(A132,'Understanding codification'!$A$13:$B$16,2,FALSE) -> Toys | C132: 201 | D132: =VLOOKUP(C132,'Understanding codification'!$D$13:$E$50,2,FALSE) -> Action figures and accessories | E132: 05 | F132: =VLOOKUP(E132,'Understanding codification'!$G$13:$H$69,2,FALSE) -> Plastics >50% | G132: 087 | H132: =VLOOKUP(G132,'Understanding codification'!$J$13:$K$35,2,FALSE) -> ≥ 0.4kg and < 0.5kg | J132: 31201050870 | K132: Toys - Action figures and accessories en Plastics >50%≥ 0.4kg and < 0.5kg | L132: 0.12 | M132: =VLOOKUP(Tableau13[[#This Row],[Price excl. tax]],'Eco-fee codes'!$C$4:$E$408,3,FALSE) -> 097 | N132: =Tableau13[[#This Row],[Price excl. tax]]*1.2 -> 0.144
A133: 31 | B133: =VLOOKUP(A133,'Understanding codification'!$A$13:$B$16,2,FALSE) -> Toys | C133: 201 | D133: =VLOOKUP(C133,'Understanding codification'!$D$13:$E$50,2,FALSE) -> Action figures and accessories | E133: 05 | F133: =VLOOKUP(E133,'Understanding codification'!$G$13:$H$69,2,FALSE) -> Plastics >50% | G133: 088 | H133: =VLOOKUP(G133,'Understanding codification'!$J$13:$K$35,2,FALSE) -> ≥ 50kg and < 100kg | J133: 31201050880 | K133: Toys - Action figures and accessories en Plastics >50%≥ 50kg and < 100kg | L133: 14.61 | M133: =VLOOKUP(Tableau13[[#This Row],[Price excl. tax]],'Eco-fee codes'!$C$4:$E$408,3,FALSE) -> 419 | N133: =Tableau13[[#This Row],[Price excl. tax]]*1.2 -> 17.532
A134: 31 | B134: =VLOOKUP(A134,'Understanding codification'!$A$13:$B$16,2,FALSE) -> Toys | C134: 201 | D134: =VLOOKUP(C134,'Understanding codification'!$D$13:$E$50,2,FALSE) -> Action figures and accessories | E134: 06 | F134: =VLOOKUP(E134,'Understanding codification'!$G$13:$H$69,2,FALSE) -> Textiles, leather and fur >50% | G134: 021 | H134: =VLOOKUP(G134,'Understanding codification'!$J$13:$K$35,2,FALSE) -> ≥ 0.5kg and < 1kg | J134: 31201060210 | K134: Toys - Action figures and accessories en Textiles, leather and fur >50%≥ 0.5kg and < 1kg | L134: 0.24 | M134: =VLOOKUP(Tableau13[[#This Row],[Price excl. tax]],'Eco-fee codes'!$C$4:$E$408,3,FALSE) -> 248 | N134: =Tableau13[[#This Row],[Price excl. tax]]*1.2 -> 0.288
A135: 31 | B135: =VLOOKUP(A135,'Understanding codification'!$A$13:$B$16,2,FALSE) -> Toys | C135: 201 | D135: =VLOOKUP(C135,'Understanding codification'!$D$13:$E$50,2,FALSE) -> Action figures and accessories | E135: 06 | F135: =VLOOKUP(E135,'Understanding codification'!$G$13:$H$69,2,FALSE) -> Textiles, leather and fur >50% | G135: 022 | H135: =VLOOKUP(G135,'Understanding codification'!$J$13:$K$35,2,FALSE) -> ≥ 1kg and < 2kg | J135: 31201060220 | K135: Toys - Action figures and accessories en Textiles, leather and fur >50%≥ 1kg and < 2kg | L135: 0.47 | M135: =VLOOKUP(Tableau13[[#This Row],[Price excl. tax]],'Eco-fee codes'!$C$4:$E$408,3,FALSE) -> 107 | N135: =Tableau13[[#This Row],[Price excl. tax]]*1.2 -> 0.564
A136: 31 | B136: =VLOOKUP(A136,'Understanding codification'!$A$13:$B$16,2,FALSE) -> Toys | C136: 201 | D136: =VLOOKUP(C136,'Understanding codification'!$D$13:$E$50,2,FALSE) -> Action figures and accessories | E136: 06 | F136: =VLOOKUP(E136,'Understanding codification'!$G$13:$H$69,2,FALSE) -> Textiles, leather and fur >50% | G136: 027 | H136: =VLOOKUP(G136,'Understanding codification'!$J$13:$K$35,2,FALSE) -> ≥ 30kg and < 40kg | J136: 31201060270 | K136: Toys - Action figures and accessories en Textiles, leather and fur >50%≥ 30kg and < 40kg | L136: 9.3 | M136: =VLOOKUP(Tableau13[[#This Row],[Price excl. tax]],'Eco-fee codes'!$C$4:$E$408,3,FALSE) -> 420 | N136: =Tableau13[[#This Row],[Price excl. tax]]*1.2 -> 11.16
A137: 31 | B137: =VLOOKUP(A137,'Understanding codification'!$A$13:$B$16,2,FALSE) -> Toys | C137: 201 | D137: =VLOOKUP(C137,'Understanding codification'!$D$13:$E$50,2,FALSE) -> Action figures and accessories | E137: 06 | F137: =VLOOKUP(E137,'Understanding codification'!$G$13:$H$69,2,FALSE) -> Textiles, leather and fur >50% | G137: 030 | H137: =VLOOKUP(G137,'Understanding codification'!$J$13:$K$35,2,FALSE) -> ≥ 100kg and < 150kg | J137: 31201060300 | K137: Toys - Action figures and accessories en Textiles, leather and fur >50%≥ 100kg and < 150kg | L137: 27.1 | M137: =VLOOKUP(Tableau13[[#This Row],[Price excl. tax]],'Eco-fee codes'!$C$4:$E$408,3,FALSE) -> 421 | N137: =Tableau13[[#This Row],[Price excl. tax]]*1.2 -> 32.52
A138: 31 | B138: =VLOOKUP(A138,'Understanding codification'!$A$13:$B$16,2,FALSE) -> Toys | C138: 201 | D138: =VLOOKUP(C138,'Understanding codification'!$D$13:$E$50,2,FALSE) -> Action figures and accessories | E138: 06 | F138: =VLOOKUP(E138,'Understanding codification'!$G$13:$H$69,2,FALSE) -> Textiles, leather and fur >50% | G138: 031 | H138: =VLOOKUP(G138,'Understanding codification'!$J$13:$K$35,2,FALSE) -> ≥ 150kg and < 200kg | J138: 31201060310 | K138: Toys - Action figures and accessories en Textiles, leather and fur >50%≥ 150kg and < 200kg | L138: 37.95 | M138: =VLOOKUP(Tableau13[[#This Row],[Price excl. tax]],'Eco-fee codes'!$C$4:$E$408,3,FALSE) -> 422 | N138: =Tableau13[[#This Row],[Price excl. tax]]*1.2 -> 45.54
A139: 31 | B139: =VLOOKUP(A139,'Understanding codification'!$A$13:$B$16,2,FALSE) -> Toys | C139: 201 | D139: =VLOOKUP(C139,'Understanding codification'!$D$13:$E$50,2,FALSE) -> Action figures and accessories | E139: 06 | F139: =VLOOKUP(E139,'Understanding codification'!$G$13:$H$69,2,FALSE) -> Textiles, leather and fur >50% | G139: 032 | H139: =VLOOKUP(G139,'Understanding codification'!$J$13:$K$35,2,FALSE) -> ≥ 200kg and < 250kg | J139: 31201060320 | K139: Toys - Action figures and accessories en Textiles, leather and fur >50%≥ 200kg and < 250kg | L139: 48.79 | M139: =VLOOKUP(Tableau13[[#This Row],[Price excl. tax]],'Eco-fee codes'!$C$4:$E$408,3,FALSE) -> 423 | N139: =Tableau13[[#This Row],[Price excl. tax]]*1.2 -> 58.548
A140: 31 | B140: =VLOOKUP(A140,'Understanding codification'!$A$13:$B$16,2,FALSE) -> Toys | C140: 201 | D140: =VLOOKUP(C140,'Understanding codification'!$D$13:$E$50,2,FALSE) -> Action figures and accessories | E140: 06 | F140: =VLOOKUP(E140,'Understanding codification'!$G$13:$H$69,2,FALSE) -> Textiles, leather and fur >50% | G140: 052 | H140: =VLOOKUP(G140,'Understanding codification'!$J$13:$K$35,2,FALSE) -> ≥ 2kg and < 3kg | J140: 31201060520 | K140: Toys - Action figures and accessories en Textiles, leather and fur >50%≥ 2kg and < 3kg | L140: 0.78 | M140: =VLOOKUP(Tableau13[[#This Row],[Price excl. tax]],'Eco-fee codes'!$C$4:$E$408,3,FALSE) -> 312 | N140: =Tableau13[[#This Row],[Price excl. tax]]*1.2 -> 0.936
A141: 31 | B141: =VLOOKUP(A141,'Understanding codification'!$A$13:$B$16,2,FALSE) -> Toys | C141: 201 | D141: =VLOOKUP(C141,'Understanding codification'!$D$13:$E$50,2,FALSE) -> Action figures and accessories | E141: 06 | F141: =VLOOKUP(E141,'Understanding codification'!$G$13:$H$69,2,FALSE) -> Textiles, leather and fur >50% | G141: 053 | H141: =VLOOKUP(G141,'Understanding codification'!$J$13:$K$35,2,FALSE) -> ≥ 3kg and < 5kg | J141: 31201060530 | K141: Toys - Action figures and accessories en Textiles, leather and fur >50%≥ 3kg and < 5kg | L141: 1.24 | M141: =VLOOKUP(Tableau13[[#This Row],[Price excl. tax]],'Eco-fee codes'!$C$4:$E$408,3,FALSE) -> 313 | N141: =Tableau13[[#This Row],[Price excl. tax]]*1.2 -> 1.488
A142: 31 | B142: =VLOOKUP(A142,'Understanding codification'!$A$13:$B$16,2,FALSE) -> Toys | C142: 201 | D142: =VLOOKUP(C142,'Understanding codification'!$D$13:$E$50,2,FALSE) -> Action figures and accessories | E142: 06 | F142: =VLOOKUP(E142,'Understanding codification'!$G$13:$H$69,2,FALSE) -> Textiles, leather and fur >50% | G142: 054 | H142: =VLOOKUP(G142,'Understanding codification'!$J$13:$K$35,2,FALSE) -> ≥ 5kg and < 7kg | J142: 31201060540 | K142: Toys - Action figures and accessories en Textiles, leather and fur >50%≥ 5kg and < 7kg | L142: 1.86 | M142: =VLOOKUP(Tableau13[[#This Row],[Price excl. tax]],'Eco-fee codes'!$C$4:$E$408,3,FALSE) -> 314 | N142: =Tableau13[[#This Row],[Price excl. tax]]*1.2 -> 2.232
A143: 31 | B143: =VLOOKUP(A143,'Understanding codification'!$A$13:$B$16,2,FALSE) -> Toys | C143: 201 | D143: =VLOOKUP(C143,'Understanding codification'!$D$13:$E$50,2,FALSE) -> Action figures and accessories | E143: 06 | F143: =VLOOKUP(E143,'Understanding codification'!$G$13:$H$69,2,FALSE) -> Textiles, leather and fur >50% | G143: 055 | H143: =VLOOKUP(G143,'Understanding codification'!$J$13:$K$35,2,FALSE) -> ≥ 7kg and < 10kg | J143: 31201060550 | K143: Toys - Action figures and accessories en Textiles, leather and fur >50%≥ 7kg and < 10kg | L143: 2.33 | M143: =VLOOKUP(Tableau13[[#This Row],[Price excl. tax]],'Eco-fee codes'!$C$4:$E$408,3,FALSE) -> 062 | N143: =Tableau13[[#This Row],[Price excl. tax]]*1.2 -> 2.796
A144: 31 | B144: =VLOOKUP(A144,'Understanding codification'!$A$13:$B$16,2,FALSE) -> Toys | C144: 201 | D144: =VLOOKUP(C144,'Understanding codification'!$D$13:$E$50,2,FALSE) -> Action figures and accessories | E144: 06 | F144: =VLOOKUP(E144,'Understanding codification'!$G$13:$H$69,2,FALSE) -> Textiles, leather and fur >50% | G144: 056 | H144: =VLOOKUP(G144,'Understanding codification'!$J$13:$K$35,2,FALSE) -> ≥ 10kg and < 15kg | J144: 31201060560 | K144: Toys - Action figures and accessories en Textiles, leather and fur >50%≥ 10kg and < 15kg | L144: 3.88 | M144: =VLOOKUP(Tableau13[[#This Row],[Price excl. tax]],'Eco-fee codes'!$C$4:$E$408,3,FALSE) -> 315 | N144: =Tableau13[[#This Row],[Price excl. tax]]*1.2 -> 4.656
A145: 31 | B145: =VLOOKUP(A145,'Understanding codification'!$A$13:$B$16,2,FALSE) -> Toys | C145: 201 | D145: =VLOOKUP(C145,'Understanding codification'!$D$13:$E$50,2,FALSE) -> Action figures and accessories | E145: 06 | F145: =VLOOKUP(E145,'Understanding codification'!$G$13:$H$69,2,FALSE) -> Textiles, leather and fur >50% | G145: 057 | H145: =VLOOKUP(G145,'Understanding codification'!$J$13:$K$35,2,FALSE) -> ≥ 15kg and < 20kg | J145: 31201060570 | K145: Toys - Action figures and accessories en Textiles, leather and fur >50%≥ 15kg and < 20kg | L145: 5.43 | M145: =VLOOKUP(Tableau13[[#This Row],[Price excl. tax]],'Eco-fee codes'!$C$4:$E$408,3,FALSE) -> 316 | N145: =Tableau13[[#This Row],[Price excl. tax]]*1.2 -> 6.516
A146: 31 | B146: =VLOOKUP(A146,'Understanding codification'!$A$13:$B$16,2,FALSE) -> Toys | C146: 201 | D146: =VLOOKUP(C146,'Understanding codification'!$D$13:$E$50,2,FALSE) -> Action figures and accessories | E146: 06 | F146: =VLOOKUP(E146,'Understanding codification'!$G$13:$H$69,2,FALSE) -> Textiles, leather and fur >50% | G146: 058 | H146: =VLOOKUP(G146,'Understanding codification'!$J$13:$K$35,2,FALSE) -> ≥ 20kg and < 25kg | J146: 31201060580 | K146: Toys - Action figures and accessories en Textiles, leather and fur >50%≥ 20kg and < 25kg | L146: 6.62 | M146: =VLOOKUP(Tableau13[[#This Row],[Price excl. tax]],'Eco-fee codes'!$C$4:$E$408,3,FALSE) -> 424 | N146: =Tableau13[[#This Row],[Price excl. tax]]*1.2 -> 7.944
A147: 31 | B147: =VLOOKUP(A147,'Understanding codification'!$A$13:$B$16,2,FALSE) -> Toys | C147: 201 | D147: =VLOOKUP(C147,'Understanding codification'!$D$13:$E$50,2,FALSE) -> Action figures and accessories | E147: 06 | F147: =VLOOKUP(E147,'Understanding codification'!$G$13:$H$69,2,FALSE) -> Textiles, leather and fur >50% | G147: 059 | H147: =VLOOKUP(G147,'Understanding codification'!$J$13:$K$35,2,FALSE) -> ≥ 25kg and < 30kg | J147: 31201060590 | K147: Toys - Action figures and accessories en Textiles, leather and fur >50%≥ 25kg and < 30kg | L147: 7.69 | M147: =VLOOKUP(Tableau13[[#This Row],[Price excl. tax]],'Eco-fee codes'!$C$4:$E$408,3,FALSE) -> 425 | N147: =Tableau13[[#This Row],[Price excl. tax]]*1.2 -> 9.228
A148: 31 | B148: =VLOOKUP(A148,'Understanding codification'!$A$13:$B$16,2,FALSE) -> Toys | C148: 201 | D148: =VLOOKUP(C148,'Understanding codification'!$D$13:$E$50,2,FALSE) -> Action figures and accessories | E148: 06 | F148: =VLOOKUP(E148,'Understanding codification'!$G$13:$H$69,2,FALSE) -> Textiles, leather and fur >50% | G148: 060 | H148: =VLOOKUP(G148,'Understanding codification'!$J$13:$K$35,2,FALSE) -> ≥ 40kg and < 50kg | J148: 31201060600 | K148: Toys - Action figures and accessories en Textiles, leather and fur >50%≥ 40kg and < 50kg | L148: 11.35 | M148: =VLOOKUP(Tableau13[[#This Row],[Price excl. tax]],'Eco-fee codes'!$C$4:$E$408,3,FALSE) -> 426 | N148: =Tableau13[[#This Row],[Price excl. tax]]*1.2 -> 13.62
A149: 31 | B149: =VLOOKUP(A149,'Understanding codification'!$A$13:$B$16,2,FALSE) -> Toys | C149: 201 | D149: =VLOOKUP(C149,'Understanding codification'!$D$13:$E$50,2,FALSE) -> Action figures and accessories | E149: 06 | F149: =VLOOKUP(E149,'Understanding codification'!$G$13:$H$69,2,FALSE) -> Textiles, leather and fur >50% | G149: 082 | H149: =VLOOKUP(G149,'Understanding codification'!$J$13:$K$35,2,FALSE) -> Greater than 250 kg | J149: 31201060820 | K149: Toys - Action figures and accessories en Textiles, leather and fur >50%Greater than 250 kg | L149: 54.21 | M149: =VLOOKUP(Tableau13[[#This Row],[Price excl. tax]],'Eco-fee codes'!$C$4:$E$408,3,FALSE) -> 310 | N149: =Tableau13[[#This Row],[Price excl. tax]]*1.2 -> 65.052
A150: 31 | B150: =VLOOKUP(A150,'Understanding codification'!$A$13:$B$16,2,FALSE) -> Toys | C150: 201 | D150: =VLOOKUP(C150,'Understanding codification'!$D$13:$E$50,2,FALSE) -> Action figures and accessories | E150: 06 | F150: =VLOOKUP(E150,'Understanding codification'!$G$13:$H$69,2,FALSE) -> Textiles, leather and fur >50% | G150: 083 | H150: =VLOOKUP(G150,'Understanding codification'!$J$13:$K$35,2,FALSE) -> Strictly under 0.1 kg | J150: 31201060830 | K150: Toys - Action figures and accessories en Textiles, leather and fur >50%Strictly under 0.1 kg | L150: 0.02 | M150: =VLOOKUP(Tableau13[[#This Row],[Price excl. tax]],'Eco-fee codes'!$C$4:$E$408,3,FALSE) -> 047 | N150: =Tableau13[[#This Row],[Price excl. tax]]*1.2 -> 0.024
A151: 31 | B151: =VLOOKUP(A151,'Understanding codification'!$A$13:$B$16,2,FALSE) -> Toys | C151: 201 | D151: =VLOOKUP(C151,'Understanding codification'!$D$13:$E$50,2,FALSE) -> Action figures and accessories | E151: 06 | F151: =VLOOKUP(E151,'Understanding codification'!$G$13:$H$69,2,FALSE) -> Textiles, leather and fur >50% | G151: 084 | H151: =VLOOKUP(G151,'Understanding codification'!$J$13:$K$35,2,FALSE) -> ≥ 0.1kg and < 0.2kg | J151: 31201060840 | K151: Toys - Action figures and accessories en Textiles, leather and fur >50%≥ 0.1kg and < 0.2kg | L151: 0.05 | M151: =VLOOKUP(Tableau13[[#This Row],[Price excl. tax]],'Eco-fee codes'!$C$4:$E$408,3,FALSE) -> 048 | N151: =Tableau13[[#This Row],[Price excl. tax]]*1.2 -> 0.06
A152: 31 | B152: =VLOOKUP(A152,'Understanding codification'!$A$13:$B$16,2,FALSE) -> Toys | C152: 201 | D152: =VLOOKUP(C152,'Understanding codification'!$D$13:$E$50,2,FALSE) -> Action figures and accessories | E152: 06 | F152: =VLOOKUP(E152,'Understanding codification'!$G$13:$H$69,2,FALSE) -> Textiles, leather and fur >50% | G152: 085 | H152: =VLOOKUP(G152,'Understanding codification'!$J$13:$K$35,2,FALSE) -> ≥ 0.2kg and < 0.3kg | J152: 31201060850 | K152: Toys - Action figures and accessories en Textiles, leather and fur >50%≥ 0.2kg and < 0.3kg | L152: 0.08 | M152: =VLOOKUP(Tableau13[[#This Row],[Price excl. tax]],'Eco-fee codes'!$C$4:$E$408,3,FALSE) -> 003 | N152: =Tableau13[[#This Row],[Price excl. tax]]*1.2 -> 0.096
A153: 31 | B153: =VLOOKUP(A153,'Understanding codification'!$A$13:$B$16,2,FALSE) -> Toys | C153: 201 | D153: =VLOOKUP(C153,'Understanding codification'!$D$13:$E$50,2,FALSE) -> Action figures and accessories | E153: 06 | F153: =VLOOKUP(E153,'Understanding codification'!$G$13:$H$69,2,FALSE) -> Textiles, leather and fur >50% | G153: 086 | H153: =VLOOKUP(G153,'Understanding codification'!$J$13:$K$35,2,FALSE) -> ≥ 0.3kg and < 0.4kg | J153: 31201060860 | K153: Toys - Action figures and accessories en Textiles, leather and fur >50%≥ 0.3kg and < 0.4kg | L153: 0.11 | M153: =VLOOKUP(Tableau13[[#This Row],[Price excl. tax]],'Eco-fee codes'!$C$4:$E$408,3,FALSE) -> 262 | N153: =Tableau13[[#This Row],[Price excl. tax]]*1.2 -> 0.132
A154: 31 | B154: =VLOOKUP(A154,'Understanding codification'!$A$13:$B$16,2,FALSE) -> Toys | C154: 201 | D154: =VLOOKUP(C154,'Understanding codification'!$D$13:$E$50,2,FALSE) -> Action figures and accessories | E154: 06 | F154: =VLOOKUP(E154,'Understanding codification'!$G$13:$H$69,2,FALSE) -> Textiles, leather and fur >50% | G154: 087 | H154: =VLOOKUP(G154,'Understanding codification'!$J$13:$K$35,2,FALSE) -> ≥ 0.4kg and < 0.5kg | J154: 31201060870 | K154: Toys - Action figures and accessories en Textiles, leather and fur >50%≥ 0.4kg and < 0.5kg | L154: 0.14 | M154: =VLOOKUP(Tableau13[[#This Row],[Price excl. tax]],'Eco-fee codes'!$C$4:$E$408,3,FALSE) -> 098 | N154: =Tableau13[[#This Row],[Price excl. tax]]*1.2 -> 0.168
A155: 31 | B155: =VLOOKUP(A155,'Understanding codification'!$A$13:$B$16,2,FALSE) -> Toys | C155: 201 | D155: =VLOOKUP(C155,'Understanding codification'!$D$13:$E$50,2,FALSE) -> Action figures and accessories | E155: 06 | F155: =VLOOKUP(E155,'Understanding codification'!$G$13:$H$69,2,FALSE) -> Textiles, leather and fur >50% | G155: 088 | H155: =VLOOKUP(G155,'Understanding codification'!$J$13:$K$35,2,FALSE) -> ≥ 50kg and < 100kg | J155: 31201060880 | K155: Toys - Action figures and accessories en Textiles, leather and fur >50%≥ 50kg and < 100kg | L155: 17.98 | M155: =VLOOKUP(Tableau13[[#This Row],[Price excl. tax]],'Eco-fee codes'!$C$4:$E$408,3,FALSE) -> 427 | N155: =Tableau13[[#This Row],[Price excl. tax]]*1.2 -> 21.576
A156: 31 | B156: =VLOOKUP(A156,'Understanding codification'!$A$13:$B$16,2,FALSE) -> Toys | C156: 201 | D156: =VLOOKUP(C156,'Understanding codification'!$D$13:$E$50,2,FALSE) -> Action figures and accessories | E156: 07 | F156: =VLOOKUP(E156,'Understanding codification'!$G$13:$H$69,2,FALSE) -> Glass and mirror >50% | G156: 021 | H156: =VLOOKUP(G156,'Understanding codification'!$J$13:$K$35,2,FALSE) -> ≥ 0.5kg and < 1kg | J156: 31201070210 | K156: Toys - Action figures and accessories en Glass and mirror >50%≥ 0.5kg and < 1kg | L156: 0.24 | M156: =VLOOKUP(Tableau13[[#This Row],[Price excl. tax]],'Eco-fee codes'!$C$4:$E$408,3,FALSE) -> 248 | N156: =Tableau13[[#This Row],[Price excl. tax]]*1.2 -> 0.288
A157: 31 | B157: =VLOOKUP(A157,'Understanding codification'!$A$13:$B$16,2,FALSE) -> Toys | C157: 201 | D157: =VLOOKUP(C157,'Understanding codification'!$D$13:$E$50,2,FALSE) -> Action figures and accessories | E157: 07 | F157: =VLOOKUP(E157,'Understanding codification'!$G$13:$H$69,2,FALSE) -> Glass and mirror >50% | G157: 022 | H157: =VLOOKUP(G157,'Understanding codification'!$J$13:$K$35,2,FALSE) -> ≥ 1kg and < 2kg | J157: 31201070220 | K157: Toys - Action figures and accessories en Glass and mirror >50%≥ 1kg and < 2kg | L157: 0.47 | M157: =VLOOKUP(Tableau13[[#This Row],[Price excl. tax]],'Eco-fee codes'!$C$4:$E$408,3,FALSE) -> 107 | N157: =Tableau13[[#This Row],[Price excl. tax]]*1.2 -> 0.564
A158: 31 | B158: =VLOOKUP(A158,'Understanding codification'!$A$13:$B$16,2,FALSE) -> Toys | C158: 201 | D158: =VLOOKUP(C158,'Understanding codification'!$D$13:$E$50,2,FALSE) -> Action figures and accessories | E158: 07 | F158: =VLOOKUP(E158,'Understanding codification'!$G$13:$H$69,2,FALSE) -> Glass and mirror >50% | G158: 027 | H158: =VLOOKUP(G158,'Understanding codification'!$J$13:$K$35,2,FALSE) -> ≥ 30kg and < 40kg | J158: 31201070270 | K158: Toys - Action figures and accessories en Glass and mirror >50%≥ 30kg and < 40kg | L158: 9.3 | M158: =VLOOKUP(Tableau13[[#This Row],[Price excl. tax]],'Eco-fee codes'!$C$4:$E$408,3,FALSE) -> 420 | N158: =Tableau13[[#This Row],[Price excl. tax]]*1.2 -> 11.16
A159: 31 | B159: =VLOOKUP(A159,'Understanding codification'!$A$13:$B$16,2,FALSE) -> Toys | C159: 201 | D159: =VLOOKUP(C159,'Understanding codification'!$D$13:$E$50,2,FALSE) -> Action figures and accessories | E159: 07 | F159: =VLOOKUP(E159,'Understanding codification'!$G$13:$H$69,2,FALSE) -> Glass and mirror >50% | G159: 030 | H159: =VLOOKUP(G159,'Understanding codification'!$J$13:$K$35,2,FALSE) -> ≥ 100kg and < 150kg | J159: 31201070300 | K159: Toys - Action figures and accessories en Glass and mirror >50%≥ 100kg and < 150kg | L159: 27.1 | M159: =VLOOKUP(Tableau13[[#This Row],[Price excl. tax]],'Eco-fee codes'!$C$4:$E$408,3,FALSE) -> 421 | N159: =Tableau13[[#This Row],[Price excl. tax]]*1.2 -> 32.52
A160: 31 | B160: =VLOOKUP(A160,'Understanding codification'!$A$13:$B$16,2,FALSE) -> Toys | C160: 201 | D160: =VLOOKUP(C160,'Understanding codification'!$D$13:$E$50,2,FALSE) -> Action figures and accessories | E160: 07 | F160: =VLOOKUP(E160,'Understanding codification'!$G$13:$H$69,2,FALSE) -> Glass and mirror >50% | G160: 031 | H160: =VLOOKUP(G160,'Understanding codification'!$J$13:$K$35,2,FALSE) -> ≥ 150kg and < 200kg | J160: 31201070310 | K160: Toys - Action figures and accessories en Glass and mirror >50%≥ 150kg and < 200kg | L160: 37.95 | M160: =VLOOKUP(Tableau13[[#This Row],[Price excl. tax]],'Eco-fee codes'!$C$4:$E$408,3,FALSE) -> 422 | N160: =Tableau13[[#This Row],[Price excl. tax]]*1.2 -> 45.54
A161: 31 | B161: =VLOOKUP(A161,'Understanding codification'!$A$13:$B$16,2,FALSE) -> Toys | C161: 201 | D161: =VLOOKUP(C161,'Understanding codification'!$D$13:$E$50,2,FALSE) -> Action figures and accessories | E161: 07 | F161: =VLOOKUP(E161,'Understanding codification'!$G$13:$H$69,2,FALSE) -> Glass and mirror >50% | G161: 032 | H161: =VLOOKUP(G161,'Understanding codification'!$J$13:$K$35,2,FALSE) -> ≥ 200kg and < 250kg | J161: 31201070320 | K161: Toys - Action figures and accessories en Glass and mirror >50%≥ 200kg and < 250kg | L161: 48.79 | M161: =VLOOKUP(Tableau13[[#This Row],[Price excl. tax]],'Eco-fee codes'!$C$4:$E$408,3,FALSE) -> 423 | N161: =Tableau13[[#This Row],[Price excl. tax]]*1.2 -> 58.548
A162: 31 | B162: =VLOOKUP(A162,'Understanding codification'!$A$13:$B$16,2,FALSE) -> Toys | C162: 201 | D162: =VLOOKUP(C162,'Understanding codification'!$D$13:$E$50,2,FALSE) -> Action figures and accessories | E162: 07 | F162: =VLOOKUP(E162,'Understanding codification'!$G$13:$H$69,2,FALSE) -> Glass and mirror >50% | G162: 052 | H162: =VLOOKUP(G162,'Understanding codification'!$J$13:$K$35,2,FALSE) -> ≥ 2kg and < 3kg | J162: 31201070520 | K162: Toys - Action figures and accessories en Glass and mirror >50%≥ 2kg and < 3kg | L162: 0.78 | M162: =VLOOKUP(Tableau13[[#This Row],[Price excl. tax]],'Eco-fee codes'!$C$4:$E$408,3,FALSE) -> 312 | N162: =Tableau13[[#This Row],[Price excl. tax]]*1.2 -> 0.936
A163: 31 | B163: =VLOOKUP(A163,'Understanding codification'!$A$13:$B$16,2,FALSE) -> Toys | C163: 201 | D163: =VLOOKUP(C163,'Understanding codification'!$D$13:$E$50,2,FALSE) -> Action figures and accessories | E163: 07 | F163: =VLOOKUP(E163,'Understanding codification'!$G$13:$H$69,2,FALSE) -> Glass and mirror >50% | G163: 053 | H163: =VLOOKUP(G163,'Understanding codification'!$J$13:$K$35,2,FALSE) -> ≥ 3kg and < 5kg | J163: 31201070530 | K163: Toys - Action figures and accessories en Glass and mirror >50%≥ 3kg and < 5kg | L163: 1.24 | M163: =VLOOKUP(Tableau13[[#This Row],[Price excl. tax]],'Eco-fee codes'!$C$4:$E$408,3,FALSE) -> 313 | N163: =Tableau13[[#This Row],[Price excl. tax]]*1.2 -> 1.488
A164: 31 | B164: =VLOOKUP(A164,'Understanding codification'!$A$13:$B$16,2,FALSE) -> Toys | C164: 201 | D164: =VLOOKUP(C164,'Understanding codification'!$D$13:$E$50,2,FALSE) -> Action figures and accessories | E164: 07 | F164: =VLOOKUP(E164,'Understanding codification'!$G$13:$H$69,2,FALSE) -> Glass and mirror >50% | G164: 054 | H164: =VLOOKUP(G164,'Understanding codification'!$J$13:$K$35,2,FALSE) -> ≥ 5kg and < 7kg | J164: 31201070540 | K164: Toys - Action figures and accessories en Glass and mirror >50%≥ 5kg and < 7kg | L164: 1.86 | M164: =VLOOKUP(Tableau13[[#This Row],[Price excl. tax]],'Eco-fee codes'!$C$4:$E$408,3,FALSE) -> 314 | N164: =Tableau13[[#This Row],[Price excl. tax]]*1.2 -> 2.232
A165: 31 | B165: =VLOOKUP(A165,'Understanding codification'!$A$13:$B$16,2,FALSE) -> Toys | C165: 201 | D165: =VLOOKUP(C165,'Understanding codification'!$D$13:$E$50,2,FALSE) -> Action figures and accessories | E165: 07 | F165: =VLOOKUP(E165,'Understanding codification'!$G$13:$H$69,2,FALSE) -> Glass and mirror >50% | G165: 055 | H165: =VLOOKUP(G165,'Understanding codification'!$J$13:$K$35,2,FALSE) -> ≥ 7kg and < 10kg | J165: 31201070550 | K165: Toys - Action figures and accessories en Glass and mirror >50%≥ 7kg and < 10kg | L165: 2.33 | M165: =VLOOKUP(Tableau13[[#This Row],[Price excl. tax]],'Eco-fee codes'!$C$4:$E$408,3,FALSE) -> 062 | N165: =Tableau13[[#This Row],[Price excl. tax]]*1.2 -> 2.796
A166: 31 | B166: =VLOOKUP(A166,'Understanding codification'!$A$13:$B$16,2,FALSE) -> Toys | C166: 201 | D166: =VLOOKUP(C166,'Understanding codification'!$D$13:$E$50,2,FALSE) -> Action figures and accessories | E166: 07 | F166: =VLOOKUP(E166,'Understanding codification'!$G$13:$H$69,2,FALSE) -> Glass and mirror >50% | G166: 056 | H166: =VLOOKUP(G166,'Understanding codification'!$J$13:$K$35,2,FALSE) -> ≥ 10kg and < 15kg | J166: 31201070560 | K166: Toys - Action figures and accessories en Glass and mirror >50%≥ 10kg and < 15kg | L166: 3.88 | M166: =VLOOKUP(Tableau13[[#This Row],[Price excl. tax]],'Eco-fee codes'!$C$4:$E$408,3,FALSE) -> 315 | N166: =Tableau13[[#This Row],[Price excl. tax]]*1.2 -> 4.656
A167: 31 | B167: =VLOOKUP(A167,'Understanding codification'!$A$13:$B$16,2,FALSE) -> Toys | C167: 201 | D167: =VLOOKUP(C167,'Understanding codification'!$D$13:$E$50,2,FALSE) -> Action figures and accessories | E167: 07 | F167: =VLOOKUP(E167,'Understanding codification'!$G$13:$H$69,2,FALSE) -> Glass and mirror >50% | G167: 057 | H167: =VLOOKUP(G167,'Understanding codification'!$J$13:$K$35,2,FALSE) -> ≥ 15kg and < 20kg | J167: 31201070570 | K167: Toys - Action figures and accessories en Glass and mirror >50%≥ 15kg and < 20kg | L167: 5.43 | M167: =VLOOKUP(Tableau13[[#This Row],[Price excl. tax]],'Eco-fee codes'!$C$4:$E$408,3,FALSE) -> 316 | N167: =Tableau13[[#This Row],[Price excl. tax]]*1.2 -> 6.516
A168: 31 | B168: =VLOOKUP(A168,'Understanding codification'!$A$13:$B$16,2,FALSE) -> Toys | C168: 201 | D168: =VLOOKUP(C168,'Understanding codification'!$D$13:$E$50,2,FALSE) -> Action figures and accessories | E168: 07 | F168: =VLOOKUP(E168,'Understanding codification'!$G$13:$H$69,2,FALSE) -> Glass and mirror >50% | G168: 058 | H168: =VLOOKUP(G168,'Understanding codification'!$J$13:$K$35,2,FALSE) -> ≥ 20kg and < 25kg | J168: 31201070580 | K168: Toys - Action figures and accessories en Glass and mirror >50%≥ 20kg and < 25kg | L168: 6.62 | M168: =VLOOKUP(Tableau13[[#This Row],[Price excl. tax]],'Eco-fee codes'!$C$4:$E$408,3,FALSE) -> 424 | N168: =Tableau13[[#This Row],[Price excl. tax]]*1.2 -> 7.944
A169: 31 | B169: =VLOOKUP(A169,'Understanding codification'!$A$13:$B$16,2,FALSE) -> Toys | C169: 201 | D169: =VLOOKUP(C169,'Understanding codification'!$D$13:$E$50,2,FALSE) -> Action figures and accessories | E169: 07 | F169: =VLOOKUP(E169,'Understanding codification'!$G$13:$H$69,2,FALSE) -> Glass and mirror >50% | G169: 059 | H169: =VLOOKUP(G169,'Understanding codification'!$J$13:$K$35,2,FALSE) -> ≥ 25kg and < 30kg | J169: 31201070590 | K169: Toys - Action figures and accessories en Glass and mirror >50%≥ 25kg and < 30kg | L169: 7.69 | M169: =VLOOKUP(Tableau13[[#This Row],[Price excl. tax]],'Eco-fee codes'!$C$4:$E$408,3,FALSE) -> 425 | N169: =Tableau13[[#This Row],[Price excl. tax]]*1.2 -> 9.228
A170: 31 | B170: =VLOOKUP(A170,'Understanding codification'!$A$13:$B$16,2,FALSE) -> Toys | C170: 201 | D170: =VLOOKUP(C170,'Understanding codification'!$D$13:$E$50,2,FALSE) -> Action figures and accessories | E170: 07 | F170: =VLOOKUP(E170,'Understanding codification'!$G$13:$H$69,2,FALSE) -> Glass and mirror >50% | G170: 060 | H170: =VLOOKUP(G170,'Understanding codification'!$J$13:$K$35,2,FALSE) -> ≥ 40kg and < 50kg | J170: 31201070600 | K170: Toys - Action figures and accessories en Glass and mirror >50%≥ 40kg and < 50kg | L170: 11.35 | M170: =VLOOKUP(Tableau13[[#This Row],[Price excl. tax]],'Eco-fee codes'!$C$4:$E$408,3,FALSE) -> 426 | N170: =Tableau13[[#This Row],[Price excl. tax]]*1.2 -> 13.62
A171: 31 | B171: =VLOOKUP(A171,'Understanding codification'!$A$13:$B$16,2,FALSE) -> Toys | C171: 201 | D171: =VLOOKUP(C171,'Understanding codification'!$D$13:$E$50,2,FALSE) -> Action figures and accessories | E171: 07 | F171: =VLOOKUP(E171,'Understanding codification'!$G$13:$H$69,2,FALSE) -> Glass and mirror >50% | G171: 082 | H171: =VLOOKUP(G171,'Understanding codification'!$J$13:$K$35,2,FALSE) -> Greater than 250 kg | J171: 31201070820 | K171: Toys - Action figures and accessories en Glass and mirror >50%Greater than 250 kg | L171: 54.21 | M171: =VLOOKUP(Tableau13[[#This Row],[Price excl. tax]],'Eco-fee codes'!$C$4:$E$408,3,FALSE) -> 310 | N171: =Tableau13[[#This Row],[Price excl. tax]]*1.2 -> 65.052
A172: 31 | B172: =VLOOKUP(A172,'Understanding codification'!$A$13:$B$16,2,FALSE) -> Toys | C172: 201 | D172: =VLOOKUP(C172,'Understanding codification'!$D$13:$E$50,2,FALSE) -> Action figures and accessories | E172: 07 | F172: =VLOOKUP(E172,'Understanding codification'!$G$13:$H$69,2,FALSE) -> Glass and mirror >50% | G172: 083 | H172: =VLOOKUP(G172,'Understanding codification'!$J$13:$K$35,2,FALSE) -> Strictly under 0.1 kg | J172: 31201070830 | K172: Toys - Action figures and accessories en Glass and mirror >50%Strictly under 0.1 kg | L172: 0.02 | M172: =VLOOKUP(Tableau13[[#This Row],[Price excl. tax]],'Eco-fee codes'!$C$4:$E$408,3,FALSE) -> 047 | N172: =Tableau13[[#This Row],[Price excl. tax]]*1.2 -> 0.024
A173: 31 | B173: =VLOOKUP(A173,'Understanding codification'!$A$13:$B$16,2,FALSE) -> Toys | C173: 201 | D173: =VLOOKUP(C173,'Understanding codification'!$D$13:$E$50,2,FALSE) -> Action figures and accessories | E173: 07 | F173: =VLOOKUP(E173,'Understanding codification'!$G$13:$H$69,2,FALSE) -> Glass and mirror >50% | G173: 084 | H173: =VLOOKUP(G173,'Understanding codification'!$J$13:$K$35,2,FALSE) -> ≥ 0.1kg and < 0.2kg | J173: 31201070840 | K173: Toys - Action figures and accessories en Glass and mirror >50%≥ 0.1kg and < 0.2kg | L173: 0.05 | M173: =VLOOKUP(Tableau13[[#This Row],[Price excl. tax]],'Eco-fee codes'!$C$4:$E$408,3,FALSE) -> 048 | N173: =Tableau13[[#This Row],[Price excl. tax]]*1.2 -> 0.06
A174: 31 | B174: =VLOOKUP(A174,'Understanding codification'!$A$13:$B$16,2,FALSE) -> Toys | C174: 201 | D174: =VLOOKUP(C174,'Understanding codification'!$D$13:$E$50,2,FALSE) -> Action figures and accessories | E174: 07 | F174: =VLOOKUP(E174,'Understanding codification'!$G$13:$H$69,2,FALSE) -> Glass and mirror >50% | G174: 085 | H174: =VLOOKUP(G174,'Understanding codification'!$J$13:$K$35,2,FALSE) -> ≥ 0.2kg and < 0.3kg | J174: 31201070850 | K174: Toys - Action figures and accessories en Glass and mirror >50%≥ 0.2kg and < 0.3kg | L174: 0.08 | M174: =VLOOKUP(Tableau13[[#This Row],[Price excl. tax]],'Eco-fee codes'!$C$4:$E$408,3,FALSE) -> 003 | N174: =Tableau13[[#This Row],[Price excl. tax]]*1.2 -> 0.096
A175: 31 | B175: =VLOOKUP(A175,'Understanding codification'!$A$13:$B$16,2,FALSE) -> Toys | C175: 201 | D175: =VLOOKUP(C175,'Understanding codification'!$D$13:$E$50,2,FALSE) -> Action figures and accessories | E175: 07 | F175: =VLOOKUP(E175,'Understanding codification'!$G$13:$H$69,2,FALSE) -> Glass and mirror >50% | G175: 086 | H175: =VLOOKUP(G175,'Understanding codification'!$J$13:$K$35,2,FALSE) -> ≥ 0.3kg and < 0.4kg | J175: 31201070860 | K175: Toys - Action figures and accessories en Glass and mirror >50%≥ 0.3kg and < 0.4kg | L175: 0.11 | M175: =VLOOKUP(Tableau13[[#This Row],[Price excl. tax]],'Eco-fee codes'!$C$4:$E$408,3,FALSE) -> 262 | N175: =Tableau13[[#This Row],[Price excl. tax]]*1.2 -> 0.132
A176: 31 | B176: =VLOOKUP(A176,'Understanding codification'!$A$13:$B$16,2,FALSE) -> Toys | C176: 201 | D176: =VLOOKUP(C176,'Understanding codification'!$D$13:$E$50,2,FALSE) -> Action figures and accessories | E176: 07 | F176: =VLOOKUP(E176,'Understanding codification'!$G$13:$H$69,2,FALSE) -> Glass and mirror >50% | G176: 087 | H176: =VLOOKUP(G176,'Understanding codification'!$J$13:$K$35,2,FALSE) -> ≥ 0.4kg and < 0.5kg | J176: 31201070870 | K176: Toys - Action figures and accessories en Glass and mirror >50%≥ 0.4kg and < 0.5kg | L176: 0.14 | M176: =VLOOKUP(Tableau13[[#This Row],[Price excl. tax]],'Eco-fee codes'!$C$4:$E$408,3,FALSE) -> 098 | N176: =Tableau13[[#This Row],[Price excl. tax]]*1.2 -> 0.168
A177: 31 | B177: =VLOOKUP(A177,'Understanding codification'!$A$13:$B$16,2,FALSE) -> Toys | C177: 201 | D177: =VLOOKUP(C177,'Understanding codification'!$D$13:$E$50,2,FALSE) -> Action figures and accessories | E177: 07 | F177: =VLOOKUP(E177,'Understanding codification'!$G$13:$H$69,2,FALSE) -> Glass and mirror >50% | G177: 088 | H177: =VLOOKUP(G177,'Understanding codification'!$J$13:$K$35,2,FALSE) -> ≥ 50kg and < 100kg | J177: 31201070880 | K177: Toys - Action figures and accessories en Glass and mirror >50%≥ 50kg and < 100kg | L177: 17.98 | M177: =VLOOKUP(Tableau13[[#This Row],[Price excl. tax]],'Eco-fee codes'!$C$4:$E$408,3,FALSE) -> 427 | N177: =Tableau13[[#This Row],[Price excl. tax]]*1.2 -> 21.576
A178: 31 | B178: =VLOOKUP(A178,'Understanding codification'!$A$13:$B$16,2,FALSE) -> Toys | C178: 201 | D178: =VLOOKUP(C178,'Understanding codification'!$D$13:$E$50,2,FALSE) -> Action figures and accessories | E178: 08 | F178: =VLOOKUP(E178,'Understanding codification'!$G$13:$H$69,2,FALSE) -> Inert, minerals >50% | G178: 021 | H178: =VLOOKUP(G178,'Understanding codification'!$J$13:$K$35,2,FALSE) -> ≥ 0.5kg and < 1kg | J178: 31201080210 | K178: Toys - Action figures and accessories en Inert, minerals >50%≥ 0.5kg and < 1kg | L178: 0.24 | M178: =VLOOKUP(Tableau13[[#This Row],[Price excl. tax]],'Eco-fee codes'!$C$4:$E$408,3,FALSE) -> 248 | N178: =Tableau13[[#This Row],[Price excl. tax]]*1.2 -> 0.288
A179: 31 | B179: =VLOOKUP(A179,'Understanding codification'!$A$13:$B$16,2,FALSE) -> Toys | C179: 201 | D179: =VLOOKUP(C179,'Understanding codification'!$D$13:$E$50,2,FALSE) -> Action figures and accessories | E179: 08 | F179: =VLOOKUP(E179,'Understanding codification'!$G$13:$H$69,2,FALSE) -> Inert, minerals >50% | G179: 022 | H179: =VLOOKUP(G179,'Understanding codification'!$J$13:$K$35,2,FALSE) -> ≥ 1kg and < 2kg | J179: 31201080220 | K179: Toys - Action figures and accessories en Inert, minerals >50%≥ 1kg and < 2kg | L179: 0.47 | M179: =VLOOKUP(Tableau13[[#This Row],[Price excl. tax]],'Eco-fee codes'!$C$4:$E$408,3,FALSE) -> 107 | N179: =Tableau13[[#This Row],[Price excl. tax]]*1.2 -> 0.564
A180: 31 | B180: =VLOOKUP(A180,'Understanding codification'!$A$13:$B$16,2,FALSE) -> Toys | C180: 201 | D180: =VLOOKUP(C180,'Understanding codification'!$D$13:$E$50,2,FALSE) -> Action figures and accessories | E180: 08 | F180: =VLOOKUP(E180,'Understanding codification'!$G$13:$H$69,2,FALSE) -> Inert, minerals >50% | G180: 027 | H180: =VLOOKUP(G180,'Understanding codification'!$J$13:$K$35,2,FALSE) -> ≥ 30kg and < 40kg | J180: 31201080270 | K180: Toys - Action figures and accessories en Inert, minerals >50%≥ 30kg and < 40kg | L180: 9.3 | M180: =VLOOKUP(Tableau13[[#This Row],[Price excl. tax]],'Eco-fee codes'!$C$4:$E$408,3,FALSE) -> 420 | N180: =Tableau13[[#This Row],[Price excl. tax]]*1.2 -> 11.16
A181: 31 | B181: =VLOOKUP(A181,'Understanding codification'!$A$13:$B$16,2,FALSE) -> Toys | C181: 201 | D181: =VLOOKUP(C181,'Understanding codification'!$D$13:$E$50,2,FALSE) -> Action figures and accessories | E181: 08 | F181: =VLOOKUP(E181,'Understanding codification'!$G$13:$H$69,2,FALSE) -> Inert, minerals >50% | G181: 030 | H181: =VLOOKUP(G181,'Understanding codification'!$J$13:$K$35,2,FALSE) -> ≥ 100kg and < 150kg | J181: 31201080300 | K181: Toys - Action figures and accessories en Inert, minerals >50%≥ 100kg and < 150kg | L181: 27.1 | M181: =VLOOKUP(Tableau13[[#This Row],[Price excl. tax]],'Eco-fee codes'!$C$4:$E$408,3,FALSE) -> 421 | N181: =Tableau13[[#This Row],[Price excl. tax]]*1.2 -> 32.52
A182: 31 | B182: =VLOOKUP(A182,'Understanding codification'!$A$13:$B$16,2,FALSE) -> Toys | C182: 201 | D182: =VLOOKUP(C182,'Understanding codification'!$D$13:$E$50,2,FALSE) -> Action figures and accessories | E182: 08 | F182: =VLOOKUP(E182,'Understanding codification'!$G$13:$H$69,2,FALSE) -> Inert, minerals >50% | G182: 031 | H182: =VLOOKUP(G182,'Understanding codification'!$J$13:$K$35,2,FALSE) -> ≥ 150kg and < 200kg | J182: 31201080310 | K182: Toys - Action figures and accessories en Inert, minerals >50%≥ 150kg and < 200kg | L182: 37.95 | M182: =VLOOKUP(Tableau13[[#This Row],[Price excl. tax]],'Eco-fee codes'!$C$4:$E$408,3,FALSE) -> 422 | N182: =Tableau13[[#This Row],[Price excl. tax]]*1.2 -> 45.54
A183: 31 | B183: =VLOOKUP(A183,'Understanding codification'!$A$13:$B$16,2,FALSE) -> Toys | C183: 201 | D183: =VLOOKUP(C183,'Understanding codification'!$D$13:$E$50,2,FALSE) -> Action figures and accessories | E183: 08 | F183: =VLOOKUP(E183,'Understanding codification'!$G$13:$H$69,2,FALSE) -> Inert, minerals >50% | G183: 032 | H183: =VLOOKUP(G183,'Understanding codification'!$J$13:$K$35,2,FALSE) -> ≥ 200kg and < 250kg | J183: 31201080320 | K183: Toys - Action figures and accessories en Inert, minerals >50%≥ 200kg and < 250kg | L183: 48.79 | M183: =VLOOKUP(Tableau13[[#This Row],[Price excl. tax]],'Eco-fee codes'!$C$4:$E$408,3,FALSE) -> 423 | N183: =Tableau13[[#This Row],[Price excl. tax]]*1.2 -> 58.548
A184: 31 | B184: =VLOOKUP(A184,'Understanding codification'!$A$13:$B$16,2,FALSE) -> Toys | C184: 201 | D184: =VLOOKUP(C184,'Understanding codification'!$D$13:$E$50,2,FALSE) -> Action figures and accessories | E184: 08 | F184: =VLOOKUP(E184,'Understanding codification'!$G$13:$H$69,2,FALSE) -> Inert, minerals >50% | G184: 052 | H184: =VLOOKUP(G184,'Understanding codification'!$J$13:$K$35,2,FALSE) -> ≥ 2kg and < 3kg | J184: 31201080520 | K184: Toys - Action figures and accessories en Inert, minerals >50%≥ 2kg and < 3kg | L184: 0.78 | M184: =VLOOKUP(Tableau13[[#This Row],[Price excl. tax]],'Eco-fee codes'!$C$4:$E$408,3,FALSE) -> 312 | N184: =Tableau13[[#This Row],[Price excl. tax]]*1.2 -> 0.936
A185: 31 | B185: =VLOOKUP(A185,'Understanding codification'!$A$13:$B$16,2,FALSE) -> Toys | C185: 201 | D185: =VLOOKUP(C185,'Understanding codification'!$D$13:$E$50,2,FALSE) -> Action figures and accessories | E185: 08 | F185: =VLOOKUP(E185,'Understanding codification'!$G$13:$H$69,2,FALSE) -> Inert, minerals >50% | G185: 053 | H185: =VLOOKUP(G185,'Understanding codification'!$J$13:$K$35,2,FALSE) -> ≥ 3kg and < 5kg | J185: 31201080530 | K185: Toys - Action figures and accessories en Inert, minerals >50%≥ 3kg and < 5kg | L185: 1.24 | M185: =VLOOKUP(Tableau13[[#This Row],[Price excl. tax]],'Eco-fee codes'!$C$4:$E$408,3,FALSE) -> 313 | N185: =Tableau13[[#This Row],[Price excl. tax]]*1.2 -> 1.488
A186: 31 | B186: =VLOOKUP(A186,'Understanding codification'!$A$13:$B$16,2,FALSE) -> Toys | C186: 201 | D186: =VLOOKUP(C186,'Understanding codification'!$D$13:$E$50,2,FALSE) -> Action figures and accessories | E186: 08 | F186: =VLOOKUP(E186,'Understanding codification'!$G$13:$H$69,2,FALSE) -> Inert, minerals >50% | G186: 054 | H186: =VLOOKUP(G186,'Understanding codification'!$J$13:$K$35,2,FALSE) -> ≥ 5kg and < 7kg | J186: 31201080540 | K186: Toys - Action figures and accessories en Inert, minerals >50%≥ 5kg and < 7kg | L186: 1.86 | M186: =VLOOKUP(Tableau13[[#This Row],[Price excl. tax]],'Eco-fee codes'!$C$4:$E$408,3,FALSE) -> 314 | N186: =Tableau13[[#This Row],[Price excl. tax]]*1.2 -> 2.232
A187: 31 | B187: =VLOOKUP(A187,'Understanding codification'!$A$13:$B$16,2,FALSE) -> Toys | C187: 201 | D187: =VLOOKUP(C187,'Understanding codification'!$D$13:$E$50,2,FALSE) -> Action figures and accessories | E187: 08 | F187: =VLOOKUP(E187,'Understanding codification'!$G$13:$H$69,2,FALSE) -> Inert, minerals >50% | G187: 055 | H187: =VLOOKUP(G187,'Understanding codification'!$J$13:$K$35,2,FALSE) -> ≥ 7kg and < 10kg | J187: 31201080550 | K187: Toys - Action figures and accessories en Inert, minerals >50%≥ 7kg and < 10kg | L187: 2.33 | M187: =VLOOKUP(Tableau13[[#This Row],[Price excl. tax]],'Eco-fee codes'!$C$4:$E$408,3,FALSE) -> 062 | N187: =Tableau13[[#This Row],[Price excl. tax]]*1.2 -> 2.796
A188: 31 | B188: =VLOOKUP(A188,'Understanding codification'!$A$13:$B$16,2,FALSE) -> Toys | C188: 201 | D188: =VLOOKUP(C188,'Understanding codification'!$D$13:$E$50,2,FALSE) -> Action figures and accessories | E188: 08 | F188: =VLOOKUP(E188,'Understanding codification'!$G$13:$H$69,2,FALSE) -> Inert, minerals >50% | G188: 056 | H188: =VLOOKUP(G188,'Understanding codification'!$J$13:$K$35,2,FALSE) -> ≥ 10kg and < 15kg | J188: 31201080560 | K188: Toys - Action figures and accessories en Inert, minerals >50%≥ 10kg and < 15kg | L188: 3.88 | M188: =VLOOKUP(Tableau13[[#This Row],[Price excl. tax]],'Eco-fee codes'!$C$4:$E$408,3,FALSE) -> 315 | N188: =Tableau13[[#This Row],[Price excl. tax]]*1.2 -> 4.656
A189: 31 | B189: =VLOOKUP(A189,'Understanding codification'!$A$13:$B$16,2,FALSE) -> Toys | C189: 201 | D189: =VLOOKUP(C189,'Understanding codification'!$D$13:$E$50,2,FALSE) -> Action figures and accessories | E189: 08 | F189: =VLOOKUP(E189,'Understanding codification'!$G$13:$H$69,2,FALSE) -> Inert, minerals >50% | G189: 057 | H189: =VLOOKUP(G189,'Understanding codification'!$J$13:$K$35,2,FALSE) -> ≥ 15kg and < 20kg | J189: 31201080570 | K189: Toys - Action figures and accessories en Inert, minerals >50%≥ 15kg and < 20kg | L189: 5.43 | M189: =VLOOKUP(Tableau13[[#This Row],[Price excl. tax]],'Eco-fee codes'!$C$4:$E$408,3,FALSE) -> 316 | N189: =Tableau13[[#This Row],[Price excl. tax]]*1.2 -> 6.516
A190: 31 | B190: =VLOOKUP(A190,'Understanding codification'!$A$13:$B$16,2,FALSE) -> Toys | C190: 201 | D190: =VLOOKUP(C190,'Understanding codification'!$D$13:$E$50,2,FALSE) -> Action figures and accessories | E190: 08 | F190: =VLOOKUP(E190,'Understanding codification'!$G$13:$H$69,2,FALSE) -> Inert, minerals >50% | G190: 058 | H190: =VLOOKUP(G190,'Understanding codification'!$J$13:$K$35,2,FALSE) -> ≥ 20kg and < 25kg | J190: 31201080580 | K190: Toys - Action figures and accessories en Inert, minerals >50%≥ 20kg and < 25kg | L190: 6.62 | M190: =VLOOKUP(Tableau13[[#This Row],[Price excl. tax]],'Eco-fee codes'!$C$4:$E$408,3,FALSE) -> 424 | N190: =Tableau13[[#This Row],[Price excl. tax]]*1.2 -> 7.944
A191: 31 | B191: =VLOOKUP(A191,'Understanding codification'!$A$13:$B$16,2,FALSE) -> Toys | C191: 201 | D191: =VLOOKUP(C191,'Understanding codification'!$D$13:$E$50,2,FALSE) -> Action figures and accessories | E191: 08 | F191: =VLOOKUP(E191,'Understanding codification'!$G$13:$H$69,2,FALSE) -> Inert, minerals >50% | G191: 059 | H191: =VLOOKUP(G191,'Understanding codification'!$J$13:$K$35,2,FALSE) -> ≥ 25kg and < 30kg | J191: 31201080590 | K191: Toys - Action figures and accessories en Inert, minerals >50%≥ 25kg and < 30kg | L191: 7.69 | M191: =VLOOKUP(Tableau13[[#This Row],[Price excl. tax]],'Eco-fee codes'!$C$4:$E$408,3,FALSE) -> 425 | N191: =Tableau13[[#This Row],[Price excl. tax]]*1.2 -> 9.228
A192: 31 | B192: =VLOOKUP(A192,'Understanding codification'!$A$13:$B$16,2,FALSE) -> Toys | C192: 201 | D192: =VLOOKUP(C192,'Understanding codification'!$D$13:$E$50,2,FALSE) -> Action figures and accessories | E192: 08 | F192: =VLOOKUP(E192,'Understanding codification'!$G$13:$H$69,2,FALSE) -> Inert, minerals >50% | G192: 060 | H192: =VLOOKUP(G192,'Understanding codification'!$J$13:$K$35,2,FALSE) -> ≥ 40kg and < 50kg | J192: 31201080600 | K192: Toys - Action figures and accessories en Inert, minerals >50%≥ 40kg and < 50kg | L192: 11.35 | M192: =VLOOKUP(Tableau13[[#This Row],[Price excl. tax]],'Eco-fee codes'!$C$4:$E$408,3,FALSE) -> 426 | N192: =Tableau13[[#This Row],[Price excl. tax]]*1.2 -> 13.62
A193: 31 | B193: =VLOOKUP(A193,'Understanding codification'!$A$13:$B$16,2,FALSE) -> Toys | C193: 201 | D193: =VLOOKUP(C193,'Understanding codification'!$D$13:$E$50,2,FALSE) -> Action figures and accessories | E193: 08 | F193: =VLOOKUP(E193,'Understanding codification'!$G$13:$H$69,2,FALSE) -> Inert, minerals >50% | G193: 082 | H193: =VLOOKUP(G193,'Understanding codification'!$J$13:$K$35,2,FALSE) -> Greater than 250 kg | J193: 31201080820 | K193: Toys - Action figures and accessories en Inert, minerals >50%Greater than 250 kg | L193: 54.21 | M193: =VLOOKUP(Tableau13[[#This Row],[Price excl. tax]],'Eco-fee codes'!$C$4:$E$408,3,FALSE) -> 310 | N193: =Tableau13[[#This Row],[Price excl. tax]]*1.2 -> 65.052
A194: =MID(J194,1,2) -> 31 | B194: =VLOOKUP(A194,'Understanding codification'!$A$13:$B$16,2,FALSE) -> Toys | C194: =MID(J194,3,3) -> 201 | D194: =VLOOKUP(C194,'Understanding codification'!$D$13:$E$50,2,FALSE) -> Action figures and accessories | E194: =MID(J194,6,2) -> 08 | F194: =VLOOKUP(E194,'Understanding codification'!$G$13:$H$69,2,FALSE) -> Inert, minerals >50% | G194: =MID(J194,8,3) -> 083 | H194: =VLOOKUP(G194,'Understanding codification'!$J$13:$K$35,2,FALSE) -> Strictly under 0.1 kg | J194: 31201080830 | K194: =B194&" - "&D194&" en "&F194&H194 -> Toys - Action figures and accessories en Inert, minerals >50%Strictly under 0.1 kg | L194: 0.02 | M194: =VLOOKUP(Tableau13[[#This Row],[Price excl. tax]],'Eco-fee codes'!$C$4:$E$408,3,FALSE) -> 047 | N194: =Tableau13[[#This Row],[Price excl. tax]]*1.2 -> 0.024
A195: 31 | B195: =VLOOKUP(A195,'Understanding codification'!$A$13:$B$16,2,FALSE) -> Toys | C195: 201 | D195: =VLOOKUP(C195,'Understanding codification'!$D$13:$E$50,2,FALSE) -> Action figures and accessories | E195: 08 | F195: =VLOOKUP(E195,'Understanding codification'!$G$13:$H$69,2,FALSE) -> Inert, minerals >50% | G195: 084 | H195: =VLOOKUP(G195,'Understanding codification'!$J$13:$K$35,2,FALSE) -> ≥ 0.1kg and < 0.2kg | J195: 31201080840 | K195: Toys - Action figures and accessories en Inert, minerals >50%≥ 0.1kg and < 0.2kg | L195: 0.05 | M195: =VLOOKUP(Tableau13[[#This Row],[Price excl. tax]],'Eco-fee codes'!$C$4:$E$408,3,FALSE) -> 048 | N195: =Tableau13[[#This Row],[Price excl. tax]]*1.2 -> 0.06
A196: 31 | B196: =VLOOKUP(A196,'Understanding codification'!$A$13:$B$16,2,FALSE) -> Toys | C196: 201 | D196: =VLOOKUP(C196,'Understanding codification'!$D$13:$E$50,2,FALSE) -> Action figures and accessories | E196: 08 | F196: =VLOOKUP(E196,'Understanding codification'!$G$13:$H$69,2,FALSE) -> Inert, minerals >50% | G196: 085 | H196: =VLOOKUP(G196,'Understanding codification'!$J$13:$K$35,2,FALSE) -> ≥ 0.2kg and < 0.3kg | J196: 31201080850 | K196: Toys - Action figures and accessories en Inert, minerals >50%≥ 0.2kg and < 0.3kg | L196: 0.08 | M196: =VLOOKUP(Tableau13[[#This Row],[Price excl. tax]],'Eco-fee codes'!$C$4:$E$408,3,FALSE) -> 003 | N196: =Tableau13[[#This Row],[Price excl. tax]]*1.2 -> 0.096
A197: 31 | B197: =VLOOKUP(A197,'Understanding codification'!$A$13:$B$16,2,FALSE) -> Toys | C197: 201 | D197: =VLOOKUP(C197,'Understanding codification'!$D$13:$E$50,2,FALSE) -> Action figures and accessories | E197: 08 | F197: =VLOOKUP(E197,'Understanding codification'!$G$13:$H$69,2,FALSE) -> Inert, minerals >50% | G197: 086 | H197: =VLOOKUP(G197,'Understanding codification'!$J$13:$K$35,2,FALSE) -> ≥ 0.3kg and < 0.4kg | J197: 31201080860 | K197: Toys - Action figures and accessories en Inert, minerals >50%≥ 0.3kg and < 0.4kg | L197: 0.11 | M197: =VLOOKUP(Tableau13[[#This Row],[Price excl. tax]],'Eco-fee codes'!$C$4:$E$408,3,FALSE) -> 262 | N197: =Tableau13[[#This Row],[Price excl. tax]]*1.2 -> 0.132
A198: 31 | B198: =VLOOKUP(A198,'Understanding codification'!$A$13:$B$16,2,FALSE) -> Toys | C198: 201 | D198: =VLOOKUP(C198,'Understanding codification'!$D$13:$E$50,2,FALSE) -> Action figures and accessories | E198: 08 | F198: =VLOOKUP(E198,'Understanding codification'!$G$13:$H$69,2,FALSE) -> Inert, minerals >50% | G198: 087 | H198: =VLOOKUP(G198,'Understanding codification'!$J$13:$K$35,2,FALSE) -> ≥ 0.4kg and < 0.5kg | J198: 31201080870 | K198: Toys - Action figures and accessories en Inert, minerals >50%≥ 0.4kg and < 0.5kg | L198: 0.14 | M198: =VLOOKUP(Tableau13[[#This Row],[Price excl. tax]],'Eco-fee codes'!$C$4:$E$408,3,FALSE) -> 098 | N198: =Tableau13[[#This Row],[Price excl. tax]]*1.2 -> 0.168
A199: 31 | B199: =VLOOKUP(A199,'Understanding codification'!$A$13:$B$16,2,FALSE) -> Toys | C199: 201 | D199: =VLOOKUP(C199,'Understanding codification'!$D$13:$E$50,2,FALSE) -> Action figures and accessories | E199: 08 | F199: =VLOOKUP(E199,'Understanding codification'!$G$13:$H$69,2,FALSE) -> Inert, minerals >50% | G199: 088 | H199: =VLOOKUP(G199,'Understanding codification'!$J$13:$K$35,2,FALSE) -> ≥ 50kg and < 100kg | J199: 31201080880 | K199: Toys - Action figures and accessories en Inert, minerals >50%≥ 50kg and < 100kg | L199: 17.98 | M199: =VLOOKUP(Tableau13[[#This Row],[Price excl. tax]],'Eco-fee codes'!$C$4:$E$408,3,FALSE) -> 427 | N199: =Tableau13[[#This Row],[Price excl. tax]]*1.2 -> 21.576
A200: 31 | B200: =VLOOKUP(A200,'Understanding codification'!$A$13:$B$16,2,FALSE) -> Toys | C200: 201 | D200: =VLOOKUP(C200,'Understanding codification'!$D$13:$E$50,2,FALSE) -> Action figures and accessories | E200: 12 | F200: =VLOOKUP(E200,'Understanding codification'!$G$13:$H$69,2,FALSE) -> Other | G200: 021 | H200: =VLOOKUP(G200,'Understanding codification'!$J$13:$K$35,2,FALSE) -> ≥ 0.5kg and < 1kg | J200: 31201120210 | K200: Toys - Action figures and accessories en Other≥ 0.5kg and < 1kg | L200: 0.24 | M200: =VLOOKUP(Tableau13[[#This Row],[Price excl. tax]],'Eco-fee codes'!$C$4:$E$408,3,FALSE) -> 248 | N200: =Tableau13[[#This Row],[Price excl. tax]]*1.2 -> 0.288
... 4300 more rows

Sheet Listes_masqué (hidden)
A1: Code caractéristique | E1: Code matériau | I1: Code catégorie | M1: Code type de produit | U1: Code matériau | W1: Code dimension | Z1: Eco-modulation
Z2: yes
A3: 083 | B3: Strictly under 0.1 kg | C3: =A3 -> 083 | E3: 00 | F3: Not found | G3: =E3 -> 00 | H3: Toys | I3: 31 | J3: Jouets | K3: =I3 -> 31 | M3: 201 | N3: Action figures and accessories | O3: =M3 -> 201 | P3: =CONCATENATE(M3," - ",N3) -> 201 - Action figures and accessories | Q3: Wood and Wood products | R3: Bois_et_dérivés | U3: Bois_et_dérivés | V3: =IFERROR(VLOOKUP(RIGHT(U3,3),$M$3:$N$41,2,FALSE),"") ->  | W3: Tous_jouets | X3: =IFERROR(VLOOKUP(RIGHT(W3,3),$M$3:$N$41,2,FALSE),"") ->  | Z3: no
A4: 084 | B4: ≥ 0.1kg and < 0.2kg | C4: =A4 -> 084 | E4: 01 | F4: Wood, panels and wood derivatives >50% | G4: =E4 -> 01 | H4: Outdoor toys | I4: 32 | J4: Jouets_de_plein_air | K4: =I4 -> 32 | M4: 202 | N4: Construction sets & accessories | O4: =M4 -> 202 | P4: =CONCATENATE(M4," - ",N4) -> 202 - Construction sets & accessories | Q4: Metal | R4: Métal | U4: Wood, panels and wood derivatives >50% | V4: =IFERROR(VLOOKUP(RIGHT(U4,3),$M$3:$N$41,2,FALSE),"") ->  | W4: Strictly under 0.1 kg | X4: =IFERROR(VLOOKUP(W4,$B$3:$C$25,2,FALSE),"") -> 083
A5: 085 | B5: ≥ 0.2kg and < 0.3kg | C5: 085 | E5: 02 | F5: Metal >50% | G5: 02 | H5: Board games | I5: 33 | J5: Jeux_de_société | K5: 33 | M5: 203 | N5: Dolls, dolls & accessories | O5: 203 | P5: 203 - Dolls, dolls & accessories | Q5: Plastic | R5: Plastiques | U5: Certified solid wood, more than 75% | V5: =IFERROR(VLOOKUP(RIGHT(U14,3),$M$3:$N$41,2,FALSE),"") ->  | W5: ≥ 0.1kg and < 0.2kg | X5: 084
A6: 086 | B6: ≥ 0.3kg and < 0.4kg | C6: 086 | E6: 03 | F6: Bamboo/rattan >50% | G6: 03 | H6: Gift toys | I6: 34 | J6: Jeux_cadeau | K6: 34 | M6: 204 | N6: Plush toys & accessories | O6: 204 | P6: 204 - Plush toys & accessories | Q6: Textile and with padding | R6: Textiles_et_avec_rembourrage | U6: Certified solid wood, over 95% | V6: =IFERROR(VLOOKUP(RIGHT(U16,3),$M$3:$N$41,2,FALSE),"") ->  | W6: ≥ 0.2kg and < 0.3kg | X6: 085
A7: 087 | B7: ≥ 0.4kg and < 0.5kg | C7: 087 | E7: 04 | F7: Wicker and other plant stalks >50% | G7: 04 | M7: 205 | N7: Infant and preschool toys & accessories (under 3 years) | O7: 205 | P7: 205 - Infant and preschool toys & accessories (under 3 years) | Q7: Others | R7: Autres | U7: Uncertified solid wood, more than 75% | V7: =IFERROR(VLOOKUP(RIGHT(U5,3),$M$3:$N$41,2,FALSE),"") ->  | W7: ≥ 0.3kg and < 0.4kg | X7: 086
A8: 021 | B8: ≥ 0.5kg and < 1kg | C8: 021 | E8: 05 | F8: Plastics >50% | G8: 05 | M8: 206 | N8: Miniature vehicles & accessories | O8: 206 | P8: 206 - Miniature vehicles & accessories | U8: Non-certified solid wood, over 95% | V8: =IFERROR(VLOOKUP(RIGHT(U7,3),$M$3:$N$41,2,FALSE),"") ->  | W8: ≥ 0.4kg and < 0.5kg | X8: 087
A9: 022 | B9: ≥ 1kg and < 2kg | C9: 022 | E9: 06 | F9: Textiles, leather and fur >50% | G9: 06 | M9: 207 | N9: Creative play toys & accessories | O9: 207 | P9: 207 - Creative play toys & accessories | Q9: Wood and Wood products | R9: Bois_et_dérivés | U9: Certified solid wood mix and metal, more than 75% | V9: =IFERROR(VLOOKUP(RIGHT(U9,3),$M$3:$N$41,2,FALSE),"") ->  | W9: ≥ 0.5kg and < 1kg | X9: 021
A10: 052 | B10: ≥ 2kg and < 3kg | C10: 052 | E10: 07 | F10: Glass and mirror >50% | G10: 07 | M10: 208 | N10: Exploration toys and other toys & accessories | O10: 208 | P10: 208 - Exploration toys and other toys & accessories | Q10: Metal | R10: Métal | U10: Particleboard, more than 75% | V10: =IFERROR(VLOOKUP(RIGHT(U11,3),$M$3:$N$41,2,FALSE),"") ->  | W10: ≥ 1kg and < 2kg | X10: 022
A11: 053 | B11: ≥ 3kg and < 5kg | C11: 053 | E11: 08 | F11: Inert, minerals >50% | G11: 08 | M11: 209 | N11: Pedal ride-on toys & accessories | O11: 209 | P11: 209 - Pedal ride-on toys & accessories | Q11: Plastic | R11: Plastiques | U11: Particleboard and/or wood and/or metal, more than 75% | V11: =IFERROR(VLOOKUP(RIGHT(U10,3),$M$3:$N$41,2,FALSE),"") ->  | W11: ≥ 2kg and < 3kg | X11: 052
A12: 054 | B12: ≥ 5kg and < 7kg | C12: 054 | E12: 09 | F12: Foam | G12: 09 | M12: 210 | N12: Ride-on toys without pedals & accessories | O12: 210 | P12: 210 - Ride-on toys without pedals & accessories | Q12: Textile and with padding | R12: Textiles_et_avec_rembourrage | U12: Plywood, more than 75% | V12: =IFERROR(VLOOKUP(RIGHT(U12,3),$M$3:$N$41,2,FALSE),"") ->  | W12: ≥ 3kg and < 5kg | X12: 053
A13: 055 | B13: ≥ 7kg and < 10kg | C13: 055 | E13: 10 | F13: Latex | G13: 10 | M13: 211 | N13: Sports toys & accessories | O13: 211 | P13: 211 - Sports toys & accessories | Q13: Others | R13: Autres_usage_famille | U13: OSB, more than 75% | V13: =IFERROR(VLOOKUP(RIGHT(U13,3),$M$3:$N$41,2,FALSE),"") ->  | W13: ≥ 5kg and < 7kg | X13: 054
A14: 056 | B14: ≥ 10kg and < 15kg | C14: 056 | E14: 11 | F14: Springs | G14: 11 | M14: 212 | N14: Summer toys & accessories | O14: 212 | P14: 212 - Summer toys & accessories | U14: Bamboo/rattan >50% | V14: =IFERROR(VLOOKUP(RIGHT(#REF!,3),$M$3:$N$41,2,FALSE),"") ->  | W14: ≥ 7kg and < 10kg | X14: 055
A15: 057 | B15: ≥ 15kg and < 20kg | C15: 057 | E15: 12 | F15: Other | G15: 12 | M15: 213 | N15: Activity toys for family use | O15: 213 | P15: 213 - Activity toys for family use | U15: Bamboo/Rattan >95% | V15: =IFERROR(VLOOKUP(RIGHT(U19,3),$M$3:$N$41,2,FALSE),"") ->  | W15: ≥ 10kg and < 15kg | X15: 056
A16: 058 | B16: ≥ 20kg and < 25kg | C16: 058 | E16: 13 | F16: Natural padding (feather, wool) | G16: 13 | M16: 214 | N16: Board games & accessories (Toy Directive) | O16: 214 | P16: 214 - Board games & accessories (Toy Directive) | U16: Wicker and other plant stalks >50% | V16: =IFERROR(VLOOKUP(RIGHT(#REF!,3),$M$3:$N$41,2,FALSE),"") ->  | W16: ≥ 15kg and < 20kg | X16: 057
A17: 059 | B17: ≥ 25kg and < 30kg | C17: 059 | E17: 14 | F17: Synthetic padding (foam, polyester) | G17: 14 | M17: 215 | N17: Board games & accessories (outside Toy Directive) | O17: 215 | P17: 215 - Board games & accessories (outside Toy Directive) | U17: Wicker and other plant stems >95% | V17: =IFERROR(VLOOKUP(RIGHT(#REF!,3),$M$3:$N$41,2,FALSE),"") ->  | W17: ≥ 20kg and < 25kg | X17: 058
A18: 027 | B18: ≥ 30kg and < 40kg | C18: 027 | E18: 15 | F18: Composites and compact >50% | G18: 15 | M18: 216 | N18: Jigsaws & accessories (Toy Directive) | O18: 216 | P18: 216 - Jigsaws & accessories (Toy Directive) | V18: =IFERROR(VLOOKUP(RIGHT(#REF!,3),$M$3:$N$41,2,FALSE),"") ->  | W18: ≥ 25kg and < 30kg | X18: 059
A19: 060 | B19: ≥ 40kg and < 50kg | C19: 060 | E19: 16 | F19: Artificial stone >50% | G19: 16 | M19: 217 | N19: Jigsaws & accessories (outside Toy Directive) | O19: 217 | P19: 217 - Jigsaws & accessories (outside Toy Directive) | V19: =IFERROR(VLOOKUP(RIGHT(#REF!,3),$M$3:$N$41,2,FALSE),"") ->  | W19: ≥ 30kg and < 40kg | X19: 027
A20: 088 | B20: ≥ 50kg and < 100kg | C20: 088 | E20: 17 | F20: Cement concrete >50% | G20: 17 | M20: 218 | N20: Models & accessories (Toy Directive) | O20: 218 | P20: 218 - Models & accessories (Toy Directive) | W20: ≥ 40kg and < 50kg | X20: 060
A21: 030 | B21: ≥ 100kg and < 150kg | C21: 030 | E21: 18 | F21: Ceramic >50% | G21: 18 | M21: 219 | N21: Models & accessories (outside Toy Directive) | O21: 219 | P21: 219 - Models & accessories (outside Toy Directive) | U21: Métal | V21: =IFERROR(VLOOKUP(RIGHT(#REF!,3),$M$3:$N$41,2,FALSE),"") ->  | W21: ≥ 50kg and < 100kg | X21: 088
A22: 031 | B22: ≥ 150kg and < 200kg | C22: 031 | E22: 19 | F22: Paper, cardboard >50% | G22: 19 | M22: 220 | N22: Gift toys & accessories | O22: 220 | P22: 220 - Gift toys & accessories | U22: Metal >50% | V22: =IFERROR(VLOOKUP(RIGHT(#REF!,3),$M$3:$N$41,2,FALSE),"") ->  | W22: ≥ 100kg and < 150kg | X22: 030
A23: 032 | B23: ≥ 200kg and < 250kg | C23: 032 | E23: 20 | F23: Certified solid wood, more than 75% | G23: 20 | U23: Metal, more than 75% | V23: =IFERROR(VLOOKUP(RIGHT(#REF!,3),$M$3:$N$41,2,FALSE),"") ->  | W23: ≥ 150kg and < 200kg | X23: 031
A24: 082 | B24: Greater than 250 kg | C24: 082 | E24: 21 | F24: Uncertified solid wood, more than 75% | G24: 21 | U24: Metal, more than 95% | V24: =IFERROR(VLOOKUP(RIGHT(#REF!,3),$M$3:$N$41,2,FALSE),"") ->  | W24: ≥ 200kg and < 250kg | X24: 032
A25: 089 | B25: Batch of 1000 | C25: 089 | E25: 22 | F25: Metal, more than 75% | G25: 22 | U25: Ferrous metal >50% | V25: =IFERROR(VLOOKUP(RIGHT(#REF!,3),$M$3:$N$41,2,FALSE),"") ->  | W25: Greater than 250 kg | X25: 082
E26: 23 | F26: Certified solid wood mix and metal, more than 75% | G26: 23 | U26: Ferrous metal, more than 95% | V26: =IFERROR(VLOOKUP(RIGHT(U21,3),$M$3:$N$41,2,FALSE),"") ->  | X26: =IFERROR(VLOOKUP(#REF!,$B$3:$C$25,2,FALSE),"") -> 
E27: 24 | F27: Particleboard and/or wood and/or metal, more than 75% | G27: 24 | U27: Non-ferrous metal >50% | W27: Jouets_cadeau | X27: =IFERROR(VLOOKUP(#REF!,$B$3:$C$25,2,FALSE),"") -> 
E28: 25 | F28: Particleboard, more than 75% | G28: 25 | U28: Non-ferrous metal, more than 95% | W28: batch of 1000 | X28: =IFERROR(VLOOKUP(#REF!,$B$3:$C$25,2,FALSE),"") -> 
E29: 26 | F29: Plywood, more than 75% | G29: 26 | X29: =IFERROR(VLOOKUP(#REF!,$B$3:$C$25,2,FALSE),"") -> 
E30: 27 | F30: OSB, more than 75% | G30: 27
E31: 28 | F31: Metal, more than 95% | G31: 28 | W31: Jouets_usage_famille | X31: =IFERROR(VLOOKUP(RIGHT(W31,3),$M$3:$N$41,2,FALSE),"") -> 
E32: 29 | F32: Ferrous metal >50% | G32: 29 | U32: Plastiques | W32: ≥ 20kg and < 25kg | X32: =IFERROR(VLOOKUP(W32,$B$3:$C$25,2,FALSE),"") -> 058
E33: 30 | F33: Ferrous metal, more than 95% | G33: 30 | U33: Plastics >50% | W33: ≥ 25kg and < 30kg | X33: 059
E34: 31 | F34: Non-ferrous metal >50% | G34: 31 | U34: Plastics​ (without specificity) >95% | V34: =IFERROR(VLOOKUP(RIGHT(#REF!,3),$M$3:$N$41,2,FALSE),"") ->  | W34: ≥ 30kg and < 40kg | X34: 027
E35: 32 | F35: Non-ferrous metal, more than 95% | G35: 32 | U35: Polyethylene terephthalate (PET) >50% | V35: =IFERROR(VLOOKUP(RIGHT(#REF!,3),$M$3:$N$41,2,FALSE),"") ->  | W35: ≥ 40kg and < 50kg | X35: 060
E36: 33 | F36: Polyethylene terephthalate (PET) >50% | G36: 33 | U36: Polyethylene terephthalate (PET) >95% | V36: =IFERROR(VLOOKUP(RIGHT(#REF!,3),$M$3:$N$41,2,FALSE),"") ->  | W36: ≥ 50kg and < 100kg | X36: 088
E37: 34 | F37: Polyethylene (PE) >50% | G37: 34 | U37: Polyethylene (PE) >50% | V37: =IFERROR(VLOOKUP(RIGHT(#REF!,3),$M$3:$N$41,2,FALSE),"") ->  | W37: ≥ 100kg and < 150kg | X37: 030
E38: 35 | F38: Polypropylene (PP) >50% | G38: 35 | U38: Polyethylene (PE) >95% | V38: =IFERROR(VLOOKUP(RIGHT(#REF!,3),$M$3:$N$41,2,FALSE),"") ->  | W38: ≥ 150kg and < 200kg | X38: 031
E39: 36 | F39: PE and PP mixture >50% | G39: 36 | U39: Polypropylene (PP) >50% | V39: =IFERROR(VLOOKUP(RIGHT(#REF!,3),$M$3:$N$41,2,FALSE),"") ->  | W39: ≥ 200kg and < 250kg | X39: 032
E40: 37 | F40: ABS >50% | G40: 37 | U40: Polypropylene (PP) >95% | V40: =IFERROR(VLOOKUP(RIGHT(#REF!,3),$M$3:$N$41,2,FALSE),"") ->  | W40: Greater than 250 kg | X40: 082
E41: 38 | F41: Polystyrene >50% | G41: 38 | U41: PE and PP mixture >50% | V41: =IFERROR(VLOOKUP(RIGHT(#REF!,3),$M$3:$N$41,2,FALSE),"") -> 
E42: 39 | F42: PVC >50% | G42: 39 | U42: PE and PP mix >95% | V42: =IFERROR(VLOOKUP(RIGHT(#REF!,3),$M$3:$N$41,2,FALSE),"") -> 
E43: 40 | F43: Rubber >50% | G43: 40 | U43: ABS >50% | V43: =IFERROR(VLOOKUP(RIGHT(U32,3),$M$3:$N$41,2,FALSE),"") -> 
E44: 41 | F44: Plastics​ (without specificity) >95% | G44: 41 | U44: ABS >95% | V44: =IFERROR(VLOOKUP(RIGHT(U33,3),$M$3:$N$41,2,FALSE),"") -> 
E45: 42 | F45: Polyethylene terephthalate (PET) >95% | G45: 42 | U45: Polystyrene >50% | V45: =IFERROR(VLOOKUP(RIGHT(U35,3),$M$3:$N$41,2,FALSE),"") -> 
E46: 43 | F46: Polyethylene (PE) >95% | G46: 43 | U46: Polystyrene >95% | V46: =IFERROR(VLOOKUP(RIGHT(U37,3),$M$3:$N$41,2,FALSE),"") -> 
E47: 44 | F47: Polypropylene (PP) >95% | G47: 44 | U47: PVC >50% | V47: =IFERROR(VLOOKUP(RIGHT(U39,3),$M$3:$N$41,2,FALSE),"") -> 
E48: 45 | F48: PE and PP mix >95% | G48: 45 | U48: PVC >95% | V48: =IFERROR(VLOOKUP(RIGHT(U41,3),$M$3:$N$41,2,FALSE),"") -> 
E49: 46 | F49: ABS >95% | G49: 46 | U49: Rubber >50% | V49: =IFERROR(VLOOKUP(RIGHT(U43,3),$M$3:$N$41,2,FALSE),"") -> 
E50: 47 | F50: Polystyrene >95% | G50: 47 | U50: Rubber >95% | V50: =IFERROR(VLOOKUP(RIGHT(U45,3),$M$3:$N$41,2,FALSE),"") -> 
E51: 48 | F51: PVC >95% | G51: 48 | V51: =IFERROR(VLOOKUP(RIGHT(U47,3),$M$3:$N$41,2,FALSE),"") -> 
E52: 49 | F52: Rubber >95% | G52: 49 | U52: Textiles_et_avec_rembourrage | V52: =IFERROR(VLOOKUP(RIGHT(U49,3),$M$3:$N$41,2,FALSE),"") -> 
E53: 50 | F53: Paper >95% | G53: 50 | U53: Textiles, leather and fur >50% | V53: =IFERROR(VLOOKUP(RIGHT(U34,3),$M$3:$N$41,2,FALSE),"") -> 
E54: 51 | F54: Cardboard >95% | G54: =E54 -> 51 | U54: Textiles, leather, fur, etc. >95% | V54: =IFERROR(VLOOKUP(RIGHT(U36,3),$M$3:$N$41,2,FALSE),"") -> 
E55: 52 | F55: Certified solid wood, over 95% | G55: 52 | U55: Natural padding (feather, wool) | V55: =IFERROR(VLOOKUP(RIGHT(U38,3),$M$3:$N$41,2,FALSE),"") -> 
E56: 53 | F56: Non-certified solid wood, over 95% | G56: 53 | U56: Synthetic padding (foam, polyester) | V56: =IFERROR(VLOOKUP(RIGHT(U40,3),$M$3:$N$41,2,FALSE),"") -> 
E57: 54 | F57: Bamboo/Rattan >95% | G57: 54 | V57: =IFERROR(VLOOKUP(RIGHT(U42,3),$M$3:$N$41,2,FALSE),"") -> 
E58: 55 | F58: Wicker and other plant stems >95% | G58: 55 | V58: =IFERROR(VLOOKUP(RIGHT(U44,3),$M$3:$N$41,2,FALSE),"") -> 
E59: 56 | F59: Textiles, leather, fur, etc. >95% | G59: 56 | V59: =IFERROR(VLOOKUP(RIGHT(U46,3),$M$3:$N$41,2,FALSE),"") -> 
E60: 57 | F60: Glass and mirror >95% | G60: 57 | V60: =IFERROR(VLOOKUP(RIGHT(U48,3),$M$3:$N$41,2,FALSE),"") -> 
E61: 58 | F61: Inert materials, minerals >95% | G61: 58 | U61: Autres | V61: =IFERROR(VLOOKUP(RIGHT(U50,3),$M$3:$N$41,2,FALSE),"") -> 
E62: 99 | F62: Mix of max 3 materials | G62: 99 | U62: Not found | V62: =IFERROR(VLOOKUP(RIGHT(U70,3),$M$3:$N$41,2,FALSE),"") -> 
U63: Paper, cardboard >50% | V63: =IFERROR(VLOOKUP(RIGHT(U71,3),$M$3:$N$41,2,FALSE),"") -> 
U64: Paper >95% | V64: =IFERROR(VLOOKUP(RIGHT(U72,3),$M$3:$N$41,2,FALSE),"") -> 
U65: Cardboard >95% | V65: =IFERROR(VLOOKUP(RIGHT(U73,3),$M$3:$N$41,2,FALSE),"") -> 
U66: Glass and mirror >50% | V66: =IFERROR(VLOOKUP(RIGHT(U63,3),$M$3:$N$41,2,FALSE),"") -> 
U67: Glass and mirror >95% | V67: =IFERROR(VLOOKUP(RIGHT(U65,3),$M$3:$N$41,2,FALSE),"") -> 
U68: Inert, minerals >50% | V68: =IFERROR(VLOOKUP(RIGHT(#REF!,3),$M$3:$N$41,2,FALSE),"") -> 
U69: Inert materials, minerals >95% | V69: =IFERROR(VLOOKUP(RIGHT(U67,3),$M$3:$N$41,2,FALSE),"") -> 
U70: Composites and compact >50% | V70: =IFERROR(VLOOKUP(RIGHT(U69,3),$M$3:$N$41,2,FALSE),"") -> 
U71: Artificial stone >50% | V71: =IFERROR(VLOOKUP(RIGHT(#REF!,3),$M$3:$N$41,2,FALSE),"") -> 
U72: Cement concrete >50% | V72: =IFERROR(VLOOKUP(RIGHT(#REF!,3),$M$3:$N$41,2,FALSE),"") -> 
U73: Ceramic >50% | V73: =IFERROR(VLOOKUP(RIGHT(#REF!,3),$M$3:$N$41,2,FALSE),"") -> 
U74: Other | V74: =IFERROR(VLOOKUP(RIGHT(#REF!,3),$M$3:$N$41,2,FALSE),"") -> 
V75: =IFERROR(VLOOKUP(RIGHT(#REF!,3),$M$3:$N$41,2,FALSE),"") -> 
V76: =IFERROR(VLOOKUP(RIGHT(#REF!,3),$M$3:$N$41,2,FALSE),"") -> 
U77: Autres_usage_famille | V77: =IFERROR(VLOOKUP(RIGHT(#REF!,3),$M$3:$N$41,2,FALSE),"") -> 
U78: Not found | V78: =IFERROR(VLOOKUP(RIGHT(#REF!,3),$M$3:$N$41,2,FALSE),"") -> 
U79: Paper, cardboard >50% | V79: =IFERROR(VLOOKUP(RIGHT(#REF!,3),$M$3:$N$41,2,FALSE),"") -> 
U80: Paper >95% | V80: =IFERROR(VLOOKUP(RIGHT(U77,3),$M$3:$N$41,2,FALSE),"") -> 
U81: Cardboard >95%
U82: Glass and mirror >50%
U83: Glass and mirror >95%
U84: Inert, minerals >50%
U85: Inert materials, minerals >95%
U86: Composites and compact >50%
U87: Artificial stone >50%
U88: Cement concrete >50%
U89: Ceramic >50% | X89: =IFERROR(VLOOKUP(W69,$B$3:$C$25,2,FALSE),"") -> 
U90: Mix of Max 3 materials
U91: Other
V144: =IFERROR(VLOOKUP(RIGHT(U141,3),$M$3:$N$41,2,FALSE),"") -> 
X153: =IFERROR(VLOOKUP(W133,$B$3:$C$25,2,FALSE),"") -> 
V208: =IFERROR(VLOOKUP(RIGHT(U205,3),$M$3:$N$41,2,FALSE),"") -> 
X217: =IFERROR(VLOOKUP(W197,$B$3:$C$25,2,FALSE),"") -> 
V272: =IFERROR(VLOOKUP(RIGHT(U269,3),$M$3:$N$41,2,FALSE),"") -> 
X281: =IFERROR(VLOOKUP(W261,$B$3:$C$25,2,FALSE),"") -> 
V336: =IFERROR(VLOOKUP(RIGHT(U333,3),$M$3:$N$41,2,FALSE),"") -> 
X345: =IFERROR(VLOOKUP(W325,$B$3:$C$25,2,FALSE),"") -> 
V400: =IFERROR(VLOOKUP(RIGHT(U397,3),$M$3:$N$41,2,FALSE),"") -> 
X409: =IFERROR(VLOOKUP(W389,$B$3:$C$25,2,FALSE),"") -> 
V464: =IFERROR(VLOOKUP(RIGHT(U461,3),$M$3:$N$41,2,FALSE),"") -> 
X473: =IFERROR(VLOOKUP(W453,$B$3:$C$25,2,FALSE),"") -> 
